Workbook

Sheet Control Panel
A1: GO TO
A2: Utah | D2: FILING INFORMATION | K2: Model Checks
A3: 1.1
A4: 1.2 | F4: UTAH | K4: ='Model Checks'!D7 -> 0.5724317282
A5: 1.3 pg 1 | E5: Current Case No. | F5: 23-057-03
A6: 1.3 pg 2 | E6: Filing Date | F6: 2023-02-01
E7: Test-Year Ending | F7: 2024-02-29
A8: 1.4 pg 1 | E8: Proposed Effective Date | F8: 2023-03-01 | G8: withdrawn case
A9: 1.4 pg 2 | E9: Prior Case No. | F9: 22-057-16 | G9: 22-057-20
A10: 1.4 pg 3 | K10: Go To
A11: 1.5 | D11: Total Increase (Decrease) | F11: ='Utah Summary-by class'!Q27 -> 92092281.2 | H11: =F11-G11 -> 92092281.2 | K11: Model Checks'
A12: 1.6 pg 1
A13: 1.6 pg 2
A14: 1.6 pg 3 | D14: Typical Customer's Bill | K14: Old Ut Data color
A15: 1.7 pg 1
A16: 1.7 pg 2 | E16: Previous | F16: ='Ut 1.6'!F30 -> 866.96 | K16: New Data color
A17: 1.8 | E17: Proposed | F17: ='Ut 1.6'!H30 -> 922.74
A18: 1.9 | E18: Difference | F18: ='Ut 1.6'!J30 -> 55.78 | H18: =F18-G18 -> 55.78
A19: Monthly Inputs | E19: % Difference | F19: ='Ut 1.6'!J32 -> 6.43 | H19: =F19-G19 -> 6.43
A20: Other Inputs
A21: Expenses
A22: Rate Base
D29: DEU Exhibit Headings
D31: UTAH
F32: Dominion Energy Utah
F33: ="Docket No. "&F5 -> Docket No. 23-057-03
D39: Test-Year (enter as text)
E40: from | F40: 2023-03-01
E41: to | F41: 2024-02-29

Sheet Monthly Inputs
A1: MONTHLY INPUTS
G2: TEST-YEAR COLUMNS | S2: 12-Month
E3: Jan23 | F3: Feb23 | G3: Mar23 | H3: Apr23 | I3: May23 | J3: Jun23 | K3: Jul23 | L3: Aug23 | M3: Sep23 | N3: Oct23 | O3: Nov23 | P3: Dec23 | Q3: Jan24 | R3: Feb24 | S3: =R3 -> Feb24
E4: 1 | F4: 2 | G4: =MONTH(G3) -> 3 | H4: 4 | I4: 5 | J4: 6 | K4: 7 | L4: 8 | M4: 9 | N4: 10 | O4: 11 | P4: 12 | Q4: 1 | R4: 2
A5: QGC Company Produced Gas In MDth | I5: Updated: | J5: 2023-01-12
A6: WEXPRO I
B7: Company Production In Dth | E7: 3637668.792 | F7: 3208435.457 | G7: 3483614.068 | H7: 3312333.997 | I7: 3364720.318 | J7: 3203188.194 | K7: 3348338.543 | L7: 3489884.148 | M7: 3315189.947 | N7: 3357249.339 | O7: 3387621.09 | P7: 3408000.509 | Q7: 3335506.086 | R7: 3173001.655 | S7: =SUM(G7:R7) -> 40178647.9
B8: Birch Cr Gathering | E8: 0 | F8: 0 | G8: 0 | H8: 0 | I8: 0 | J8: 0 | K8: 0 | L8: 0 | M8: 0 | N8: 0 | O8: 0 | P8: 0 | Q8: 0 | R8: =R7/$S$7*$S$8 -> 0 | S8: ='Other Inputs'!$D$180 -> 0
B9: Gathering | E9: =E7/$S$7*$S$9 -> 786388.7747 | F9: 693597.403 | G9: 753085.3289 | H9: 716058.1191 | I9: 727382.9585 | J9: 692463.0533 | K9: 723841.5575 | L9: 754440.7904 | M9: 716675.5165 | N9: 725767.8874 | O9: 732333.6319 | P9: 736739.2409 | Q9: 721067.4457 | R9: 685937.3478 | S9: =+'WEXPRO Royalty Detail'!E1 -> 8685792.878
A12: WEXPRO II
B13: Company Production In Dth | E13: 1550003.628 | F13: 1371079.364 | G13: 1454997.212 | H13: 1376536.279 | I13: 1380126.35 | J13: 1307421.074 | K13: 1314608.828 | L13: 1286992.306 | M13: 1244940.406 | N13: 1256832.272 | O13: 2075200.629 | P13: 1994506.462 | Q13: 1886941.987 | R13: 1696160.616 | S13: =SUM(G13:R13) -> 18275264.42
B14: Samson Gathering | E14: =E13/$S$13*$S$14 -> 759179.9027 | F14: 671544.1688 | G14: 712646.4879 | H14: 674216.9239 | I14: 675975.3132 | J14: 640364.8259 | K14: 643885.3329 | L14: 630358.9718 | M14: 609762.2737 | N14: 615586.8185 | O14: 1016417.37 | P14: 976893.9854 | Q14: 924209.7293 | R14: 830766.4754 | S14: =+'WEXPRO Royalty Detail'!L1 -> 8951084.508
D21: 1000
B23: Injections in Dth
C24: Chalk Creek | E24: 0 | F24: 44310 | G24: 0 | H24: 0 | I24: 0 | J24: 0 | K24: 0 | L24: 0 | M24: 40000 | N24: 132000 | O24: 90000 | P24: 59000 | Q24: 0 | R24: 44310 | S24: =SUM(G24:R24) -> 365310
C25: Clay Basin | E25: 0 | F25: 0 | G25: 805140 | H25: 136477 | I25: 1418001 | J25: 1480000 | K25: 2045999 | L25: 2051859 | M25: 1985670 | N25: 1576854 | O25: 0 | P25: 0 | Q25: 0 | R25: 0 | S25: 11500000
C26: Coalville | E26: 0 | F26: 170000 | G26: 317500 | H26: 0 | I26: 0 | J26: 0 | K26: 0 | L26: 0 | M26: 42000 | N26: 280800 | O26: 37386 | P26: 0 | Q26: 0 | R26: 170000 | S26: 847686
C27: Leroy | E27: 0 | F27: 146800 | G27: 0 | H27: 0 | I27: 0 | J27: 0 | K27: 0 | L27: 0 | M27: 47500 | N27: 45000 | O27: 300000 | P27: 50998 | Q27: 0 | R27: 146800 | S27: 590298
C28: Spire | E28: 0 | F28: 0 | G28: 0 | H28: 0 | I28: 0 | J28: 0 | K28: 0 | L28: 0 | M28: 0 | N28: 0 | O28: 0 | P28: 0 | Q28: 0 | R28: 0 | S28: 0
C29: Total Injections | E29: =SUM(E24:E28) -> 0 | F29: 361110 | G29: 1122640 | H29: 136477 | I29: 1418001 | J29: 1480000 | K29: 2045999 | L29: 2051859 | M29: 2115170 | N29: 2034654 | O29: 427386 | P29: 109998 | Q29: 0 | R29: 361110 | S29: 13303294
B31: Withdrawls In Dth
C32: Chalk Creek | E32: 124560 | F32: 128625 | G32: 112125 | H32: 0 | I32: 0 | J32: 0 | K32: 0 | L32: 0 | M32: 0 | N32: 0 | O32: 0 | P32: 0 | Q32: 124560 | R32: 110250 | S32: =SUM(G32:R32) -> 346935
C33: Clay Basin | E33: 3410050 | F33: 3080045 | G33: 0 | H33: 0 | I33: 0 | J33: 0 | K33: 0 | L33: 0 | M33: 0 | N33: 0 | O33: 484600 | P33: 4086000 | Q33: 3458045 | R33: 3190046 | S33: 11218691
C34: Coalville | E34: 410186 | F34: 437500 | G34: 0 | H34: 0 | I34: 0 | J34: 0 | K34: 0 | L34: 0 | M34: 0 | N34: 0 | O34: 0 | P34: 0 | Q34: 410186 | R34: 445000 | S34: 855186
C35: Leroy | E35: 470298 | F35: 120000 | G35: 0 | H35: 0 | I35: 0 | J35: 0 | K35: 0 | L35: 0 | M35: 0 | N35: 0 | O35: 0 | P35: 0 | Q35: 470298 | R35: 120000 | S35: 590298
C36: Spire | E36: 0 | F36: 0 | G36: 0 | H36: 0 | I36: 0 | J36: 0 | K36: 0 | L36: 0 | M36: 0 | N36: 0 | O36: 0 | P36: 0 | Q36: 0 | R36: 0 | S36: 0
C37: Total Withdrawls | E37: =SUM(E32:E36) -> 4415094 | F37: 3766170 | G37: 112125 | H37: 0 | I37: 0 | J37: 0 | K37: 0 | L37: 0 | M37: 0 | N37: 0 | O37: 484600 | P37: 4086000 | Q37: 4463089 | R37: 3865296 | S37: 13011110
A39: LNG
B40: Injections in Dth | E40: 0 | F40: 0 | G40: 0 | H40: 0 | I40: 279000 | J40: 270000 | K40: 279000 | L40: 279000 | M40: 0 | N40: 108000 | O40: 0 | P40: 0 | Q40: 0 | R40: 0 | S40: =SUM(G40:R40) -> 1215000
B41: Withdrawls In Dth | E41: 0 | F41: 0 | G41: 0 | H41: 0 | I41: 0 | J41: 0 | K41: 0 | L41: 0 | M41: 0 | N41: 108000 | O41: 0 | P41: 0 | Q41: 0 | R41: 0 | S41: =SUM(G41:R41) -> 108000
B43: Lost & Unaccounted for on Williams
A46: Injection and Withdrawl Used, Lost and Unaccounted For
D47: Gas Use
D48: %
B49: Injections in Dth
C50: Chalk Creek | D50: ='Other Inputs'!E152 -> 0.0065 | E50: =E24*-$D50 -> 0 | F50: -288.015 | G50: 0 | H50: 0 | I50: 0 | J50: 0 | K50: 0 | L50: 0 | M50: -260 | N50: -858 | O50: -585 | P50: -383.5 | Q50: 0 | R50: -288.015 | S50: =SUM(G50:R50) -> -2374.515
C51: Clay Basin | D51: ='Other Inputs'!E161 -> 0.0133 | E51: =E25*-$D51 -> 0 | F51: 0 | G51: -10708.362 | H51: -1815.1441 | I51: -18859.4133 | J51: -19684 | K51: -27211.7867 | L51: -27289.7247 | M51: -26409.411 | N51: -20972.1582 | O51: 0 | P51: 0 | Q51: 0 | R51: 0 | S51: =SUM(G51:R51) -> -152950
C52: Coalville | D52: ='Other Inputs'!E164 -> 0.0111 | E52: =E26*-$D52 -> 0 | F52: -1887 | G52: -3524.25 | H52: 0 | I52: 0 | J52: 0 | K52: 0 | L52: 0 | M52: -466.2 | N52: -3116.88 | O52: -414.9846 | P52: 0 | Q52: 0 | R52: -1887 | S52: =SUM(G52:R52) -> -9409.3146
C53: Leroy | D53: ='Other Inputs'!E158 -> 0.0273 | E53: =E27*-$D53 -> 0 | F53: -4007.64 | G53: 0 | H53: 0 | I53: 0 | J53: 0 | K53: 0 | L53: 0 | M53: -1296.75 | N53: -1228.5 | O53: -8190 | P53: -1392.2454 | Q53: 0 | R53: -4007.64 | S53: =SUM(G53:R53) -> -16115.1354
C54: Ryckman | D54: ='Other Inputs'!E155 -> 0 | E54: =E28*-$D54 -> 0 | F54: 0 | G54: 0 | H54: 0 | I54: 0 | J54: 0 | K54: 0 | L54: 0 | M54: 0 | N54: 0 | O54: 0 | P54: 0 | Q54: 0 | R54: 0 | S54: =SUM(G54:R54) -> 0
C56: Total Injections | E56: =SUM(E50:E54) -> 0 | F56: -6182.655 | G56: -14232.612 | H56: -1815.1441 | I56: -18859.4133 | J56: -19684 | K56: -27211.7867 | L56: -27289.7247 | M56: -28432.361 | N56: -26175.5382 | O56: -9189.9846 | P56: -1775.7454 | Q56: 0 | R56: -6182.655 | S56: =SUM(S50:S54) -> -180848.965
B58: Withdrawls In Dth
C59: Chalk Creek | D59: ='Other Inputs'!E153 -> 0.0188 | E59: =E32*-$D59 -> -2341.728 | F59: -2418.15 | G59: -2107.95 | H59: 0 | I59: 0 | J59: 0 | K59: 0 | L59: 0 | M59: 0 | N59: 0 | O59: 0 | P59: 0 | Q59: -2341.728 | R59: -2072.7 | S59: =SUM(G59:R59) -> -6522.378
C60: Clay Basin | D60: ='Other Inputs'!E162 -> 0.002129 | E60: =E33*-$D60 -> -7259.99645 | F60: -6557.415805 | G60: 0 | H60: 0 | I60: 0 | J60: 0 | K60: 0 | L60: 0 | M60: 0 | N60: 0 | O60: -1031.7134 | P60: -8699.094 | Q60: -7362.177805 | R60: -6791.607934 | S60: =SUM(G60:R60) -> -23884.59314
C61: Coalville | D61: ='Other Inputs'!E165 -> 0.015 | E61: =E34*-$D61 -> -6152.79 | F61: -6562.5 | G61: 0 | H61: 0 | I61: 0 | J61: 0 | K61: 0 | L61: 0 | M61: 0 | N61: 0 | O61: 0 | P61: 0 | Q61: -6152.79 | R61: -6675 | S61: =SUM(G61:R61) -> -12827.79
C62: Leroy | D62: ='Other Inputs'!E159 -> 0.0137 | E62: =E35*-$D62 -> -6443.0826 | F62: -1644 | G62: 0 | H62: 0 | I62: 0 | J62: 0 | K62: 0 | L62: 0 | M62: 0 | N62: 0 | O62: 0 | P62: 0 | Q62: -6443.0826 | R62: -1644 | S62: =SUM(G62:R62) -> -8087.0826
C63: Ryckman | D63: ='Other Inputs'!E156 -> 0 | E63: =E36*-$D63 -> 0 | F63: 0 | G63: 0 | H63: 0 | I63: 0 | J63: 0 | K63: 0 | L63: 0 | M63: 0 | N63: 0 | O63: 0 | P63: 0 | Q63: 0 | R63: 0 | S63: =SUM(G63:R63) -> 0
C65: Total Withdrawls | E65: =SUM(E59:E63) -> -22197.59705 | F65: =SUM(F59:F63) -> -17182.0658 | G65: =SUM(G59:G63) -> -2107.95 | H65: 0 | I65: 0 | J65: 0 | K65: 0 | L65: 0 | M65: 0 | N65: 0 | O65: -1031.7134 | P65: -8699.094 | Q65: -22299.7784 | R65: -17183.30793 | S65: =SUM(S59:S63) -> -51321.84374
B67: Williams Transportation Loss
C68: Chalk Creek | D68: ='Other Inputs'!$E$279 -> 0.0105 | E68: =E32*-$D68 -> -1307.88 | F68: -1350.5625 | G68: -1177.3125 | H68: 0 | I68: 0 | J68: 0 | K68: 0 | L68: 0 | M68: 0 | N68: 0 | O68: 0 | P68: 0 | Q68: -1307.88 | R68: -1157.625 | S68: =SUM(G68:R68) -> -3642.8175
C69: Clay Basin | D69: ='Other Inputs'!$E$279 -> 0.0105 | E69: =E33*-$D69 -> -35805.525 | F69: -32340.4725 | G69: 0 | H69: 0 | I69: 0 | J69: 0 | K69: 0 | L69: 0 | M69: 0 | N69: 0 | O69: -5088.3 | P69: -42903 | Q69: -36309.4725 | R69: -33495.483 | S69: =SUM(G69:R69) -> -117796.2555
C70: Coalville | D70: ='Other Inputs'!$E$279 -> 0.0105 | E70: =E34*-$D70 -> -4306.953 | F70: -4593.75 | G70: 0 | H70: 0 | I70: 0 | J70: 0 | K70: 0 | L70: 0 | M70: 0 | N70: 0 | O70: 0 | P70: 0 | Q70: -4306.953 | R70: -4672.5 | S70: =SUM(G70:R70) -> -8979.453
C71: Leroy | D71: ='Other Inputs'!$E$279 -> 0.0105 | E71: =E35*-$D71 -> -4938.129 | F71: -1260 | G71: 0 | H71: 0 | I71: 0 | J71: 0 | K71: 0 | L71: 0 | M71: 0 | N71: 0 | O71: 0 | P71: 0 | Q71: -4938.129 | R71: -1260 | S71: =SUM(G71:R71) -> -6198.129
C72: Ryckman | D72: ='Other Inputs'!$E$279 -> 0.0105 | E72: =E36*-$D72 -> 0 | F72: 0 | G72: 0 | H72: 0 | I72: 0 | J72: 0 | K72: 0 | L72: 0 | M72: 0 | N72: 0 | O72: 0 | P72: 0 | Q72: 0 | R72: 0 | S72: =SUM(G72:R72) -> 0
C74: Total Withdrawls | E74: =SUM(E68:E72) -> -46358.487 | F74: =SUM(F68:F72) -> -39544.785 | G74: =SUM(G68:G72) -> -1177.3125 | H74: 0 | I74: 0 | J74: 0 | K74: 0 | L74: 0 | M74: 0 | N74: 0 | O74: -5088.3 | P74: -42903 | Q74: -46862.4345 | R74: -40585.608 | S74: -136616.655
B77: Total Injections & Withdrawls | E77: =E56+E65 -> -22197.59705 | F77: =F56+F65 -> -23364.7208 | G77: =G56+G65 -> -16340.562 | H77: =H56+H65 -> -1815.1441 | I77: -18859.4133 | J77: -19684 | K77: -27211.7867 | L77: -27289.7247 | M77: -28432.361 | N77: -26175.5382 | O77: -10221.698 | P77: -10474.8394 | Q77: -22299.7784 | R77: -23365.96293 | S77: =S56+S65 -> -232170.8087
R79: Fuel Factor | S79: =-S77/(S37+S29) -> 0.008822955243
S81: 12-Month
E82: =E3 -> Jan23 | F82: Feb23 | G82: Mar23 | H82: Apr23 | I82: May23 | J82: Jun23 | K82: Jul23 | L82: Aug23 | M82: Sep23 | N82: Oct23 | O82: Nov23 | P82: Dec23 | Q82: Jan24 | R82: Feb24 | S82: Total
I84: Updated: | J84: 2023-01-12 | K84: EXH 1.2
A85: Natural Gas Spot Price Forecast - Average of GI, IHS & Platts | G85: (Forecast --->)
B86: Kern River Opal, Wyoming | E86: 12.52 | F86: 9.34 | G86: 5.23 | H86: 4.23 | I86: 3.96 | J86: 4.27 | K86: 4.54 | L86: 4.57 | M86: 4.22 | N86: 4.09 | O86: 4.99 | P86: 6.24 | Q86: 6.33 | R86: 5.52
B89: Spot Purchases from IRP | G89: 5128.754 | H89: 2140.371 | I89: 2601.552 | J89: 416.133 | K89: 317.254 | L89: 174.684 | M89: 925.886 | N89: 4894.842 | O89: 6767.009 | P89: 2040.308 | Q89: 6700.632 | R89: 1675.939 | S89: =SUM(G89:R89) -> 33783.364
C90: In DTH | G90: =G89*1000 -> 5128754 | H90: =H89*1000 -> 2140371 | I90: 2601552 | J90: 416133 | K90: 317254 | L90: =L89*1000 -> 174684 | M90: =M89*1000 -> 925886 | N90: 4894842 | O90: =O89*1000 -> 6767009 | P90: 2040308 | Q90: 6700632 | R90: 1675939 | S90: =SUM(G90:R90) -> 33783364
C91: In $ | G91: =G90*G86 -> 26823383.42 | H91: =H90*H86 -> 9053769.33 | I91: =I90*I86 -> 10302145.92 | J91: =J90*J86 -> 1776887.91 | K91: =K90*K86 -> 1440333.16 | L91: =L90*L86 -> 798305.88 | M91: 3907238.92 | N91: 20019903.78 | O91: 33767374.91 | P91: 12731521.92 | Q91: =Q90*Q86 -> 42415000.56 | R91: 9251183.28 | S91: =SUM(G91:R91) -> 172287049
A94: CONTRACT PURCHASES | I94: Updated: | J94: 2023-01-12
B95: RESET FORMULAS TO WORKSHEET
B96: Peaking Purchases (DTH) | G96: 5000000 | H96: 3000000 | I96: 0 | J96: 0 | K96: 0 | L96: 0 | M96: 0 | N96: 0 | O96: 1000000 | P96: 4000000 | Q96: 1000000 | R96: 4000000 | S96: =SUM(G96:R96) -> 18000000
B97: Peaking Purchases ($) | G97: 55153388.9 | H97: 26792033.34 | I97: 0 | J97: 0 | K97: 0 | L97: 0 | M97: 0 | N97: 0 | O97: 10526677.78 | P97: 52606711.12 | Q97: 13340677.78 | R97: 46558711.12 | S97: =SUM(G97:R97) -> 204978200
B99: Term Purchases (DTH) | G99: 279000 | H99: 0 | I99: 0 | J99: 0 | K99: 0 | L99: 0 | M99: 0 | N99: 0 | O99: 0 | P99: 2635000 | Q99: 2635000 | R99: 2465000 | S99: =SUM(G99:R99) -> 8014000
B100: Term Purchases ($) | G100: 1529338.5 | H100: 0 | I100: 0 | J100: 0 | K100: 0 | L100: 0 | M100: 0 | N100: 0 | O100: 0 | P100: 17236620 | Q100: 17485627.5 | R100: 14261040 | S100: =SUM(G100:R100) -> 50512626
B101: Stabilization Costs (Winter Months - Oct to Mar) | G101: 0 | H101: 0 | I101: 0 | J101: 0 | K101: 0 | L101: 0 | M101: 0 | N101: 0 | O101: 0 | P101: 0 | Q101: 0 | R101: 0 | S101: =SUM(G101:R101) -> 0
B103: Fixed Price Term Purchases (DTH) | G103: 0 | H103: 0 | I103: 0 | J103: 0 | K103: 0 | L103: 0 | M103: 0 | N103: 0 | O103: 0 | P103: 2015000 | Q103: 2015000 | R103: 1950000 | S103: =SUM(G103:R103) -> 5980000
B104: Fixed Price Term Purchases ($) | G104: 0 | H104: 0 | I104: 0 | J104: 0 | K104: 0 | L104: 0 | M104: 0 | N104: 0 | O104: 0 | P104: 16012275 | Q104: 16500525 | R104: 15563250 | S104: =SUM(G104:R104) -> 48076050
B107: Total Purchases (DTH) | E107: 0 | F107: 0 | G107: =G96+G99+G103 -> 5279000 | H107: =H96+H99+H103 -> 3000000 | I107: 0 | J107: 0 | K107: 0 | L107: 0 | M107: 0 | N107: 0 | O107: 1000000 | P107: 8650000 | Q107: 5650000 | R107: 8415000 | S107: =SUM(G107:R107) -> 31994000
B108: Total Purchases ($) | E108: 0 | F108: 0 | G108: =G97+G100+G104 -> 56682727.4 | H108: =H97+H100+H104 -> 26792033.34 | I108: 0 | J108: 0 | K108: 0 | L108: 0 | M108: 0 | N108: 0 | O108: 10526677.78 | P108: 85855606.12 | Q108: 47326830.28 | R108: 76383001.12 | S108: =SUM(G108:R108) -> 303566876
A111: Typical Customer Monthly Usage in Dth
B112: Utah | G112: =VLOOKUP(MONTH(G3),$F$126:$G$137,2,FALSE) -> 0 | H112: =VLOOKUP(MONTH(H3),$F$126:$G$137,2,FALSE) -> 0 | I112: 0 | J112: 0 | K112: 0 | L112: 0 | M112: 0 | N112: 0 | O112: 0 | P112: 0 | Q112: 0 | R112: 0 | S112: =SUM(G112:R112) -> 0
B113: Wyoming | G113: =VLOOKUP(MONTH(G3),$F$126:$H$137,3,FALSE) -> 11.8 | H113: =VLOOKUP(MONTH(H3),$F$126:$H$137,3,FALSE) -> 9.4 | I113: 5.8 | J113: 3.7 | K113: 2.3 | L113: 1.7 | M113: 2.1 | N113: 4.1 | O113: 8 | P113: 12.3 | Q113: 14.7 | R113: 14.1 | S113: =SUM(G113:R113) -> 90
A115: INPUTS FROM WEXPRO | G115: =+G3 -> Mar23 | H115: =+H3 -> Apr23 | I115: May23 | J115: Jun23 | K115: Jul23 | L115: Aug23 | M115: Sep23 | N115: Oct23 | O115: Nov23 | P115: Dec23 | Q115: Jan24 | R115: Feb24 | S115: 12-Month
S116: Total
A117: Wexpro I Operator Fee (Wexpro forecast) | E117: Updated: | F117: 2023-01-18 | G117: 32006338.04 | H117: 15568600.81 | I117: 12662275.52 | J117: 12136565.64 | K117: 12214924.78 | L117: 12053505.94 | M117: 12335470.5 | N117: 12448905.46 | O117: 12066880.93 | P117: 12235926.76 | Q117: 13050645.6 | R117: 13543365.44 | S117: =SUM(G117:R117) -> 172323405.4
A119: Wexpro II Operator Fee (Wexpro forecast) | E119: Updated: | F119: 2023-01-18 | G119: 4391375.509 | H119: 4106851.298 | I119: 4059382.239 | J119: 3986336.098 | K119: 4026170.854 | L119: 3967547.617 | M119: 3855923.613 | N119: 3843983.116 | O119: 4543187.434 | P119: 6326246.811 | Q119: 5883782.199 | R119: 5390315.168 | S119: =SUM(G119:R119) -> 54381101.96
F125: Typical UPC | H125: WY | J125: Typical UPC | K125: UT
F126: 1 | H126: 14.7 | J126: 1 | K126: 13
F127: 2 | H127: 14.1 | J127: 2 | K127: 10.9
F128: 3 | H128: 11.8 | J128: 3 | K128: 8.8
F129: 4 | H129: 9.4 | J129: 4 | K129: 7.3
F130: 5 | H130: 5.8 | J130: 5 | K130: 3.8
F131: 6 | H131: 3.7 | J131: 6 | K131: 2.7
F132: 7 | H132: 2.3 | J132: 7 | K132: 1.8
F133: 8 | H133: 1.7 | J133: 8 | K133: 1.6
F134: 9 | H134: 2.1 | J134: 9 | K134: 1.8
F135: 10 | H135: 4.1 | J135: 10 | K135: 2.7
F136: 11 | H136: 8 | J136: 11 | K136: 5.5
F137: 12 | H137: 12.3 | J137: 12 | K137: 10.1
F138: Total | H138: =SUM(H126:H137) -> 90 | J138: Total | K138: =SUM(K126:K137) -> 70

Sheet Other Inputs
H1: Used In
A2: INPUT SECTION | H2: Ut | I2: Wy
A3: INPUTS FROM TARIFF AND CONTRACTS
B5: Storage Commodity Rates | E5: Rate | F5: Effective
B6: Peaking Injections | E6: 0.03872 | F6: 2023-01-01 | H6: 1.3.2 | I6: 1.3p2
B7: Peaking Withdrawals | E7: 0.03872 | F7: =$F$6 -> 2023-01-01 | H7: 1.3.2 | I7: 1.3p2
B8: Spire Injections | E8: 0 | F8: =$F$6 -> 2023-01-01
B9: Spire Withdrawals | E9: 0 | F9: =$F$6 -> 2023-01-01
B10: Clay Basin Injections | E10: 0.01049 | F10: =$F$6 -> 2023-01-01 | H10: 1.3.2 | I10: 1.3p2
B11: Clay Basin Withdrawals | E11: 0.01781 | F11: =$F$6 -> 2023-01-01 | H11: 1.3.2 | I11: 1.3p2
B13: Storage Field Reservation Charges
B14: Peaking Storage Fields Demand (Leroy, Chalk Creek, Coalville) | E14: 2.87375 | F14: =$F$6 -> 2023-01-01 | H14: 1.3.2 | I14: 1.3p2
B15: Spire | E15: 0 | F15: =$F$6 -> 2023-01-01
B16: Clay Basin Demand | E16: 2.85338 | F16: =$F$6 -> 2023-01-01 | H16: 1.3.2 | I16: 1.3p2
B17: Clay Basin Capacity | E17: 0.02378 | F17: =$F$6 -> 2023-01-01 | H17: 1.3.2 | I17: 1.3p2
B19: Peak Hour Service
B20: Kern River | D20: 28752 | E20: 3 | F20: =+F21*E21/E20 -> 16.1
B21: mid Nov - mid Feb | E21: =16+31+31+14 -> 92 | F21: =(0.5833-0.0642)+0.0044+$F$45 -> 0.525
B23: Williams - Pipeline | D23: =(170000+54000)/24*8 -> 74666.66667 | E23: 3 | F23: =(1250772+397304)/(D23*E23) -> 7.357482143
B24: mid Nov - mid Feb | E24: =16+31+31+14 -> 92 | F24: =+F23/E24*E23 -> 0.239917896
B27: FIRM TRANSPORTATION | D27: Contract Dth | E27: Months | F27: Maximum Rate | G27: Effective
B28: T-1 Transportation - Yearly (MT241) | D28: =798902 -> 798902 | E28: 12 | F28: 5.28804 | G28: 2023-01-01 | H28: 1.3p1
B29: T-1 Transportation - Yearly (Mainline 104) | D29: 30000 | E29: 12 | F29: 5.28804 | G29: =$G$28 -> 2023-01-01
B30: T-1 Transportation - Yearly (Tieline 112) | D30: 12000 | E30: 12 | F30: 5.28804 | G30: =$G$28 -> 2023-01-01 | H30: 1.3p1
B31: T-1 Transportation - Nov-Mar | D31: 75000 | E31: 5 | F31: 6.80887 | G31: =$G$28 -> 2023-01-01
B32: T-1 Transportation - Yearly (Hyrum) | D32: 100000 | E32: 12 | F32: 5.28804 | G32: =$G$28 -> 2023-01-01
B33: Total Yearly T-1 Transportation | D33: =SUM(D28:D32) -> 1015902 | E33: 12
B35: No-Notice Transportation (BASE TARIFF RATE) | D35: 203542 | E35: 12 | F35: 0.86753 | G35: =$G$28 -> 2023-01-01 | H35: 1.3p1
A37: Williams - Overthrust Pipeline
B38: Jan- Dec #6546 | D38: 8542 | E38: 12 | F38: 1.62 | G38: 2022-04-01
B39: Systemwide Usage Charge | F39: 0.00167 | G39: =+G38 -> 2022-04-01
B41: TRANSPORTATION COMMODITY
B42: PIPELINE USAGE CHARGE TO VOLUMETRIC RELEASES
B43: Williams Commodity
B44: Williams Firm Transportation Usage Charge (Max & Min) (BASE TARIFF RATE) | F44: 0.00267 | G44: 2022-04-01 | H44: 1.3p1
B45: Williams (ANNUAL CHARGE ADJUSTMENT) | F45: 0.0015 | G45: 2021-10-01 | H45: 1.3p1
E47: Current | F47: Proposed
B48: INTER TRANS (T-2 PIPELINE BASE TARIFF) MAX | D48: Base Tariff | E48: 0.17652 | F48: 0.17652 | G48: 2023-01-01
D49: Annual Charge | E49: 0.0015 | F49: 0.0015 | G49: 2021-10-01
D50: Total | E50: =SUM(E48:E49) -> 0.17802 | F50: =SUM(F48:F49) -> 0.17802
B53: Utah | E53: =ROUND((E50)/(1-$E276),5) -> 0.17902 | F53: =ROUND((F50)/(1-E276),5) -> 0.17902 | H53: 1.6.3
B54: Wyoming | F54: =ROUND((F50)/(1-E277),5) -> 0.18073
A56: INPUTS FROM KERN RIVER PIPELINE TARIFF AND CONTRACTS
B57: Kern River 2003 Expansion | D57: Contract Dth | E57: Months | F57: Maximum Rate | G57: Effective
F58: =0.2018-0.0222 -> 0.1796 | G58: 2021-01-01
B59: Jan - Dec #20029 | D59: 33000 | E59: 12 | F59: =(F58*(365-153))/E59 -> 3.172933333 | H59: 1.3.1
B60: November - March #20029 | D60: 50000 | E60: 5 | F60: =F59 -> 3.172933333 | H60: Jan
B61: Jan - Dec #1829 | D61: 1885 | E61: 12 | F61: =F62*E62/E61 -> 5.5022
B62: Days in Tariff Rate | E62: 366 | F62: =0.2027-0.0223 -> 0.1804 | G62: =G58 -> 2021-01-01
B64: Citadel Energy Marketing
B65: Dec - Feb #20017 | D65: 56925 | E65: 3 | F65: =+E66*F66/E65 -> 8.796666667 | H65: 1.3.1
B66: Days in Tariff Rate | E66: =31+31+29 -> 91 | F66: 0.29
B67: Nov & Mar #20017 | D67: 6000 | E67: 2 | F67: =+F68*E68/E67 -> 8.845 | H67: Jan
B68: Days in Tariff Rate | E68: =30+31 -> 61 | F68: 0.29
B69: Nov - Mar #20024 | D69: 27000 | E69: 5 | F69: =+F70*E70/E69 -> 8.816 | H69: Jan
B70: Days in Tariff Rate | E70: =30+31+31+29+31 -> 152 | F70: 0.29
B72: Kern River 2003 Expansion | E72: Days in TEST PERIOD
B73: Jan - Dec | C73: 0.7475999815 | D73: =D59+D61 -> 34885 | E73: 366 | F73: 0.0044 | G73: 2022-04-01 | H73: 1.3p1
B74: November - March | C74: =C73 -> 0.7475999815 | D74: =D60 -> 50000 | E74: =30+31+31+29+31 -> 152 | F74: 0.0044 | G74: 2022-04-01 | H74: 1.3p1
B76: Kern River Original System Period Two Rates #20017
B77: Dec - Feb #20017 | C77: =+C73 -> 0.7475999815 | D77: 56925 | E77: =31+31+29 -> 91 | F77: 0.0044 | G77: =+G74 -> 2022-04-01 | H77: 1.3.1
B78: Nov & Mar #20017 | C78: =+C73 -> 0.7475999815 | D78: 6000 | E78: 61 | F78: 0.0044 | G78: =+G74 -> 2022-04-01 | H78: 1.3.2
B79: Kern River 2002 Expansion Period Two Rates #20024
B80: Nov - Mar #20024 | C80: =+C73 -> 0.7475999815 | D80: 27000 | E80: =30+31+31+29+31 -> 152 | F80: 0.0044 | G80: =+G74 -> 2022-04-01 | H80: Jan
A83: INPUTS FROM Dominion Energy GAS TARIFF
A86: Current SNG Rates
B87: UTAH | E87: Current SNG Base | F87: Current SNG Amort. | G87: Current SNG Total
B88: GS | D88: Winter | E88: 0.91359 | F88: 0.03321 | G88: =E88+F88 -> 0.9468
D89: Summer | E89: 0.38433 | F89: 0.01392 | G89: =E89+F89 -> 0.39825
B91: FS | D91: Winter | E91: 0.90016 | F91: 0.03283 | G91: =E91+F91 -> 0.93299
D92: Summer | E92: 0.75121 | F92: 0.02741 | G92: =E92+F92 -> 0.77862
B94: NGV | E94: 0.67962 | F94: 0.02481 | G94: =E94+F94 -> 0.70443
B96: (This includes bad debt adjustment) IS | E96: 0.17938 | G96: =E96+F96 -> 0.17938
A98: Current Rates
B99: Utah GS
B100: Block 1 | D100: Summer | E100: =F100-G100 -> -1.66186 | F100: 8.76584 | G100: 10.4277 | J100: 2023-01-01
B101: Block 2 | D101: Summer | F101: 7.48565 | G101: 9.13747
B102: Block 1 | D102: Winter | G102: 11.58768
B103: Block 2 | D103: Winter | G103: 10.29745
B104: #1 BSF | G104: 6.75
B106: Wyoming GS
B107: Block 1 | G107: 10.30906 | J107: 2022-11-01
B108: Block 2 | G108: 10.07092
B109: BSF | G109: 12
A111: INPUTS FROM PREVIOUS PASSTHROUGH CASE
B112: PRIOR PERIOD COMPANY PRODUCTION AVERAGE GAS COST
E113: PROPOSED | F113: PRIOR CASE | G113: Most Recent
B114: VOLUMES DTH | E114: =+'Monthly Inputs'!S7+'Monthly Inputs'!S13 -> 58453912.32 | F114: 58444351.95 | G114: EXH 1.2p1
B115: AMOUNT | E115: =+D203+D226 -> 272165275.4 | F115: 292835638 | G115: EXH 1.2p1
B116: AVG COST | E116: =+E115/E114 -> 4.65606603 | F116: =ROUND(+F115/F114,5) -> 5.0105
B118: Utah Cost of Gas by Component
B119: Unit Cost Of Gas (GS/FS) | F119: 6.58934
B120: 191 Account Amortization (Line 8) | F120: 0.53231
B121: Tax Reform Surcredit 4 | F121: 0
B122: Total Unit Cost In Rates (Line 9) | F122: =SUM(F119:F121) -> 7.12165
B124: Wyoming Cost of Gas by Component
B125: Unit Cost Of Gas (Line 9) | F125: 7.25211
B126: 191 Account Amortization (Line 10) | F126: 0.54857
B127: Total Unit Cost In Rates (Line 11) | F127: =SUM(F125:F126) -> 7.80068
B129: Unit Cost Of Gas (IS/NGV) | F129: 6.57313
B130: UT NGV RIN Credit | F130: -0.48096
A133: INPUTS FROM 191 ACCOUNT MONTH END BALANCE ACTUAL OR FORECAST | E133: Utah | F133: Wyoming
E134: 2022 | F134: 2022-12-31
H135: 1.6.2
D136: current yr /mo(text)
B137: December 2022 191 account (Actual/Forecast) | D137: 2022 | E137: 226125885 | F137: 7453040 | H137: 1.6.1
B138: Supplier Non-Gas Cost Under (Over) Collected through December 2022 (act/fcst) | D138: December | E138: 1249147 | H138: 1.6.2
B139: Commodity Cost Under (Over) Collected during YEAR (Act/Fcst) | E139: =E137-E138 -> 224876738
B141: SPRING SNG Amortization Balance March 2022 | D141: -10777254 | E141: -14000000 | F141: =+D141-E141 -> 3222746
B142: Previous SPRING SNG Amortization March 2021 | D142: -8627117 | E142: -14000000 | F142: =+D142-E142 -> 5372883
A144: INPUTS FROM IRP
B145: #1 Peak Day Demand Forecast | E145: 2022 | F145: Source
B146: Utah | E146: =E148-E147 -> 1224310 | F146: 2022 IRP
B147: Wyoming | E147: 39423
B148: System Total Peak Day Demand Forecast | E148: 1263733 | F148: 2023-2024 Heating Season | H148: 1.5 | I148: 1.5
A151: STORAGE FIELD INPUTS | E151: Storage
B152: Chalk Creek Injections Factor | E152: 0.0065
B153: Chalk Creek Withdrawls Factor | E153: 0.0188
B155: Spire Injections Factor | E155: 0
B156: Spire Withdrawls Factor | E156: 0
B158: Leroy Injections Factor | E158: 0.0273
B159: Leroy Withdrawls Factor | E159: 0.0137
B161: Clay Basin Injections Factor | E161: 0.0133
B162: Clay Basin Withdrawls Factor | E162: 0.002129
B164: Coalville Injections Factor | E164: 0.0111
B165: Coalville Withdrawls Factor | E165: 0.015
B167: LNG Injections Factor | E167: 0
B168: LNG Withdrawls Factor | E168: 0
B170: MWP Storage Field Reservation Charges | E170: Monthly Dth
B171: Peaking Storage Fields Maximum Daily Withdrawal Qty (Leroy, Chalk Creek, Coalville) | E171: 184625
B172: Spire Maximum Storage Qty | E172: 0 | F172: contract ended March 2021
B173: Clay Basin Minimum Required Deliverability | E173: 111827
B174: Clay Basin Capacity | E174: 13419000
A176: OTHER INPUTS | D176: Revenue
B177: OTHER GATHERING
B181: Total Forecasted Birch Creek | D181: 273710.03 | E181: 2023-01-10
B183: Other gathering | D183: 1141213.06 | E183: =E181 -> 2023-01-10 | H183: JanB
B184: Total Gathering | D184: =SUM(D181:D183) -> 1414923.09 | H184: 1.3.1 | I184: 1.3P1
B186: Other Transportation | D186: 2536572.675 | E186: =E181 -> 2023-01-10 | H186: 1.3.1
B188: Forecast Future Contracts Premium over spot price | E188: 0.02
D190: Commodity | E190: Demand
D191: Charge | E191: Charge | F191: Effective
B192: Gathering Rates -System wide Gathering agreement #163 (SWGA) | D192: 1925206.066 | E192: 2887809.099 | F192: 2022-01-01 | I192: 1.3p1
B195: Gathering Rate Wexpro II | D195: 806498.885 | I195: 1.3p1
A198: OTHER INPUTS | D198: Volume (Dth) | E198: Revenue
A199: WEXPRO I
B200: Dominion Energy Gas Production 1/ | D200: Current
B201: Test-Year Royalties | D201: ='Royalty Detail'!I1417 -> 31319387.36 | H201: 1.4.1 | I201: 1.4P1
B202: Operator Service Fee | D202: ='Monthly Inputs'!S117 -> 172323405.4 | H202: 1.4.1 | I202: 1.4P1
B203: Total Dominion Energy Gas Production Costs | D203: =SUM(D201:D202) -> 203642792.8
B205: Total Dominion Energy Gas Production Dth | D205: ='Royalty Detail'!F1422 -> 40178647.9
F206: Hot | G206: Hot
B207: Other Revenue Credits | D207: 1 | E207: 2 | F207: 2 | G207: 2 | I207: 1
D208: Historical | E208: Forecast | F208: =HLOOKUP(F$207,$D$207:$E$216,$I208) -> Forecast | G208: =HLOOKUP(G$207,$D$207:$E$216,$I208) -> Forecast | I208: 2
D209: 12 Mo Ending | E209: 12 Mo Ending | F209: Utah | G209: Wyoming | I209: 3
B210: 483 Sales for Resale | E210: 2003196.132 | F210: =HLOOKUP(F$207,$D$207:$E$216,$I210) -> 2003196.132 | G210: =HLOOKUP(G$207,$D$207:$E$216,$I210) -> 2003196.132 | I210: 4
B211: 490 Incidental Plant Prod Sales | E211: 7026001.917 | F211: =HLOOKUP(F$207,$D$207:$E$216,$I211) -> 7026001.917 | G211: 7026001.917 | I211: 5
B212: 492 Incidental Gasoline_Oil Sales | E212: 797419.2178 | F212: 797419.2178 | G212: 797419.2178 | I212: 6
B213: 4951 Overriding Royalty Revenue from Celsius | E213: 17399077.92 | F213: 17399077.92 | G213: 17399077.92 | I213: 7
B214: 4952 Oil Revenue Received from Wexpro | E214: 1757875.079 | F214: 1757875.079 | G214: 1757875.079 | I214: 8
B215: 3rd Party & Liquids Credits from MLPX Acquisiiton | E215: 4410624.594 | F215: =HLOOKUP(F$207,$D$207:$E$216,$I215) -> 4410624.594 | G215: 4410624.594 | I215: 9
B216: 758001 Gas Well Royalities - Other | E216: -112046.4146 | F216: -112046.4146 | G216: -112046.4146 | I216: 10
B217: EDIT Amortization | E217: 4770564 | F217: =HLOOKUP(F$207,$D$207:$E$217,$I217) -> 4770564 | G217: =HLOOKUP(G$207,$D$207:$E$217,$I217) -> 4770564 | I217: 11
B220: Total Other Revenue Credits | D220: =SUM(D210:D216) -> 0 | E220: =SUM(E210:E217) -> 38052712.44 | F220: =SUM(F210:F217) -> 38052712.44 | G220: =SUM(G210:G217) -> 38052712.44
A222: WEXPRO II
B223: Dominion Energy Gas Production 1/ | D223: Current
B224: Test-Year Royalties | D224: ='Royalty Detail'!I1692 -> 14141380.7 | H224: 1.4.1 | I224: 1.4P1
B225: Operator Service Fee | D225: ='Monthly Inputs'!S119 -> 54381101.96 | H225: 1.4.1 | I225: 1.4P1
B226: Total Dominion Energy Gas Production Costs | D226: =SUM(D224:D225) -> 68522482.66
B228: Total Dominion Energy Gas Production Dth | D228: ='Royalty Detail'!F1697 -> 18275264.42
F229: Hot | G229: Hot
B230: Other Revenue Credits | D230: 1 | E230: 2 | F230: 2 | G230: 2 | I230: 1
D231: Historical | E231: Forecast | F231: =HLOOKUP(F$207,$D$207:$E$216,$I231) -> Forecast | G231: =HLOOKUP(G$207,$D$207:$E$216,$I231) -> Forecast | I231: 2
D232: 12 Mo Ending | E232: 12 Mo Ending | F232: Utah | G232: Wyoming | I232: 3
B233: 483 Sales for Resale | E233: 0 | F233: =HLOOKUP(F$230,$D$230:$E$238,$I233) -> 0 | G233: 0 | I233: 4
B234: 490 Incidental Plant Prod Sales | E234: 1979343.42 | F234: 1979343.42 | G234: 1979343.42 | I234: 5
B235: 492 Incidental Gasoline_Oil Sales | E235: 1555767.183 | F235: 1555767.183 | G235: 1555767.183 | I235: 6
B236: 4951 Overriding Royalty Revenue from Celsius | E236: 0 | F236: 0 | G236: 0 | I236: 7
B237: 4952 Oil Revenue Received from Wexpro | E237: 681299.8939 | F237: 681299.8939 | G237: 681299.8939 | I237: 8
B238: 758001 Gas Well Royalities - Other | E238: -211363.3172 | F238: -211363.3172 | G238: -211363.3172 | I238: 9
B239: EDIT Amortization | E239: 96228 | F239: =HLOOKUP(F$230,$D$230:$E$239,$I239) -> 96228 | G239: =HLOOKUP(G$230,$D$230:$E$239,$I239) -> 96228 | I239: 10
B242: Total Other Revenue Credits | D242: =SUM(D233:D238) -> 0 | E242: =SUM(E233:E240) -> 4101275.18 | F242: =SUM(F233:F240) -> 4101275.18 | G242: =SUM(G233:G240) -> 4101275.18
E244: Proceeds | F244: Dths | G244: Price
B245: Sales of Wexpro Gas | E245: 0 | F245: 0 | G245: 0
A247: SUMMARY INPUTS FROM REVRUN, RATE BASE, EXPENSES, ETC.
B249: Supplier Non-Gas Costs Recovered at Current Rates 3/ | E249: ='RevRun Fcst'!T$199 -> 92549241.2 | H249: 1.6.2
B250: MT Supplier Non-Gas | E250: ='RevRun Fcst'!T142 -> 0
B251: Net Supplier Non-Gas | E251: =E249-E250 -> 92549241.2
B252: UT Current Int Sales SNG Rate - not including Bad Debt adj. | E252: ='RevRun Fcst'!T102+'RevRun Fcst'!T93 -> 271004 | F252: 0.17902
E254: ='Rate Base'!$Q$4 -> 2022-12-31 | F254: update to most current
D255: Dth | E255: Ending Balance | F255: $ per Dth
B256: Account 164-1 - Gas Stored Underground | D256: ='Rate Base'!P22 -> -8822146 | E256: ='Rate Base'!P11 -> 48124018.51 | F256: =+E256/D256 -> -5.454910688 | H256: 1.4.2
B257: Account 164-1 - LNG Stored | D257: ='Rate Base'!P23 -> -107314 | E257: ='Rate Base'!P12 -> 1512116.55 | F257: =+E257/D257 -> -14.09058045
A258: UT CET and DSM AMORTIZATION FILING INPUTS
E259: Base DNG | F259: Current DNG
B260: GS Rates (Base rates are before CET, DSM, & EA Amortizations) | D260: Summer Blk 1 | E260: 2.65544 | F260: 2.9078
D261: Summer Blk 2 | E261: 1.38725 | F261: 1.61757
D262: Winter Blk 1 | E262: 3.25401 | F262: 3.51923
D263: Winter Blk 2 | E263: 1.98582 | F263: 2.229
A267: MISCELLANEOUS INPUTS
... 41 more rows

Sheet CET & DSM WY (hidden)
A1: Rate Caclulation for the CET and DSM Amortizations WY
L3: Solver Cells
A4: CET Amortization % Calculation | L4: % Change | M4: Difference
B5: Balance | C5: Date | D5: GS Dth | F5: Amortization per Dth | L5: =J20/D20 ->  | M5: =G20-B11 ->  | O5: -> Difference should be at 0 (Use Goal Seek to Get Difference to Equal 0.
A6: DSM Balance | B6: ='Other Inputs'!#REF! ->  | C6: ='Other Inputs'!#REF! ->  | D6: =B20 ->  | F6: =B6/D6 -> 
O8: Typical Bill Rates
A9: CET Amortization Calculation
B10: Balance | C10: Date | D10: DNG Rev | F10: New DNG | I10: % Change | O10: Current | P10: Proposed
A11: CET Balance | B11: ='Other Inputs'!#REF! ->  | C11: ='Other Inputs'!#REF! ->  | D11: =D20 ->  | F11: =D11+B11 ->  | I11: =L5 ->  | O11: Effective | R11: SNG & | S11: CET, DSM
O12: ='Other Inputs'!#REF! ->  | P12: CET Only | Q12: DSM Only | R12: Commodity | S12: Commodity
O13: BSF | P13: BSF | Q13: BSF | R13: BSF | S13: BSF
B14: Revenue Calculation | F14: CET Amortization | I14: Total DNG | L14: REVRUN Calculation | O14: ='Other Inputs'!$G$109 -> 12 | P14: ='Other Inputs'!$G$109 -> 12 | Q14: ='Other Inputs'!$G$109 -> 12 | R14: ='Other Inputs'!$G$109 -> 12 | S14: =#REF! -> 
A15: WY GS | B15: Dth | C15: Base DNG | D15: DNG Revenue | F15: CET Rate | G15: Revenue | I15: DNG Rate | J15: Revenue | L15: CET Rate | M15: CET Amort
A16: Block 1 | B16: ='Other Inputs'!#REF! ->  | C16: ='Other Inputs'!#REF! ->  | D16: =B16*C16 ->  | F16: =ROUND((G16/B16),5) ->  | G16: =D16*$L$5 ->  | I16: =C16+F16 ->  | J16: =I16*B16 ->  | L16: =ROUND(F16,5) ->  | M16: =B16*L16 ->  | O16: ='Other Inputs'!$G$100 -> 10.4277 | P16: =J24 ->  | Q16: =J31 ->  | R16: =J36 ->  | S16: =J41 -> 
A17: Block 2 | B17: ='Other Inputs'!#REF! ->  | C17: ='Other Inputs'!#REF! ->  | D17: =B17*C17 ->  | F17: =ROUND((G17/B17),5) ->  | G17: =D17*$L$5 ->  | I17: =C17+F17 ->  | J17: =I17*B17 ->  | L17: =ROUND(F17,5) ->  | M17: =B17*L17 -> 
O18: ='Other Inputs'!$G$107 -> 10.30906 | P18: =J24 ->  | Q18: =J31 ->  | R18: =J36 ->  | S18: =J41 -> 
A20: GS-1 Block Rev | B20: =SUM(B16:B19) ->  | D20: =SUM(D16:D19) ->  | G20: =SUM(G16:G19) ->  | J20: =B11 ->  | M20: =SUM(M16:M19) -> 
A22: Total Rate Calculation With CET Amortization Only | J22: ='Control Panel'!#REF! ->  | L22: ='Other Inputs'!#REF! -> 
A23: WY GS | B23: Total DNG | C23: CET | D23: DSM | F23: Total DNG | G23: Core Commodity Cost | J23: Total Rate | L23: Total Rate
A24: Block 1 | B24: =$C$16 ->  | C24: =$F$16 ->  | D24: 0.06792 | F24: =SUM(B24:D24) ->  | G24: 4.96884 | J24: =SUM(F24:G24) ->  | L24: ='Other Inputs'!G107 -> 10.30906 | M24: =J24-L24 -> 
A25: Block 2 | B25: =$C$17 ->  | C25: =$F$17 ->  | D25: =$D$24 -> 0.06792 | F25: =SUM(B25:D25) ->  | G25: =G24 -> 4.96884 | J25: =SUM(F25:G25) ->  | L25: ='Other Inputs'!$G$108 -> 10.07092 | M25: =J25-L25 -> 
A29: Total Rate Calculation With DSM Amortization Only | J29: =J22 ->  | L29: ='Other Inputs'!#REF! -> 
A30: WY GS | B30: Base DNG | C30: CET | D30: DSM | F30: Total DNG | G30: Core Commodity Cost | J30: Total Rate | L30: Total Rate
A31: Block 1 | B31: =$C$16 ->  | C31: 0.04505 | D31: =$F$6 ->  | F31: =ROUND(SUM(B31:D31),5) ->  | G31: =G24 -> 4.96884 | J31: =SUM(F31:I31) ->  | L31: ='Other Inputs'!$G$100 -> 10.4277 | M31: =J31-L31 -> 
A32: Block 2 | B32: =$C$17 ->  | C32: 0.02848 | D32: =$F$6 ->  | F32: =ROUND(SUM(B32:D32),5) ->  | G32: =G25 -> 4.96884 | J32: =SUM(F32:I32) ->  | L32: ='Other Inputs'!$G$108 -> 10.07092 | M32: =J32-L32 -> 
A34: Total Rate Calculation With Core Commodity Cost Changes Only | J34: =J22 ->  | L34: ='Other Inputs'!#REF! -> 
A35: WY GS | B35: Base DNG | C35: CET | D35: DSM | F35: Total DNG | G35: Core Commodity Cost | J35: Total Rate | L35: Total Rate
A36: Block 1 | B36: =$C$16 ->  | C36: =C31 -> 0.04505 | D36: =D24 -> 0.06792 | F36: =SUM(B36:D36) ->  | G36: =#REF! ->  | J36: =SUM(F36:I36) ->  | L36: ='Other Inputs'!$G$100 -> 10.4277 | M36: =J36-L36 -> 
A37: Block 2 | B37: =$C$17 ->  | C37: =C32 -> 0.02848 | D37: =D25 -> 0.06792 | F37: =SUM(B37:D37) ->  | G37: =#REF! ->  | J37: =SUM(F37:I37) ->  | L37: ='Other Inputs'!$G$108 -> 10.07092 | M37: =J37-L37 -> 
A39: Total Rate Calculation | J39: =J29 ->  | L39: ='Other Inputs'!#REF! -> 
A40: WY GS | B40: Base DNG | C40: CET | D40: DSM | F40: Total DNG | G40: Core Commodity Cost | J40: Total Rate | L40: Total Rate
A41: Block 1 | B41: =$C$16 ->  | C41: =$F$16 ->  | D41: =$F$6 ->  | F41: =SUM(B41:D41) ->  | G41: =#REF! ->  | J41: =SUM(F41:I41) ->  | L41: ='Other Inputs'!$G$100 -> 10.4277 | M41: =J41-L41 -> 
A42: Block 2 | B42: =$C$17 ->  | C42: =$F$17 ->  | D42: =$F$6 ->  | F42: =SUM(B42:D42) ->  | G42: =#REF! ->  | J42: =SUM(F42:I42) ->  | L42: ='Other Inputs'!$G$108 -> 10.07092 | M42: =J42-L42 -> 
A44: Typical Customer Difference - CET Amortization Only
B45: Typical
A46: GS | B46: Dth | C46: =O12 ->  | D46: =J39 ->  | F46: Change | G46: % Change
A47: January | B47: 14.7 | C47: =ROUND($O$14+(B47*$O$18),2) -> 163.54 | D47: =ROUND($P$14+(B47*$P$18),2) ->  | F47: =D47-C47 -> 
A48: February | B48: 14.1 | C48: =ROUND($O$14+(B48*$O$18),2) -> 157.36 | D48: =ROUND($P$14+(B48*$P$18),2) ->  | F48: =D48-C48 -> 
A49: March | B49: 11.8 | C49: =ROUND($O$14+(B49*$O$18),2) -> 133.65 | D49: =ROUND($P$14+(B49*$P$18),2) -> 
A50: April | B50: 9.4 | C50: =ROUND($O$14+(B50*$O$16),2) -> 110.02 | D50: =ROUND($P$14+(B50*$P$16),2) -> 
A51: May | B51: 5.8 | C51: 72.48 | D51: =ROUND($P$14+(B51*$P$16),2) -> 
A52: June | B52: 3.7 | C52: 50.58
A53: July | B53: 2.3 | C53: 35.98
A54: August | B54: 1.7 | C54: 29.73
A55: September | B55: 2.1 | C55: 33.9
A56: October | B56: 4.1 | C56: 54.75
A57: November | B57: 8 | C57: =ROUND($O$14+(B57*$O$18),2) -> 94.47 | D57: =ROUND($P$14+(B57*$P$18),2) -> 
A58: December | B58: 12.3 | C58: =ROUND($O$14+(B58*$O$18),2) -> 138.8 | D58: =ROUND($P$14+(B58*$P$18),2) -> 
B59: =SUM(B47:B58) -> 90 | C59: =SUM(C47:C58) -> 1075.26 | D59: =SUM(D47:D58) ->  | F59: =SUM(F47:F58) ->  | G59: =F59/C59 -> 
A62: Typical Customer Difference - DSM Amortization Only
B63: Typical
A64: GS | B64: Dth | C64: =C46 ->  | D64: =D46 ->  | F64: Change | G64: % Change
A65: January | B65: 14.7 | C65: =ROUND($O$14+(B65*$O$18),2) -> 163.54 | D65: =ROUND($Q$14+(B65*$Q$18),2) ->  | F65: =D65-C65 -> 
A66: February | B66: 14.1 | C66: =ROUND($O$14+(B66*$O$18),2) -> 157.36 | D66: =ROUND($Q$14+(B66*$Q$18),2) ->  | F66: =D66-C66 -> 
A67: March | B67: 11.8 | C67: =ROUND($O$14+(B67*$O$18),2) -> 133.65 | D67: =ROUND($Q$14+(B67*$Q$18),2) -> 
A68: April | B68: 9.4 | C68: =ROUND($O$14+(B68*$O$16),2) -> 110.02 | D68: =ROUND($Q$14+(B68*$Q$16),2) -> 
A69: May | B69: 5.8 | C69: 72.48
A70: June | B70: 3.7 | C70: 50.58
A71: July | B71: 2.3 | C71: 35.98
A72: August | B72: 1.7 | C72: 29.73
A73: September | B73: 2.1 | C73: 33.9
A74: October | B74: 4.1 | C74: 54.75
A75: November | B75: 8 | C75: =ROUND($O$14+(B75*$O$18),2) -> 94.47 | D75: =ROUND($Q$14+(B75*$Q$18),2) -> 
A76: December | B76: 12.3 | C76: =ROUND($O$14+(B76*$O$18),2) -> 138.8 | D76: =ROUND($Q$14+(B76*$Q$18),2) -> 
B77: =SUM(B65:B76) -> 90 | C77: =SUM(C65:C76) -> 1075.26 | D77: =SUM(D65:D76) ->  | F77: =SUM(F65:F76) ->  | G77: =F77/C77 -> 
A80: Typical Customer Difference - SNG and Commodity Changes Only
B81: Typical
A82: GS | B82: Dth | C82: =C64 ->  | D82: =D64 ->  | F82: Change | G82: % Change
A83: January | B83: 14.7 | C83: =ROUND($O$14+(B83*$O$18),2) -> 163.54 | D83: =ROUND($R$14+(B83*$R$18),2) ->  | F83: =D83-C83 -> 
A84: February | B84: 14.1 | C84: =ROUND($O$14+(B84*$O$18),2) -> 157.36 | D84: =ROUND($R$14+(B84*$R$18),2) ->  | F84: =D84-C84 -> 
A85: March | B85: 11.8 | C85: =ROUND($O$14+(B85*$O$18),2) -> 133.65 | D85: =ROUND($R$14+(B85*$R$18),2) -> 
A86: April | B86: 9.4 | C86: =ROUND($O$14+(B86*$O$16),2) -> 110.02 | D86: =ROUND($R$14+(B86*$R$16),2) -> 
A87: May | B87: 5.8 | C87: 72.48
A88: June | B88: 3.7 | C88: 50.58
A89: July | B89: 2.3 | C89: 35.98
A90: August | B90: 1.7 | C90: 29.73
A91: September | B91: 2.1 | C91: 33.9
A92: October | B92: 4.1 | C92: 54.75
A93: November | B93: 8 | C93: =ROUND($O$14+(B93*$O$18),2) -> 94.47 | D93: =ROUND($R$14+(B93*$R$18),2) -> 
A94: December | B94: 12.3 | C94: =ROUND($O$14+(B94*$O$18),2) -> 138.8 | D94: =ROUND($R$14+(B94*$R$18),2) -> 
B95: =SUM(B83:B94) -> 90 | C95: =SUM(C83:C94) -> 1075.26 | D95: =SUM(D83:D94) ->  | F95: =SUM(F83:F94) ->  | G95: =F95/C95 -> 
A98: Typical Customer Difference - CET & DSM Amort, SNG and Commodity Changes
B99: Typical
A100: GS | B100: Dth | C100: =C46 ->  | D100: =D46 ->  | F100: Change | G100: % Change
A101: January | B101: 14.7 | C101: =ROUND($O$14+(B101*$O$18),2) -> 163.54 | D101: =ROUND($S$14+(B101*$S$18),2) ->  | F101: =D101-C101 -> 
A102: February | B102: 14.1 | C102: =ROUND($O$14+(B102*$O$18),2) -> 157.36 | D102: =ROUND($S$14+(B102*$S$18),2) ->  | F102: =D102-C102 -> 
A103: March | B103: 11.8 | C103: =ROUND($O$14+(B103*$O$18),2) -> 133.65 | D103: =ROUND($S$14+(B103*$S$18),2) -> 
A104: April | B104: 9.4 | C104: =ROUND($O$14+(B104*$O$16),2) -> 110.02 | D104: =ROUND($S$14+(B104*$S$16),2) -> 
A105: May | B105: 5.8 | C105: 72.48
A106: June | B106: 3.7 | C106: 50.58
A107: July | B107: 2.3 | C107: 35.98
A108: August | B108: 1.7 | C108: 29.73
A109: September | B109: 2.1 | C109: 33.9
A110: October | B110: 4.1 | C110: 54.75
A111: November | B111: 8 | C111: =ROUND($O$14+(B111*$O$18),2) -> 94.47 | D111: =ROUND($S$14+(B111*$S$18),2) -> 
A112: December | B112: 12.3 | C112: =ROUND($O$14+(B112*$O$18),2) -> 138.8 | D112: =ROUND($S$14+(B112*$S$18),2) -> 
B113: =SUM(B101:B112) -> 90 | C113: =SUM(C101:C112) -> 1075.26 | D113: =SUM(D101:D112) ->  | F113: =SUM(F101:F112) ->  | G113: =F113/C113 -> 

Sheet WY Tariff Sheets (hidden)
T2: Rates Per Dth Used Each Month
B3: 2.02 General Service Rate Schedule (GS) | K3: 2.02 General Service Rate Schedule (GS) | Q3: 2.03 Firm Sales Service Rate Schedule (FS) | T3: Dth = decatherm = 10 therms = 1,000,000 BTU | Z3: 4.02 INTERRUPTIBLE SALES RATE SERVICE SCHEDULE (IS) | BF3: 2.04 NATURAL GAS VEHICLE RATE (NGV)
L4: Rates Per Dth Used Each Month | R4: Summer Rates: Apr. 1 - Oct. 31
C5: Rates Per Dth Used Each Month | L5: Dth = decatherm = 10 therms = 1,000,000 BTU | R5: First | T5: Next | V5: All Over | Z5: IS VOLUMETRIC RATES | AA5: Rates Per Dth Used Each Month | BF5: NGV Volumetric Rate
C6: Dth = decatherm = 10 therms = 1,000,000 BTU | L6: First 45 Dth | M6: All Over 45 Dth | R6: 80 | T6: 730 | V6: 810 | AA6: Dth = decatherm = 10 therms = 1,000,000 BTU | BJ6: Rates Per Dth Used Each Month
C7: First 45 Dth | D7: All Over 45 Dth | K7: Non-Gas Cost | L7: ='CET & DSM WY'!B31 ->  | M7: ='CET & DSM WY'!B32 ->  | Q7: Non Gas Cost | R7: =#REF! ->  | T7: =#REF! ->  | V7: =#REF! ->  | AA7: First | AB7: Next | AC7: All Over | BJ7: Dth = decatherm = 10 therms = 1,000,000 BTU
B8: Non-Gas Cost | C8: ='CET & DSM WY'!B24 ->  | D8: ='CET & DSM WY'!B25 ->  | K8: Conservation Enabling Adjustment | L8: =ROUND('CET & DSM WY'!C31,5) -> 0.04505 | M8: ='CET & DSM WY'!C32 -> 0.02848 | Q8: Core Service Commodity Cost | R8: =#REF! ->  | T8: =#REF! ->  | V8: =#REF! ->  | AA8: 48600 | AB8: 72900 | AC8: 121500
B9: Conservation Enabling Adjustment | C9: ='CET & DSM WY'!C24 ->  | D9: ='CET & DSM WY'!C25 ->  | K9: Energy Efficiency Services | L9: ='CET & DSM WY'!D31 ->  | M9: ='CET & DSM WY'!D32 ->  | Z9: Distribution Non-Gas Rate | AA9: =#REF! ->  | AB9: =#REF! ->  | AC9: =#REF! ->  | BF9: Non-Gas Cost | BG9: =#REF! -> 
B10: Energy Efficiency Services | C10: ='CET & DSM WY'!D24 -> 0.06792 | D10: ='CET & DSM WY'!D25 -> 0.06792 | K10: Core Service Commodity Cost | L10: ='CET & DSM WY'!G31 -> 4.96884 | M10: =ROUND('CET & DSM WY'!G32,5) -> 4.96884 | Q10: Total Rate | R10: =SUM(R7:R8) ->  | T10: =SUM(T7:T8) ->  | V10: =SUM(V7:V8) ->  | Z10: Upstream Pipeline Cost | AA10: =#REF! ->  | AB10: =#REF! ->  | AC10: =#REF! ->  | BF10: Core Commodity Cost | BG10: =#REF! -> 
B11: Core Service Commodity Cost | C11: ='CET & DSM WY'!G24 -> 4.96884 | D11: ='CET & DSM WY'!G25 -> 4.96884 | Z11: Commodity Rate | BF11: Total Rate | BG11: =SUM(BG9:BJ10) -> 
K12: Total Rate | L12: =SUM(L7:L10) ->  | M12: =SUM(M7:M10) ->  | Q12: Minimum Monthly Distribution Non-Gas Charge | W12: =#REF! -> 
B13: Total Rate | C13: =SUM(C8:C11) ->  | D13: =SUM(D8:D11) -> 
M15: BSF Category 1 | N15: =E16 -> 12
D16: BSF Category 1 | E16: ='CET & DSM WY'!O14 -> 12 | M16: BSF Category 2 | N16: =E17 -> 44 | U16: BSF Category 1 | W16: ='Other Inputs'!G109 -> 12
D17: BSF Category 2 | E17: 44 | M17: BSF Category 3 | N17: =E18 -> 86 | U17: BSF Category 2 | W17: =#REF! -> 
D18: BSF Category 3 | E18: 86 | M18: BSF Category 4 | N18: =E19 -> 555 | U18: BSF Category 3 | W18: =#REF! ->  | Z18: Total Rate | AA18: $ | AB18: $ | AC18: $
D19: BSF Category 4 | E19: 555 | U19: BSF Category 4 | W19: =#REF! -> 
Z20: Minimum Monthly Distribution Non-Gas Charge
BF23: =B38 -> Issued by R. W. Jibson, President | BI23: Advice No | BJ23: Section Revision No.
AB24: BSF Category 1 | AC24: ='Other Inputs'!G109 -> 12
AB25: BSF Category 2 | AC25: =#REF! -> 
AB26: BSF Category 3 | AC26: =#REF! -> 
AB27: BSF Category 4 | AC27: =#REF! -> 
K37: Issued by R. W. Jibson, President | M37: Section Revision No. | N37: Effective Date
B38: Issued by R. W. Jibson, President | D38: Section Revision No. | E38: Effective Date | Q38: =B38 -> Issued by R. W. Jibson, President | T38: Advice No | U38: Section Revision No. | W38: Effective Date
B42: New CET ONLY | K42: New DSM ONLY | Q42: New Pass Through Values
Z47: =B38 -> Issued by R. W. Jibson, President | AC47: Advice No
Z50: New Pass Through Values

Sheet Calculations
A1: GAS BALANCE FOR 12 MONTHS ENDING: _________________
D3: SALES VOLUMES IN DEKATHERMS (12 Months of Forecast) | Q3: UPDATED 5/4 | R3: OLD
D4: Forecast | E4: Forecast | F4: Forecast | G4: Forecast | H4: Forecast | I4: Forecast | J4: Forecast | K4: Forecast | L4: Forecast | M4: Forecast | N4: Forecast | O4: Forecast | P4: 12-Month
A5: RATE CLASS | D5: =+'Monthly Inputs'!G3 -> Mar23 | E5: =+'Monthly Inputs'!H3 -> Apr23 | F5: =+'Monthly Inputs'!I3 -> May23 | G5: =+'Monthly Inputs'!J3 -> Jun23 | H5: =+'Monthly Inputs'!K3 -> Jul23 | I5: =+'Monthly Inputs'!L3 -> Aug23 | J5: =+'Monthly Inputs'!M3 -> Sep23 | K5: =+'Monthly Inputs'!N3 -> Oct23 | L5: =+'Monthly Inputs'!O3 -> Nov23 | M5: =+'Monthly Inputs'!P3 -> Dec23 | N5: =+'Monthly Inputs'!Q3 -> Jan24 | O5: =+'Monthly Inputs'!R3 -> Feb24 | P5: Total | Q5: 1 | R5: 1
A6: UTAH | D6: =MONTH(D5) -> 3 | E6: =MONTH(E5) -> 4 | F6: 5 | G6: 6 | H6: 7 | I6: 8 | J6: 9 | K6: 10 | L6: 11 | M6: 12 | N6: 1 | O6: 2 | Q6: 2 | R6: 2
B7: GSR | D7: ='RevRun Fcst'!H21 -> 13126330 | E7: ='RevRun Fcst'!I21 -> 8762875 | F7: ='RevRun Fcst'!J21 -> 5171493 | G7: ='RevRun Fcst'!K21 -> 2856954 | H7: ='RevRun Fcst'!L21 -> 2397393 | I7: ='RevRun Fcst'!M21 -> 2354697 | J7: ='RevRun Fcst'!N21 -> 2771794 | K7: ='RevRun Fcst'!O21 -> 6913088 | L7: ='RevRun Fcst'!P21 -> 12179457 | M7: ='RevRun Fcst'!Q21 -> 18598770 | N7: ='RevRun Fcst'!R21 -> 20489021 | O7: ='RevRun Fcst'!S21 -> 17085772 | P7: =SUM(D7:O7) -> 112707644 | Q7: 3 | R7: 3
B8: GSC | D8: ='RevRun Fcst'!H30 -> 0 | E8: ='RevRun Fcst'!I30 -> 0 | F8: ='RevRun Fcst'!J30 -> 0 | G8: ='RevRun Fcst'!K30 -> 0 | H8: ='RevRun Fcst'!L30 -> 0 | I8: ='RevRun Fcst'!M30 -> 0 | J8: ='RevRun Fcst'!N30 -> 0 | K8: ='RevRun Fcst'!O30 -> 0 | L8: ='RevRun Fcst'!P30 -> 0 | M8: ='RevRun Fcst'!Q30 -> 0 | N8: ='RevRun Fcst'!R30 -> 0 | O8: ='RevRun Fcst'!S30 -> 0 | P8: 0 | Q8: 4 | R8: 4
B9: GSS | D9: ='RevRun Fcst'!H39 -> 0 | E9: ='RevRun Fcst'!I39 -> 0 | F9: ='RevRun Fcst'!J39 -> 0 | G9: ='RevRun Fcst'!K39 -> 0 | H9: ='RevRun Fcst'!L39 -> 0 | I9: ='RevRun Fcst'!M39 -> 0 | J9: ='RevRun Fcst'!N39 -> 0 | K9: ='RevRun Fcst'!O39 -> 0 | L9: ='RevRun Fcst'!P39 -> 0 | M9: ='RevRun Fcst'!Q39 -> 0 | N9: ='RevRun Fcst'!R39 -> 0 | O9: ='RevRun Fcst'!S39 -> 0 | P9: 0 | Q9: 5 | R9: 5
B10: F-1 | D10: ='RevRun Fcst'!H48 -> 253627 | E10: ='RevRun Fcst'!I48 -> 204814 | F10: ='RevRun Fcst'!J48 -> 180388 | G10: ='RevRun Fcst'!K48 -> 175850 | H10: ='RevRun Fcst'!L48 -> 150769 | I10: ='RevRun Fcst'!M48 -> 156060 | J10: ='RevRun Fcst'!N48 -> 177762 | K10: ='RevRun Fcst'!O48 -> 262863 | L10: ='RevRun Fcst'!P48 -> 188318 | M10: ='RevRun Fcst'!Q48 -> 271602 | N10: ='RevRun Fcst'!R48 -> 297143 | O10: ='RevRun Fcst'!S48 -> 269996 | P10: 2589192 | Q10: 6 | R10: 6
B11: F-4 | D11: ='RevRun Fcst'!H75 -> 0 | E11: ='RevRun Fcst'!I75 -> 0 | F11: ='RevRun Fcst'!J75 -> 0 | G11: ='RevRun Fcst'!K75 -> 0 | H11: ='RevRun Fcst'!L75 -> 0 | I11: ='RevRun Fcst'!M75 -> 0 | J11: ='RevRun Fcst'!N75 -> 0 | K11: ='RevRun Fcst'!O75 -> 0 | L11: ='RevRun Fcst'!P75 -> 0 | M11: ='RevRun Fcst'!Q75 -> 0 | N11: ='RevRun Fcst'!R75 -> 0 | O11: ='RevRun Fcst'!S75 -> 0 | P11: 0 | Q11: 7 | R11: 7
B12: NGV | D12: ='RevRun Fcst'!H66 -> 23950 | E12: ='RevRun Fcst'!I66 -> 23507 | F12: ='RevRun Fcst'!J66 -> 21548 | G12: ='RevRun Fcst'!K66 -> 23923 | H12: ='RevRun Fcst'!L66 -> 24829 | I12: ='RevRun Fcst'!M66 -> 23396 | J12: ='RevRun Fcst'!N66 -> 24640 | K12: ='RevRun Fcst'!O66 -> 23718 | L12: ='RevRun Fcst'!P66 -> 26627 | M12: ='RevRun Fcst'!Q66 -> 24642 | N12: ='RevRun Fcst'!R66 -> 24125 | O12: ='RevRun Fcst'!S66 -> 24867 | P12: 289772 | Q12: 8 | R12: 8
A13: Total Firm Sales | D13: =SUM(D7:D12) -> 13403907 | E13: 8991196 | F13: =SUM(F7:F12) -> 5373429 | G13: 3056727 | H13: 2572991 | I13: 2534153 | J13: 2974196 | K13: 7199669 | L13: 12394402 | M13: 18895014 | N13: 20810289 | O13: 17380635 | P13: =SUM(P7:P12) -> 115586608 | Q13: 9 | R13: 9
Q14: 10 | R14: 10
B15: I-4 | D15: ='RevRun Fcst'!H102 -> 29116 | E15: ='RevRun Fcst'!I102 -> 26773 | F15: ='RevRun Fcst'!J102 -> 18238 | G15: ='RevRun Fcst'!K102 -> 14642 | H15: ='RevRun Fcst'!L102 -> 11405 | I15: ='RevRun Fcst'!M102 -> 10303 | J15: ='RevRun Fcst'!N102 -> 12640 | K15: ='RevRun Fcst'!O102 -> 19369 | L15: ='RevRun Fcst'!P102 -> 25895 | M15: ='RevRun Fcst'!Q102 -> 31237 | N15: ='RevRun Fcst'!R102 -> 39472 | O15: ='RevRun Fcst'!S102 -> 31914 | P15: =SUM(D15:O15) -> 271004 | Q15: 11 | R15: 11
B16: IS-4 | D16: ='RevRun Fcst'!H93 -> 0 | E16: ='RevRun Fcst'!I93 -> 0 | F16: ='RevRun Fcst'!J93 -> 0 | G16: ='RevRun Fcst'!K93 -> 0 | H16: ='RevRun Fcst'!L93 -> 0 | I16: ='RevRun Fcst'!M93 -> 0 | J16: ='RevRun Fcst'!N93 -> 0 | K16: ='RevRun Fcst'!O93 -> 0 | L16: ='RevRun Fcst'!P93 -> 0 | M16: ='RevRun Fcst'!Q93 -> 0 | N16: ='RevRun Fcst'!R93 -> 0 | O16: ='RevRun Fcst'!S93 -> 0 | P16: =SUM(D16:O16) -> 0 | Q16: 12 | R16: 12
A17: Total Interruptible Sales | D17: =SUM(D15:D16) -> 29116 | E17: 26773 | F17: 18238 | G17: 14642 | H17: 11405 | I17: 10303 | J17: 12640 | K17: 19369 | L17: 25895 | M17: 31237 | N17: 39472 | O17: 31914 | P17: 271004 | Q17: 13 | R17: 13
Q18: 14 | R18: 14
Q19: 15 | R19: 15
A20: Total Utah Sales | D20: =+D13+D17 -> 13433023 | E20: =+E13+E17 -> 9017969 | F20: =+F13+F17 -> 5391667 | G20: =+G13+G17 -> 3071369 | H20: 2584396 | I20: 2544456 | J20: 2986836 | K20: 7219038 | L20: 12420297 | M20: 18926251 | N20: 20849761 | O20: 17412549 | P20: =+P13+P17 -> 115857612 | Q20: 16 | R20: 16
Q21: 17 | R21: 17
A22: Total Utah Transportation | D22: ='RevRun Fcst'!H204 -> 7922890 | E22: ='RevRun Fcst'!I204 -> 6453791 | F22: ='RevRun Fcst'!J204 -> 6700483 | G22: ='RevRun Fcst'!K204 -> 7353153 | H22: ='RevRun Fcst'!L204 -> 8331007 | I22: ='RevRun Fcst'!M204 -> 8609221 | J22: ='RevRun Fcst'!N204 -> 7377479 | K22: ='RevRun Fcst'!O204 -> 7611373 | L22: ='RevRun Fcst'!P204 -> 7934076 | M22: ='RevRun Fcst'!Q204 -> 9370143 | N22: ='RevRun Fcst'!R204 -> 8754747 | O22: ='RevRun Fcst'!S204 -> 8059197 | P22: =SUM(D22:O22) -> 94477560 | Q22: 18 | R22: 18
Q23: 19 | R23: 19
Q24: 20 | R24: 20
A25: Total Utah Sales & Trans | D25: =+D20+D22 -> 21355913 | E25: 15471760 | F25: 12092150 | G25: 10424522 | H25: 10915403 | I25: 11153677 | J25: 10364315 | K25: 14830411 | L25: 20354373 | M25: 28296394 | N25: 29604508 | O25: 25471746 | P25: =+P20+P22 -> 210335172 | Q25: 21 | R25: 21
Q26: 22 | R26: 22
A27: WYOMING | Q27: 23 | R27: 23
A28: GS-1 | D28: ='RevRun Fcst'!H244 -> 410382 | E28: ='RevRun Fcst'!I244 -> 299580 | F28: ='RevRun Fcst'!J244 -> 195670 | G28: ='RevRun Fcst'!K244 -> 88806 | H28: ='RevRun Fcst'!L244 -> 52314 | I28: ='RevRun Fcst'!M244 -> 54684 | J28: ='RevRun Fcst'!N244 -> 79604 | K28: ='RevRun Fcst'!O244 -> 203811 | L28: ='RevRun Fcst'!P244 -> 388429 | M28: ='RevRun Fcst'!Q244 -> 556029 | N28: ='RevRun Fcst'!R244 -> 563768 | O28: ='RevRun Fcst'!S244 -> 496430 | P28: =SUM(D28:O28) -> 3389507 | Q28: 24 | R28: 24
A29: GS-W | D29: ='RevRun Fcst'!H271 -> 0 | E29: ='RevRun Fcst'!I271 -> 0 | F29: ='RevRun Fcst'!J271 -> 0 | G29: ='RevRun Fcst'!K271 -> 0 | H29: ='RevRun Fcst'!L271 -> 0 | I29: ='RevRun Fcst'!M271 -> 0 | J29: ='RevRun Fcst'!N271 -> 0 | K29: ='RevRun Fcst'!O271 -> 0 | L29: ='RevRun Fcst'!P271 -> 0 | M29: ='RevRun Fcst'!Q271 -> 0 | N29: ='RevRun Fcst'!R271 -> 0 | O29: ='RevRun Fcst'!S271 -> 0 | P29: =SUM(D29:O29) -> 0 | Q29: 25 | R29: 25
A30: F-1 | D30: ='RevRun Fcst'!H253 -> 20289 | E30: ='RevRun Fcst'!I253 -> 14865 | F30: ='RevRun Fcst'!J253 -> 12040 | G30: ='RevRun Fcst'!K253 -> 9543 | H30: ='RevRun Fcst'!L253 -> 10858 | I30: ='RevRun Fcst'!M253 -> 8356 | J30: ='RevRun Fcst'!N253 -> 13544 | K30: ='RevRun Fcst'!O253 -> 13393 | L30: ='RevRun Fcst'!P253 -> 18806 | M30: ='RevRun Fcst'!Q253 -> 22218 | N30: ='RevRun Fcst'!R253 -> 20574 | O30: ='RevRun Fcst'!S253 -> 21487 | P30: =SUM(D30:O30) -> 185973 | Q30: 26 | R30: 26
A31: NGV | D31: ='RevRun Fcst'!H262 -> 378 | E31: ='RevRun Fcst'!I262 -> 252 | F31: ='RevRun Fcst'!J262 -> 279 | G31: ='RevRun Fcst'!K262 -> 348 | H31: ='RevRun Fcst'!L262 -> 339 | I31: ='RevRun Fcst'!M262 -> 315 | J31: ='RevRun Fcst'!N262 -> 343 | K31: ='RevRun Fcst'!O262 -> 276 | L31: ='RevRun Fcst'!P262 -> 306 | M31: ='RevRun Fcst'!Q262 -> 184 | N31: ='RevRun Fcst'!R262 -> 227 | O31: ='RevRun Fcst'!S262 -> 277 | P31: =SUM(D31:O31) -> 3524 | Q31: 27 | R31: 27
A32: Total Firm Sales | D32: =SUM(D28:D31) -> 431049 | E32: 314697 | F32: 207989 | G32: 98697 | H32: 63511 | I32: 63355 | J32: 93491 | K32: 217480 | L32: 407541 | M32: 578431 | N32: 584569 | O32: 518194 | P32: 3579004 | Q32: 28 | R32: 28
Q33: 29 | R33: 29
A34: I-2 | D34: ='RevRun Fcst'!H280 -> 17545 | E34: ='RevRun Fcst'!I280 -> 14974 | F34: ='RevRun Fcst'!J280 -> 11409 | G34: ='RevRun Fcst'!K280 -> 6977 | H34: ='RevRun Fcst'!L280 -> 5358 | I34: ='RevRun Fcst'!M280 -> 6837 | J34: ='RevRun Fcst'!N280 -> 4736 | K34: ='RevRun Fcst'!O280 -> 10667 | L34: ='RevRun Fcst'!P280 -> 14280 | M34: ='RevRun Fcst'!Q280 -> 15948 | N34: ='RevRun Fcst'!R280 -> 18665 | O34: ='RevRun Fcst'!S280 -> 16854 | P34: =SUM(D34:O34) -> 144250 | Q34: 30 | R34: 30
A35: I-4 | D35: ='RevRun Fcst'!H289 -> 0 | E35: ='RevRun Fcst'!I289 -> 0 | F35: ='RevRun Fcst'!J289 -> 0 | G35: ='RevRun Fcst'!K289 -> 0 | H35: ='RevRun Fcst'!L289 -> 0 | I35: ='RevRun Fcst'!M289 -> 0 | J35: ='RevRun Fcst'!N289 -> 0 | K35: ='RevRun Fcst'!O289 -> 0 | L35: ='RevRun Fcst'!P289 -> 0 | M35: ='RevRun Fcst'!Q289 -> 0 | N35: ='RevRun Fcst'!R289 -> 0 | O35: ='RevRun Fcst'!S289 -> 0 | P35: =SUM(D35:O35) -> 0 | Q35: 31 | R35: 31
A36: Total Interruptible Sales | D36: =SUM(D34:D35) -> 17545 | E36: 14974 | F36: 11409 | G36: 6977 | H36: 5358 | I36: 6837 | J36: 4736 | K36: 10667 | L36: 14280 | M36: 15948 | N36: 18665 | O36: 16854 | P36: 144250 | Q36: 32 | R36: 32
Q37: 33 | R37: 33
Q38: 34 | R38: 34
A39: Total Wyoming Sales | D39: =+D32+D36 -> 448594 | E39: =+E32+E36 -> 329671 | F39: 219398 | G39: 105674 | H39: 68869 | I39: 70192 | J39: 98227 | K39: 228147 | L39: 421821 | M39: 594379 | N39: 603234 | O39: 535048 | P39: 3723254 | Q39: 35 | R39: 35
Q40: 36 | R40: 36
A41: Total Wyoming Transportation | D41: ='RevRun Fcst'!H328 -> 40215 | E41: ='RevRun Fcst'!I328 -> 32395 | F41: ='RevRun Fcst'!J328 -> 27360 | G41: ='RevRun Fcst'!K328 -> 32659 | H41: ='RevRun Fcst'!L328 -> 17590 | I41: ='RevRun Fcst'!M328 -> 40616 | J41: ='RevRun Fcst'!N328 -> 44240 | K41: ='RevRun Fcst'!O328 -> 23757 | L41: ='RevRun Fcst'!P328 -> 30774 | M41: ='RevRun Fcst'!Q328 -> 46191 | N41: ='RevRun Fcst'!R328 -> 54415 | O41: ='RevRun Fcst'!S328 -> 37419 | P41: =SUM(D41:O41) -> 427631 | Q41: 37 | R41: 37
Q42: 38 | R42: 38
Q43: 39 | R43: 39
A44: Total Wyoming Sales & Trans | D44: =+D39+D41 -> 488809 | E44: 362066 | F44: 246758 | G44: 138333 | H44: 86459 | I44: 110808 | J44: 142467 | K44: 251904 | L44: 452595 | M44: 640570 | N44: 657649 | O44: 572467 | P44: 4150885 | Q44: 40 | R44: 40
Q45: 41 | R45: 41
Q46: 42 | R46: 42
A47: Total System Sales and Trans | D47: =+D25+D44 -> 21844722 | E47: 15833826 | F47: 12338908 | G47: 10562855 | H47: 11001862 | I47: 11264485 | J47: 10506782 | K47: 15082315 | L47: 20806968 | M47: 28936964 | N47: 30262157 | O47: =+O25+O44 -> 26044213 | P47: 214486057 | Q47: 43 | R47: 43
Q48: 44 | R48: 44
A49: Usage by Season | Q49: 45 | R49: 45
C50: Month | D50: =MONTH(D5) -> 3 | E50: 4 | F50: 5 | G50: 6 | H50: 7 | I50: 8 | J50: 9 | K50: 10 | L50: 11 | M50: 12 | N50: 1 | O50: 2 | Q50: 46 | R50: 46
A51: GS | C51: Season (0=Winter, 1=Summer) | D51: =IF(D$50<4,0,IF(D$50>10,0,1)) -> 0 | E51: =IF(E$50<4,0,IF(E$50>10,0,1)) -> 1 | F51: 1 | G51: 1 | H51: 1 | I51: 1 | J51: 1 | K51: 1 | L51: 0 | M51: 0 | N51: 0 | O51: 0 | P51: Total | Q51: 47 | R51: 47
B52: Winter | D52: =IF(D51=0,D7+D8,0) -> 13126330 | E52: =IF(E51=0,E7+E8,0) -> 0 | F52: 0 | G52: 0 | H52: 0 | I52: 0 | J52: 0 | K52: 0 | L52: 12179457 | M52: 18598770 | N52: 20489021 | O52: 17085772 | P52: =SUM(D52:O52) -> 81479350 | Q52: 48 | R52: 48
B53: Summer | D53: =IF(D51=1,D7+D8,0) -> 0 | E53: 8762875 | F53: 5171493 | G53: 2856954 | H53: 2397393 | I53: 2354697 | J53: 2771794 | K53: 6913088 | L53: 0 | M53: 0 | N53: 0 | O53: 0 | P53: =SUM(D53:O53) -> 31228294 | Q53: 49 | R53: 49
A54: GSS | Q54: 50 | R54: 50
B55: Winter | D55: =IF(D51=0,D9,0) -> 0 | E55: 0 | F55: 0 | G55: 0 | H55: 0 | I55: 0 | J55: 0 | K55: 0 | L55: 0 | M55: 0 | N55: 0 | O55: 0 | P55: =SUM(D55:O55) -> 0 | Q55: 51 | R55: 51
B56: Summer | D56: =IF(D51=1,D9,0) -> 0 | E56: 0 | F56: 0 | G56: 0 | H56: 0 | I56: 0 | J56: 0 | K56: 0 | L56: 0 | M56: 0 | N56: 0 | O56: 0 | P56: =SUM(D56:O56) -> 0 | Q56: 52 | R56: 52
A57: F-S | Q57: 53 | R57: 53
B58: Winter | D58: =IF(D51=0,D10,0) -> 253627 | E58: 0 | F58: 0 | G58: 0 | H58: 0 | I58: 0 | J58: 0 | K58: 0 | L58: 188318 | M58: 271602 | N58: 297143 | O58: 269996 | P58: =SUM(D58:O58) -> 1280686 | Q58: 54 | R58: 54
B59: Summer | D59: =IF(D51=1,D10,0) -> 0 | E59: 204814 | F59: 180388 | G59: 175850 | H59: 150769 | I59: 156060 | J59: 177762 | K59: 262863 | L59: 0 | M59: 0 | N59: 0 | O59: 0 | P59: =SUM(D59:O59) -> 1308506 | Q59: 55 | R59: 55
Q60: 56 | R60: 56
Q61: 57 | R61: 57
B62: Rates: R050201.R1 | C62: WYOMING NON-CORE DNG REVENUES FROM DEMAND FORECAST AND CURRENTLY EFFECTIVE I-SALES GAS COST RATES | Q62: 58 | R62: 58
D63: Forecast | E63: Forecast | F63: Forecast | G63: Forecast | H63: Forecast | I63: Forecast | J63: Forecast | K63: Forecast | L63: Forecast | M63: Forecast | N63: Forecast | O63: Forecast | P63: 12-Month | Q63: 59 | R63: 59
D64: =D5 -> Mar23 | E64: =E5 -> Apr23 | F64: =F5 -> May23 | G64: Jun23 | H64: Jul23 | I64: Aug23 | J64: Sep23 | K64: Oct23 | L64: Nov23 | M64: Dec23 | N64: Jan24 | O64: Feb24 | P64: Total | Q64: 60 | R64: 60
A65: I-2 & 1-4 (Non-Gas Revenue) (Yearly) | D65: ='RevRun Fcst'!H273+'RevRun Fcst'!H282 -> 6392.69565 | E65: ='RevRun Fcst'!I273+'RevRun Fcst'!I282 -> 5694.48918 | F65: ='RevRun Fcst'!J273+'RevRun Fcst'!J282 -> 4726.34213 | G65: ='RevRun Fcst'!K273+'RevRun Fcst'!K282 -> 3522.74389 | H65: ='RevRun Fcst'!L273+'RevRun Fcst'!L282 -> 3083.07206 | I65: ='RevRun Fcst'!M273+'RevRun Fcst'!M282 -> 3484.72409 | J65: ='RevRun Fcst'!N273+'RevRun Fcst'!N282 -> 2914.15552 | K65: ='RevRun Fcst'!O273+'RevRun Fcst'!O282 -> 4524.83719 | L65: ='RevRun Fcst'!P273+'RevRun Fcst'!P282 -> 5506.0196 | M65: ='RevRun Fcst'!Q273+'RevRun Fcst'!Q282 -> 5958.99836 | N65: ='RevRun Fcst'!R273+'RevRun Fcst'!R282 -> 6696.85405 | O65: ='RevRun Fcst'!S273+'RevRun Fcst'!S282 -> 6205.04078 | P65: =SUM(D65:O65) -> 58709.9725 | Q65: 61 | R65: 61
A66: IC (Total Revenue) (Yearly) | D66: =ROUND(D41*$P66/$P41,0) -> 9042 | E66: 7284 | F66: 6152 | G66: 7343 | H66: 3955 | I66: 9132 | J66: 9947 | K66: 5342 | L66: 6919 | M66: 10386 | N66: 12235 | O66: =P66-SUM(D66:N66) -> 8411.92356 | P66: ='RevRun Fcst'!T300+'RevRun Fcst'!T314 -> 96148.92356 | Q66: 62 | R66: 62
Q67: 63 | R67: 63
A68: I-2 Gas Cost (Rate Effective ) | D68: 0 | E68: =+D68 -> 0 | F68: 0 | G68: 0 | H68: 0 | I68: 0 | J68: 0 | K68: 0 | L68: 0 | M68: 0 | N68: 0 | O68: 0 | Q68: 64 | R68: 64
A69: I-4 Gas Cost (Rate Effective ) | D69: 0 | E69: 0 | F69: 0 | G69: 0 | H69: 0 | I69: 0 | J69: 0 | K69: 0 | L69: 0 | M69: 0 | N69: 0 | O69: 0 | Q69: 65 | R69: 65
Q70: 66 | R70: 66
Q71: 67 | R71: 67
D72: ALLOCATION BASES | Q72: 68 | R72: 68
D73: DEMAND | G73: OTHER COST | Q73: 69 | R73: 69
A74: Utah Peak Day Demand | D74: =+D76-D75 -> 1224310 | E74: =D74/D76 -> 0.9688043281 | G74: Utah Sales | H74: =+P20 -> 115857612 | I74: =H74/H76 -> 0.9688641325 | Q74: 70 | R74: 70
A75: Wyoming Peak Day Demand | D75: ='Other Inputs'!E147 -> 39423 | E75: =1-E74 -> 0.03119567187 | G75: Wyoming Sales | H75: =+P39 -> 3723254 | I75: =1-I74 -> 0.03113586751 | Q75: 71 | R75: 71
A76: Peak Day Demand | D76: ='Other Inputs'!E148 -> 1263733 | E76: =ROUND(D76/D$76,4) -> 1 | G76: Total Sales | H76: =+H74+H75 -> 119580866 | I76: =ROUND(H76/H$76,4) -> 1 | Q76: 72 | R76: 72
Q77: 73 | R77: 73
Q78: 74 | R78: 74
D79: Financial Report Information (Latest 12 Months of Actual Expenses and 13 Months of Rate Base) | Q79: 75 | R79: 75
D80: Actual | E80: Actual | F80: Actual | G80: Actual | H80: Actual | I80: Actual | J80: Actual | K80: Actual | L80: Actual | M80: Actual | N80: Actual | O80: Actual | Q80: 76 | R80: 76
A81: Accounts | D81: =+Expenses!D3 -> 2022-01-31 | E81: =+Expenses!E3 -> 2022-02-28 | F81: =+Expenses!F3 -> 2022-03-31 | G81: =+Expenses!G3 -> 2022-04-30 | H81: =+Expenses!H3 -> 2022-05-31 | I81: =+Expenses!I3 -> 2022-06-30 | J81: =+Expenses!J3 -> 2022-07-31 | K81: =+Expenses!K3 -> 2022-08-31 | L81: =+Expenses!L3 -> 2022-09-30 | M81: =+Expenses!M3 -> 2022-10-31 | N81: =+Expenses!N3 -> 2022-11-30 | O81: =+Expenses!O3 -> 2022-12-31 | P81: =Expenses!P3 -> 2022-12-31 | Q81: 77 | R81: 77
A82: EXPENSES | Q82: 78 | R82: 78
B83: Gas Use In Dth (Acct 810 & 812) | D83: 0 | E83: 0 | F83: 0 | G83: 0 | H83: 0 | I83: 0 | J83: 0 | K83: 0 | L83: 0 | M83: 0 | N83: 0 | O83: 0 | P83: 0 | Q83: 79 | R83: 79
Q84: 80 | R84: 80
B85: Other Revenue (Yearly) | Q85: 81 | R85: 81
B86: Sales for Resale (account 483) | D86: =Expenses!D13 -> 116873.49 | E86: =Expenses!E13 -> 98906.89 | F86: =Expenses!F13 -> 106860.96 | G86: =Expenses!G13 -> 52524.95 | H86: =Expenses!H13 -> 141242.98 | I86: =Expenses!I13 -> 721039.87 | J86: =Expenses!J13 -> 151205 | K86: =Expenses!K13 -> 285419.14 | L86: =Expenses!L13 -> 236431.42 | M86: =Expenses!M13 -> 149417.43 | N86: =Expenses!N13 -> 308513.49 | O86: =Expenses!O13 -> 111701.27 | P86: =Expenses!P13 -> 2480136.89 | Q86: 82 | R86: 82
B87: Incidental Plant Prod Sales (Acct 490) | D87: =Expenses!D14 -> 814587.34 | E87: =Expenses!E14 -> 1062620.16 | F87: =Expenses!F14 -> 1019900.86 | G87: =Expenses!G14 -> 972357.06 | H87: =Expenses!H14 -> 2794975.53 | I87: =Expenses!I14 -> 1033024.4 | J87: =Expenses!J14 -> 1190418.8 | K87: =Expenses!K14 -> 1063673.75 | L87: =Expenses!L14 -> 847278.01 | M87: =Expenses!M14 -> 973664.86 | N87: =Expenses!N14 -> 855479.63 | O87: =Expenses!O14 -> 658047.02 | P87: =Expenses!P14 -> 13286027.42 | Q87: 83 | R87: 83
B88: Gas Processed by Others (account 491) | D88: =Expenses!D22 -> 0 | E88: =Expenses!E22 -> 0 | F88: =Expenses!F22 -> 0 | G88: =Expenses!G22 -> 0 | H88: =Expenses!H22 -> 0 | I88: =Expenses!I22 -> 0 | J88: =Expenses!J22 -> 0 | K88: =Expenses!K22 -> 0 | L88: =Expenses!L22 -> 0 | M88: =Expenses!M22 -> 0 | N88: =Expenses!N22 -> 0 | O88: =Expenses!O22 -> 0 | P88: =Expenses!P22 -> 0 | Q88: 84 | R88: 84
B89: Gasoline - Oil Sales (account 492) | D89: =Expenses!D15 -> 187201.33 | E89: =Expenses!E15 -> 224977.55 | F89: =Expenses!F15 -> 253213.06 | G89: =Expenses!G15 -> 235424.09 | H89: =Expenses!H15 -> 290819.35 | I89: =Expenses!I15 -> 310169.89 | J89: =Expenses!J15 -> 268774.89 | K89: =Expenses!K15 -> 359147.18 | L89: =Expenses!L15 -> 300873.24 | M89: =Expenses!M15 -> 270140.06 | N89: =Expenses!N15 -> 206434.53 | O89: =Expenses!O15 -> 270050.02 | P89: =Expenses!P15 -> 3177225.19 | Q89: 85 | R89: 85
B90: Gasoline - Oil Cost (account 758.001) | D90: =-Expenses!D18 -> 0 | E90: =-Expenses!E18 -> 0 | F90: =-Expenses!F18 -> 0 | G90: =-Expenses!G18 -> 0 | H90: =-Expenses!H18 -> 0 | I90: =-Expenses!I18 -> 0 | J90: =-Expenses!J18 -> 0 | K90: =-Expenses!K18 -> 0 | L90: =-Expenses!L18 -> 0 | M90: =-Expenses!M18 -> 0 | N90: =-Expenses!N18 -> 0 | O90: =-Expenses!O18 -> 0 | P90: =-Expenses!P18 -> 0 | Q90: 86 | R90: 86
Q91: 87 | R91: 87
Q92: 88 | R92: 88
B93: Overriding Royalty (account 495-1) | D93: =Expenses!D16 -> 853244.84 | E93: =Expenses!E16 -> 1377641.49 | F93: =Expenses!F16 -> 961928.39 | G93: =Expenses!G16 -> 1061501.46 | H93: =Expenses!H16 -> 2213730.6 | I93: =Expenses!I16 -> 226621.98 | J93: =Expenses!J16 -> 1472583.64 | K93: =Expenses!K16 -> 1042921.87 | L93: =Expenses!L16 -> 1640878.98 | M93: =Expenses!M16 -> 1005888.54 | N93: =Expenses!N16 -> 1294515.96 | O93: =Expenses!O16 -> 1322085.7 | P93: =Expenses!P16 -> 14473543.45 | Q93: 89 | R93: 89
B94: Wexpro Revenue Sharing (account 495-2) | D94: =Expenses!D17 -> 158907 | E94: =Expenses!E17 -> 210181 | F94: =Expenses!F17 -> 461376 | G94: =Expenses!G17 -> 319049 | H94: =Expenses!H17 -> 364115 | I94: =Expenses!I17 -> 485473 | J94: =Expenses!J17 -> 438166 | K94: =Expenses!K17 -> 216827 | L94: =Expenses!L17 -> 157855 | M94: =Expenses!M17 -> 145169 | N94: =Expenses!N17 -> 141320 | O94: =Expenses!O17 -> 134071 | P94: =Expenses!P17 -> 3232509 | Q94: 90 | R94: 90
P95: Page 2 of 6 | Q95: 91 | R95: 91
C96: Actual | D96: Actual | E96: Actual | F96: Actual | G96: Actual | H96: Actual | I96: Actual | J96: Actual | K96: Actual | L96: Actual | M96: Actual | N96: Actual | O96: Actual | P96: 13-Month | Q96: 92 | R96: 92
A97: Accounts | C97: ='Rate Base'!D4 -> 2021-12-31 | D97: ='Rate Base'!E4 -> 2022-01-31 | E97: ='Rate Base'!F4 -> 2022-02-28 | F97: ='Rate Base'!G4 -> 2022-03-31 | G97: ='Rate Base'!H4 -> 2022-04-30 | H97: ='Rate Base'!I4 -> 2022-05-31 | I97: ='Rate Base'!J4 -> 2022-06-30 | J97: ='Rate Base'!K4 -> 2022-07-31 | K97: ='Rate Base'!L4 -> 2022-08-31 | L97: ='Rate Base'!M4 -> 2022-09-30 | M97: ='Rate Base'!N4 -> 2022-10-31 | N97: ='Rate Base'!O4 -> 2022-11-30 | O97: ='Rate Base'!P4 -> 2022-12-31 | P97: Average | Q97: 93 | R97: 93
A98: RATE BASE - PRODUCTION | Q98: 94 | R98: 94
B99: Acct 164 (Working Gas) - Production | C99: ='Rate Base'!D11 -> 44932895.7 | D99: ='Rate Base'!E11 -> 32520297.1 | E99: ='Rate Base'!F11 -> 24327140.39 | F99: ='Rate Base'!G11 -> 13377221.65 | G99: ='Rate Base'!H11 -> 4611532.51 | H99: ='Rate Base'!I11 -> 4273987.86 | I99: ='Rate Base'!J11 -> 9042867.91 | J99: ='Rate Base'!K11 -> 16864248.25 | K99: ='Rate Base'!L11 -> 25992902.78 | L99: ='Rate Base'!M11 -> 40957960.21 | M99: ='Rate Base'!N11 -> 53451265.52 | N99: ='Rate Base'!O11 -> 54725203.51 | O99: ='Rate Base'!P11 -> 48124018.51 | P99: =(((+C99+O99)/2)+SUM(D99:N99))/12 -> 27222757.07 | Q99: 95 | R99: 95
B100: Acct 164 (Working Gas LNG) - Production | C100: ='Rate Base'!D12 -> 1512116.55 | D100: ='Rate Base'!E12 -> 1512116.55 | E100: ='Rate Base'!F12 -> 1512116.55 | F100: ='Rate Base'!G12 -> 1512116.55 | G100: ='Rate Base'!H12 -> 1512116.55 | H100: ='Rate Base'!I12 -> 2664570.047 | I100: ='Rate Base'!J12 -> 3806155.355 | J100: ='Rate Base'!K12 -> 4990327.127 | K100: ='Rate Base'!L12 -> 6172289.971 | L100: ='Rate Base'!M12 -> 6172289.971 | M100: ='Rate Base'!N12 -> 6071976.302 | N100: ='Rate Base'!O12 -> 128654.34 | O100: ='Rate Base'!P12 -> 1512116.55 | P100: 3130570.488 | Q100: 96
B101: Acct 101 - Production | C101: ='Rate Base'!D5 -> 79968136 | D101: ='Rate Base'!E5 -> 79968136 | E101: ='Rate Base'!F5 -> 79968136 | F101: ='Rate Base'!G5 -> 79968136 | G101: ='Rate Base'!H5 -> 79968136 | H101: ='Rate Base'!I5 -> 79968136 | I101: ='Rate Base'!J5 -> 79968136 | J101: ='Rate Base'!K5 -> 79968136 | K101: ='Rate Base'!L5 -> 79968136 | L101: ='Rate Base'!M5 -> 79968136 | M101: ='Rate Base'!N5 -> 79968136 | N101: ='Rate Base'!O5 -> 79968136 | O101: ='Rate Base'!P5 -> 79968136 | P101: 79968136 | Q101: 97 | R101: 96
B102: Acct 108 - Production | C102: ='Rate Base'!D7 -> -71988400 | D102: ='Rate Base'!E7 -> -72058264 | E102: ='Rate Base'!F7 -> -72112568 | F102: ='Rate Base'!G7 -> -72165240 | G102: ='Rate Base'!H7 -> -72219000 | H102: ='Rate Base'!I7 -> -72277347 | I102: ='Rate Base'!J7 -> -72335916 | J102: ='Rate Base'!K7 -> -72397634 | K102: ='Rate Base'!L7 -> -72460659 | L102: ='Rate Base'!M7 -> -72525283 | M102: ='Rate Base'!N7 -> -72525283 | N102: ='Rate Base'!O7 -> -72525283 | O102: ='Rate Base'!P7 -> -72654580 | P102: -72326997.25 | Q102: 98 | R102: 97
B103: Acct 111 - Production | C103: ='Rate Base'!D9 -> -6150277 | D103: ='Rate Base'!E9 -> -6150277 | E103: ='Rate Base'!F9 -> -6150277 | F103: ='Rate Base'!G9 -> -6150277 | G103: ='Rate Base'!H9 -> -6150277 | H103: ='Rate Base'!I9 -> -6150277 | I103: ='Rate Base'!J9 -> -6150277 | J103: ='Rate Base'!K9 -> -6150277 | K103: ='Rate Base'!L9 -> -6150277 | L103: ='Rate Base'!M9 -> -6150277 | M103: ='Rate Base'!N9 -> -6150277 | N103: ='Rate Base'!O9 -> -6150277 | O103: ='Rate Base'!P9 -> -6150277 | P103: -6150277 | Q103: 99 | R103: 98
B104: Acct 2550 - Production | C104: ='Rate Base'!D14 -> 0 | D104: ='Rate Base'!E14 -> 0 | E104: ='Rate Base'!F14 -> 0 | F104: ='Rate Base'!G14 -> 0 | G104: ='Rate Base'!H14 -> 0 | H104: ='Rate Base'!I14 -> 0 | I104: ='Rate Base'!J14 -> 0 | J104: ='Rate Base'!K14 -> 0 | K104: ='Rate Base'!L14 -> 0 | L104: ='Rate Base'!M14 -> 0 | M104: ='Rate Base'!N14 -> 0 | N104: ='Rate Base'!O14 -> 0 | O104: ='Rate Base'!P14 -> 0 | P104: 0 | Q104: 100 | R104: 99
B105: Acct 2820 - Production | C105: ='Rate Base'!D16 -> -33930378 | D105: ='Rate Base'!E16 -> -34579017 | E105: ='Rate Base'!F16 -> -35244000 | F105: ='Rate Base'!G16 -> -34557247 | G105: ='Rate Base'!H16 -> -35092242 | H105: ='Rate Base'!I16 -> -35715252 | I105: ='Rate Base'!J16 -> -36065261 | J105: ='Rate Base'!K16 -> -37355770 | K105: ='Rate Base'!L16 -> -37978270 | L105: ='Rate Base'!M16 -> -38356978 | M105: ='Rate Base'!N16 -> -38356978 | N105: ='Rate Base'!O16 -> -38356978 | O105: ='Rate Base'!P16 -> -43428098 | P105: -36694769.25 | Q105: 101 | R105: 100
B106: Acct 2821 - Production | C106: ='Rate Base'!D18 -> -700755 | D106: ='Rate Base'!E18 -> -700755 | E106: ='Rate Base'!F18 -> -700755 | F106: ='Rate Base'!G18 -> -700755 | G106: ='Rate Base'!H18 -> -700755 | H106: ='Rate Base'!I18 -> -700755 | I106: ='Rate Base'!J18 -> -700755 | J106: ='Rate Base'!K18 -> -700755 | K106: ='Rate Base'!L18 -> -700755 | L106: ='Rate Base'!M18 -> -700755 | M106: ='Rate Base'!N18 -> -700755 | N106: ='Rate Base'!O18 -> -700755 | O106: ='Rate Base'!P18 -> -700755 | P106: -700755 | Q106: 102 | R106: 101
Q107: 103 | R107: 102
D108: Production | H108: Acct 101 | I108: Acct 108 | J108: Acct 111 | K108: Acct 2550 | L108: Acct 2820 | M108: Acct 2821 | N108: Total | Q108: 104 | R108: 103
B109: Depreciation - Acct 403 | D109: =Expenses!P8 -> 735497 | F109: Thirteen month average | H109: =P101 -> 79968136 | I109: =P102 -> -72326997.25 | J109: =P103 -> -6150277 | K109: =P104 -> 0 | L109: =P105 -> -36694769.25 | M109: =P106 -> -700755 | N109: =SUM(H109:M109) -> -35904662.5 | Q109: 105 | R109: 104
B110: Amortization & Depletion - Acct 404 | D110: =Expenses!P10 -> 0 | F110: =CONCATENATE("Wexpro Red. @ ",-'Other Inputs'!E270*100," %") -> Wexpro Red. @ 6.3 % | H110: =H109*'Other Inputs'!$E$270 -> -5037992.568 | I110: =I109*'Other Inputs'!$E$270 -> 4556600.827 | J110: =J109*'Other Inputs'!$E$270 -> 387467.451 | N110: =SUM(H110:M110) -> -93924.29025 | Q110: 106 | R110: 105
B111: Utah Pre-Tax Return on Production Assets | D111: =+N112 -> -3045480.442 | M111: =SUM(N109:N110) -> -35998586.79 | Q111: 107 | R111: 106
B112: Utah Production Cost | D112: =SUM(D109:D111) -> -2309983.442 | M112: ="Utah Pre-Tax Rate of Return on Production Assets ("&'Other Inputs'!E273&")" -> Utah Pre-Tax Rate of Return on Production Assets (0.0846) | N112: =M111*'Other Inputs'!E273 -> -3045480.442 | Q112: 108 | R112: 107
M113: ="Wyoming Pre-Tax Rate of Return on Production Assets ("&'Other Inputs'!E272&")" -> Wyoming Pre-Tax Rate of Return on Production Assets (0.088) | N113: =M111*'Other Inputs'!E272 -> -3167875.638 | Q113: 109 | R113: 108
Q114: 110 | R114: 109
A115: TACTICAL PLAN INFORMATION (IRP) | P115: 12-Month | Q115: 111 | R115: 110
D116: =D5 -> Mar23 | E116: =E5 -> Apr23 | F116: May23 | G116: Jun23 | H116: Jul23 | I116: Aug23 | J116: Sep23 | K116: Oct23 | L116: Nov23 | M116: Dec23 | N116: Jan24 | O116: Feb24 | P116: Total | Q116: 112 | R116: 111
A117: COMPANY PRODUCTION | Q117: 113 | R117: 112
B118: Prior Company | Q118: 114 | R118: 113
B119: D24 Wells | Q119: 115 | R119: 114
B120: Brady & Powel | Q120: 116 | R120: 115
B121: Total Company Production Wexpro I & II | D121: ='Monthly Inputs'!G7+'Monthly Inputs'!G13 -> 4938611.28 | E121: ='Monthly Inputs'!H7+'Monthly Inputs'!H13 -> 4688870.276 | F121: ='Monthly Inputs'!I7+'Monthly Inputs'!I13 -> 4744846.668 | G121: ='Monthly Inputs'!J7+'Monthly Inputs'!J13 -> 4510609.268 | H121: ='Monthly Inputs'!K7+'Monthly Inputs'!K13 -> 4662947.371 | I121: ='Monthly Inputs'!L7+'Monthly Inputs'!L13 -> 4776876.453 | J121: ='Monthly Inputs'!M7+'Monthly Inputs'!M13 -> 4560130.354 | K121: ='Monthly Inputs'!N7+'Monthly Inputs'!N13 -> 4614081.612 | L121: ='Monthly Inputs'!O7+'Monthly Inputs'!O13 -> 5462821.719 | M121: ='Monthly Inputs'!P7+'Monthly Inputs'!P13 -> 5402506.971 | N121: ='Monthly Inputs'!Q7+'Monthly Inputs'!Q13 -> 5222448.073 | O121: ='Monthly Inputs'!R7+'Monthly Inputs'!R13 -> 4869162.271 | P121: =SUM(D121:O121) -> 58453912.32 | Q121: 117 | R121: 116
Q122: 118 | R122: 117
A123: STORAGE INJECTIONS | Q123: 119 | R123: 118
B124: Chalk Creek | D124: ='Monthly Inputs'!G24 -> 0 | E124: ='Monthly Inputs'!H24 -> 0 | F124: ='Monthly Inputs'!I24 -> 0 | G124: ='Monthly Inputs'!J24 -> 0 | H124: ='Monthly Inputs'!K24 -> 0 | I124: ='Monthly Inputs'!L24 -> 0 | J124: ='Monthly Inputs'!M24 -> 40000 | K124: ='Monthly Inputs'!N24 -> 132000 | L124: ='Monthly Inputs'!O24 -> 90000 | M124: ='Monthly Inputs'!P24 -> 59000 | N124: ='Monthly Inputs'!Q24 -> 0 | O124: ='Monthly Inputs'!R24 -> 44310 | P124: =SUM(D124:O124) -> 365310 | Q124: 120 | R124: 119
B125: Coalville | D125: ='Monthly Inputs'!G26 -> 317500 | E125: ='Monthly Inputs'!H26 -> 0 | F125: ='Monthly Inputs'!I26 -> 0 | G125: ='Monthly Inputs'!J26 -> 0 | H125: ='Monthly Inputs'!K26 -> 0 | I125: ='Monthly Inputs'!L26 -> 0 | J125: ='Monthly Inputs'!M26 -> 42000 | K125: ='Monthly Inputs'!N26 -> 280800 | L125: ='Monthly Inputs'!O26 -> 37386 | M125: ='Monthly Inputs'!P26 -> 0 | N125: ='Monthly Inputs'!Q26 -> 0 | O125: ='Monthly Inputs'!R26 -> 170000 | P125: =SUM(D125:O125) -> 847686 | Q125: 121 | R125: 120
B126: Leroy | D126: ='Monthly Inputs'!G27 -> 0 | E126: ='Monthly Inputs'!H27 -> 0 | F126: ='Monthly Inputs'!I27 -> 0 | G126: ='Monthly Inputs'!J27 -> 0 | H126: ='Monthly Inputs'!K27 -> 0 | I126: ='Monthly Inputs'!L27 -> 0 | J126: ='Monthly Inputs'!M27 -> 47500 | K126: ='Monthly Inputs'!N27 -> 45000 | L126: ='Monthly Inputs'!O27 -> 300000 | M126: ='Monthly Inputs'!P27 -> 50998 | N126: ='Monthly Inputs'!Q27 -> 0 | O126: ='Monthly Inputs'!R27 -> 146800 | P126: =SUM(D126:O126) -> 590298 | Q126: 122 | R126: 121
B127: Ryckman | D127: ='Monthly Inputs'!G28 -> 0 | E127: ='Monthly Inputs'!H28 -> 0 | F127: ='Monthly Inputs'!I28 -> 0 | G127: ='Monthly Inputs'!J28 -> 0 | H127: ='Monthly Inputs'!K28 -> 0 | I127: ='Monthly Inputs'!L28 -> 0 | J127: ='Monthly Inputs'!M28 -> 0 | K127: ='Monthly Inputs'!N28 -> 0 | L127: ='Monthly Inputs'!O28 -> 0 | M127: ='Monthly Inputs'!P28 -> 0 | N127: ='Monthly Inputs'!Q28 -> 0 | O127: ='Monthly Inputs'!R28 -> 0 | P127: =SUM(D127:O127) -> 0 | Q127: 123 | R127: 122
B128: Total Peaking Storage | D128: =SUM(D124:D127) -> 317500 | E128: =SUM(E124:E127) -> 0 | F128: 0 | G128: 0 | H128: 0 | I128: 0 | J128: 129500 | K128: 457800 | L128: 427386 | M128: 109998 | N128: 0 | O128: 361110 | P128: 1803294 | Q128: 124 | R128: 123
B129: Clay Basin | D129: ='Monthly Inputs'!G25 -> 805140 | E129: ='Monthly Inputs'!H25 -> 136477 | F129: ='Monthly Inputs'!I25 -> 1418001 | G129: ='Monthly Inputs'!J25 -> 1480000 | H129: ='Monthly Inputs'!K25 -> 2045999 | I129: ='Monthly Inputs'!L25 -> 2051859 | J129: ='Monthly Inputs'!M25 -> 1985670 | K129: ='Monthly Inputs'!N25 -> 1576854 | L129: ='Monthly Inputs'!O25 -> 0 | M129: ='Monthly Inputs'!P25 -> 0 | N129: ='Monthly Inputs'!Q25 -> 0 | O129: ='Monthly Inputs'!R25 -> 0 | P129: =SUM(D129:O129) -> 11500000 | Q129: 125 | R129: 124
B130: Total Storage Injections | D130: =SUM(D128:D129) -> 1122640 | E130: 136477 | F130: 1418001 | G130: 1480000 | H130: 2045999 | I130: 2051859 | J130: 2115170 | K130: 2034654 | L130: 427386 | M130: 109998 | N130: 0 | O130: 361110 | P130: 13303294 | Q130: 126 | R130: 125
A131: STORAGE WITHDRAWLS | Q131: 127 | R131: 126
B132: Chalk Creek | D132: ='Monthly Inputs'!G32 -> 112125 | E132: ='Monthly Inputs'!H32 -> 0 | F132: ='Monthly Inputs'!I32 -> 0 | G132: ='Monthly Inputs'!J32 -> 0 | H132: ='Monthly Inputs'!K32 -> 0 | I132: ='Monthly Inputs'!L32 -> 0 | J132: ='Monthly Inputs'!M32 -> 0 | K132: ='Monthly Inputs'!N32 -> 0 | L132: ='Monthly Inputs'!O32 -> 0 | M132: ='Monthly Inputs'!P32 -> 0 | N132: ='Monthly Inputs'!Q32 -> 124560 | O132: ='Monthly Inputs'!R32 -> 110250 | P132: =SUM(D132:O132) -> 346935 | Q132: 128 | R132: 127
B133: Coalville | D133: ='Monthly Inputs'!G34 -> 0 | E133: ='Monthly Inputs'!H34 -> 0 | F133: ='Monthly Inputs'!I34 -> 0 | G133: ='Monthly Inputs'!J34 -> 0 | H133: ='Monthly Inputs'!K34 -> 0 | I133: ='Monthly Inputs'!L34 -> 0 | J133: ='Monthly Inputs'!M34 -> 0 | K133: ='Monthly Inputs'!N34 -> 0 | L133: ='Monthly Inputs'!O34 -> 0 | M133: ='Monthly Inputs'!P34 -> 0 | N133: ='Monthly Inputs'!Q34 -> 410186 | O133: ='Monthly Inputs'!R34 -> 445000 | P133: =SUM(D133:O133) -> 855186 | Q133: 129 | R133: 128
B134: Leroy | D134: ='Monthly Inputs'!G35 -> 0 | E134: ='Monthly Inputs'!H35 -> 0 | F134: ='Monthly Inputs'!I35 -> 0 | G134: ='Monthly Inputs'!J35 -> 0 | H134: ='Monthly Inputs'!K35 -> 0 | I134: ='Monthly Inputs'!L35 -> 0 | J134: ='Monthly Inputs'!M35 -> 0 | K134: ='Monthly Inputs'!N35 -> 0 | L134: ='Monthly Inputs'!O35 -> 0 | M134: ='Monthly Inputs'!P35 -> 0 | N134: ='Monthly Inputs'!Q35 -> 470298 | O134: ='Monthly Inputs'!R35 -> 120000 | P134: =SUM(D134:O134) -> 590298 | Q134: 130 | R134: 129
B135: Ryckman | D135: ='Monthly Inputs'!G36 -> 0 | E135: ='Monthly Inputs'!H36 -> 0 | F135: ='Monthly Inputs'!I36 -> 0 | G135: ='Monthly Inputs'!J36 -> 0 | H135: ='Monthly Inputs'!K36 -> 0 | I135: ='Monthly Inputs'!L36 -> 0 | J135: ='Monthly Inputs'!M36 -> 0 | K135: ='Monthly Inputs'!N36 -> 0 | L135: ='Monthly Inputs'!O36 -> 0 | M135: ='Monthly Inputs'!P36 -> 0 | N135: ='Monthly Inputs'!Q36 -> 0 | O135: ='Monthly Inputs'!R36 -> 0 | P135: =SUM(D135:O135) -> 0 | Q135: 131 | R135: 130
B136: Total Peaking Storage | D136: =SUM(D132:D135) -> 112125 | E136: =SUM(E132:E135) -> 0 | F136: 0 | G136: 0 | H136: 0 | I136: 0 | J136: 0 | K136: 0 | L136: 0 | M136: 0 | N136: 1005044 | O136: 675250 | P136: 1792419 | Q136: 132 | R136: 131
B137: Clay Basin | D137: ='Monthly Inputs'!G33 -> 0 | E137: ='Monthly Inputs'!H33 -> 0 | F137: ='Monthly Inputs'!I33 -> 0 | G137: ='Monthly Inputs'!J33 -> 0 | H137: ='Monthly Inputs'!K33 -> 0 | I137: ='Monthly Inputs'!L33 -> 0 | J137: ='Monthly Inputs'!M33 -> 0 | K137: ='Monthly Inputs'!N33 -> 0 | L137: ='Monthly Inputs'!O33 -> 484600 | M137: ='Monthly Inputs'!P33 -> 4086000 | N137: ='Monthly Inputs'!Q33 -> 3458045 | O137: ='Monthly Inputs'!R33 -> 3190046 | P137: =SUM(D137:O137) -> 11218691 | Q137: 133 | R137: 132
Q138: 134
B139: Total Storage Withdrawls | D139: =SUM(D136:D137) -> 112125 | E139: 0 | F139: 0 | G139: 0 | H139: 0 | I139: 0 | J139: 0 | K139: 0 | L139: 484600 | M139: 4086000 | N139: 4463089 | O139: 3865296 | P139: 13011110 | Q139: 135 | R139: 133
Q140: 136
A141: LNG | Q141: 137
B142: Injections | D142: =+'Monthly Inputs'!G40 -> 0 | E142: =+'Monthly Inputs'!H40 -> 0 | F142: =+'Monthly Inputs'!I40 -> 279000 | G142: =+'Monthly Inputs'!J40 -> 270000 | H142: =+'Monthly Inputs'!K40 -> 279000 | I142: =+'Monthly Inputs'!L40 -> 279000 | J142: =+'Monthly Inputs'!M40 -> 0 | K142: =+'Monthly Inputs'!N40 -> 108000 | L142: =+'Monthly Inputs'!O40 -> 0 | M142: =+'Monthly Inputs'!P40 -> 0 | N142: =+'Monthly Inputs'!Q40 -> 0 | O142: =+'Monthly Inputs'!R40 -> 0 | P142: =+'Monthly Inputs'!S40 -> 1215000 | Q142: 138
B143: Withdrawals | D143: =+'Monthly Inputs'!G41 -> 0 | E143: =+'Monthly Inputs'!H41 -> 0 | F143: =+'Monthly Inputs'!I41 -> 0 | G143: =+'Monthly Inputs'!J41 -> 0 | H143: =+'Monthly Inputs'!K41 -> 0 | I143: =+'Monthly Inputs'!L41 -> 0 | J143: =+'Monthly Inputs'!M41 -> 0 | K143: =+'Monthly Inputs'!N41 -> 108000 | L143: =+'Monthly Inputs'!O41 -> 0 | M143: =+'Monthly Inputs'!P41 -> 0 | N143: =+'Monthly Inputs'!Q41 -> 0 | O143: =+'Monthly Inputs'!R41 -> 0 | P143: =+'Monthly Inputs'!S41 -> 108000 | Q143: 139
Q144: 140 | R144: 134
Q145: 141 | R145: 135
A146: Gas Supply and Demand | D146: =D4 -> Forecast | E146: Forecast | F146: Forecast | G146: Forecast | H146: Forecast | I146: Forecast | J146: Forecast | K146: Forecast | L146: Forecast | M146: Forecast | N146: Forecast | O146: Forecast | P146: 12-Month | Q146: 142 | R146: 136
A147: Demand | D147: =D5 -> Mar23 | E147: Apr23 | F147: May23 | G147: Jun23 | H147: Jul23 | I147: Aug23 | J147: Sep23 | K147: Oct23 | L147: Nov23 | M147: Dec23 | N147: Jan24 | O147: Feb24 | P147: Total | Q147: 143 | R147: 137
Q148: 144 | R148: 138
A149: Utah Sales | D149: =+D20 -> 13433023 | E149: 9017969 | F149: 5391667 | G149: 3071369 | H149: 2584396 | I149: 2544456 | J149: 2986836 | K149: 7219038 | L149: 12420297 | M149: 18926251 | N149: 20849761 | O149: 17412549 | P149: =SUM(D149:O149) -> 115857612 | Q149: 145 | R149: 139
A150: Wyoming Sales | D150: =+D39 -> 448594 | E150: 329671 | F150: 219398 | G150: 105674 | H150: 68869 | I150: 70192 | J150: 98227 | K150: 228147 | L150: 421821 | M150: 594379 | N150: 603234 | O150: 535048 | P150: =SUM(D150:O150) -> 3723254 | Q150: 146 | R150: 140
A151: Total Sales | D151: =+D149+D150 -> 13881617 | E151: 9347640 | F151: 5611065 | G151: 3177043 | H151: 2653265 | I151: 2614648 | J151: 3085063 | K151: 7447185 | L151: 12842118 | M151: 19520630 | N151: 21452995 | O151: 17947597 | P151: 119580866 | Q151: 147 | R151: 141
Q152: 148 | R152: 142
A153: Distribution Use (Offices) | C153: Check formulas for correct month | D153: =ROUND(O83,0) -> 0 | E153: =ROUND(D83,0) -> 0 | F153: 0 | G153: 0 | H153: 0 | I153: 0 | J153: 0 | K153: 0 | L153: 0 | M153: 0 | N153: 0 | O153: 0 | P153: =SUM(D153:O153) -> 0 | Q153: 149 | R153: 143
A154: Distribution Lost and Unaccounted for | D154: =+D156-D151-D153 -> 78034 | E154: =+E156-E151-E153 -> 52547 | F154: 31542 | G154: 17860 | H154: 14915 | I154: 14698 | J154: 17342 | K154: 41864 | L154: 72191 | M154: 109734 | N154: 120596 | O154: =+O156-O151-O153 -> 100891 | P154: =SUM(D154:O154) -> 672214 | Q154: 150 | R154: 144
Q155: 151 | R155: 145
A156: Total City Gate | D156: =ROUND((D151+D153)/(1-'Other Inputs'!$E$276),0) -> 13959651 | E156: =ROUND((E151+E153)/(1-'Other Inputs'!$E$276),0) -> 9400187 | F156: =ROUND((F151+F153)/(1-'Other Inputs'!$E$276),0) -> 5642607 | G156: =ROUND((G151+G153)/(1-'Other Inputs'!$E$276),0) -> 3194903 | H156: =ROUND((H151+H153)/(1-'Other Inputs'!$E$276),0) -> 2668180 | I156: =ROUND((I151+I153)/(1-'Other Inputs'!$E$276),0) -> 2629346 | J156: =ROUND((J151+J153)/(1-'Other Inputs'!$E$276),0) -> 3102405 | K156: =ROUND((K151+K153)/(1-'Other Inputs'!$E$276),0) -> 7489049 | L156: =ROUND((L151+L153)/(1-'Other Inputs'!$E$276),0) -> 12914309 | M156: =ROUND((M151+M153)/(1-'Other Inputs'!$E$276),0) -> 19630364 | N156: =ROUND((N151+N153)/(1-'Other Inputs'!$E$276),0) -> 21573591 | O156: =ROUND((O151+O153)/(1-'Other Inputs'!$E$276),0) -> 18048488 | P156: =SUM(D156:O156) -> 120253080 | Q156: 152 | R156: 146
Q157: 153 | R157: 147
A158: Peaking Injection | D158: =+D128 -> 317500 | E158: 0 | F158: 0 | G158: 0 | H158: 0 | I158: 0 | J158: 129500 | K158: 457800 | L158: 427386 | M158: 109998 | N158: 0 | O158: 361110 | P158: =SUM(D158:O158) -> 1803294 | Q158: 154 | R158: 148
A159: Clay Basin Injection | D159: =+D129 -> 805140 | E159: 136477 | F159: 1418001 | G159: 1480000 | H159: 2045999 | I159: 2051859 | J159: 1985670 | K159: 1576854 | L159: 0 | M159: 0 | N159: 0 | O159: 0 | P159: =SUM(D159:O159) -> 11500000 | Q159: 155 | R159: 149
A160: Storage Lost & Unaccounted For | D160: =-'Monthly Inputs'!G56 -> 14232.612 | E160: =-'Monthly Inputs'!H56 -> 1815.1441 | F160: =-'Monthly Inputs'!I56 -> 18859.4133 | G160: =-'Monthly Inputs'!J56 -> 19684 | H160: =-'Monthly Inputs'!K56 -> 27211.7867 | I160: =-'Monthly Inputs'!L56 -> 27289.7247 | J160: =-'Monthly Inputs'!M56 -> 28432.361 | K160: =-'Monthly Inputs'!N56 -> 26175.5382 | L160: =-'Monthly Inputs'!O56 -> 9189.9846 | M160: =-'Monthly Inputs'!P56 -> 1775.7454 | N160: =-'Monthly Inputs'!Q56 -> 0 | O160: =-'Monthly Inputs'!R56 -> 6182.655 | P160: =SUM(D160:O160) -> 180848.965 | Q160: 156 | R160: 150
A161: Total Demand | D161: =SUM(D156:D160) -> 15096523.61 | E161: =SUM(E156:E160) -> 9538479.144 | F161: 7079467.413 | G161: 4694587 | H161: =SUM(H156:H160) -> 4741390.787 | I161: 4708494.725 | J161: 5246007.361 | K161: 9549878.538 | L161: 13350884.98 | M161: 19742137.75 | N161: 21573591 | O161: =SUM(O156:O160) -> 18415780.66 | P161: =SUM(D161:O161) -> 133737223 | Q161: 157 | R161: 151
Q162: 158 | R162: 152
D163: Forecast | E163: Forecast | F163: Forecast | G163: Forecast | H163: Forecast | I163: Forecast | J163: Forecast | K163: Forecast | L163: Forecast | M163: Forecast | N163: Forecast | O163: Forecast | P163: 12-Month | Q163: 159 | R163: 153
A164: Supply | D164: =D5 -> Mar23 | E164: Apr23 | F164: May23 | G164: Jun23 | H164: Jul23 | I164: Aug23 | J164: Sep23 | K164: Oct23 | L164: Nov23 | M164: Dec23 | N164: Jan24 | O164: Feb24 | P164: Total | Q164: 160 | R164: 154
A165: Company Production | D165: =+D121 -> 4938611.28 | E165: 4688870.276 | F165: 4744846.668 | G165: 4510609.268 | H165: 4662947.371 | I165: 4776876.453 | J165: 4560130.354 | K165: 4614081.612 | L165: 5462821.719 | M165: 5402506.971 | N165: 5222448.073 | O165: 4869162.271 | P165: =SUM(D165:O165) -> 58453912.32 | Q165: 161 | R165: 155
A166: Co Prod Lost & Unaccounted For | D166: =ROUND(D165*(-'Other Inputs'!$E$278-'Other Inputs'!$E$279),0) -> -249400 | E166: =ROUND(E165*(-'Other Inputs'!$E$278-'Other Inputs'!$E$279),0) -> -236788 | F166: =ROUND(F165*(-'Other Inputs'!$E$278-'Other Inputs'!$E$279),0) -> -239615 | G166: =ROUND(G165*(-'Other Inputs'!$E$278-'Other Inputs'!$E$279),0) -> -227786 | H166: =ROUND(H165*(-'Other Inputs'!$E$278-'Other Inputs'!$E$279),0) -> -235479 | I166: =ROUND(I165*(-'Other Inputs'!$E$278-'Other Inputs'!$E$279),0) -> -241232 | J166: =ROUND(J165*(-'Other Inputs'!$E$278-'Other Inputs'!$E$279),0) -> -230287 | K166: =ROUND(K165*(-'Other Inputs'!$E$278-'Other Inputs'!$E$279),0) -> -233011 | L166: =ROUND(L165*(-'Other Inputs'!$E$278-'Other Inputs'!$E$279),0) -> -275872 | M166: =ROUND(M165*(-'Other Inputs'!$E$278-'Other Inputs'!$E$279),0) -> -272827 | N166: =ROUND(N165*(-'Other Inputs'!$E$278-'Other Inputs'!$E$279),0) -> -263734 | O166: =ROUND(O165*(-'Other Inputs'!$E$278-'Other Inputs'!$E$279),0) -> -245893 | P166: =SUM(D166:O166) -> -2951924 | Q166: 162 | R166: 156
A167: Company Production @ City Gate | D167: =SUM(D165:D166) -> 4689211.28 | E167: =SUM(E165:E166) -> 4452082.276 | F167: 4505231.668 | G167: 4282823.268 | H167: 4427468.371 | I167: 4535644.453 | J167: 4329843.354 | K167: 4381070.612 | L167: 5186949.719 | M167: 5129679.971 | N167: 4958714.073 | O167: 4623269.271 | P167: =SUM(D167:O167) -> 55501988.32 | Q167: 163 | R167: 157
Q168: 164 | R168: 158
A169: Peaking Withdrawal | D169: =+D136 -> 112125 | E169: 0 | F169: 0 | G169: 0 | H169: 0 | I169: 0 | J169: 0 | K169: 0 | L169: 0 | M169: 0 | N169: 1005044 | O169: 675250 | P169: =SUM(D169:O169) -> 1792419 | Q169: 165 | R169: 159
A170: Clay Basin Withdrawal | D170: =+D137 -> 0 | E170: 0 | F170: 0 | G170: 0 | H170: 0 | I170: 0 | J170: 0 | K170: 0 | L170: 484600 | M170: 4086000 | N170: 3458045 | O170: 3190046 | P170: =SUM(D170:O170) -> 11218691 | Q170: 166 | R170: 160
A171: LNG Withdrawal | D171: =+D143 -> 0 | E171: =+E143 -> 0 | F171: 0 | G171: 0 | H171: 0 | I171: 0 | J171: 0 | K171: 108000 | L171: 0 | M171: 0 | N171: 0 | O171: 0 | P171: =SUM(D171:O171) -> 108000 | Q171: 167
A172: MWP Transportation Loss on Storage | D172: ='Monthly Inputs'!G74+'Monthly Inputs'!G65 -> -3285.2625 | E172: ='Monthly Inputs'!H74+'Monthly Inputs'!H65 -> 0 | F172: ='Monthly Inputs'!I74+'Monthly Inputs'!I65 -> 0 | G172: ='Monthly Inputs'!J74+'Monthly Inputs'!J65 -> 0 | H172: ='Monthly Inputs'!K74+'Monthly Inputs'!K65 -> 0 | I172: ='Monthly Inputs'!L74+'Monthly Inputs'!L65 -> 0 | J172: ='Monthly Inputs'!M74+'Monthly Inputs'!M65 -> 0 | K172: ='Monthly Inputs'!N74+'Monthly Inputs'!N65 -> 0 | L172: ='Monthly Inputs'!O74+'Monthly Inputs'!O65 -> -6120.0134 | M172: ='Monthly Inputs'!P74+'Monthly Inputs'!P65 -> -51602.094 | N172: ='Monthly Inputs'!Q74+'Monthly Inputs'!Q65 -> -69162.2129 | O172: ='Monthly Inputs'!R74+'Monthly Inputs'!R65 -> -57768.91593 | P172: =SUM(D172:O172) -> -187938.4987 | Q172: 168 | R172: 161
A173: Storage Lost & Unaccounted For | D173: ='Monthly Inputs'!G56 -> -14232.612 | E173: ='Monthly Inputs'!H56 -> -1815.1441 | F173: ='Monthly Inputs'!I56 -> -18859.4133 | G173: ='Monthly Inputs'!J56 -> -19684 | H173: ='Monthly Inputs'!K56 -> -27211.7867 | I173: ='Monthly Inputs'!L56 -> -27289.7247 | J173: ='Monthly Inputs'!M56 -> -28432.361 | K173: ='Monthly Inputs'!N56 -> -26175.5382 | L173: ='Monthly Inputs'!O56 -> -9189.9846 | M173: ='Monthly Inputs'!P56 -> -1775.7454 | N173: ='Monthly Inputs'!Q56 -> 0 | O173: ='Monthly Inputs'!R56 -> -6182.655 | P173: =SUM(D173:O173) -> -180848.965 | Q173: 169 | R173: 162
A174: Storage Supply @ City Gate | D174: =SUM(D169:D173) -> 94607.1255 | E174: =SUM(E169:E173) -> -1815.1441 | F174: -18859.4133 | G174: -19684 | H174: -27211.7867 | I174: -27289.7247 | J174: -28432.361 | K174: 81824.4618 | L174: 469290.002 | M174: 4032622.161 | N174: 4393926.787 | O174: 3801344.429 | P174: 12750322.54 | Q174: 170 | R174: 163
Q175: 171 | R175: 164
A176: Gas Purchased @ City Gate | D176: =D161-D167-D174-D160 -> 10298472.59 | E176: =E161-E167-E174-E160 -> 5086396.868 | F176: 2574235.745 | G176: 411763.7323 | H176: 313922.4153 | I176: 172850.2714 | J176: 916164.0072 | K176: 5060807.927 | L176: =L161-L167-L174-L160 -> 7685455.279 | M176: 10578059.87 | N176: 12220950.14 | O176: 9984984.3 | P176: =SUM(D176:O176) -> 65304063.15 | Q176: 172 | R176: 165
A177: Gas Reimbursement | D177: =+D178-D176 -> 109281.406 | E177: =+E178-E176 -> 53974.13165 | F177: 27316.25467 | G177: 4369.26769 | H177: 3331.584654 | I177: 1833.728556 | J177: 9721.992751 | K177: 53702.0735 | L177: =+L178-L176 -> 81553.72113 | M177: 112248.1319 | N177: 129681.86 | O177: 105954.6998 | P177: =SUM(D177:O177) -> 692968.8523 | Q177: 173 | R177: 166
A178: Gas Purchased - Dth ( /.98) | D178: =ROUND(D176/(1-'Other Inputs'!$E$279),0) -> 10407754 | E178: =ROUND(E176/(1-'Other Inputs'!$E$279),0) -> 5140371 | F178: =ROUND(F176/(1-'Other Inputs'!$E$279),0) -> 2601552 | G178: =ROUND(G176/(1-'Other Inputs'!$E$279),0) -> 416133 | H178: =ROUND(H176/(1-'Other Inputs'!$E$279),0) -> 317254 | I178: =ROUND(I176/(1-'Other Inputs'!$E$279),0) -> 174684 | J178: =ROUND(J176/(1-'Other Inputs'!$E$279),0) -> 925886 | K178: =ROUND(K176/(1-'Other Inputs'!$E$279),0) -> 5114510 | L178: =ROUND(L176/(1-'Other Inputs'!$E$279),0) -> 7767009 | M178: =ROUND(M176/(1-'Other Inputs'!$E$279),0) -> 10690308 | N178: =ROUND(N176/(1-'Other Inputs'!$E$279),0) -> 12350632 | O178: =ROUND(O176/(1-'Other Inputs'!$E$279),0) -> 10090939 | P178: =SUM(D178:O178) -> 65997032 | Q178: 174 | R178: 167
Q179: 175
Q180: 176
Q181: 177
Q182: 178 | R182: 168
A183: Transported Volumes - total | D183: =+D167+D176+D139+D172 -> 15096523.61 | E183: =+E167+E176+E139+E172 -> 9538479.144 | F183: =+F167+F176+F139+F172 -> 7079467.413 | G183: 4694587 | H183: =+H167+H176+H139+H172 -> 4741390.787 | I183: 4708494.725 | J183: 5246007.361 | K183: 9441878.538 | L183: 13350884.98 | M183: 19742137.75 | N183: 21573591 | O183: 18415780.66 | P183: =+P167+P176+P139+P172 -> 133629223 | Q183: 179 | R183: 169
A184: Kern transported volumes | D184: =HLOOKUP(MONTH(D5),kernrivertrans,6,FALSE) -> 2732055.539 | E184: 782400.7607 | F184: 808480.786 | G184: 782400.7607 | H184: 808480.786 | I184: 808480.786 | J184: 782400.7607 | K184: 808480.786 | L184: 2643924.715 | M184: 3912272.939 | N184: 3912272.939 | O184: 3659868.234 | Q184: 180 | R184: 170
A185: Storage Fuel % | C185: =(P160-P173)/(P169+P170+P158+P159) -> 0.013745245 | Q185: 181 | R185: 171
Q186: 182 | R186: 172
A187: Company Production as % of Total Supply / Demand | D187: =D165/(D178+D165) -> 0.3218098351 | E187: 0.4770327784 | F187: =F165/(F178+F165) -> 0.6458738332 | G187: 0.9155358699 | H187: =H165/(H178+H165) -> 0.9362969534 | I187: 0.9647214244 | J187: 0.8312279913 | K187: 0.4742805327 | L187: 0.4129169779 | M187: 0.3357092579 | N187: 0.2971845602 | O187: =O165/(O178+O165) -> 0.3254765581 | P187: =P165/(P178+P165) -> 0.4696944056 | Q187: 183 | R187: 173
Q188: 184 | R188: 174
A189: Peak Hour Service | D189: =IF(OR(D6=11,D6=12,D6=1,D6=2),'Other Inputs'!D$20*16*'Other Inputs'!$F$21,0)+IF(OR(D6=11,D6=12,D6=1,D6=2),'Other Inputs'!$D$23*16*'Other Inputs'!$F$24,0) -> 0 | E189: =IF(OR(E6=11,E6=12,E6=1,E6=2),'Other Inputs'!E$20*16*'Other Inputs'!$F$21,0)+IF(OR(E6=11,E6=12,E6=1,E6=2),'Other Inputs'!$D$23*16*'Other Inputs'!$F$24,0) -> 0 | F189: =IF(OR(F6=11,F6=12,F6=1,F6=2),'Other Inputs'!F$20*31*'Other Inputs'!$F$21,0)+IF(OR(F6=11,F6=12,F6=1,F6=2),'Other Inputs'!$D$23*31*'Other Inputs'!$F$24,0) -> 0 | G189: =IF(OR(G6=11,G6=12,G6=1,G6=2),'Other Inputs'!$D$20*16*'Other Inputs'!$F$21,0)+IF(OR(G6=11,G6=12,G6=1,G6=2),'Other Inputs'!$D$23*16*'Other Inputs'!$F$24,0) -> 0 | H189: =IF(OR(H6=11,H6=12,H6=1,H6=2),'Other Inputs'!$D$20*31*'Other Inputs'!$F$21,0)+IF(OR(H6=11,H6=12,H6=1,H6=2),'Other Inputs'!$D$23*31*'Other Inputs'!$F$24,0) -> 0 | I189: =IF(OR(I6=11,I6=12,I6=1,I6=2),'Other Inputs'!$D$20*31*'Other Inputs'!$F$21,0)+IF(OR(I6=11,I6=12,I6=1,I6=2),'Other Inputs'!$D$23*31*'Other Inputs'!$F$24,0) -> 0 | J189: =IF(OR(J6=11,J6=12,J6=1,J6=2),'Other Inputs'!$D$20*14*'Other Inputs'!$F$21,0)+IF(OR(J6=11,J6=12,J6=1,J6=2),'Other Inputs'!$D$23*14*'Other Inputs'!$F$24,0) -> 0 | K189: =IF(OR(K6=11,K6=12,K6=1,K6=2),'Other Inputs'!J$20*16*'Other Inputs'!$F$21,0)+IF(OR(K6=11,K6=12,K6=1,K6=2),'Other Inputs'!$D$23*16*'Other Inputs'!$F$24,0) -> 0 | L189: =IF(OR(L6=11,L6=12,L6=1,L6=2),'Other Inputs'!K$20*16*'Other Inputs'!$F$21,0)+IF(OR(L6=11,L6=12,L6=1,L6=2),'Other Inputs'!$D$23*16*'Other Inputs'!$F$24,0) -> 286621.913 | M189: =IF(OR(M6=11,M6=12,M6=1,M6=2),'Other Inputs'!L$20*16*'Other Inputs'!$F$21,0)+IF(OR(M6=11,M6=12,M6=1,M6=2),'Other Inputs'!$D$23*16*'Other Inputs'!$F$24,0) -> 286621.913 | N189: =IF(OR(N6=11,N6=12,N6=1,N6=2),'Other Inputs'!M$20*16*'Other Inputs'!$F$21,0)+IF(OR(N6=11,N6=12,N6=1,N6=2),'Other Inputs'!$D$23*16*'Other Inputs'!$F$24,0) -> 286621.913 | O189: =IF(OR(O6=11,O6=12,O6=1,O6=2),'Other Inputs'!N$20*16*'Other Inputs'!$F$21,0)+IF(OR(O6=11,O6=12,O6=1,O6=2),'Other Inputs'!$D$23*16*'Other Inputs'!$F$24,0) -> 286621.913 | P189: =SUM(D189:O189) -> 1146487.652 | Q189: 185 | R189: 175
Q190: 186 | R190: 176
A191: PURCHASES BREAKDOWN | Q191: 187 | R191: 177
A192: Spot Market Purchases | D192: ='Monthly Inputs'!G90 -> 5128754 | E192: ='Monthly Inputs'!H90 -> 2140371 | F192: ='Monthly Inputs'!I90 -> 2601552 | G192: ='Monthly Inputs'!J90 -> 416133 | H192: ='Monthly Inputs'!K90 -> 317254 | I192: ='Monthly Inputs'!L90 -> 174684 | J192: ='Monthly Inputs'!M90 -> 925886 | K192: ='Monthly Inputs'!N90 -> 4894842 | L192: ='Monthly Inputs'!O90 -> 6767009 | M192: ='Monthly Inputs'!P90 -> 2040308 | N192: ='Monthly Inputs'!Q90 -> 6700632 | O192: ='Monthly Inputs'!R90 -> 1675939 | P192: =SUM(D192:O192) -> 33783364 | Q192: 188 | R192: 178
A193: Spot Market Purchases Cost | D193: ='Monthly Inputs'!G91 -> 26823383.42 | E193: ='Monthly Inputs'!H91 -> 9053769.33 | F193: ='Monthly Inputs'!I91 -> 10302145.92 | G193: ='Monthly Inputs'!J91 -> 1776887.91 | H193: ='Monthly Inputs'!K91 -> 1440333.16 | I193: ='Monthly Inputs'!L91 -> 798305.88 | J193: ='Monthly Inputs'!M91 -> 3907238.92 | K193: ='Monthly Inputs'!N91 -> 20019903.78 | L193: ='Monthly Inputs'!O91 -> 33767374.91 | M193: ='Monthly Inputs'!P91 -> 12731521.92 | N193: ='Monthly Inputs'!Q91 -> 42415000.56 | O193: ='Monthly Inputs'!R91 -> 9251183.28 | P193: =SUM(D193:O193) -> 172287049 | Q193: 189 | R193: 179
Q194: 190 | R194: 180
A195: Contract Purchases (Dth) | D195: ='Monthly Inputs'!G99+'Monthly Inputs'!G103 -> 279000 | E195: ='Monthly Inputs'!H99+'Monthly Inputs'!H103 -> 0 | F195: ='Monthly Inputs'!I99+'Monthly Inputs'!I103 -> 0 | G195: ='Monthly Inputs'!J99+'Monthly Inputs'!J103 -> 0 | H195: ='Monthly Inputs'!K99+'Monthly Inputs'!K103 -> 0 | I195: ='Monthly Inputs'!L99+'Monthly Inputs'!L103 -> 0 | J195: ='Monthly Inputs'!M99+'Monthly Inputs'!M103 -> 0 | K195: ='Monthly Inputs'!N99+'Monthly Inputs'!N103 -> 0 | L195: ='Monthly Inputs'!O99+'Monthly Inputs'!O103 -> 0 | M195: ='Monthly Inputs'!P99+'Monthly Inputs'!P103 -> 4650000 | N195: ='Monthly Inputs'!Q99+'Monthly Inputs'!Q103 -> 4650000 | O195: ='Monthly Inputs'!R99+'Monthly Inputs'!R103 -> 4415000 | P195: =SUM(D195:O195) -> 13994000 | Q195: 191 | R195: 181
A196: Contract Purchases Cost Including Stabalization Costs | D196: ='Monthly Inputs'!G100+'Monthly Inputs'!G101+'Monthly Inputs'!G104 -> 1529338.5 | E196: ='Monthly Inputs'!H100+'Monthly Inputs'!H101+'Monthly Inputs'!H104 -> 0 | F196: ='Monthly Inputs'!I100+'Monthly Inputs'!I101+'Monthly Inputs'!I104 -> 0 | G196: ='Monthly Inputs'!J100+'Monthly Inputs'!J101+'Monthly Inputs'!J104 -> 0 | H196: ='Monthly Inputs'!K100+'Monthly Inputs'!K101+'Monthly Inputs'!K104 -> 0 | I196: ='Monthly Inputs'!L100+'Monthly Inputs'!L101+'Monthly Inputs'!L104 -> 0 | J196: ='Monthly Inputs'!M100+'Monthly Inputs'!M101+'Monthly Inputs'!M104 -> 0 | K196: ='Monthly Inputs'!N100+'Monthly Inputs'!N101+'Monthly Inputs'!N104 -> 0 | L196: ='Monthly Inputs'!O100+'Monthly Inputs'!O101+'Monthly Inputs'!O104 -> 0 | M196: ='Monthly Inputs'!P100+'Monthly Inputs'!P101+'Monthly Inputs'!P104 -> 33248895 | N196: ='Monthly Inputs'!Q100+'Monthly Inputs'!Q101+'Monthly Inputs'!Q104 -> 33986152.5 | O196: ='Monthly Inputs'!R100+'Monthly Inputs'!R101+'Monthly Inputs'!R104 -> 29824290 | P196: =SUM(D196:O196) -> 98588676 | Q196: 192 | R196: 182
Q197: 193 | R197: 183
A198: Peak Purchases (Dth) | D198: ='Monthly Inputs'!G96 -> 5000000 | E198: ='Monthly Inputs'!H96 -> 3000000 | F198: ='Monthly Inputs'!I96 -> 0 | G198: ='Monthly Inputs'!J96 -> 0 | H198: ='Monthly Inputs'!K96 -> 0 | I198: ='Monthly Inputs'!L96 -> 0 | J198: ='Monthly Inputs'!M96 -> 0 | K198: ='Monthly Inputs'!N96 -> 0 | L198: ='Monthly Inputs'!O96 -> 1000000 | M198: ='Monthly Inputs'!P96 -> 4000000 | N198: ='Monthly Inputs'!Q96 -> 1000000 | O198: ='Monthly Inputs'!R96 -> 4000000 | P198: =SUM(D198:O198) -> 18000000 | Q198: 194 | R198: 184
A199: Peak Purchases Cost | D199: ='Monthly Inputs'!G97 -> 55153388.9 | E199: ='Monthly Inputs'!H97 -> 26792033.34 | F199: ='Monthly Inputs'!I97 -> 0 | G199: ='Monthly Inputs'!J97 -> 0 | H199: ='Monthly Inputs'!K97 -> 0 | I199: ='Monthly Inputs'!L97 -> 0 | J199: ='Monthly Inputs'!M97 -> 0 | K199: ='Monthly Inputs'!N97 -> 0 | L199: ='Monthly Inputs'!O97 -> 10526677.78 | M199: ='Monthly Inputs'!P97 -> 52606711.12 | N199: ='Monthly Inputs'!Q97 -> 13340677.78 | O199: ='Monthly Inputs'!R97 -> 46558711.12 | P199: =SUM(D199:O199) -> 204978200 | Q199: 195 | R199: 185
Q200: 196 | R200: 186
A201: Future Purchases | D201: =+D178-D192-D195-D198 -> 0 | E201: 0 | F201: 4.656612873e-10 | G201: 5.820766091e-11 | H201: 0 | I201: -2.910383046e-11 | J201: -1.164153218e-10 | K201: 219668 | L201: 0 | M201: 0 | N201: 0 | O201: 0 | P201: =SUM(D201:O201) -> 219668 | Q201: 197 | R201: 187
... 65 more rows

Sheet CET & DSM (hidden)
A1: Rate Caclulation for the CET and DSM Amortizations
P3: Solver Cells
A4: CET Amortization % Calculation | P4: % Change | Q4: Difference
B5: Balance | C5: Date | D5: GS Dth | H5: Amortization per Dth | P5: =J20/D20 ->  | Q5: =J20-B11 ->  | S5: -> Difference should be at 0 (Use Goal Seek to Get Difference to Equal 0.
A6: DSM Balance | B6: ='Other Inputs'!#REF! ->  | C6: ='Other Inputs'!#REF! ->  | D6: =B20 ->  | H6: =ROUND(B6/D6,5) -> 
S8: Typical Bill Rates
A9: CET Amortization Calculation
B10: Balance | C10: Date | D10: DNG Rev | H10: New DNG | L10: % Change | S10: Current | T10: Proposed
A11: CET Balance | B11: ='Other Inputs'!#REF! ->  | C11: ='Other Inputs'!#REF! ->  | D11: =D20 ->  | H11: =D11+B11 ->  | L11: =P5 ->  | S11: Effective | V11: SNG & | W11: CET, DSM
S12: ='Other Inputs'!#REF! ->  | T12: CET Only | U12: DSM Only | V12: Commodity | W12: Commodity
S13: BSF | T13: BSF | U13: BSF | V13: BSF | W13: BSF
B14: Revenue Calculation | H14: CET Amortization | L14: Total DNG | P14: REVRUN Calculation | S14: ='Other Inputs'!$G$104 -> 6.75 | T14: ='Other Inputs'!$G$104 -> 6.75 | U14: ='Other Inputs'!$G$104 -> 6.75 | V14: ='Other Inputs'!$G$104 -> 6.75 | W14: ='Ut 1.6 Source'!$C$18 -> 6.75
A15: Utah GS | B15: Dth | C15: Base DNG | D15: DNG Revenue | H15: CET Rate | J15: Revenue | L15: DNG Rate | N15: Revenue | P15: CET Rate | Q15: CET Amort
A16: Block 1 Summer | B16: ='Other Inputs'!#REF! ->  | C16: ='Other Inputs'!E260 -> 2.65544 | D16: =B16*C16 ->  | H16: =ROUND((J16/B16),5) ->  | J16: =D16*$P$5 ->  | L16: =C16+H16 ->  | N16: =L16*B16 ->  | P16: =ROUND(H16,5) ->  | Q16: =B16*P16 ->  | S16: ='Other Inputs'!$G$100 -> 10.4277 | T16: =N24 ->  | U16: =N31 ->  | V16: =N38 ->  | W16: =N45 -> 
A17: Block 2 Summer | B17: ='Other Inputs'!#REF! ->  | C17: ='Other Inputs'!E261 -> 1.38725 | D17: =B17*C17 ->  | H17: =ROUND((J17/B17),5) ->  | J17: =D17*$P$5 ->  | L17: =C17+H17 ->  | N17: =L17*B17 ->  | P17: =ROUND(H17,5) ->  | Q17: =B17*P17 -> 
A18: Block 1 Winter | B18: ='Other Inputs'!#REF! ->  | C18: ='Other Inputs'!E262 -> 3.25401 | D18: =B18*C18 ->  | H18: =ROUND((J18/B18),5) ->  | J18: =D18*$P$5 ->  | L18: =C18+H18 ->  | N18: =L18*B18 ->  | P18: =ROUND(H18,5) ->  | Q18: =B18*P18 ->  | S18: ='Other Inputs'!$G$102 -> 11.58768 | T18: =N26 ->  | U18: =N33 ->  | V18: =N40 ->  | W18: =N47 -> 
A19: Block 2 Winter | B19: ='Other Inputs'!#REF! ->  | C19: ='Other Inputs'!E263 -> 1.98582 | D19: =B19*C19 ->  | H19: =ROUND((J19/B19),5) ->  | J19: =D19*$P$5 ->  | L19: =C19+H19 ->  | N19: =L19*B19 ->  | P19: =ROUND(H19,5) ->  | Q19: =B19*P19 -> 
A20: GS-1 Block Rev | B20: =SUM(B16:B19) ->  | D20: =SUM(D16:D19) ->  | J20: =B11 ->  | N20: =SUM(N16:N19) ->  | Q20: =SUM(Q16:Q19) -> 
A22: Total Rate Calculation With CET Amortization Only | N22: ='Control Panel'!F8 -> 2023-03-01 | P22: ='Other Inputs'!#REF! -> 
A23: Utah GS | B23: Base DNG | C23: CET | D23: DSM | E23: Energy Assist | F23: Infrastructure | H23: Total DNG | I23: Base SNG | J23: SNG Amort | L23: Base Gas Cost | M23: 191 Amort | N23: Total Rate | P23: Total Rate
A24: Block 1 Summer | B24: =$C$16 -> 2.65544 | C24: =$H$16 ->  | D24: 0.44104 | E24: 0.01519 | F24: 0.02908 | H24: =SUM(B24:F24) ->  | I24: 0.55715 | J24: 0.01244 | L24: 4.21339 | M24: 0.14067 | N24: =SUM(H24:M24) ->  | P24: ='Other Inputs'!$G$100 -> 10.4277 | Q24: =N24-P24 -> 
A25: Block 2 Summer | B25: =$C$17 -> 1.38725 | C25: =$H$17 ->  | D25: =$D$24 -> 0.44104 | E25: =$E$24 -> 0.01519 | F25: 0.0108 | H25: =SUM(B25:F25) ->  | I25: =I24 -> 0.55715 | J25: =J24 -> 0.01244 | L25: =L24 -> 4.21339 | M25: =$M$24 -> 0.14067 | N25: =SUM(H25:M25) ->  | P25: ='Other Inputs'!$G$101 -> 9.13747 | Q25: =N25-P25 -> 
A26: Block 1 Winter | B26: =$C$18 -> 3.25401 | C26: =$H$18 ->  | D26: =$D$24 -> 0.44104 | E26: =$E$24 -> 0.01519 | F26: 0.03453 | H26: =SUM(B26:F26) ->  | I26: 1.18665 | J26: 0.02651 | L26: =L24 -> 4.21339 | M26: =$M$24 -> 0.14067 | N26: =SUM(H26:M26) ->  | P26: ='Other Inputs'!$G$102 -> 11.58768 | Q26: =N26-P26 -> 
A27: Block 2 Winter | B27: =$C$19 -> 1.98582 | C27: =$H$19 ->  | D27: =$D$24 -> 0.44104 | E27: =$E$24 -> 0.01519 | F27: 0.01434 | H27: =SUM(B27:F27) ->  | I27: =I26 -> 1.18665 | J27: =J26 -> 0.02651 | L27: =L24 -> 4.21339 | M27: =$M$24 -> 0.14067 | N27: =SUM(H27:M27) ->  | P27: ='Other Inputs'!$G$103 -> 10.29745 | Q27: =N27-P27 -> 
A29: Total Rate Calculation With DSM Amortization Only | N29: =N22 -> 2023-03-01 | P29: ='Other Inputs'!#REF! -> 
A30: Utah GS | B30: Base DNG | C30: CET | D30: DSM | E30: Energy Assist | F30: Infrastructure | H30: Total DNG | I30: Base SNG | J30: SNG Amort | L30: Commodity | M30: 191 Amort | N30: Total Rate | P30: Total Rate
A31: Block 1 Summer | B31: =$C$16 -> 2.65544 | C31: -0.0599 | D31: =$H$6 ->  | E31: =$E$24 -> 0.01519 | F31: =F24 -> 0.02908 | H31: =SUM(B31:F31) ->  | I31: =$I$24 -> 0.55715 | J31: =J24 -> 0.01244 | L31: =$L$24 -> 4.21339 | M31: =$M$24 -> 0.14067 | N31: =SUM(H31:M31) ->  | P31: ='Other Inputs'!$G$100 -> 10.4277 | Q31: =N31-P31 -> 
A32: Block 2 Summer | B32: =$C$17 -> 1.38725 | C32: -0.02224 | D32: =$H$6 ->  | E32: =$E$24 -> 0.01519 | F32: =F25 -> 0.0108 | H32: =SUM(B32:F32) ->  | I32: =$I$24 -> 0.55715 | J32: =J25 -> 0.01244 | L32: =$L$24 -> 4.21339 | M32: =$M$24 -> 0.14067 | N32: =SUM(H32:M32) ->  | P32: ='Other Inputs'!$G$101 -> 9.13747 | Q32: =N32-P32 -> 
A33: Block 1 Winter | B33: =$C$18 -> 3.25401 | C33: -0.07112 | D33: =$H$6 ->  | E33: =$E$24 -> 0.01519 | F33: =F26 -> 0.03453 | H33: =SUM(B33:F33) ->  | I33: =$I$26 -> 1.18665 | J33: =J26 -> 0.02651 | L33: =$L$24 -> 4.21339 | M33: =$M$24 -> 0.14067 | N33: =SUM(H33:M33) ->  | P33: ='Other Inputs'!$G$102 -> 11.58768 | Q33: =N33-P33 -> 
A34: Block 2 Winter | B34: =$C$19 -> 1.98582 | C34: -0.02953 | D34: =$H$6 ->  | E34: =$E$24 -> 0.01519 | F34: =F27 -> 0.01434 | H34: =SUM(B34:F34) ->  | I34: =$I$26 -> 1.18665 | J34: =J27 -> 0.02651 | L34: =$L$24 -> 4.21339 | M34: =$M$24 -> 0.14067 | N34: =SUM(H34:M34) ->  | P34: ='Other Inputs'!$G$103 -> 10.29745 | Q34: =N34-P34 -> 
A36: Total Rate Calculation With SNG and Commodity Changes Only | N36: =N22 -> 2023-03-01 | P36: ='Other Inputs'!#REF! -> 
A37: Utah GS | B37: Base DNG | C37: CET | D37: DSM | E37: Energy Assist | F37: Infrastructure | H37: Total DNG | I37: Base SNG | J37: SNG | L37: Commodity | M37: 191 Amort | N37: Total Rate | P37: Total Rate
A38: Block 1 Summer | B38: =$C$16 -> 2.65544 | C38: =C31 -> -0.0599 | D38: =D24 -> 0.44104 | E38: =$E$24 -> 0.01519 | F38: =F24 -> 0.02908 | H38: =SUM(B38:F38) -> 3.08085 | I38: =#REF! ->  | J38: =#REF! ->  | L38: ='Ut 1.5 p1'!$F$30 -> 5.99225 | M38: ='Ut 1.5 p1'!$F$31 -> 1.94243 | N38: =SUM(H38:M38) ->  | P38: ='Other Inputs'!$G$100 -> 10.4277 | Q38: =N38-P38 -> 
A39: Block 2 Summer | B39: =$C$17 -> 1.38725 | C39: =C32 -> -0.02224 | D39: =D25 -> 0.44104 | E39: =$E$24 -> 0.01519 | F39: =F25 -> 0.0108 | H39: =SUM(B39:F39) -> 1.83204 | I39: =#REF! ->  | J39: =#REF! ->  | L39: ='Ut 1.5 p1'!$F$30 -> 5.99225 | M39: ='Ut 1.5 p1'!$F$31 -> 1.94243 | N39: =SUM(H39:M39) ->  | P39: ='Other Inputs'!$G$101 -> 9.13747 | Q39: =N39-P39 -> 
A40: Block 1 Winter | B40: =$C$18 -> 3.25401 | C40: =C33 -> -0.07112 | D40: =D26 -> 0.44104 | E40: =$E$24 -> 0.01519 | F40: =F26 -> 0.03453 | H40: =SUM(B40:F40) -> 3.67365 | I40: =#REF! ->  | J40: =#REF! ->  | L40: ='Ut 1.5 p1'!$F$30 -> 5.99225 | M40: ='Ut 1.5 p1'!$F$31 -> 1.94243 | N40: =SUM(H40:M40) ->  | P40: ='Other Inputs'!$G$102 -> 11.58768 | Q40: =N40-P40 -> 
A41: Block 2 Winter | B41: =$C$19 -> 1.98582 | C41: =C34 -> -0.02953 | D41: =D27 -> 0.44104 | E41: =$E$24 -> 0.01519 | F41: =F27 -> 0.01434 | H41: =SUM(B41:F41) -> 2.42686 | I41: =#REF! ->  | J41: =#REF! ->  | L41: ='Ut 1.5 p1'!$F$30 -> 5.99225 | M41: ='Ut 1.5 p1'!$F$31 -> 1.94243 | N41: =SUM(H41:M41) ->  | P41: ='Other Inputs'!$G$103 -> 10.29745 | Q41: =N41-P41 -> 
A43: Total Rate Calculation | N43: =N29 -> 2023-03-01 | P43: ='Other Inputs'!#REF! -> 
A44: Utah GS | B44: Base DNG | C44: CET | D44: DSM | E44: Energy Assist | F44: Infrastructure | H44: Total DNG | I44: Base SNG | J44: SNG | L44: Commodity | N44: Total Rate | P44: Total Rate
A45: Block 1 Summer | B45: =$C$16 -> 2.65544 | C45: =$H$16 ->  | D45: =$H$6 ->  | E45: =$E$24 -> 0.01519 | F45: =F38 -> 0.02908 | H45: =SUM(B45:F45) ->  | I45: =I38 ->  | J45: =#REF! ->  | L45: ='Ut 1.5 p1'!$F$32 -> 7.93468 | N45: =SUM(H45:L45) ->  | P45: ='Other Inputs'!$G$100 -> 10.4277 | Q45: =N45-P45 -> 
A46: Block 2 Summer | B46: =$C$17 -> 1.38725 | C46: =$H$17 ->  | D46: =$H$6 ->  | E46: =$E$24 -> 0.01519 | F46: =F39 -> 0.0108 | H46: =SUM(B46:F46) ->  | I46: =I39 ->  | J46: =#REF! ->  | L46: =$L$45 -> 7.93468 | N46: =SUM(H46:L46) ->  | P46: ='Other Inputs'!$G$101 -> 9.13747 | Q46: =N46-P46 -> 
A47: Block 1 Winter | B47: =$C$18 -> 3.25401 | C47: =$H$18 ->  | D47: =$H$6 ->  | E47: =$E$24 -> 0.01519 | F47: =F40 -> 0.03453 | H47: =SUM(B47:F47) ->  | I47: =I40 ->  | J47: =#REF! ->  | L47: =$L$45 -> 7.93468 | N47: =SUM(H47:L47) ->  | P47: ='Other Inputs'!$G$102 -> 11.58768 | Q47: =N47-P47 -> 
A48: Block 2 Winter | B48: =$C$19 -> 1.98582 | C48: =$H$19 ->  | D48: =$H$6 ->  | E48: =$E$24 -> 0.01519 | F48: =F41 -> 0.01434 | H48: =SUM(B48:F48) ->  | I48: =I41 ->  | J48: =#REF! ->  | L48: =$L$45 -> 7.93468 | N48: =SUM(H48:L48) ->  | P48: ='Other Inputs'!$G$103 -> 10.29745 | Q48: =N48-P48 -> 
A50: Typical Customer Difference - CET Amortization Only
B51: Typical
A52: GS | B52: Dth | C52: =S12 ->  | D52: =N43 -> 2023-03-01 | H52: Change | J52: % Change
A53: January | B53: 14.9 | C53: =ROUND($S$14+(B53*$S$18),2) -> 179.41 | D53: =ROUND($T$14+(B53*$T$18),2) ->  | H53: =D53-C53 -> 
A54: February | B54: 12.5 | C54: =ROUND($S$14+(B54*$S$18),2) -> 151.6 | D54: =ROUND($T$14+(B54*$T$18),2) -> 
A55: March | B55: 10.1 | C55: =ROUND($S$14+(B55*$S$18),2) -> 123.79 | D55: =ROUND($T$14+(B55*$T$18),2) -> 
A56: April | B56: 8.3 | C56: =ROUND($S$14+(B56*$S$16),2) -> 93.3 | D56: =ROUND($T$14+(B56*$T$16),2) -> 
A57: May | B57: 4.4 | C57: 52.63 | D57: =ROUND($T$14+(B57*$T$16),2) -> 
A58: June | B58: 3.1 | C58: 39.08
A59: July | B59: 2 | C59: 27.61
A60: August | B60: 1.8 | C60: 25.52
A61: September | B61: 2 | C61: 27.61
A62: October | B62: 3.1 | C62: 39.08
A63: November | B63: 6.3 | C63: =ROUND($S$14+(B63*$S$18),2) -> 79.75 | D63: =ROUND($T$14+(B63*$T$18),2) -> 
A64: December | B64: 11.5 | C64: =ROUND($S$14+(B64*$S$18),2) -> 140.01 | D64: =ROUND($T$14+(B64*$T$18),2) -> 
B65: =SUM(B53:B64) -> 80 | C65: =SUM(C53:C64) -> 979.39 | D65: =SUM(D53:D64) ->  | H65: =SUM(H53:H64) ->  | J65: =H65/C65 -> 
A68: Typical Customer Difference - DSM Amortization Only
B69: Typical
A70: GS | B70: Dth | C70: =C52 ->  | D70: =D52 -> 2023-03-01 | H70: Change | J70: % Change
A71: January | B71: 14.9 | C71: =ROUND($S$14+(B71*$S$18),2) -> 179.41 | D71: =ROUND($U$14+(B71*$U$18),2) ->  | H71: =D71-C71 -> 
A72: February | B72: 12.5 | C72: =ROUND($S$14+(B72*$S$18),2) -> 151.6 | D72: =ROUND($U$14+(B72*$U$18),2) -> 
A73: March | B73: 10.1 | C73: =ROUND($S$14+(B73*$S$18),2) -> 123.79 | D73: =ROUND($U$14+(B73*$U$18),2) -> 
A74: April | B74: 8.3 | C74: =ROUND($S$14+(B74*$S$16),2) -> 93.3 | D74: =ROUND($U$14+(B74*$U$16),2) -> 
A75: May | B75: 4.4 | C75: 52.63
A76: June | B76: 3.1 | C76: 39.08
A77: July | B77: 2 | C77: 27.61
A78: August | B78: 1.8 | C78: 25.52
A79: September | B79: 2 | C79: 27.61
A80: October | B80: 3.1 | C80: 39.08
A81: November | B81: 6.3 | C81: =ROUND($S$14+(B81*$S$18),2) -> 79.75 | D81: =ROUND($U$14+(B81*$U$18),2) -> 
A82: December | B82: 11.5 | C82: =ROUND($S$14+(B82*$S$18),2) -> 140.01 | D82: =ROUND($U$14+(B82*$U$18),2) -> 
B83: =SUM(B71:B82) -> 80 | C83: =SUM(C71:C82) -> 979.39 | D83: =SUM(D71:D82) ->  | H83: =SUM(H71:H82) ->  | J83: =H83/C83 -> 
A86: Typical Customer Difference - SNG and Commodity Changes Only
B87: Typical
A88: GS-1 | B88: Dth | C88: =C70 ->  | D88: =D70 -> 2023-03-01 | H88: Change | J88: % Change
A89: January | B89: 14.9 | C89: =ROUND($S$14+(B89*$S$18),2) -> 179.41 | D89: =ROUND($V$14+(B89*$V$18),2) ->  | H89: =D89-C89 -> 
A90: February | B90: 12.5 | C90: =ROUND($S$14+(B90*$S$18),2) -> 151.6 | D90: =ROUND($V$14+(B90*$V$18),2) -> 
A91: March | B91: 10.1 | C91: =ROUND($S$14+(B91*$S$18),2) -> 123.79 | D91: =ROUND($V$14+(B91*$V$18),2) -> 
A92: April | B92: 8.3 | C92: =ROUND($S$14+(B92*$S$16),2) -> 93.3 | D92: =ROUND($V$14+(B92*$V$16),2) -> 
A93: May | B93: 4.4 | C93: 52.63
A94: June | B94: 3.1 | C94: 39.08
A95: July | B95: 2 | C95: 27.61
A96: August | B96: 1.8 | C96: 25.52
A97: September | B97: 2 | C97: 27.61
A98: October | B98: 3.1 | C98: 39.08
A99: November | B99: 6.3 | C99: =ROUND($S$14+(B99*$S$18),2) -> 79.75 | D99: =ROUND($V$14+(B99*$V$18),2) -> 
A100: December | B100: 11.5 | C100: =ROUND($S$14+(B100*$S$18),2) -> 140.01 | D100: =ROUND($V$14+(B100*$V$18),2) -> 
B101: =SUM(B89:B100) -> 80 | C101: =SUM(C89:C100) -> 979.39 | D101: =SUM(D89:D100) ->  | H101: =SUM(H89:H100) ->  | J101: =H101/C101 -> 
A104: Typical Customer Difference - CET & DSM Amort, SNG and Commodity Changes
B105: Typical
A106: GS-1 | B106: Dth | C106: =C52 ->  | D106: =D52 -> 2023-03-01 | H106: Change | J106: % Change
A107: January | B107: 14.9 | C107: =ROUND($S$14+(B107*$S$18),2) -> 179.41 | D107: =ROUND($W$14+(B107*$W$18),2) ->  | H107: =D107-C107 -> 
A108: February | B108: 12.5 | C108: =ROUND($S$14+(B108*$S$18),2) -> 151.6 | D108: =ROUND($W$14+(B108*$W$18),2) -> 
A109: March | B109: 10.1 | C109: =ROUND($S$14+(B109*$S$18),2) -> 123.79 | D109: =ROUND($W$14+(B109*$W$18),2) -> 
A110: April | B110: 8.3 | C110: =ROUND($S$14+(B110*$S$16),2) -> 93.3 | D110: =ROUND($W$14+(B110*$W$16),2) -> 
A111: May | B111: 4.4 | C111: 52.63
A112: June | B112: 3.1 | C112: 39.08
A113: July | B113: 2 | C113: 27.61
A114: August | B114: 1.8 | C114: 25.52
A115: September | B115: 2 | C115: 27.61
A116: October | B116: 3.1 | C116: 39.08
A117: November | B117: 6.3 | C117: =ROUND($S$14+(B117*$S$18),2) -> 79.75 | D117: =ROUND($W$14+(B117*$W$18),2) -> 
A118: December | B118: 11.5 | C118: =ROUND($S$14+(B118*$S$18),2) -> 140.01 | D118: =ROUND($W$14+(B118*$W$18),2) -> 
B119: =SUM(B107:B118) -> 80 | C119: =SUM(C107:C118) -> 979.39 | D119: =SUM(D107:D118) ->  | H119: =SUM(H107:H118) ->  | J119: =H119/C119 -> 

Sheet UT Tariff Sheets PT (hidden)
B2: 2.02 GS Rate Schedule | J2: 2.03 FS Rate Schedule | AB2: 4.03 ES Rate Schedule | AI2: 2.05 NGV Rate Schedule
C3: Rates Per Dth Used Each Month | M3: Rates Per Dth Used Each Month | T3: 4.02 IS Rate Schedule | AB3: ES Volumetric Rates | AI3: NGV Volumetric Rate
C4: Summer Rates: Apr. 1 - Oct. 31 | E4: Winter Rates: Nov. 1 - Mar. 31 | M4: Dth = decatherm = 10 therms = 1,000,000 BTU | T4: IS Volumetric Rates
C5: First 45 Dth | D5: All Over 45 Dth | E5: First 45 Dth | F5: All Over 45 Dth | K5: Summer Rates: Apr. 1 - Oct. 31 | N5: Winter Rates: Nov. 1 - Mar. 31 | U5: Rates Per Dth Used Each Month | AE5: Rates Per Dth Used Each Month | AM5: Rates Per Dth Used Each Month
B6: Base DNG | C6: ='CET & DSM'!B38 -> 2.65544 | D6: ='CET & DSM'!B39 -> 1.38725 | E6: ='CET & DSM'!B40 -> 3.25401 | F6: ='CET & DSM'!B41 -> 1.98582 | K6: First | L6: Next | M6: All Over | N6: First | O6: Next | P6: All Over | U6: Dth = decatherm = 10 therms = 1,000,000 BTU | AE6: Dth = decatherm = 10 therms = 1,000,000 BTU | AM6: Dth = decatherm = 10 therms = 1,000,000 BTU
B7: CET Amortization | C7: ='CET & DSM'!C38 -> -0.0599 | D7: ='CET & DSM'!C39 -> -0.02224 | E7: ='CET & DSM'!C40 -> -0.07112 | F7: ='CET & DSM'!C41 -> -0.02953 | K7: 200 | L7: 1800 | M7: 2000 | N7: 200 | O7: 1800 | P7: 2000 | U7: First | V7: Next | W7: All Over | AB7: Distribution Non-Gas Rate | AC7: ='Ut 1.6 Source'!#REF! ->  | AI7: Base DNG | AK7: ='Ut 1.6 Source'!C62 -> 10.35287
B8: DSM Amortization | C8: =ROUND('CET & DSM'!D38,5) -> 0.44104 | D8: =ROUND('CET & DSM'!D39,5) -> 0.44104 | E8: =ROUND('CET & DSM'!D40,5) -> 0.44104 | F8: =ROUND('CET & DSM'!D41,5) -> 0.44104 | J8: Base DNG | K8: ='Ut 1.6 Source'!C25 -> 1.57367 | L8: ='Ut 1.6 Source'!D25 -> 1.05207 | M8: ='Ut 1.6 Source'!E25 -> 0.503 | N8: ='Ut 1.6 Source'!F25 -> 2.05177 | O8: ='Ut 1.6 Source'!G25 -> 1.53017 | P8: ='Ut 1.6 Source'!H25 -> 0.9811 | U8: 2000 | V8: 18000 | W8: 20000 | AI8: Energy Assistance | AK8: ='Other Inputs'!#REF! -> 
B9: Energy Assistance | C9: ='Other Inputs'!#REF! ->  | D9: ='Other Inputs'!#REF! ->  | E9: ='Other Inputs'!#REF! ->  | F9: ='Other Inputs'!#REF! ->  | J9: Energy Assistance | K9: ='Other Inputs'!#REF! ->  | L9: ='Other Inputs'!#REF! ->  | M9: ='Other Inputs'!#REF! ->  | N9: ='Other Inputs'!#REF! ->  | O9: ='Other Inputs'!#REF! ->  | P9: ='Other Inputs'!#REF! ->  | T9: Base DNG | U9: ='Ut 1.6 Source'!C74 -> 0.84853 | V9: ='Ut 1.6 Source'!D74 -> 0.10056 | W9: ='Ut 1.6 Source'!E74 -> 0.04583 | AB9: Base SNG | AC9: =ROUND(#REF!,5) ->  | AI9: Distribution Non-Gas Rate | AK9: =SUM(AK7:AM8) -> 
B10: Distribution Non-Gas Rate | C10: =SUM(C6:C9) ->  | D10: =SUM(D6:D9) ->  | E10: =SUM(E6:E9) ->  | F10: =SUM(F6:F9) ->  | J10: Distribution Non-Gas Rate | K10: =SUM(K8:K9) ->  | T10: Energy Assistance | U10: ='Other Inputs'!#REF! ->  | V10: ='Other Inputs'!#REF! ->  | W10: ='Other Inputs'!#REF! ->  | AB10: SNG Amortization | AC10: =ROUND(#REF!,5) -> 
T11: Distribution Non-Gas Rate | U11: =SUM(U9:U10) ->  | V11: =SUM(V9:V10) ->  | W11: =SUM(W9:W10) ->  | AB11: Supplier Non-Gas Rate | AC11: =SUM(AC9:AF10) ->  | AI11: Base SNG | AK11: =ROUND(#REF!,5) -> 
B12: Base SNG | C12: ='CET & DSM'!I38 ->  | D12: ='CET & DSM'!I39 ->  | E12: ='CET & DSM'!I40 ->  | F12: ='CET & DSM'!I41 ->  | J12: Base SNG | K12: =ROUND(#REF!,5) ->  | L12: =ROUND(#REF!,5) ->  | M12: =ROUND(#REF!,5) ->  | N12: =ROUND(#REF!,5) ->  | O12: =ROUND(#REF!,5) ->  | P12: =ROUND(#REF!,5) ->  | T12: Supplier Non-Gas Rate | U12: =ROUND(#REF!/(1-'Other Inputs'!$E$287),5) ->  | V12: =ROUND(#REF!/(1-'Other Inputs'!$E$287),5) ->  | W12: =ROUND(#REF!/(1-'Other Inputs'!$E$287),5) ->  | AI12: SNG Amortization | AK12: =ROUND(#REF!,5) -> 
B13: SNG Amortization | C13: ='CET & DSM'!J38 ->  | D13: ='CET & DSM'!J39 ->  | E13: ='CET & DSM'!J40 ->  | F13: ='CET & DSM'!J41 ->  | J13: SNG Amortization | K13: =ROUND(#REF!,5) ->  | L13: =ROUND(#REF!,5) ->  | M13: =ROUND(#REF!,5) ->  | N13: =ROUND(#REF!,5) ->  | O13: =ROUND(#REF!,5) ->  | P13: =ROUND(#REF!,5) ->  | AB13: Commodity Rate | AC13: Highest Gas Cost | AI13: Supplier Non-Gas Rate | AK13: =SUM(AK11:AM12) -> 
B14: Supplier Non-Gas Rate | C14: =SUM(C12:C13) ->  | D14: =SUM(D12:D13) ->  | E14: =SUM(E12:E13) ->  | F14: =SUM(F12:F13) ->  | J14: Supplier Non-Gas Rate | K14: =SUM(K12:K13) ->  | AB14: Total Rate | AC14: $
AI15: Base Gas Cost | AK15: =ROUND('Ut 1.5 p1'!$F$30,5) -> 5.99225
B16: Base Gas Cost | C16: ='Ut 1.5 p1'!$F$30 -> 5.99225 | D16: ='Ut 1.5 p1'!$F$30 -> 5.99225 | E16: ='Ut 1.5 p1'!$F$30 -> 5.99225 | F16: ='Ut 1.5 p1'!$F$30 -> 5.99225 | J16: Base Gas Cost | K16: =ROUND('Ut 1.5 p1'!$F$30,5) -> 5.99225 | L16: =ROUND('Ut 1.5 p1'!$F$30,5) -> 5.99225 | M16: =ROUND('Ut 1.5 p1'!$F$30,5) -> 5.99225 | N16: =ROUND('Ut 1.5 p1'!$F$30,5) -> 5.99225 | O16: =ROUND('Ut 1.5 p1'!$F$30,5) -> 5.99225 | P16: =ROUND('Ut 1.5 p1'!$F$30,5) -> 5.99225 | AB16: Penalty for failure to interrupt or limit usage when requested by the Company. See See § 3.02 | AI16: Commodity Amortization | AK16: =ROUND('Ut 1.5 p1'!$F$31,5) -> 1.94243
B17: 191 Amortization | C17: ='Ut 1.5 p1'!$F$31 -> 1.94243 | D17: ='Ut 1.5 p1'!$F$31 -> 1.94243 | E17: ='Ut 1.5 p1'!$F$31 -> 1.94243 | F17: ='Ut 1.5 p1'!$F$31 -> 1.94243 | J17: 191 Amortization | K17: =ROUND('Ut 1.5 p1'!$F$31,5) -> 1.94243 | L17: =ROUND('Ut 1.5 p1'!$F$31,5) -> 1.94243 | M17: =ROUND('Ut 1.5 p1'!$F$31,5) -> 1.94243 | N17: =ROUND('Ut 1.5 p1'!$F$31,5) -> 1.94243 | O17: =ROUND('Ut 1.5 p1'!$F$31,5) -> 1.94243 | P17: =ROUND('Ut 1.5 p1'!$F$31,5) -> 1.94243 | AI17: Commodity Rate | AK17: =SUM(AK15:AM16) -> 7.93468
B18: Commodity Rate | C18: =SUM(C16:C17) -> 7.93468 | D18: =SUM(D16:D17) -> 7.93468 | E18: =SUM(E16:E17) -> 7.93468 | F18: =SUM(F16:F17) -> 7.93468 | J18: Commodity Rate | K18: =SUM(K16:K17) -> 7.93468 | L18: 7.93468 | M18: 7.93468 | N18: 7.93468 | O18: 7.93468 | P18: 7.93468 | T18: Total Rate | U18: $ | V18: $ | W18: $
AI19: Total Rate | AK19: =SUM(AK9,AK13,AK17) -> 
B20: Total Rate | C20: =SUM(C18,C14,C10) ->  | D20: =SUM(D18,D14,D10) ->  | E20: =SUM(E18,E14,E10) ->  | F20: =SUM(F18,F14,F10) ->  | J20: Total Rate | K20: =SUM(K18,K14,K10) ->  | T20: Minimum Monthly Distribution Non-Gas Charge
AI21: Penalty for failure to interrupt or limit usage when requested by the Company. See See § 3.02
E22: BSF Category 1 | F22: ='Ut 1.6 Source'!C18 -> 6.75 | J22: Minimum Monthly Distribution Non-Gas Charge | O22: Summer | P22: =ROUND(K8*175,0) -> 275
E23: BSF Category 2 | F23: ='Ut 1.6 Source'!C19 -> 18.25 | O23: Winter | P23: =ROUND(N8*175,0) -> 359
E24: BSF Category 3 | F24: ='Ut 1.6 Source'!C20 -> 63.5 | V24: BSF Category 1 | W24: 5
E25: BSF Category 4 | F25: ='Ut 1.6 Source'!C21 -> 420.25 | V25: BSF Category 2 | W25: 29
N26: BSF Category 1 | P26: 5 | V26: BSF Category 3 | W26: 67
N27: BSF Category 2 | P27: 21 | V27: BSF Category 4 | W27: 274
N28: BSF Category 3 | P28: 55
N29: BSF Category 4 | P29: 244
AI30: =B44 -> Issued by R. W. Jibson, President | AL30: Advice No | AM30: Section Revision No.
AB39: =B44 -> Issued by R. W. Jibson, President | AE39: Advice No | AF39: Section Revision No.
AB42: New Pass Through Values
B44: Issued by R. W. Jibson, President | D44: Advice No | E44: Section Revision No. | F44: Effective Date
T47: =B44 -> Issued by R. W. Jibson, President | W47: Advice No
B48: Pass Through Changes | J48: =B44 -> Issued by R. W. Jibson, President | M48: Advice No | N48: Section Revision No. | P48: Effective Date
T50: New Pass Through Values
J51: New Pass Through Values

Sheet UT Tariff Sheets (hidden)
B2: 2.02 GS Rate Schedule | I2: 2.02 GS Rate Schedule
C3: Rates Per Dth Used Each Month | J3: Rates Per Dth Used Each Month
C4: Summer Rates: Apr. 1 - Oct. 31 | E4: Winter Rates: Nov. 1 - Mar. 31 | J4: Summer Rates: Apr. 1 - Oct. 31 | L4: Winter Rates: Nov. 1 - Mar. 31
C5: First 45 Dth | D5: All Over 45 Dth | E5: First 45 Dth | F5: All Over 45 Dth | J5: First 45 Dth | K5: All Over 45 Dth | L5: First 45 Dth | M5: All Over 45 Dth
B6: Base DNG | C6: ='CET & DSM'!B24 -> 2.65544 | D6: ='CET & DSM'!B25 -> 1.38725 | E6: ='CET & DSM'!B26 -> 3.25401 | F6: ='CET & DSM'!B27 -> 1.98582 | I6: Base DNG | J6: ='CET & DSM'!B31 -> 2.65544 | K6: ='CET & DSM'!B32 -> 1.38725 | L6: ='CET & DSM'!B33 -> 3.25401 | M6: ='CET & DSM'!B34 -> 1.98582
B7: CET Amortization | C7: ='CET & DSM'!H16 ->  | D7: ='CET & DSM'!H17 ->  | E7: ='CET & DSM'!H18 ->  | F7: ='CET & DSM'!H19 ->  | I7: CET Amortization | J7: ='CET & DSM'!C31 -> -0.0599 | K7: ='CET & DSM'!C32 -> -0.02224 | L7: ='CET & DSM'!C33 -> -0.07112 | M7: ='CET & DSM'!C34 -> -0.02953
B8: DSM Amortization | C8: ='CET & DSM'!D24 -> 0.44104 | D8: ='CET & DSM'!D25 -> 0.44104 | E8: ='CET & DSM'!D26 -> 0.44104 | F8: ='CET & DSM'!D27 -> 0.44104 | I8: DSM Amortization | J8: =ROUND('CET & DSM'!D31,5) ->  | K8: =ROUND('CET & DSM'!D32,5) ->  | L8: =ROUND('CET & DSM'!D33,5) ->  | M8: =ROUND('CET & DSM'!D34,5) -> 
B9: Energy Assistance | C9: ='Other Inputs'!#REF! ->  | D9: ='Other Inputs'!#REF! ->  | E9: ='Other Inputs'!#REF! ->  | F9: ='Other Inputs'!#REF! ->  | I9: Energy Assistance | J9: ='Other Inputs'!#REF! ->  | K9: ='Other Inputs'!#REF! ->  | L9: ='Other Inputs'!#REF! ->  | M9: ='Other Inputs'!#REF! -> 
B10: Distribution Non-Gas Rate | C10: =SUM(C6:C9) ->  | D10: =SUM(D6:D9) ->  | E10: =SUM(E6:E9) ->  | F10: =SUM(F6:F9) ->  | I10: Distribution Non-Gas Rate | J10: =SUM(J6:J9) ->  | K10: =SUM(K6:K9) ->  | L10: =SUM(L6:L9) ->  | M10: =SUM(M6:M9) -> 
B12: Base SNG | C12: ='CET & DSM'!I24 -> 0.55715 | D12: ='CET & DSM'!I25 -> 0.55715 | E12: ='CET & DSM'!I26 -> 1.18665 | F12: ='CET & DSM'!I27 -> 1.18665 | I12: Base SNG | J12: ='CET & DSM'!I31 -> 0.55715 | K12: ='CET & DSM'!I32 -> 0.55715 | L12: ='CET & DSM'!I33 -> 1.18665 | M12: ='CET & DSM'!I34 -> 1.18665
B13: SNG Amortization | C13: ='CET & DSM'!J24 -> 0.01244 | D13: ='CET & DSM'!J25 -> 0.01244 | E13: ='CET & DSM'!J26 -> 0.02651 | F13: ='CET & DSM'!J27 -> 0.02651 | I13: SNG Amortization | J13: ='CET & DSM'!J31 -> 0.01244 | K13: ='CET & DSM'!J32 -> 0.01244 | L13: ='CET & DSM'!J33 -> 0.02651 | M13: ='CET & DSM'!J34 -> 0.02651
B14: Supplier Non-Gas Rate | C14: =SUM(C12:C13) -> 0.56959 | D14: =SUM(D12:D13) -> 0.56959 | E14: =SUM(E12:E13) -> 1.21316 | F14: =SUM(F12:F13) -> 1.21316 | I14: Supplier Non-Gas Rate | J14: =SUM(J12:J13) -> 0.56959 | K14: =SUM(K12:K13) -> 0.56959 | L14: =SUM(L12:L13) -> 1.21316 | M14: =SUM(M12:M13) -> 1.21316
B16: Base Gas Cost | C16: ='CET & DSM'!L24 -> 4.21339 | D16: ='CET & DSM'!L25 -> 4.21339 | E16: ='CET & DSM'!L26 -> 4.21339 | F16: ='CET & DSM'!L27 -> 4.21339 | I16: Base Gas Cost | J16: ='CET & DSM'!L31 -> 4.21339 | K16: ='CET & DSM'!L32 -> 4.21339 | L16: ='CET & DSM'!L33 -> 4.21339 | M16: ='CET & DSM'!L34 -> 4.21339
B17: 191 Amortization | C17: ='CET & DSM'!M24 -> 0.14067 | D17: ='CET & DSM'!M25 -> 0.14067 | E17: ='CET & DSM'!M26 -> 0.14067 | F17: ='CET & DSM'!M27 -> 0.14067 | I17: 191 Amortization | J17: ='CET & DSM'!M31 -> 0.14067 | K17: ='CET & DSM'!M32 -> 0.14067 | L17: ='CET & DSM'!M33 -> 0.14067 | M17: ='CET & DSM'!M34 -> 0.14067
B18: Commodity Rate | C18: =SUM(C16:C17) -> 4.35406 | D18: =SUM(D16:D17) -> 4.35406 | E18: =SUM(E16:E17) -> 4.35406 | F18: =SUM(F16:F17) -> 4.35406 | I18: Commodity Rate | J18: =SUM(J16:J17) -> 4.35406 | K18: =SUM(K16:K17) -> 4.35406 | L18: =SUM(L16:L17) -> 4.35406 | M18: =SUM(M16:M17) -> 4.35406
B20: Total Rate | C20: =SUM(C18,C14,C10) ->  | D20: =SUM(D18,D14,D10) ->  | E20: =SUM(E18,E14,E10) ->  | F20: =SUM(F18,F14,F10) ->  | I20: Total Rate | J20: =SUM(J18,J14,J10) ->  | K20: =SUM(K18,K14,K10) ->  | L20: =SUM(L18,L14,L10) ->  | M20: =SUM(M18,M14,M10) -> 
E23: BSF Category 1 | F23: ='Ut 1.6 Source'!C18 -> 6.75 | L23: BSF Category 1 | M23: ='Ut 1.6 Source'!C18 -> 6.75
E24: BSF Category 2 | F24: ='Ut 1.6 Source'!C19 -> 18.25 | L24: BSF Category 2 | M24: ='Ut 1.6 Source'!C19 -> 18.25
E25: BSF Category 3 | F25: ='Ut 1.6 Source'!C20 -> 63.5 | L25: BSF Category 3 | M25: ='Ut 1.6 Source'!C20 -> 63.5
E26: BSF Category 4 | F26: ='Ut 1.6 Source'!C21 -> 420.25 | L26: BSF Category 4 | M26: ='Ut 1.6 Source'!C21 -> 420.25
B45: Issued by R. W. Jibson, President | D45: Advice No | E45: Section Revision No. | F45: Effective Date | I45: Issued by R. W. Jibson, President | K45: Advice No | L45: Section Revision No. | M45: Effective Date
B49: New CET Only | I49: NEW DSM ONLY

Sheet Utah Summary-by class
A1: UTAH SUMMARY
B2: NOT AN EXHIBIT !!!
Q3: Sub Total
C4: COMMODITY | J4: SNG | Q4: TOTAL
C5: Current | D5: Proposed | E5: Current | F5: Proposed | G5: Revenue | H5: % | J5: Current | K5: Proposed | L5: Current | M5: Proposed | N5: Revenue | O5: % | Q5: Revenue | R5: %
A6: RATE | B6: Dth Sales | C6: Rates | D6: Rates | E6: Revenue | F6: Revenue | G6: Difference | H6: Change | J6: Rates | K6: Rates | L6: Revenue | M6: Revenue | N6: Difference | O6: Change | Q6: Difference | R6: Change
A8: GS (W) | B8: =Calculations!P52 -> 81479350 | C8: ='Ut 1.5 p1'!$H$32 -> 7.12165 | D8: =ROUND('Ut 1.5 p1'!$F$32,5) -> 7.93468 | E8: =ROUND(B8*C8,0) -> 580267413 | F8: =ROUND(B8*D8,0) -> 646512569 | G8: =(F8-E8) -> 66245156 | J8: ='Other Inputs'!G88 -> 0.9468 | K8: ='Ut 1.5 p6'!E36 -> 0.9264 | L8: =ROUND(B8*J8,0) -> 77144649 | M8: =B8*K8 -> 75482469.84 | N8: =(M8-L8) -> -1662179.16 | O8: =IF(N8=0,0,N8/L8) -> -0.02154626642 | Q8: =G8+N8 -> 64582976.84
A9: GS (S) | B9: =Calculations!P53 -> 31228294 | C9: ='Ut 1.5 p1'!$H$32 -> 7.12165 | D9: =D8 -> 7.93468 | E9: =ROUND(B9*C9,0) -> 222396980 | F9: =ROUND(B9*D9,0) -> 247786520 | G9: =(F9-E9) -> 25389540 | J9: ='Other Inputs'!G89 -> 0.39825 | K9: ='Ut 1.5 p6'!E32 -> 0.39172 | L9: =ROUND(B9*J9,0) -> 12436668 | M9: =B9*K9 -> 12232747.33 | N9: =(M9-L9) -> -203920.6743 | O9: =IF(N9=0,0,N9/L9) -> -0.01639672896 | Q9: =G9+N9 -> 25185619.33
A10: Total | B10: =SUM(B8:B9) -> 112707644 | E10: =SUM(E8:E9) -> 802664393 | F10: =SUM(F8:F9) -> 894299089 | G10: =SUM(G8:G9) -> 91634696 | H10: =IF(G10=0,0,G10/E10) -> 0.1141631506 | L10: =SUM(L8:L9) -> 89581317 | M10: =SUM(M8:M9) -> 87715217.17 | N10: =SUM(N8:N9) -> -1866099.834 | O10: =IF(N10=0,0,N10/L10) -> -0.02083135074 | Q10: =SUM(Q8:Q9) -> 89768596.17 | R10: =IF(Q10=0,0,Q10/(E10+L10)) -> 0.1006097257
A13: FS (W) | B13: =Calculations!P58 -> 1280686 | C13: ='Ut 1.5 p1'!$H$32 -> 7.12165 | D13: =D8 -> 7.93468 | E13: =ROUND(B13*C13,0) -> 9120597 | F13: =ROUND(B13*D13,0) -> 10161834 | G13: =(F13-E13) -> 1041237 | J13: ='Other Inputs'!G91 -> 0.93299 | K13: ='Ut 1.5 p6'!E44 -> 0.84193 | L13: =ROUND(B13*J13,0) -> 1194867 | M13: =B13*K13 -> 1078247.964 | N13: =(M13-L13) -> -116619.036 | O13: =IF(N13=0,0,N13/L13) -> -0.09760001408 | Q13: =G13+N13 -> 924617.964
A14: FS (S) | B14: =Calculations!P59 -> 1308506 | C14: ='Ut 1.5 p1'!$H$32 -> 7.12165 | D14: =D9 -> 7.93468 | E14: =ROUND(B14*C14,0) -> 9318722 | F14: =ROUND(B14*D14,0) -> 10382576 | G14: =(F14-E14) -> 1063854 | J14: ='Other Inputs'!G92 -> 0.77862 | K14: ='Ut 1.5 p6'!E40 -> 0.70939 | L14: =ROUND(B14*J14,0) -> 1018829 | M14: =B14*K14 -> 928241.0713 | N14: =(M14-L14) -> -90587.92866 | O14: =IF(N14=0,0,N14/L14) -> -0.08891377126 | Q14: =G14+N14 -> 973266.0713
A15: Total | B15: =SUM(B13:B14) -> 2589192 | E15: =SUM(E13:E14) -> 18439319 | F15: =SUM(F13:F14) -> 20544410 | G15: =SUM(G13:G14) -> 2105091 | H15: =IF(G15=0,0,G15/E15) -> 0.1141631641 | L15: =SUM(L13:L14) -> 2213696 | M15: =SUM(M13:M14) -> 2006489.035 | N15: =SUM(N13:N14) -> -207206.9647 | O15: =IF(N15=0,0,N15/L15) -> -0.09360226729 | Q15: =SUM(Q13:Q14) -> 1897884.035 | R15: =IF(Q15=0,0,Q15/(E15+L15)) -> 0.09189380027
A18: NGV | B18: =Calculations!P12 -> 289772 | C18: ='Ut 1.5 p6'!D25 -> 6.62448 | D18: ='Ut 1.5 p6'!E25 -> 7.34483 | E18: =ROUND(B18*C18,0) -> 1919589 | F18: =ROUND(B18*D18,0) -> 2128326 | G18: =(F18-E18) -> 208737 | H18: =IF(G18=0,0,G18/E18) -> 0.1087404648 | J18: ='Other Inputs'!G94 -> 0.70443 | K18: ='Ut 1.5 p6'!E60 -> 0.74477 | L18: =ROUND(B18*J18,0) -> 204124 | M18: =ROUND(B18*K18,0) -> 215813 | N18: =(M18-L18) -> 11689 | O18: =IF(N18=0,0,N18/L18) -> 0.05726421195 | Q18: =G18+N18 -> 220426 | R18: =IF(Q18=0,0,Q18/(E18+L18)) -> 0.1037927441
A21: IS | B21: =Calculations!P17 -> 271004 | C21: ='Ut 1.5 p1'!H39 -> 7.10544 | D21: ='Ut 1.5 p6'!E19 -> 7.92647 | E21: =ROUND(B21*C21,0) -> 1925603 | F21: =ROUND(B21*D21,0) -> 2148105 | G21: =(F21-E21) -> 222502 | H21: =IF(G21=0,0,G21/E21) -> 0.1155492591 | J21: ='Other Inputs'!G96 -> 0.17938 | K21: ='Ut 1.5 p6'!E46 -> 0.17938 | L21: =ROUND(B21*J21,0) -> 48613 | M21: =ROUND(B21*K21,0) -> 48613 | N21: =(M21-L21) -> 0 | O21: =IF(N21=0,0,N21/L21) -> 0 | Q21: =G21+N21 -> 222502 | R21: =IF(Q21=0,0,Q21/(E21+L21)) -> 0.1127039797
A23: TSS/TSM/TSL | B23: ='Ut 1.5 p3'!F18 -> 202522 | J23: ='Ut 1.5 p6'!D50 -> 2.15694 | K23: ='Ut 1.5 p6'!E50 -> 1.99551 | L23: =ROUND(B23*J23,0) -> 436828 | M23: =ROUND(B23*K23,0) -> 404135 | N23: =(M23-L23) -> -32693 | O23: =IF(N23=0,0,N23/L23) -> -0.07484181417 | Q23: =G23+N23 -> -32693 | R23: =IF(Q23=0,0,Q23/(E23+L23)) -> -0.07484181417
A25: TBF | B25: ='Ut 1.5 p3'!G18 -> 45000 | J25: ='Ut 1.5 p6'!D55 -> 1.43699 | K25: ='Ut 1.5 p6'!E55 -> 1.7829 | L25: =ROUND(B25*J25,0) -> 64665 | M25: =ROUND(B25*K25,0) -> 80231 | N25: =(M25-L25) -> 15566 | O25: =IF(N25=0,0,N25/L25) -> 0.2407175443 | Q25: =G25+N25 -> 15566 | R25: =IF(Q25=0,0,Q25/(E25+L25)) -> 0.2407175443
B26: - | E26: - | F26: - | G26: - | L26: ------------------- | M26: ------------------- | N26: ------------------- | Q26: -------------------
B27: =B10+B15+B18+B21 -> 115857612 | E27: =E10+E15+E18+E21 -> 824948904 | F27: =F10+F15+F18+F21 -> 919119930 | G27: =G10+G15+G18+G21 -> 94171026 | H27: =IF(G27=0,0,G27/E27) -> 0.1141537682 | L27: =L10+L15+L18+L21+L23+L25 -> 92549243 | M27: =M10+M15+M18+M21+M23+M25 -> 90470498.2 | N27: =N10+N15+N18+N21+N23+N25 -> -2078744.799 | O27: =IF(N27=0,0,N27/L27) -> -0.0224609595 | Q27: =Q10+Q15+Q18+Q21+Q23+Q25 -> 92092281.2 | R27: =IF(Q27=0,0,Q27/(E27+L27)) -> 0.1003732612
G28: =IF(G27>0,"Commodity Increase","Commodity Decrease") -> Commodity Increase | N28: =IF(N27>0,"Increase to SNG","Decrease to SNG") -> Decrease to SNG
B29: NOT AN EXHIBIT !!!
G30: =ROUND(G27,-3) -> 94171000 | N30: =ROUND(N27,-3) -> -2079000 | Q30: =ROUND(Q27,-3) -> 92092000
B31: =B27 -> 115857612 | G31: Rounded | N31: Rounded | Q31: Rounded
C34: =B10+B15 -> 115296836 | D34: GS FS | E34: =C34*'Ut 1.5 p1'!J31 -> 162582374.4 | F34: =C34*'Ut 1.5 p1'!J30 -> -68842587.81
C35: =B21 -> 271004 | D35: IS | E35: =C35*'Ut 1.5 p1'!J38 -> 382148.1605 | F35: =C35*'Ut 1.5 p1'!J37 -> -159645.7464
C36: =B18 -> 289772 | D36: NGV | E36: =C36*('Ut 1.5 p1'!J45+'Ut 1.5 p1'!J46) -> 379439.0477 | F36: =C36*'Ut 1.5 p1'!J44 -> -170701.7875
E37: =SUM(E34:E36) -> 163343961.6 | F37: =SUM(F34:F36) -> -69172935.34 | G37: =E37+F37 -> 94171026.25

Sheet UT Summary - by cost (hidden)

Sheet WY Summary - by cost (hidden)

Sheet Model Checks
B2: Model Checks
D6: Total of all Checks
D7: =ABS(SUM(D10:D1993)) -> 0.5724317282
B9: Forecasted Demand
C10: Utah | D10: =Calculations!P25-'RevRun Fcst'!T205 -> 0
C11: Wyoming | D11: =Calculations!P44-'RevRun Fcst'!T329 -> 0
C12: Total System | D12: =Calculations!P47-'RevRun Fcst'!T370 -> 0
B13: Forecasted Utah Demand Check by Month
C14: 1 | D14: =Calculations!D25-'RevRun Fcst'!H205 -> 0
C15: 2 | D15: =Calculations!E25-'RevRun Fcst'!I205 -> 0
C16: 3 | D16: =Calculations!F25-'RevRun Fcst'!J205 -> 0
C17: 4 | D17: =Calculations!G25-'RevRun Fcst'!K205 -> 0
C18: 5 | D18: =Calculations!H25-'RevRun Fcst'!L205 -> 0
C19: 6 | D19: =Calculations!I25-'RevRun Fcst'!M205 -> 0
C20: 7 | D20: =Calculations!J25-'RevRun Fcst'!N205 -> 0
C21: 8 | D21: =Calculations!K25-'RevRun Fcst'!O205 -> 0
C22: 9 | D22: =Calculations!L25-'RevRun Fcst'!P205 -> 0
C23: 10 | D23: =Calculations!M25-'RevRun Fcst'!Q205 -> 0
C24: 11 | D24: =Calculations!N25-'RevRun Fcst'!R205 -> 0
C25: 12 | D25: =Calculations!O25-'RevRun Fcst'!S205 -> 0
C26: Wyoming I-2 and I-4 Revenues | D26: =('RevRun Fcst'!T273+'RevRun Fcst'!T282)-Calculations!P65 -> 0
C27: System Sales Volumes | D27: =Calculations!H76-'RevRun Fcst'!T368 -> 0
C28: Utah Sales Volumes | D28: =Calculations!P20-'Utah Summary-by class'!B27 -> 0
B29: Company Production | D29: =Calculations!P121-'Monthly Inputs'!S7-'Monthly Inputs'!S13 -> 0
B30: Injections | D30: ='Monthly Inputs'!S29-SUM('Monthly Inputs'!S23:S28) -> 0
B31: Withdrawls | D31: ='Monthly Inputs'!S37-SUM('Monthly Inputs'!S32:S36) -> 0
B32: Injections & Withdrawls | D32: =SUM('Ut 1.4 p2'!D23:D28)-'Monthly Inputs'!S29-'Monthly Inputs'!S37 -> 0
B33: Injections | D33: =Calculations!P130-'Monthly Inputs'!S29 -> 0
B34: Withdrawls | D34: =Calculations!P139-'Monthly Inputs'!S37 -> 0
B35: Sales for Resale | D35: =Expenses!P13-Calculations!P86 -> 0
B36: Incidental Plant Prod Sales | D36: =Expenses!P14-Calculations!P87 -> 0
B37: Incidental Gas & Oil Sales | D37: =Expenses!P15-Calculations!P89 -> 0
B38: Gasoline and Oil Costs | D38: =Expenses!P18+Calculations!P90 -> 0
B39: Wexpro Revenue Sharing | D39: =Expenses!P17-Calculations!P94 -> 0
B40: Storage Gas | D40: ='Rate Base'!Q11-Calculations!P99 -> 0
B41: 101 Production | D41: ='Rate Base'!Q5-Calculations!P101 -> 0
B42: 108 Production | D42: ='Rate Base'!Q7-Calculations!P102 -> 0
B43: 111 Production | D43: ='Rate Base'!Q9-Calculations!P103 -> 0
B44: 255 Production | D44: ='Rate Base'!Q14-Calculations!P104 -> 0
B45: 282 Production | D45: ='Rate Base'!Q16-Calculations!P105 -> 0
B46: 282.1 Production | D46: ='Rate Base'!Q18-Calculations!P106 -> 0
B47: Production Rate Base | D47: =SUM(Calculations!P99:P106)-'Rate Base'!Q20 -> 0
B48: Purchased Gas Cost | D48: ='Ut 1.2 p4'!E25-Calculations!P207 -> -0.03910714388
B49: Working Gas Rate Base | D49: =Calculations!P99-'Ut 1.2 p5'!E43 -> 0
B50: Allocations | D50: ='Ut 1.1 p2'!F48-'Ut 1.1 p2'!G48-'Ut 1.1 p2'!H48+'Ut 1.1 p2'!H46 -> 0
B52: System Sales | D52: ='SDR#1'!C10-'RevRun Fcst'!T368 -> 0
B53: Lost & Unaccounted For | D53: ='SDR#1'!C15-(('SDR#1'!C10+'SDR#1'!C11)/(1-'Other Inputs'!E276)) -> -0.7212316841
B54: Supply / Demand | D54: ='SDR#1'!C37-'SDR#1'!C15 -> 1.444346294
B55: System Sales | D55: ='SDR#3'!H36-'SDR#1'!C10 -> 0
B56: SNG Revenue | D56: ='SDR#4'!G23+'SDR#4'!G33-'Utah Summary-by class'!L27 -> -1.021480009
B57: Utah Sales | D57: ='SDR#3'!D36-'SDR#4'!E23 -> 0
B58: Utah Sales | D58: ='SDR#2'!G75-'Ut 1.1 p2'!H48 -> -0.2349591851
B59: Seasonal Volumes | D59: =Calculations!P52+Calculations!P53-Calculations!P7-Calculations!P8 -> 0
B60: Seasonal Volumes | D60: =Calculations!P55+Calculations!P56-Calculations!P9 -> 0
B61: Seasonal Volumes | D61: =Calculations!P58+Calculations!P59-Calculations!P10 -> 0

Sheet Royalty Detail
D4: Test-Year Cost of Dominion Energy's Production
D5: March 2023 through February 2024
B7: WEXPRO I
B8: (A) | C8: (B) | D8: (C) | E8: (D) | F8: (E) | G8: (F) | H8: (G) | I8: (H)
F9: Base Year | G9: Market | H9: Royalty | I9: Test-Year
B10: Field Name | C10: Well Name | D10: Formation | E10: Price $ | F10: Dth | G10: Value $ | H10: Rate | I10: Royalty $
A11: 1 | B11: ACE UNIT (CO) | C11: ACE UNIT 10 FT UN | D11: MESAVERDE | E11: 4.750903269 | F11: 32979 | G11: 156680.0389 | H11: 0.1268519763 | I11: 19875.17259
A12: 2 | C12: ACE UNIT 11 FT UN | D12: FORT UNION | E12: 4.750903269 | F12: 7336 | G12: 34852.62638 | H12: 0.1268519763 | I12: 4421.124536
A13: 3 | C13: ACE UNIT 12 FT UN | D13: FORT UNION | E13: 4.750903269 | F13: 65107 | G13: 309317.0591 | H13: 0.1371675 | I13: 42428.24771
A14: 4 | C14: ACE UNIT 13 FT UN | D14: FORT UNION | E14: 4.750903269 | F14: 25401 | G14: 120677.6939 | H14: 0.1268519763 | I14: 15308.20397
A15: 5 | C15: ACE UNIT 2 FT UN | D15: FORT UNION | E15: 4.750903269 | F15: 4573 | G15: 21725.88065 | H15: 0.1268519763 | I15: 2755.970898
A16: 6 | B16: BIRCH CR (WY) | C16: BIRCH CREEK UNIT 1 BR | D16: BEAR RIVER | E16: 4.750903269 | F16: 6186 | G16: 29389.08762 | H16: 0.1329769324 | I16: 3908.070719
A17: 7 | C17: BIRCH CREEK UNIT 1 BR - D24 | D17: BEAR RIVER | E17: 4.750903269 | F17: 1846 | G17: 8770.167435 | H17: 0.1329769324 | I17: 1166.229962
A18: 8 | C18: BIRCH CREEK UNIT 1 FR | D18: FRONTIER | E18: 4.750903269 | F18: 6184 | G18: 29379.58582 | H18: 0.1329769324 | I18: 3906.807198
A19: 9 | C19: BIRCH CREEK UNIT 1 FR - D24 | D19: FRONTIER | E19: 4.750903269 | F19: 1846 | G19: 8770.167435 | H19: 0.1329769324 | I19: 1166.229962
A20: 10 | C20: BIRCH CREEK UNIT 100 FR | D20: FRONTIER | E20: 4.750903269 | F20: 5525 | G20: 26248.74056 | H20: 0.1329769324 | I20: 3490.477
A21: 11 | C21: BIRCH CREEK UNIT 101 BR | D21: BEAR RIVER | E21: 4.750903269 | F21: 623 | G21: 2959.812737 | H21: 0.1329769324 | I21: 393.5868183
A22: 12 | C22: BIRCH CREEK UNIT 101 FR | D22: FRONTIER | E22: 4.750903269 | F22: 11835 | G22: 56226.94019 | H22: 0.1329769324 | I22: 7476.886026
A23: 13 | C23: BIRCH CREEK UNIT 103 BR | D23: BEAR RIVER | E23: 4.750903269 | F23: 695 | G23: 3301.877772 | H23: 0.1329769324 | I23: 439.0735773
A24: 14 | C24: BIRCH CREEK UNIT 103 FR | D24: FRONTIER | E24: 4.750903269 | F24: 6254 | G24: 29712.14905 | H24: 0.1329769324 | I24: 3951.030436
A25: 15 | C25: BIRCH CREEK UNIT 104 BR | D25: BEAR RIVER | E25: 4.750903269 | F25: 3148 | G25: 14955.84349 | H25: 0.1329769324 | I25: 1988.782189
A26: 16 | C26: BIRCH CREEK UNIT 104 FR | D26: FRONTIER | E26: 4.750903269 | F26: 13427 | G26: 63790.3782 | H26: 0.1329769324 | I26: 8482.64881
A27: 17 | C27: BIRCH CREEK UNIT 105 BR | D27: BEAR RIVER | E27: 4.750903269 | F27: 7166 | G27: 34044.97283 | H27: 0.1329769324 | I27: 4527.196051
A28: 18 | C28: BIRCH CREEK UNIT 105 FR | D28: FRONTIER | E28: 4.750903269 | F28: 8080 | G28: 38387.29842 | H28: 0.1329769324 | I28: 5104.625187
A29: 19 | C29: BIRCH CREEK UNIT 106 BR | D29: BEAR RIVER | E29: 4.750903269 | F29: 5047 | G29: 23977.8088 | H29: 0.1329769324 | I29: 3188.49546
A30: 20 | C30: BIRCH CREEK UNIT 106 FR | D30: FRONTIER | E30: 4.750903269 | F30: 17901 | G30: 85045.91942 | H30: 0.1329769324 | I30: 11309.14548
A31: 21 | C31: BIRCH CREEK UNIT 107 BR | D31: BEAR RIVER | E31: 4.750903269 | F31: 2219 | G31: 10542.25435 | H31: 0.1329769324 | I31: 1401.876645
A32: 22 | C32: BIRCH CREEK UNIT 107 FR | D32: FRONTIER | E32: 4.750903269 | F32: 2132 | G32: 10128.92577 | H32: 0.1329769324 | I32: 1346.913478
A33: 23 | C33: BIRCH CREEK UNIT 108 BR | D33: BEAR RIVER | E33: 4.750903269 | F33: 1766 | G33: 8390.095173 | H33: 0.1329769324 | I33: 1115.689119
A34: 24 | C34: BIRCH CREEK UNIT 108 FR | D34: FRONTIER | E34: 4.750903269 | F34: 8623 | G34: 40967.03889 | H34: 0.1329769324 | I34: 5447.671162
A35: 25 | C35: BIRCH CREEK UNIT 109 BAX | D35: BAXTER | E35: 4.750903269 | F35: 2660 | G35: 12637.4027 | H35: 0.13375 | I35: 1690.252611
A36: 26 | C36: BIRCH CREEK UNIT 109 BR | D36: BEAR RIVER | E36: 4.750903269 | F36: 6391 | G36: 30363.02279 | H36: 0.1329769324 | I36: 4037.58163
A37: 27 | C37: BIRCH CREEK UNIT 109 FR | D37: FRONTIER | E37: 4.750903269 | F37: 5816 | G37: 27631.25341 | H37: 0.1329769324 | I37: 3674.319318
A38: 28 | C38: BIRCH CREEK UNIT 110 BR | D38: BEAR RIVER | E38: 4.750903269 | F38: 10580 | G38: 50264.55659 | H38: 0.1329769324 | I38: 6684.026544
A39: 29 | C39: BIRCH CREEK UNIT 110 FR | D39: FRONTIER | E39: 4.750903269 | F39: 9769 | G39: 46411.57404 | H39: 0.1329769324 | I39: 6171.668744
A40: 30 | C40: BIRCH CREEK UNIT 111 BR | D40: BEAR RIVER | E40: 4.750903269 | F40: 9649 | G40: 45841.46564 | H40: 0.1329769324 | I40: 6095.857479
A41: 31 | C41: BIRCH CREEK UNIT 111 FR | D41: FRONTIER | E41: 4.750903269 | F41: 3569 | G41: 16955.97377 | H41: 0.1329769324 | I41: 2254.753378
A42: 32 | C42: BIRCH CREEK UNIT 112 BR | D42: BEAR RIVER | E42: 4.750903269 | F42: 5827 | G42: 27683.51335 | H42: 0.1329769324 | I42: 3681.268684
A43: 33 | C43: BIRCH CREEK UNIT 112 FR | D43: FRONTIER | E43: 4.750903269 | F43: 15761 | G43: 74878.98643 | H43: 0.1329769324 | I43: 9957.177917
A44: 34 | C44: BIRCH CREEK UNIT 113 BR | D44: BEAR RIVER | E44: 4.750903269 | F44: 12773 | G44: 60683.28746 | H44: 0.1329769324 | I44: 8069.477415
A45: 35 | C45: BIRCH CREEK UNIT 113 FR | D45: FRONTIER | E45: 4.750903269 | F45: 3815 | G45: 18124.69597 | H45: 0.1329769324 | I45: 2410.166471
A46: 36 | C46: BIRCH CREEK UNIT 114 BR | D46: BEAR RIVER | E46: 4.750903269 | F46: 7443 | G46: 35360.97303 | H46: 0.1329769324 | I46: 4702.193721
A47: 37 | C47: BIRCH CREEK UNIT 114 FR | D47: FRONTIER | E47: 4.750903269 | F47: 1743 | G47: 8280.824398 | H47: 0.1329769324 | I47: 1101.158626
A48: 38 | C48: BIRCH CREEK UNIT 115 BR | D48: BEAR RIVER | E48: 4.750903269 | F48: 3575 | G48: 16984.47919 | H48: 0.1329769324 | I48: 2258.543941
A49: 39 | C49: BIRCH CREEK UNIT 115 FR | D49: FRONTIER | E49: 4.750903269 | F49: 11987 | G49: 56949.07749 | H49: 0.1329769324 | I49: 7572.913628
A50: 40 | C50: BIRCH CREEK UNIT 116 BR | D50: BEAR RIVER | E50: 4.750903269 | F50: 10811 | G50: 51362.01524 | H50: 0.1329769324 | I50: 6829.96323
A51: 41 | C51: BIRCH CREEK UNIT 116 FR | D51: FRONTIER | E51: 4.750903269 | F51: 3801 | G51: 18058.18333 | H51: 0.1329769324 | I51: 2401.321824
A52: 42 | C52: BIRCH CREEK UNIT 117 BAX | D52: BAXTER | E52: 4.750903269 | F52: 898 | G52: 4266.311136 | H52: 0.13375 | I52: 570.6191144
A53: 43 | C53: BIRCH CREEK UNIT 117 BR | D53: BEAR RIVER | E53: 4.750903269 | F53: 591 | G53: 2807.783832 | H53: 0.1329769324 | I53: 373.3704809
A54: 44 | C54: BIRCH CREEK UNIT 117 FR | D54: FRONTIER | E54: 4.750903269 | F54: 5980 | G54: 28410.40155 | H54: 0.1329769324 | I54: 3777.928047
A55: 45 | C55: BIRCH CREEK UNIT 118 BR | D55: BEAR RIVER | E55: 4.750903269 | F55: 1154 | G55: 5482.542373 | H55: 0.1329769324 | I55: 729.0516666
A56: 46 | C56: BIRCH CREEK UNIT 118 FR | D56: FRONTIER | E56: 4.750903269 | F56: 10380 | G56: 49314.37593 | H56: 0.1329769324 | I56: 6557.674436
A57: 47 | C57: BIRCH CREEK UNIT 119 BR | D57: BEAR RIVER | E57: 4.750903269 | F57: 3748 | G57: 17806.38545 | H57: 0.1329769324 | I57: 2367.838515
A58: 48 | C58: BIRCH CREEK UNIT 119 FR | D58: FRONTIER | E58: 4.750903269 | F58: 14991 | G58: 71220.79091 | H58: 0.1329769324 | I58: 9470.722299
A59: 49 | C59: BIRCH CREEK UNIT 121 BR | D59: BEAR RIVER | E59: 4.750903269 | F59: 15609 | G59: 74156.84913 | H59: 0.1329769324 | I59: 9861.150315
A60: 50 | C60: BIRCH CREEK UNIT 121 FR | D60: FRONTIER | E60: 4.750903269 | F60: 3194 | G60: 15174.38504 | H60: 0.1329769324 | I60: 2017.843174
A61: 51 | C61: BIRCH CREEK UNIT 122 BR | D61: BEAR RIVER | E61: 4.750903269 | F61: 3032 | G61: 14404.73871 | H61: 0.1329769324 | I61: 1915.497966
A62: 52 | C62: BIRCH CREEK UNIT 122 FR | D62: FRONTIER | E62: 4.750903269 | F62: 10442 | G62: 49608.93194 | H62: 0.1329769324 | I62: 6596.843589
A63: 53 | C63: BIRCH CREEK UNIT 123 BR | D63: BEAR RIVER | E63: 4.750903269 | F63: 4210 | G63: 20001.30276 | H63: 0.1329769324 | I63: 2659.711886
A64: 54 | C64: BIRCH CREEK UNIT 123 FR | D64: FRONTIER | E64: 4.750903269 | F64: 12617 | G64: 59942.14655 | H64: 0.1329769324 | I64: 7970.92277
A65: 55 | C65: BIRCH CREEK UNIT 124 BR | D65: BEAR RIVER | E65: 4.750903269 | F65: 3767 | G65: 17896.65262 | H65: 0.1329769324 | I65: 2379.841965
A66: 56 | C66: BIRCH CREEK UNIT 124 FR | D66: FRONTIER | E66: 4.750903269 | F66: 15061 | G66: 71553.35414 | H66: 0.1329769324 | I66: 9514.945537
A67: 57 | C67: BIRCH CREEK UNIT 126 BR | D67: BEAR RIVER | E67: 4.750903269 | F67: 7067 | G67: 33574.6334 | H67: 0.1329769324 | I67: 4464.651757
A68: 58 | C68: BIRCH CREEK UNIT 126 FR | D68: FRONTIER | E68: 4.750903269 | F68: 10599 | G68: 50354.82375 | H68: 0.1329769324 | I68: 6696.029995
A69: 59 | C69: BIRCH CREEK UNIT 127 BR | D69: DAKOTA | E69: 4.750903269 | F69: 6767 | G69: 32149.36242 | H69: 0.1329769324 | I69: 4275.123594
A70: 60 | C70: BIRCH CREEK UNIT 127 FR | D70: FRONTIER | E70: 4.750903269 | F70: 1694 | G70: 8048.030138 | H70: 0.1329769324 | I70: 1070.20236
A71: 61 | C71: BIRCH CREEK UNIT 128 FR | D71: FRONTIER | E71: 4.750903269 | F71: 19614 | G71: 93184.21672 | H71: 0.1329769324 | I71: 12391.35129
A72: 62 | C72: BIRCH CREEK UNIT 129 BR | D72: BEAR RIVER | E72: 4.750903269 | F72: 520 | G72: 2470.4697 | H72: 0.1329769324 | I72: 328.5154823
A73: 63 | C73: BIRCH CREEK UNIT 129 FR | D73: FRONTIER | E73: 4.750903269 | F73: 9873 | G73: 46905.66798 | H73: 0.1329769324 | I73: 6237.37184
A74: 64 | C74: BIRCH CREEK UNIT 130 BR | D74: BEAR RIVER | E74: 4.750903269 | F74: 8650 | G74: 41095.31328 | H74: 0.1329769324 | I74: 5464.728696
A75: 65 | C75: BIRCH CREEK UNIT 130 FR | D75: FRONTIER | E75: 4.750903269 | F75: 10574 | G75: 50236.05117 | H75: 0.1329769324 | I75: 6680.235981
A76: 66 | C76: BIRCH CREEK UNIT 131 FR | D76: FRONTIER | E76: 4.750903269 | F76: 12586 | G76: 59794.86855 | H76: 0.1329769324 | I76: 7951.338193
A77: 67 | C77: BIRCH CREEK UNIT 132 BR | D77: BEAR RIVER | E77: 4.750903269 | F77: 2147 | G77: 10200.18932 | H77: 0.1329769324 | I77: 1356.389886
A78: 68 | C78: BIRCH CREEK UNIT 132 FR | D78: FRONTIER | E78: 4.750903269 | F78: 12151 | G78: 57728.22562 | H78: 0.1329769324 | I78: 7676.522357
A79: 69 | C79: BIRCH CREEK UNIT 133 BR | D79: BEAR RIVER | E79: 4.750903269 | F79: 4716 | G79: 22405.25982 | H79: 0.1329769324 | I79: 2979.382721
A80: 70 | C80: BIRCH CREEK UNIT 133 FR | D80: FRONTIER | E80: 4.750903269 | F80: 18865 | G80: 89625.79017 | H80: 0.1329769324 | I80: 11918.16264
A81: 71 | C81: BIRCH CREEK UNIT 134 BR | D81: BEAR RIVER | E81: 4.750903269 | F81: 12639 | G81: 60046.66642 | H81: 0.1329769324 | I81: 7984.821502
A82: 72 | C82: BIRCH CREEK UNIT 134 FR | D82: FRONTIER | E82: 4.750903269 | F82: 17460 | G82: 82950.77108 | H82: 0.1329769324 | I82: 11030.53908
A83: 73 | C83: BIRCH CREEK UNIT 137 BR | D83: BEAR RIVER | E83: 4.750903269 | F83: 5912 | G83: 28087.34013 | H83: 0.1329769324 | I83: 3734.96833
A84: 74 | C84: BIRCH CREEK UNIT 137 FR | D84: FRONTIER | E84: 4.750903269 | F84: 9645 | G84: 45822.46203 | H84: 0.1329769324 | I84: 6093.330437
A85: 75 | C85: BIRCH CREEK UNIT 138 FR | D85: FRONTIER | E85: 4.750903269 | F85: 15900 | G85: 75539.36198 | H85: 0.1329769324 | I85: 10044.99263
A86: 76 | C86: BIRCH CREEK UNIT 139 BR | D86: BEAR RIVER | E86: 4.750903269 | F86: 6640 | G86: 31545.99771 | H86: 0.1329769324 | I86: 4194.890005
A87: 77 | C87: BIRCH CREEK UNIT 13A BR | D87: BEAR RIVER | E87: 4.750903269 | F87: 6738 | G87: 32011.58623 | H87: 0.1329769324 | I87: 4256.802538
A88: 78 | C88: BIRCH CREEK UNIT 13A FR | D88: FRONTIER | E88: 4.750903269 | F88: 6735 | G88: 31997.33352 | H88: 0.1329769324 | I88: 4254.907257
A89: 79 | C89: BIRCH CREEK UNIT 140 BR | D89: BEAR RIVER | E89: 4.750903269 | F89: 2925 | G89: 13896.39206 | H89: 0.1329769324 | I89: 1847.899588
A90: 80 | C90: BIRCH CREEK UNIT 140 FR | D90: FRONTIER | E90: 4.750903269 | F90: 16602 | G90: 78874.49608 | H90: 0.1329769324 | I90: 10488.48853
A91: 81 | C91: BIRCH CREEK UNIT 141 BR | D91: BEAR RIVER | E91: 4.750903269 | F91: 13162 | G91: 62531.38883 | H91: 0.1329769324 | I91: 8315.232266
A92: 82 | C92: BIRCH CREEK UNIT 141 FR | D92: FRONTIER | E92: 4.750903269 | F92: 4386 | G92: 20837.46174 | H92: 0.1329769324 | I92: 2770.901741
A93: 83 | C93: BIRCH CREEK UNIT 142 BR | D93: BEAR RIVER | E93: 4.750903269 | F93: 2859 | G93: 13582.83245 | H93: 0.1329769324 | I93: 1806.203392
A94: 84 | C94: BIRCH CREEK UNIT 142 FR | D94: FRONTIER | E94: 4.750903269 | F94: 6665 | G94: 31664.77029 | H94: 0.1329769324 | I94: 4210.684019
A95: 85 | C95: BIRCH CREEK UNIT 144 BR | D95: BEAR RIVER | E95: 4.750903269 | F95: 797 | G95: 3786.469906 | H95: 0.1329769324 | I95: 503.5131527
A96: 86 | C96: BIRCH CREEK UNIT 144 FR | D96: FRONTIER | E96: 4.750903269 | F96: 12464 | G96: 59215.25835 | H96: 0.1329769324 | I96: 7874.263407
A97: 87 | C97: BIRCH CREEK UNIT 145 BR | D97: BEAR RIVER | E97: 4.750903269 | F97: 1328 | G97: 6309.199542 | H97: 0.1329769324 | I97: 838.978001
A98: 88 | C98: BIRCH CREEK UNIT 145 FR | D98: FRONTIER | E98: 4.750903269 | F98: 9734 | G98: 46245.29242 | H98: 0.1329769324 | I98: 6149.557125
A99: 89 | C99: BIRCH CREEK UNIT 146 BR | D99: BEAR RIVER | E99: 4.750903269 | F99: 11743 | G99: 55789.85709 | H99: 0.1329769324 | I99: 7418.764056
A100: 90 | C100: BIRCH CREEK UNIT 146 FR | D100: FRONTIER | E100: 4.750903269 | F100: 3912 | G100: 18585.53359 | H100: 0.1329769324 | I100: 2471.447244
A101: 91 | C101: BIRCH CREEK UNIT 148 BR | D101: BEAR RIVER | E101: 4.750903269 | F101: 210 | G101: 997.6896865 | H101: 0.1329769324 | I101: 132.669714
A102: 92 | C102: BIRCH CREEK UNIT 148 FR | D102: FRONTIER | E102: 4.750903269 | F102: 20566 | G102: 97707.07663 | H102: 0.1329769324 | I102: 12992.78733
A103: 93 | C103: BIRCH CREEK UNIT 149 BR | D103: BEAR RIVER | E103: 4.750903269 | F103: 4618 | G103: 21939.6713 | H103: 0.1329769324 | I103: 2917.470187
A104: 94 | C104: BIRCH CREEK UNIT 149 FR | D104: FRONTIER | E104: 4.750903269 | F104: 16374 | G104: 77791.29013 | H104: 0.1329769324 | I104: 10344.44713
A105: 95 | C105: BIRCH CREEK UNIT 15 BR | D105: LANCE | E105: 4.750903269 | F105: 299 | G105: 1420.520077 | H105: 0.1329769324 | I105: 188.8964023
A106: 96 | C106: BIRCH CREEK UNIT 15 FR | D106: LANCE | E106: 4.750903269 | F106: 889 | G106: 4223.553006 | H106: 0.1329769324 | I106: 561.6351227
A107: 97 | C107: BIRCH CREEK UNIT 151 BR | D107: BEAR RIVER | E107: 4.750903269 | F107: 5042 | G107: 23954.05428 | H107: 0.1329769324 | I107: 3185.336658
A108: 98 | C108: BIRCH CREEK UNIT 151 FR | D108: FRONTIER | E108: 4.750903269 | F108: 6962 | G108: 33075.78856 | H108: 0.1329769324 | I108: 4398.3169
A109: 99 | C109: BIRCH CREEK UNIT 153 ALMY | D109: ALMY | E109: 4.750903269 | F109: 1002 | G109: 4760.405076 | H109: 0.13375 | I109: 636.7041789
A110: 100 | C110: BIRCH CREEK UNIT 164 FR | D110: FRONTIER | E110: 4.750903269 | F110: 16485 | G110: 78318.64039 | H110: 0.1329769324 | I110: 10414.57255
A111: 101 | C111: BIRCH CREEK UNIT 166 BR | D111: BEAR RIVER | E111: 4.750903269 | F111: 6025 | G111: 28624.1922 | H111: 0.1329769324 | I111: 3806.357271
A112: 102 | C112: BIRCH CREEK UNIT 166 FR | D112: FRONTIER | E112: 4.750903269 | F112: 1508 | G112: 7164.36213 | H112: 0.1329769324 | I112: 952.6948988
A113: 103 | C113: BIRCH CREEK UNIT 167 BR | D113: BEAR RIVER | E113: 4.750903269 | F113: 2105 | G113: 10000.65138 | H113: 0.1329769324 | I113: 1329.855943
A114: 104 | C114: BIRCH CREEK UNIT 167 FR | D114: FRONTIER | E114: 4.750903269 | F114: 8432 | G114: 40059.61637 | H114: 0.1329769324 | I114: 5327.004898
A115: 105 | C115: BIRCH CREEK UNIT 168 BR | D115: BEAR RIVER | E115: 4.750903269 | F115: 820 | G115: 3895.740681 | H115: 0.1329769324 | I115: 518.0436452
A116: 106 | C116: BIRCH CREEK UNIT 168 RECOM BAX | D116: BAXTER | E116: 4.750903269 | F116: 1478 | G116: 7021.835032 | H116: 0.13375 | I116: 939.1704355
A117: 107 | C117: BIRCH CREEK UNIT 168 RECOM FR | D117: FRONTIER | E117: 4.750903269 | F117: 3344 | G117: 15887.02053 | H117: 0.1329769324 | I117: 2112.607256
A118: 108 | C118: BIRCH CREEK UNIT 169 BR | D118: BEAR RIVER | E118: 4.750903269 | F118: 3111 | G118: 14780.06007 | H118: 0.1329769324 | I118: 1965.407049
A119: 109 | C119: BIRCH CREEK UNIT 169 FR | D119: FRONTIER | E119: 4.750903269 | F119: 12450 | G119: 59148.7457 | H119: 0.1329769324 | I119: 7865.41876
A120: 110 | C120: BIRCH CREEK UNIT 173 BR | D120: BEAR RIVER | E120: 4.750903269 | F120: 6298 | G120: 29921.18879 | H120: 0.1329769324 | I120: 3978.827899
A121: 111 | C121: BIRCH CREEK UNIT 173 FR | D121: FRONTIER | E121: 4.750903269 | F121: 17926 | G121: 85164.692 | H121: 0.1329769324 | I121: 11324.93949
A122: 112 | C122: BIRCH CREEK UNIT 174 BR | D122: BEAR RIVER | E122: 4.750903269 | F122: 10078 | G122: 47879.60315 | H122: 0.1329769324 | I122: 6366.882752
A123: 113 | C123: BIRCH CREEK UNIT 174 FR | D123: FRONTIER | E123: 4.750903269 | F123: 9962 | G123: 47328.49837 | H123: 0.1329769324 | I123: 6293.598529
A124: 114 | C124: BIRCH CREEK UNIT 177 BR | D124: BEAR RIVER | E124: 4.750903269 | F124: 3189 | G124: 15150.63053 | H124: 0.1329769324 | I124: 2014.684371
A125: 115 | C125: BIRCH CREEK UNIT 177 FR | D125: FRONTIER | E125: 4.750903269 | F125: 12774 | G125: 60688.03836 | H125: 0.1329769324 | I125: 8070.109176
A126: 116 | C126: BIRCH CREEK UNIT 178 BR | D126: BEAR RIVER | E126: 4.750903269 | F126: 4787 | G126: 22742.57395 | H126: 0.1329769324 | I126: 3024.237719
A127: 117 | C127: BIRCH CREEK UNIT 178 FR | D127: FRONTIER | E127: 4.750903269 | F127: 19155 | G127: 91003.55212 | H127: 0.1329769324 | I127: 12101.3732
A128: 118 | C128: BIRCH CREEK UNIT 179 BR | D128: BEAR RIVER | E128: 4.750903269 | F128: 4464 | G128: 21208.03219 | H128: 0.1329769324 | I128: 2820.179064
A129: 119 | C129: BIRCH CREEK UNIT 179 FR | D129: FRONTIER | E129: 4.750903269 | F129: 2973 | G129: 14124.43542 | H129: 0.1329769324 | I129: 1878.224094
A130: 120 | C130: BIRCH CREEK UNIT 180 FR | D130: FRONTIER | E130: 4.750903269 | F130: 10628 | G130: 50492.59995 | H130: 0.1329769324 | I130: 6714.35105
A131: 121 | C131: BIRCH CREEK UNIT 181 BR | D131: BEAR RIVER | E131: 4.750903269 | F131: 2537 | G131: 12053.04159 | H131: 0.1329769324 | I131: 1602.776497
A132: 122 | C132: BIRCH CREEK UNIT 181 FR | D132: FRONTIER | E132: 4.750903269 | F132: 10140 | G132: 48174.15915 | H132: 0.1329769324 | I132: 6406.051905
A133: 123 | C133: BIRCH CREEK UNIT 182 BR | D133: BEAR RIVER | E133: 4.750903269 | F133: 3371 | G133: 16015.29492 | H133: 0.1329769324 | I133: 2129.66479
A134: 124 | C134: BIRCH CREEK UNIT 182 FR | D134: FRONTIER | E134: 4.750903269 | F134: 5057 | G134: 24025.31783 | H134: 0.1329769324 | I134: 3194.813066
A135: 125 | C135: BIRCH CREEK UNIT 183 BR | D135: BEAR RIVER | E135: 4.750903269 | F135: 6527 | G135: 31009.14564 | H135: 0.1329769324 | I135: 4123.501064
A136: 126 | C136: BIRCH CREEK UNIT 183 FR | D136: FRONTIER | E136: 4.750903269 | F136: 9787 | G136: 46497.0903 | H136: 0.1329769324 | I136: 6183.040434
A137: 127 | C137: BIRCH CREEK UNIT 184 BR | D137: BEAR RIVER | E137: 4.750903269 | F137: 1828 | G137: 8684.651176 | H137: 0.1329769324 | I137: 1154.858273
A138: 128 | C138: BIRCH CREEK UNIT 184 FR | D138: FRONTIER | E138: 4.750903269 | F138: 16489 | G138: 78337.64401 | H138: 0.1329769324 | I138: 10417.09959
A139: 129 | C139: BIRCH CREEK UNIT 185 BR | D139: BEAR RIVER | E139: 4.750903269 | F139: 5137 | G139: 24405.39009 | H139: 0.1329769324 | I139: 3245.353909
A140: 130 | C140: BIRCH CREEK UNIT 185 FR | D140: FRONTIER | E140: 4.750903269 | F140: 11988 | G140: 56953.82839 | H140: 0.1329769324 | I140: 7573.545389
A141: 131 | C141: BIRCH CREEK UNIT 187 BR | D141: BEAR RIVER | E141: 4.750903269 | F141: 6721 | G141: 31930.82087 | H141: 0.1329769324 | I141: 4246.062609
A142: 132 | C142: BIRCH CREEK UNIT 187 FR | D142: FRONTIER | E142: 4.750903269 | F142: 11943 | G142: 56740.03774 | H142: 0.1329769324 | I142: 7545.116164
A143: 133 | C143: BIRCH CREEK UNIT 188 FR | D143: FRONTIER | E143: 4.750903269 | F143: 20240 | G143: 96158.28217 | H143: 0.1329769324 | I143: 12786.83339
A144: 134 | C144: BIRCH CREEK UNIT 189 BR | D144: BEAR RIVER | E144: 4.750903269 | F144: 6439 | G144: 30591.06615 | H144: 0.1329769324 | I144: 4067.906136
A145: 135 | C145: BIRCH CREEK UNIT 189 FR | D145: FRONTIER | E145: 4.750903269 | F145: 9270 | G145: 44040.87331 | H145: 0.1329769324 | I145: 5856.420233
A146: 136 | C146: BIRCH CREEK UNIT 190 BR | D146: BEAR RIVER | E146: 4.750903269 | F146: 2055 | G146: 9763.106218 | H146: 0.1329769324 | I146: 1298.267916
A147: 137 | C147: BIRCH CREEK UNIT 190 FR | D147: FRONTIER | E147: 4.750903269 | F147: 18468 | G147: 87739.68158 | H147: 0.1329769324 | I147: 11667.35371
A148: 138 | C148: BIRCH CREEK UNIT 191 BR | D148: BEAR RIVER | E148: 4.750903269 | F148: 2826 | G148: 13426.05264 | H148: 0.1329769324 | I148: 1785.355294
A149: 139 | C149: BIRCH CREEK UNIT 191 FR | D149: FRONTIER | E149: 4.750903269 | F149: 12064 | G149: 57314.89704 | H149: 0.1329769324 | I149: 7621.55919
A150: 140 | C150: BIRCH CREEK UNIT 192 BR | D150: BEAR RIVER | E150: 4.750903269 | F150: 1450 | G150: 6888.80974 | H150: 0.1329769324 | I150: 916.0527873
A151: 141 | C151: BIRCH CREEK UNIT 192 FR | D151: FRONTIER | E151: 4.750903269 | F151: 22745 | G151: 108059.2949 | H151: 0.1329769324 | I151: 14369.39355
A152: 142 | C152: BIRCH CREEK UNIT 193 BR | D152: BEAR RIVER | E152: 4.750903269 | F152: 697 | G152: 3311.379579 | H152: 0.1329769324 | I152: 440.3370984
A153: 143 | C153: BIRCH CREEK UNIT 193 FR | D153: FRONTIER | E153: 4.750903269 | F153: 13234 | G153: 62873.45386 | H153: 0.1329769324 | I153: 8360.719025
A154: 144 | C154: BIRCH CREEK UNIT 194 BR | D154: BEAR RIVER | E154: 4.750903269 | F154: 1360 | G154: 6461.228446 | H154: 0.1329769324 | I154: 859.1943384
A155: 145 | C155: BIRCH CREEK UNIT 194 FR | D155: FRONTIER | E155: 4.750903269 | F155: 21322 | G155: 101298.7595 | H155: 0.1329769324 | I155: 13470.3983
A156: 146 | C156: BIRCH CREEK UNIT 195 BR | D156: BEAR RIVER | E156: 4.750903269 | F156: 3347 | G156: 15901.27324 | H156: 0.1329769324 | I156: 2114.502537
A157: 147 | C157: BIRCH CREEK UNIT 195 FR | D157: FRONTIER | E157: 4.750903269 | F157: 24548 | G157: 116625.1735 | H157: 0.1329769324 | I157: 15508.45781
A158: 148 | C158: BIRCH CREEK UNIT 196 BR | D158: BEAR RIVER | E158: 4.750903269 | F158: 329 | G158: 1563.047176 | H158: 0.1329769324 | I158: 207.8492186
A159: 149 | C159: BIRCH CREEK UNIT 196 FR | D159: FRONTIER | E159: 4.750903269 | F159: 16133 | G159: 76646.32244 | H159: 0.1329769324 | I159: 10192.19284
A160: 150 | C160: BIRCH CREEK UNIT 198 BR | D160: BEAR RIVER | E160: 4.750903269 | F160: 3099 | G160: 14723.04923 | H160: 0.1329769324 | I160: 1957.825923
A161: 151 | C161: BIRCH CREEK UNIT 198 FR | D161: FRONTIER | E161: 4.750903269 | F161: 1827 | G161: 8679.900273 | H161: 0.1329769324 | I161: 1154.226512
A162: 152 | C162: BIRCH CREEK UNIT 199 BR | D162: BEAR RIVER | E162: 4.750903269 | F162: 1243 | G162: 5905.372764 | H162: 0.1329769324 | I162: 785.2783549
A163: 153 | C163: BIRCH CREEK UNIT 199 FR | D163: FRONTIER | E163: 4.750903269 | F163: 12612 | G163: 59918.39203 | H163: 0.1329769324 | I163: 7967.763968
A164: 154 | C164: BIRCH CREEK UNIT 2 BR | D164: BEAR RIVER | E164: 4.750903269 | F164: 3072 | G164: 14594.77484 | H164: 0.1329769324 | I164: 1940.768388
A165: 155 | C165: BIRCH CREEK UNIT 2 FR | D165: FRONTIER | E165: 4.750903269 | F165: 5016 | G165: 23830.5308 | H165: 0.1329769324 | I165: 3168.910883
A166: 156 | C166: BIRCH CREEK UNIT 200 BR | D166: BEAR RIVER | E166: 4.750903269 | F166: 2757 | G166: 13098.24031 | H166: 0.1329769324 | I166: 1741.763817
A167: 157 | C167: BIRCH CREEK UNIT 200 FR | D167: FRONTIER | E167: 4.750903269 | F167: 8279 | G167: 39332.72817 | H167: 0.1329769324 | I167: 5230.345535
A168: 158 | C168: BIRCH CREEK UNIT 201-25 BR | D168: BEAR RIVER | E168: 4.750903269 | F168: 2729 | G168: 12965.21502 | H168: 0.1329769324 | I168: 1724.074522
A169: 159 | C169: BIRCH CREEK UNIT 201-25 FR | D169: FRONTIER | E169: 4.750903269 | F169: 6372 | G169: 30272.75563 | H169: 0.1329769324 | I169: 4025.57818
A170: 160 | C170: BIRCH CREEK UNIT 202-25 BR | D170: BEAR RIVER | E170: 4.750903269 | F170: 4530 | G170: 21521.59181 | H170: 0.1329769324 | I170: 2861.87526
A171: 161 | C171: BIRCH CREEK UNIT 202-25 FR | D171: FRONTIER | E171: 4.750903269 | F171: 10573 | G171: 50231.30027 | H171: 0.1329769324 | I171: 6679.604221
A172: 162 | C172: BIRCH CREEK UNIT 203-25 BR | D172: BEAR RIVER | E172: 4.750903269 | F172: 6337 | G172: 30106.47402 | H172: 0.1329769324 | I172: 4003.466561
A173: 163 | C173: BIRCH CREEK UNIT 203-25 FR | D173: FRONTIER | E173: 4.750903269 | F173: 14793 | G173: 70280.11206 | H173: 0.1329769324 | I173: 9345.633712
A174: 164 | C174: BIRCH CREEK UNIT 26 FR | D174: FRONTIER | E174: 4.750903269 | F174: 2183 | G174: 10371.22184 | H174: 0.1329769324 | I174: 1379.133265
A175: 165 | C175: BIRCH CREEK UNIT 3 FFR | D175: 1ST FRONTIER | E175: 4.750903269 | F175: 15683 | G175: 74508.41597 | H175: 0.1329769324 | I175: 9907.900595
A176: 166 | C176: BIRCH CREEK UNIT 43A BR | D176: BEAR RIVER | E176: 4.750903269 | F176: 1077 | G176: 5116.722821 | H176: 0.1329769324 | I176: 680.4061048
A177: 167 | C177: BIRCH CREEK UNIT 43A FR | D177: FRONTIER | E177: 4.750903269 | F177: 9672 | G177: 45950.73642 | H177: 0.1329769324 | I177: 6110.387971
A178: 168 | C178: BIRCH CREEK UNIT 5 2ND FR | D178: FRONTIER | E178: 4.750903269 | F178: 3015 | G178: 14323.97336 | H178: 0.1329769324 | I178: 1904.758037
A179: 169 | C179: BIRCH CREEK UNIT 5 FR | D179: FORT UNION | E179: 4.750903269 | F179: 3264 | G179: 15506.94827 | H179: 0.1329769324 | I179: 2062.066412
A180: 170 | C180: BIRCH CREEK UNIT 56 2ND FR | D180: FRONTIER | E180: 4.750903269 | F180: 5042 | G180: 23954.05428 | H180: 0.1329769324 | I180: 3185.336658
A181: 171 | C181: BIRCH CREEK UNIT 6 FR | D181: FRONTIER | E181: 4.750903269 | F181: 9842 | G181: 46758.38998 | H181: 0.1329769324 | I181: 6217.787264
A182: 172 | C182: BIRCH CREEK UNIT 61 BR | D182: BEAR RIVER | E182: 4.750903269 | F182: 1196 | G182: 5682.08031 | H182: 0.1329769324 | I182: 755.5856094
A183: 173 | C183: BIRCH CREEK UNIT 61 FR | D183: FRONTIER | E183: 4.750903269 | F183: 4754 | G183: 22585.79414 | H183: 0.1329769324 | I183: 3003.389621
A184: 174 | C184: BIRCH CREEK UNIT 7 FR | D184: FRONTIER | E184: 4.750903269 | F184: 4730 | G184: 22471.77246 | H184: 0.1329769324 | I184: 2988.227368
A185: 175 | C185: BIRCH CREEK UNIT 8 FR | D185: FRONTIER | E185: 4.750903269 | F185: 15431 | G185: 73311.18835 | H185: 0.1329769324 | I185: 9748.696938
A186: 176 | C186: BIRCH CREEK UNIT 87 2ND FR | D186: FRONTIER | E186: 4.750903269 | F186: 6888 | G186: 32724.22172 | H186: 0.1329769324 | I186: 4351.56662
A187: 177 | C187: BIRCH CREEK UNIT 87 BR | D187: BEAR RIVER | E187: 4.750903269 | F187: 758 | G187: 3601.184678 | H187: 0.1329769324 | I187: 478.8744916
A188: 178 | C188: BIRCH CREEK UNIT 87 BR RECOMP | D188: BEAR RIVER | E188: 4.750903269 | F188: 1762 | G188: 8371.09156 | H188: 0.1329769324 | I188: 1113.162077
A189: 179 | C189: BIRCH CREEK UNIT 87 FR | D189: FRONTIER | E189: 4.750903269 | F189: 2953 | G189: 14029.41735 | H189: 0.1329769324 | I189: 1865.588883
A190: 180 | C190: BIRCH CREEK UNIT 91 BR | D190: BEAR RIVER | E190: 4.750903269 | F190: 1383 | G190: 6570.499221 | H190: 0.1329769324 | I190: 873.7248309
A191: 181 | C191: BIRCH CREEK UNIT 91 FR | D191: FRONTIER | E191: 4.750903269 | F191: 12479 | G191: 59286.5219 | H191: 0.1329769324 | I191: 7883.739815
A192: 182 | C192: BIRCH CREEK UNIT 92 BR | D192: BEAR RIVER | E192: 4.750903269 | F192: 1576 | G192: 7487.423552 | H192: 0.1329769324 | I192: 995.6546157
A193: 183 | C193: BIRCH CREEK UNIT 92 FR | D193: FRONTIER | E193: 4.750903269 | F193: 4831 | G193: 22951.61369 | H193: 0.1329769324 | I193: 3052.035183
A194: 184 | C194: BIRCH CREEK UNIT 931 BR | D194: BEAR RIVER | E194: 4.750903269 | F194: 1837 | G194: 8727.409306 | H194: 0.1329769324 | I194: 1160.544117
A195: 185 | C195: BIRCH CREEK UNIT 931 FR | D195: FRONTIER | E195: 4.750903269 | F195: 14164 | G195: 67291.79391 | H195: 0.1329769324 | I195: 8948.25633
A196: 186 | C196: BIRCH CREEK UNIT 94 BR | D196: BEAR RIVER | E196: 4.750903269 | F196: 110 | G196: 522.5993596 | H196: 0.1329769324 | I196: 69.49365972
A197: 187 | C197: BIRCH CREEK UNIT 94 FR | D197: FRONTIER | E197: 4.750903269 | F197: 15777 | G197: 74955.00088 | H197: 0.1329769324 | I197: 9967.286086
A198: 188 | C198: BIRCH CREEK UNIT 95 BR | D198: BEAR RIVER | E198: 4.750903269 | F198: 834 | G198: 3962.253327 | H198: 0.1329769324 | I198: 526.8882928
A199: 189 | C199: BIRCH CREEK UNIT 95 FR | D199: FRONTIER | E199: 4.750903269 | F199: 11412 | G199: 54217.30811 | H199: 0.1329769324 | I199: 7209.651316
A200: 190 | C200: BIRCH CREEK UNIT 96 BR | D200: BEAR RIVER | E200: 4.750903269 | F200: 2792 | G200: 13264.52193 | H200: 0.1329769324 | I200: 1763.875436
A201: 191 | C201: BIRCH CREEK UNIT 96 FR | D201: FRONTIER | E201: 4.750903269 | F201: 17730 | G201: 84233.51496 | H201: 0.1329769324 | I201: 11201.11443
A202: 192 | C202: BIRCH CREEK UNIT 97 BR | D202: BEAR RIVER | E202: 4.750903269 | F202: 8537 | G202: 40558.46121 | H202: 0.1329769324 | I202: 5393.339755
A203: 193 | C203: BIRCH CREEK UNIT 97 FR | D203: FRONTIER | E203: 4.750903269 | F203: 13078 | G203: 62132.31295 | H203: 0.1329769324 | I203: 8262.164381
A204: 194 | C204: BIRCH CREEK UNIT 98 BR | D204: BEAR RIVER | E204: 4.750903269 | F204: 1179 | G204: 5601.314954 | H204: 0.1329769324 | I204: 744.8456801
... 1481 more rows

Sheet SDR#1
E1: ='Control Panel'!F32 -> Dominion Energy Utah
E2: ='Control Panel'!F33 -> Docket No. 23-057-03
B4: Standard Data Request #1
B5: Summary of Sources of Supply and Demand
A8: 1 | B8: DEMAND | C8: Total | D8: Utah | E8: Wyoming
A10: =A8+1 -> 2 | B10: SALES IN DTHS | C10: =D10+E10 -> 119580866 | D10: =Calculations!P20 -> 115857612 | E10: =Calculations!P39 -> 3723254
A11: =A10+1 -> 3 | B11: DIST. CO. USE & | C11: 0
A12: =A11+1 -> 4 | B12: DIST. LOST & UNACCT. (0.49%) | C12: =Calculations!P154 -> 672214
A15: =A12+1 -> 5 | B15: TOTAL | C15: =SUM(C10:C12) -> 120253080
A19: =A15+1 -> 6 | B19: SUPPLY | C19: Total | D19: Utah | E19: Wyoming
A21: =A19+1 -> 7 | B21: COMPANY PRODUCTION | C21: ='Royalty Detail'!F1422+'Royalty Detail'!F1697 -> 58453912.32 | D21: =$D$10/$C$10*C21 -> 56633899.05 | E21: =$E$10/$C$10*C21 -> 1820013.269
A22: =A21+1 -> 8 | B22: GAS REIMBURSEMENT | C22: =C21*-'Other Inputs'!$E$280 -> -2951922.572 | D22: =D21*-'Other Inputs'!$E$280 -> -2860011.902 | E22: =E21*-'Other Inputs'!$E$280 -> -91910.67009
A25: =A22+1 -> 9 | B25: CONTRACT GAS | C25: ='Ut 1.2 p4'!F25 -> 65997032 | D25: =$D$10/$C$10*C25 -> 63942157.16 | E25: =$E$10/$C$10*C25 -> 2054874.844
A26: =A25+1 -> 10 | B26: GAS REIMBURSEMENT | C26: =C25*-'Other Inputs'!$E$279 -> -692968.836 | D26: =D25*-'Other Inputs'!$E$279 -> -671392.6501 | E26: =E25*-'Other Inputs'!$E$279 -> -21576.18586
A28: =A26+1 -> 11 | B28: STORAGE
A29: =A28+1 -> 12 | B29: INJECTIONS | C29: ='Ut 1.2 p5'!G18 -> -13303294 | D29: =$D$10/$C$10*C29 -> -12889084.4 | E29: =$E$10/$C$10*C29 -> -414209.5994
A30: =A29+1 -> 13 | B30: WITHDRAWALS | C30: ='Ut 1.2 p5'!G17 -> 13011110 | D30: =$D$10/$C$10*C30 -> 12605997.8 | E30: =$E$10/$C$10*C30 -> 405112.1971
A31: =A30+1 -> 14 | B31: NET (INJECTIONS) WITHDRAWALS | C31: =C29+C30 -> -292184 | D31: =D29+D30 -> -283086.5977 | E31: =E29+E30 -> -9097.402311
A33: =A31+1 -> 15 | B33: Storage Fuel | C33: =Calculations!P172+Calculations!P173 -> -368787.4637 | D33: =D10/C10*C33 -> -357304.9461 | E33: =E10/C10*C33 -> -11482.51761
A34: =A33+1 -> 16 | B34: LNG WITHDRAWALS | C34: ='Ut 1.2 p6'!G22 -> 108000 | D34: =C34 -> 108000 | E34: 0
A37: =A34+1 -> 17 | B37: TOTAL SUPPLY | C37: =C21+C22+C25+C26+C29+C30+C33+C34 -> 120253081.4 | D37: =SUM(D21:D30)+D33+D34 -> 116512260.1 | E37: =SUM(E21:E30)+E33 -> 3740821.337
A39: =A37+1 -> 18 | B39: Company Use & Loss % | C39: =(+C37-C10)/C37 -> 0.00559000598 | D39: =(+D37-D10)/D37 -> 0.00561870576 | E39: =(+E37-E10)/E37 -> 0.004696117707
B42: Difference | C42: =C15-C37 -> -1.444346294

Sheet SDR#2
H1: ='Control Panel'!F32 -> Dominion Energy Utah
H2: ='Control Panel'!F33 -> Docket No. 23-057-03
A5: Standard Data Request #2
A6: Supplier Non-Gas Costs
B8: (A) | C8: (B) | D8: (C) | E8: (D) | F8: (E) | G8: (F) | T8: withdraw
A9: I. Transportation (QPC T-1) | C9: Volume (Dth) | G9: Utah Total | J9: Utah gas | K9: Utah Co. | L9: Utah gas | M9: Wyo gas | N9: Wyo Co. | O9: Wyo gas | Q9: @city gate | R9: @city gate | T9: loss | U9: Kern River | X9: Overthrust
B10: Month | C10: Utah | D10: Wyoming | E10: $/dth | F10: Demand | G10: b*d+e*(Ut %) | J10: purchased | K10: production | L10: withdrawn | M10: purchased | N10: production | O10: withdrawn | P10: Total | Q10: purchased | R10: co production | S10: withdrawls | T10: =-Calculations!P172/Calculations!P139 -> 0.01444446313 | U10: Transportation | X10: Transportation
B12: Mar23 | C12: =J12+K12+L12-((T12+$B$51*U12)+(X12))*$J$39 -> 11724546.29 | D12: =M12+N12+O12-((T12+$B$51*U12)+(X12))*$K$39 -> 376785.462 | E12: ='Other Inputs'!$F$44 -> 0.00267 | F12: =('Other Inputs'!$D$28)*('Other Inputs'!$F$28)-('Other Inputs'!$E$284/12)+('Other Inputs'!$D$35*'Other Inputs'!$F$35) -> 4192648.063 | G12: =(+C12)*E12+F12*$J$33/$L$33 -> 4093160.129 | J12: =Q12*$J$39 -> 9977820.716 | K12: =R12*$J$39 -> 4543208.619 | L12: =S12*$J$39 -> 108633.8909 | M12: =Q12-J12 -> 320651.8782 | N12: =R12-K12 -> 146002.6611 | O12: =S12-L12 -> 3491.109144 | P12: =SUM(J12:O12)-U12 -> 11445373.87 | Q12: =Calculations!D176 -> 10298472.59 | R12: =Calculations!D167 -> 4689211.28 | S12: =Calculations!D169+Calculations!D170 -> 112125 | T12: =S12*$T$10 -> 1619.585429 | U12: =V12*W12 -> 3654435 | V12: =Calculations!D255 -> 117885 | W12: =Calculations!D254 -> 31 | X12: =+W12*$D$39 -> 264802 | Y12: =B12 -> Mar23
B13: Apr23 | C13: 8235169.164 | D13: 264649.219 | E13: ='Other Inputs'!$F$44 -> 0.00267 | F13: =('Other Inputs'!$D$28)*('Other Inputs'!$F$28)-('Other Inputs'!$E$284/12)+('Other Inputs'!$D$35*'Other Inputs'!$F$35) -> 4192648.063 | G13: 4083843.492 | J13: =Q13*$J$39 -> 4928027.489 | K13: =R13*$J$39 -> 4313462.832 | L13: 0 | M13: 158369.379 | N13: 138619.4439 | O13: 0 | P13: =SUM(J13:O13)-U13 -> 8491929.144 | Q13: =Calculations!E176 -> 5086396.868 | R13: =Calculations!E167 -> 4452082.276 | S13: =Calculations!E169+Calculations!E170 -> 0 | T13: =S13*$T$10 -> 0 | U13: =V13*W13 -> 1046550 | V13: =Calculations!E255 -> 34885 | W13: =Calculations!E254 -> 30 | X13: =+W13*$D$39 -> 256260 | Y13: Apr23
B14: May23 | C14: 5819176.858 | D14: 187007.7688 | E14: ='Other Inputs'!$F$44 -> 0.00267 | F14: =('Other Inputs'!$D$28)*('Other Inputs'!$F$28)-('Other Inputs'!$E$284/12)+('Other Inputs'!$D$35*'Other Inputs'!$F$35) -> 4192648.063 | G14: 4077392.792 | J14: =Q14*$J$39 -> 2494084.682 | K14: 4364957.372 | L14: 0 | M14: 80151.0631 | N14: 140274.2963 | O14: 0 | P14: 5998032.413 | Q14: =Calculations!F176 -> 2574235.745 | R14: =Calculations!F167 -> 4505231.668 | S14: =Calculations!F169+Calculations!F170 -> 0 | T14: =S14*$T$10 -> 0 | U14: =V14*W14 -> 1081435 | V14: =Calculations!F255 -> 34885 | W14: =Calculations!F254 -> 31 | X14: 264802 | Y14: May23
B15: Jun23 | C15: 3542095.804 | D15: 113830.435 | E15: ='Other Inputs'!$F$44 -> 0.00267 | F15: =('Other Inputs'!$D$28)*('Other Inputs'!$F$28)-('Other Inputs'!$E$284/12)+('Other Inputs'!$D$35*'Other Inputs'!$F$35) -> 4192648.063 | G15: 4071312.986 | J15: =Q15*$J$39 -> 398943.1113 | K15: 4149473.85 | L15: 0 | M15: 12820.62101 | N15: 133349.4178 | O15: 0 | P15: 3648037 | Q15: =Calculations!G176 -> 411763.7323 | R15: =Calculations!G167 -> 4282823.268 | S15: =Calculations!G169+Calculations!G170 -> 0 | T15: 0 | U15: 1046550 | V15: =Calculations!G255 -> 34885 | W15: =Calculations!G254 -> 30 | X15: 256260 | Y15: Jun23
B16: Jul23 | C16: 3553898.276 | D16: 114209.7247 | E16: ='Other Inputs'!$F$44 -> 0.00267 | F16: =('Other Inputs'!$D$28)*('Other Inputs'!$F$28)-('Other Inputs'!$E$284/12)+('Other Inputs'!$D$35*'Other Inputs'!$F$35) -> 4192648.063 | G16: 4071344.498 | J16: 304148.1686 | K16: 4289615.303 | L16: 0 | M16: 9774.246731 | N16: 137853.0686 | O16: 0 | P16: 3659955.787 | Q16: =Calculations!H176 -> 313922.4153 | R16: =Calculations!H167 -> 4427468.371 | S16: =Calculations!H169+Calculations!H170 -> 0 | T16: 0 | U16: 1081435 | V16: =Calculations!H255 -> 34885 | W16: =Calculations!H254 -> 31 | X16: 264802 | Y16: Jul23
B17: Aug23 | C17: 3522026.461 | D17: 113185.4773 | E17: ='Other Inputs'!$F$44 -> 0.00267 | F17: =('Other Inputs'!$D$28)*('Other Inputs'!$F$28)-('Other Inputs'!$E$284/12)+('Other Inputs'!$D$35*'Other Inputs'!$F$35) -> 4192648.063 | G17: 4071259.401 | J17: 167468.4283 | K17: 4394423.229 | L17: 0 | M17: 5381.84315 | N17: 141221.2247 | O17: 0 | P17: 3627059.725 | Q17: =Calculations!I176 -> 172850.2714 | R17: =Calculations!I167 -> 4535644.453 | S17: =Calculations!I169+Calculations!I170 -> 0 | T17: =S17*$T$10 -> 0 | U17: 1081435 | V17: =Calculations!I255 -> 34885 | W17: =Calculations!I254 -> 31 | X17: 264802 | Y17: Aug23
B18: Sep23 | C18: 4076347.214 | D18: 130999.3863 | E18: ='Other Inputs'!$F$44 -> 0.00267 | F18: =('Other Inputs'!$D$28)*('Other Inputs'!$F$28)-('Other Inputs'!$E$284/12)+('Other Inputs'!$D$35*'Other Inputs'!$F$35) -> 4192648.063 | G18: 4072739.437 | J18: 887638.4461 | K18: 4195029.925 | L18: 0 | M18: 28525.56114 | N18: 134813.429 | O18: 0 | P18: 4199457.361 | Q18: =Calculations!J176 -> 916164.0072 | R18: =Calculations!J167 -> 4329843.354 | S18: =Calculations!J169+Calculations!J170 -> 0 | T18: 0 | U18: 1046550 | V18: =Calculations!J255 -> 34885 | W18: =Calculations!J254 -> 30 | X18: 256260 | Y18: Sep23
B19: Oct23 | C19: 8108032.264 | D19: 260563.4885 | E19: ='Other Inputs'!$F$44 -> 0.00267 | F19: =('Other Inputs'!$D$28)*('Other Inputs'!$F$28)-('Other Inputs'!$E$284/12)+('Other Inputs'!$D$35*'Other Inputs'!$F$35) -> 4192648.063 | G19: 4083504.036 | J19: 4903235.281 | K19: 4244662.178 | L19: 0 | M19: 157572.6451 | N19: 136408.4341 | O19: 0 | P19: 8360443.538 | Q19: =Calculations!K176 -> 5060807.927 | R19: =Calculations!K167 -> 4381070.612 | S19: =Calculations!K169+Calculations!K170 -> 0 | T19: 0 | U19: 1081435 | V19: =Calculations!K255 -> 34885 | W19: =Calculations!K254 -> 31 | X19: 264802 | Y19: Oct23
B20: Nov23 | C20: 10124456.27 | D20: 325364.2264 | E20: ='Other Inputs'!$F$44 -> 0.00267 | F20: =('Other Inputs'!$D$28)*('Other Inputs'!$F$28)-('Other Inputs'!$E$284/12)+('Other Inputs'!$D$35*'Other Inputs'!$F$35) -> 4192648.063 | G20: 4088887.888 | J20: 7446161.962 | K20: 5025449.54 | L20: 469511.5586 | M20: 239293.3173 | N20: 161500.1792 | O20: 15088.44139 | P20: 9820454.998 | Q20: =Calculations!L176 -> 7685455.279 | R20: =Calculations!L167 -> 5186949.719 | S20: =Calculations!L169+Calculations!L170 -> 484600 | T20: 6999.786835 | U20: 3536550 | V20: =Calculations!L255 -> 117885 | W20: =Calculations!L254 -> 30 | X20: 256260 | Y20: Nov23
B21: Dec23 | C21: 15073244.06 | D21: 484400.7679 | E21: ='Other Inputs'!$F$44 -> 0.00267 | F21: =('Other Inputs'!$D$28)*('Other Inputs'!$F$28)-('Other Inputs'!$E$284/12)+('Other Inputs'!$D$35*'Other Inputs'!$F$35) -> 4192648.063 | G21: 4102101.152 | J21: 10248702.8 | K21: 4969962.935 | L21: 3958778.845 | M21: 329357.0705 | N21: 159717.0359 | O21: 127221.1546 | P21: 14560629.84 | Q21: =Calculations!M176 -> 10578059.87 | R21: =Calculations!M167 -> 5129679.971 | S21: =Calculations!M169+Calculations!M170 -> 4086000 | T21: 59020.07637 | U21: 5233110 | V21: =Calculations!M255 -> 168810 | W21: =Calculations!M254 -> 31 | X21: 264802 | Y21: Dec23
B22: Jan24 | C22: 16859409.54 | D22: 541801.811 | E22: ='Other Inputs'!$F$44 -> 0.00267 | F22: =('Other Inputs'!$D$28)*('Other Inputs'!$F$28)-('Other Inputs'!$E$284/12)+('Other Inputs'!$D$35*'Other Inputs'!$F$35) -> 4192648.063 | G22: 4106870.214 | J22: 11840440.26 | K22: 4804320.209 | L22: 4324126.852 | M22: 380509.8844 | N22: 154393.8644 | O22: 138962.1478 | P22: 16409643.21 | Q22: =Calculations!N176 -> 12220950.14 | R22: =Calculations!N167 -> 4958714.073 | S22: =Calculations!N169+Calculations!N170 -> 4463089 | T22: 64466.92453 | U22: 5233110 | V22: =Calculations!N255 -> 168810 | W22: =Calculations!N254 -> 31 | X22: 264802 | Y22: Jan24
B23: Feb24 | C23: 14058345.69 | D23: 451785.5229 | E23: ='Other Inputs'!$F$44 -> 0.00267 | F23: =('Other Inputs'!$D$28)*('Other Inputs'!$F$28)-('Other Inputs'!$E$284/12)+('Other Inputs'!$D$35*'Other Inputs'!$F$35) -> 4192648.063 | G23: 4099391.373 | J23: 9674093.152 | K23: 4479319.771 | L23: 3744946.656 | M23: 310891.1482 | N23: 143949.4995 | O23: 120349.3441 | P23: 13578059.57 | Q23: =Calculations!O176 -> 9984984.3 | R23: =Calculations!O167 -> 4623269.271 | S23: =Calculations!O169+Calculations!O170 -> 3865296 | T23: 55832.12558 | U23: 4895490 | V23: =Calculations!O255 -> 168810 | W23: =Calculations!O254 -> 29 | X23: 247718 | Y23: Feb24
C26: =SUM(C12:C23) -> 104696747.9 | D26: =SUM(D12:D23) -> 3364583.29 | G26: =SUM(G12:G23) -> 49021807.4 | J26: =SUM(J12:J25) -> 63270764.49 | K26: 53773885.76 | L26: 12605997.8 | M26: 2033298.658 | N26: 1728102.555 | O26: 405112.1971 | P26: =SUM(P12:P23) -> 103799076.5 | Q26: 65304063.15 | R26: 55501988.32 | S26: 13011110 | T26: 187938.4987 | U26: 30018085
C29: Months | F29: System | G29: Utah | J29: Allocation Factors
C30: or Days | D30: Dth | E30: Rate | F30: Total | G30: Total
J31: Peak Demand Allocation Base
A32: II. Transportation (ML 104 demand) | C32: ='Other Inputs'!E29 -> 12 | D32: ='Other Inputs'!D29 -> 30000 | E32: ='Other Inputs'!F29 -> 5.28804 | F32: =C32*D32*E32 -> 1903694.4 | G32: =F32*J34 -> 1844307.374 | J32: Utah | K32: Wyo | L32: Total
J33: ='Other Inputs'!E146 -> 1224310 | K33: ='Other Inputs'!E147 -> 39423 | L33: =J33+K33 -> 1263733
A34: III. Transportation (TL 112 demand) | C34: ='Other Inputs'!E30 -> 12 | D34: ='Other Inputs'!D30 -> 12000 | E34: ='Other Inputs'!F30 -> 5.28804 | F34: =C34*D34*E34 -> 761477.76 | G34: =F34*J34 -> 737722.9497 | J34: =J33/L33 -> 0.9688043281 | K34: =K33/L33 -> 0.03119567187
C35: ='Other Inputs'!E31 -> 5 | D35: ='Other Inputs'!D31 -> 75000 | E35: ='Other Inputs'!F31 -> 6.80887 | F35: =C35*D35*E35 -> 2553326.25 | G35: =F35*J34 -> 2473673.522
J36: Dth Sales Allocation Base
A37: III. Transportation (Hyrum) | C37: =+'Other Inputs'!E32 -> 12 | D37: ='Other Inputs'!D32 -> 100000 | E37: ='Other Inputs'!F32 -> 5.28804 | F37: =C37*D37*E37 -> 6345648 | G37: =F37*J34 -> 6147691.247 | J37: Utah | K37: Wyo | L37: Total
J38: =Calculations!P20 -> 115857612 | K38: =Calculations!P39 -> 3723254 | L38: =J38+K38 -> 119580866
A39: IV. Transportation (Overthrust Pipeline) | C39: ='Other Inputs'!E38 -> 12 | D39: ='Other Inputs'!D38 -> 8542 | E39: ='Other Inputs'!F38 -> 1.62 | F39: =C39*D39*E39 -> 166056.48 | G39: =F39*J34 -> 160876.2365 | J39: =J38/L38 -> 0.9688641325 | K39: =K38/L38 -> 0.03113586751
C40: ='Other Inputs'!E73 -> 366 | D40: ='Other Inputs'!D38 -> 8542 | E40: ='Other Inputs'!F39 -> 0.00167 | F40: =C40*D40*E40 -> 5221.04124 | G40: =F40*J39 -> 5058.479592
J41: =+F40-'Ut 1.4 p1'!L45 -> 0.04124
A42: IV. Transportation (KR 2003 Expansion) | C42: ='Other Inputs'!E59 -> 12 | D42: ='Other Inputs'!D59 -> 33000 | E42: ='Other Inputs'!F59 -> 3.172933333 | F42: =C42*D42*E42 -> 1256481.6
C43: ='Other Inputs'!E60 -> 5 | D43: ='Other Inputs'!D60 -> 50000 | E43: ='Other Inputs'!F60 -> 3.172933333 | F43: =C43*D43*E43 -> 793233.3333 | G43: =(F42+F43+F44)*J34 -> 2106349.857
C44: ='Other Inputs'!E61 -> 12 | D44: ='Other Inputs'!D61 -> 1885 | E44: ='Other Inputs'!F61 -> 5.5022 | F44: =C44*D44*E44 -> 124459.764
A46: V. Transportation (KR #20024) | C46: =+'Other Inputs'!E69 -> 5 | D46: =+'Other Inputs'!D69 -> 27000 | E46: =+'Other Inputs'!F69 -> 8.816 | F46: =C46*D46*E46 -> 1190160 | G46: =F46*J34 -> 1153032.159
A48: VI. Transportation (KR #20017) | C48: =+'Other Inputs'!E65 -> 3 | D48: =+'Other Inputs'!D65 -> 56925 | E48: =+'Other Inputs'!F65 -> 8.796666667 | F48: =C48*D48*E48 -> 1502250.75 | G48: =F48*J34 -> 1455387.029
C49: =+'Other Inputs'!E67 -> 2 | D49: =+'Other Inputs'!D67 -> 6000 | E49: =+'Other Inputs'!F67 -> 8.845 | F49: =C49*D49*E49 -> 106140 | G49: =F49*J34 -> 102828.8914
A51: VIII. Trans (KR 2003 Expansion) | B51: ='Other Inputs'!C74 -> 0.7475999815 | C51: ='Other Inputs'!E73 -> 366 | D51: ='Other Inputs'!D73 -> 34885 | E51: ='Other Inputs'!F73 -> 0.0044 | F51: =B51*C51*D51*E51 -> 41999.27283
B52: ='Other Inputs'!C73 -> 0.7475999815 | C52: ='Other Inputs'!E74 -> 152 | D52: ='Other Inputs'!D74 -> 50000 | E52: ='Other Inputs'!F74 -> 0.0044 | F52: =B52*C52*D52*E52 -> 24999.74338 | G52: =(F51+F52)*J39 -> 64912.94372
A54: IX. Transportation (KR #20024) | B54: =+'Other Inputs'!C80 -> 0.7475999815 | C54: =+'Other Inputs'!E80 -> 152 | D54: =+'Other Inputs'!D80 -> 27000 | E54: =+'Other Inputs'!F80 -> 0.0044 | F54: =B54*C54*D54*E54 -> 13499.86143 | G54: =+F54*J39 -> 13079.53153
A56: X. Trans (KR #20017) | B56: =+'Other Inputs'!C77 -> 0.7475999815 | C56: =+'Other Inputs'!E77 -> 91 | D56: =+'Other Inputs'!D77 -> 56925 | E56: =+'Other Inputs'!F77 -> 0.0044 | F56: =B56*C56*D56*E56 -> 17039.87443
B57: =+'Other Inputs'!C78 -> 0.7475999815 | C57: =+'Other Inputs'!E78 -> 61 | D57: =+'Other Inputs'!D78 -> 6000 | E57: =+'Other Inputs'!F78 -> 0.0044 | F57: =B57*C57*D57*E57 -> 1203.93501 | G57: =(F56+F57)*J39 -> 17675.77261
A59: XII. Other Trans | F59: ='Other Inputs'!$D$186 -> 2536572.675 | G59: =F59*$J$39 -> 2457594.284
A61: Storage Commodity | F61: =+'Ut 1.4 p2'!J29 -> 459666 | G61: =+F61*J39 -> 445353.9003
A62: Total ACA | D62: =+'Ut 1.4 p1'!F41 -> 133629223 | E62: =+'Ut 1.4 p1'!J41 -> 0.0015 | F62: =+D62*E62 -> 200443.8344 | G62: =+F62*J39 -> 194202.8418
A64: XIV. Storage Demand | C64: 12 | D64: ='Other Inputs'!E171 -> 184625 | E64: ='Other Inputs'!E14 -> 2.87375 | F64: =C64*D64*E64 -> 6366793.125
C65: 5 | D65: =+'Other Inputs'!E172 -> 0 | E65: =+'Other Inputs'!E15 -> 0 | F65: =C65*D65*E65 -> 0
C66: 12 | D66: ='Other Inputs'!E173 -> 111827 | E66: ='Other Inputs'!E16 -> 2.85338 | F66: =C66*D66*E66 -> 3829019.103
C67: 12 | D67: ='Other Inputs'!E174 -> 13419000 | E67: ='Other Inputs'!E17 -> 0.02378 | F67: =C67*D67*E67 -> 3829245.84 | G67: =SUM(F64:F67)*J34 -> 13587536.96
A69: XV. Peak Hour Service | C69: =+'Other Inputs'!E20 -> 3 | D69: =+'Other Inputs'!D20 -> 28752 | E69: =+'Other Inputs'!F20 -> 16.1 | F69: =C69*D69*E69 -> 1388721.6 | G69: =F69*J34 -> 1345399.497
C70: =+'Other Inputs'!E23 -> 3 | D70: =+'Other Inputs'!D23 -> 74666.66667 | E70: =+'Other Inputs'!F23 -> 7.357482143 | F70: =C70*D70*E70 -> 1648076 | G70: =F70*J34 -> 1596663.162
A72: LNG Electric Costs | C72: 12 | F72: =+'Ut 1.4 p2'!K34 -> 2295625.31 | G72: =+F72 -> 2295625.31
A75: Total Supplier Non-Gas Costs | G75: =G26+G32+G34+G35+G43+G52+G59+G67++G46+G48+G49+G54+G57+G69+G70+G61+G62+G37+G39+G40+G72 -> 87226779.34

Sheet Wy SDR#1 (hidden)
A1: Wyoming Standard Data Request #1
A2: Global Insights Forecast

Sheet SDR#3
I1: ='Control Panel'!F32 -> Dominion Energy Utah
I2: ='Control Panel'!F33 -> Docket No. 23-057-03
C5: Standard Data Request #3
C6: Monthly Forecasted Sales
D8: Utah Sales | F8: Wyoming Sales | H8: System Total
C9: Month | D9: Dth | F9: Dth | H9: Dth
B11: 1 | C11: =Calculations!D147 -> Mar23 | D11: =Calculations!D20 -> 13433023 | F11: =Calculations!D39 -> 448594 | H11: =SUM(D11:F11) -> 13881617
B13: =B11+1 -> 2 | C13: =Calculations!E147 -> Apr23 | D13: =Calculations!E20 -> 9017969 | F13: =Calculations!E39 -> 329671 | H13: =SUM(D13:F13) -> 9347640
B15: =B13+1 -> 3 | C15: =Calculations!F147 -> May23 | D15: =Calculations!F20 -> 5391667 | F15: =Calculations!F39 -> 219398 | H15: 5611065
B17: =B15+1 -> 4 | C17: =Calculations!G147 -> Jun23 | D17: =Calculations!G20 -> 3071369 | F17: =Calculations!G39 -> 105674 | H17: 3177043
B19: =B17+1 -> 5 | C19: =Calculations!H147 -> Jul23 | D19: =Calculations!H20 -> 2584396 | F19: =Calculations!H39 -> 68869 | H19: 2653265
B21: =B19+1 -> 6 | C21: =Calculations!I147 -> Aug23 | D21: =Calculations!I20 -> 2544456 | F21: =Calculations!I39 -> 70192 | H21: 2614648
B23: =B21+1 -> 7 | C23: =Calculations!J147 -> Sep23 | D23: =Calculations!J20 -> 2986836 | F23: =Calculations!J39 -> 98227 | H23: 3085063
B25: =B23+1 -> 8 | C25: =Calculations!K147 -> Oct23 | D25: =Calculations!K20 -> 7219038 | F25: =Calculations!K39 -> 228147 | H25: 7447185
B27: =B25+1 -> 9 | C27: =Calculations!L147 -> Nov23 | D27: =Calculations!L20 -> 12420297 | F27: =Calculations!L39 -> 421821 | H27: 12842118
B29: =B27+1 -> 10 | C29: =Calculations!M147 -> Dec23 | D29: =Calculations!M20 -> 18926251 | F29: =Calculations!M39 -> 594379 | H29: 19520630
B31: =B29+1 -> 11 | C31: =Calculations!N147 -> Jan24 | D31: =Calculations!N20 -> 20849761 | F31: =Calculations!N39 -> 603234 | H31: 21452995
B33: =B31+1 -> 12 | C33: =Calculations!O147 -> Feb24 | D33: =Calculations!O20 -> 17412549 | F33: =Calculations!O39 -> 535048 | H33: 17947597
B36: =B33+1 -> 13 | C36: Total Sales (Dth) | D36: =SUM(D11:D33) -> 115857612 | F36: =SUM(F11:F33) -> 3723254 | H36: =SUM(H11:H33) -> 119580866

Sheet SDR#4
H1: ='Control Panel'!F32 -> Dominion Energy Utah
H2: ='Control Panel'!F33 -> Docket No. 23-057-03
C5: Standard Data Request #4
C6: Supplier Non-Gas Costs Recovered at Current Rates
C9: (A) | D9: (B) | E9: (C) | F9: (D) | G9: (E)
B10: 1 | C10: Rate Schedule | D10: Season | E10: Sales Dth | F10: SNG Rate | G10: SNG Revenue
B12: =B10+1 -> 2 | C12: GS | D12: winter | E12: ='Utah Summary-by class'!B8 -> 81479350 | F12: ='Utah Summary-by class'!J8 -> 0.9468 | G12: =E12*F12 -> 77144648.58
B13: =B12+1 -> 3 | D13: summer | E13: ='Utah Summary-by class'!B9 -> 31228294 | F13: ='Utah Summary-by class'!J9 -> 0.39825 | G13: =E13*F13 -> 12436668.09
B15: =B13+1 -> 4 | C15: FS | D15: winter | E15: ='Utah Summary-by class'!B13 -> 1280686 | F15: ='Utah Summary-by class'!J13 -> 0.93299 | G15: =E15*F15 -> 1194867.231
B16: =B15+1 -> 5 | D16: summer | E16: ='Utah Summary-by class'!B14 -> 1308506 | F16: ='Utah Summary-by class'!J14 -> 0.77862 | G16: =E16*F16 -> 1018828.942
B18: =B16+1 -> 6 | C18: NGV | D18: annual | E18: ='Utah Summary-by class'!B18 -> 289772 | F18: ='Utah Summary-by class'!J18 -> 0.70443 | G18: =E18*F18 -> 204124.09
B20: =B18+1 -> 7 | C20: IS | D20: annual | E20: ='Utah Summary-by class'!B21 -> 271004 | F20: ='Utah Summary-by class'!J21 -> 0.17938 | G20: =E20*F20 -> 48612.69752
B23: =B20+1 -> 8 | C23: Total Supplier Non-Gas Costs | E23: =SUM(E12:E20) -> 115857612 | G23: =SUM(G12:G21) -> 92047749.63
C27: Rate Schedule | D27: Season | E27: Trans Dth | F27: SNG Rate | G27: SNG Revenue
B28: 9 | C28: TSS/TSM/TSL | D28: annual | E28: ='Utah Summary-by class'!B23 -> 202522 | F28: ='Utah Summary-by class'!J23 -> 2.15694 | G28: =E28*F28 -> 436827.8027
B30: 10 | C30: TBF | D30: annual | E30: ='Utah Summary-by class'!B25 -> 45000 | F30: ='Utah Summary-by class'!J25 -> 1.43699 | G30: =E30*F30 -> 64664.55
B33: 11 | C33: Total Supplier Non-Gas Costs | E33: =SUM(E28:E30) -> 247522 | G33: =SUM(G28:G30) -> 501492.3527

Sheet Current Exh Updated Exh (hidden)
B8: Current Exhibits to Proposed Exhibits
B12: Current Exhibit | C12: Description of Exhibit | D12: Proposed Exhibit | E12: Comments
B13: 1.1 | C13: Company Production with detailed well information | D13: 1.2 p1 | E13: Detail of well info in electronic model
B14: 1.2 | C14: Purchased Gas Costs | D14: 1.2 p4
B15: 1.3 p1 | C15: Transportation | D15: 1.4 p1
C16: Gathering | D16: 1.2 p3
B17: 1.3 p2 | C17: Storage | D17: 1.4 p3
C18: Working Gas Charges | D18: 1.2 p5
B19: 1.4 p1 | C19: Gas Related Costs and Revenue Credits | D19: 1.2 p3
B20: 1.4 p2 | C20: Cost of Storage Gas | D20: 1.2 p5
B21: 1.4 p3 | C21: Other Revenues | D21: 1.2 p2
B22: 1.5 | C22: Gas Cost Allocation | D22: 1.1 p2
B23: 1.6 p1 | C23: Commodity Change and New Rates | D23: 1.5 p1
B24: 1.6 p2 | C24: Supplier Non-Gas Change | D24: 1.5 p2
B25: 1.6 p3 | C25: Supplier Non-Gas New Rates | D25: 1.5 p3 | E25: Detail of calculation updated
B26: 1.7 | C26: Effect on GS Typical Customer | D26: 1.6
B27: 1.8 | C27: Legislative/Proposed Rate Schedules | D27: 1.7
B28: 1.9 | C28: Dominion Energy Questar Pipeline, LLC Tariff Rates | D28: - | E28: Removed as an exhibit
B29: 1.10 | C29: Confidential Comparison of Natural Gas Price Forecast | D29: 1.3
B30: 1.11 | C30: Legislative/Proposed Combined Rate Schedules | D30: 1.8

Sheet SDR#5
H1: Dominion Energy Utah
H2: =+'Control Panel'!F5 -> 23-057-03
B5: Standard Data Request #5
B6: RIN Proceeds
F8: Total | G8: Volumes | H8: Rate
A9: Total RIN Proceeds | F9: -139370.1849 | G9: 289772 | H9: -0.4809649826
B11: Month | C11: NGV Dths | D11: Rate | E11: Refund
A12: estimate | B12: 2022-09-01 | C12: 20224.652 | D12: -0.33195 | E12: -6713.573231
A13: estimate | B13: 2022-10-01 | C13: 17660.12 | D13: -0.33195 | E13: -5862.276834
C15: Estimated Dths | E15: =SUM(E12:E14) -> -12575.85007
B17: 2022-09-01 | C17: 26294.878 | D17: -0.33195 | E17: -8728.584752
B18: 2022-10-01 | C18: 21010.447 | D18: -0.33195 | E18: -6974.417882
C20: Actual Dths | E20: =SUM(E17:E19) -> -15703.00263
A21: True up of Estimated Volumes | F21: =E20-E15 -> -3127.152568
B23: Month | C23: NGV Dths | D23: Rate | E23: Refunded
B25: 2022-11-01 | C25: 22515.422 | D25: -0.4809649826 | E25: -10829.12955
B26: 2022-12-01 | C26: 18842.325 | D26: -0.4809649826 | E26: -9062.498515
A27: estimate | B27: 2023-01-01 | C27: 24125 | D27: -0.4809649826 | E27: -11603.2802
A28: estimate | B28: 2023-02-01 | C28: 24867 | D28: -0.4809649826 | E28: -11960.15622
D29: Expected Amortized Total | F29: =SUM(E25:E28) -> -43455.06449
A31: Remaining to be Amortized | F31: =F9-F21-F29 -> -92787.96787
B33: Document No. | C33: Date | D33: RIN Proceed
B34: 1800000288 | C34: 2022-09-07 | D34: 3289.5
B35: 1800000430 | C35: 2022-12-21 | D35: 72464.25
A47: New RIN Proceeds | F47: =SUM(D34:D46) -> 75753.75
A49: Total RIN Proceeds | F49: =F31-F47 -> -168541.7179 | G49: ='RevRun Fcst'!T66 -> 289772 | H49: =F49/G49 -> -0.5816356234

Sheet Ut 1.1 p1
F1: ='Control Panel'!$F$32 -> Dominion Energy Utah
F2: ='Control Panel'!$F$33 -> Docket No. 23-057-03
F3: DEU Exhibit 1.1
F4: Page 1 of 2
B9: TABLE OF CONTENTS
B14: DEU Exhibit | D14: Description | E14: Type
B16: 1.1 | C16: Page 2 | D16: Test-Year Gas Cost Allocation | E16: Summary
B18: 1.2 | C18: Page 1 | D18: Test-Year Royalties & Company Production | E18: Commodity
C19: Page 2 | D19: Test-Year Other Revenues | E19: Commodity
C20: Page 3 | D20: Summary of Wexpro Test-Year Gas Costs and Revenue Credits | E20: Commodity
C21: Page 4 | D21: Test-Year Purchased Gas Costs | E21: Commodity
C22: Page 5 | D22: Test-Year Storage Gas & Working Gas Charges | E22: Commodity
C23: Page 6 | D23: Test-Year LNG Purchased Gas, Storage Gas & Working Gas Charges | E23: Commodity
B25: 1.3 | D25: Confidential Comparison of Natural Gas Price Forecasts | E25: Commodity
B27: 1.4 | C27: Page 1 | D27: Test-Year Transportation Charges | E27: SNG
C28: Page 2 | D28: Test-Year Storage Charges and LNG Electricity Costs | E28: SNG
C29: Page 3 | D29: Supplier Non-Gas Cost Class Allocation | E29: SNG
C30: Page 4 | D30: Supplier Non-Gas Cost Summary | E30: SNG
B32: 1.5 | C32: Page 1 | D32: Test-Year Gas Cost Change | E32: Commodity
C33: Page 2 | D33: Test-Year Supplier Non-Gas Cost Change | E33: SNG
C34: Page 3 | D34: Supplier Non-Gas Rate Calculation | E34: SNG
C35: Page 4 | D35: General Service Summer / Winter Differential | E35: SNG
C36: Page 5 | D36: Firm Service Summer / Winter Differential | E36: SNG
C37: Page 6 | D37: Summary of Rates | E37: Summary
B39: 1.6 | D39: Effect on GS Typical Customer 70 Dth | E39: Summary
B41: 1.7 | C41: Page1-8 | D41: Legislative Rate Schedules | E41: Summary
C42: Page 9-17 | D42: Proposed Rate Schedules | E42: Summary
B44: 1.8 | C44: Page1-8 | D44: Legislative Combined Rate Schedules | E44: Summary
C45: Page 9-17 | D45: Proposed Combined Rate Schedules | E45: Summary

Sheet Ut 1.1 p2
I1: ='Control Panel'!$F$32 -> Dominion Energy Utah
I2: ='Control Panel'!$F$33 -> Docket No. 23-057-03
I3: DEU Exhibit 1.1
I4: Page 2 of 2
C8: TEST-YEAR GAS COST ALLOCATION
C11: (A) | E11: (B) | F11: (C) | G11: (D) | H11: (E)
E12: Allocation
E13: Factor 1/ | F13: System | G13: Wyoming | H13: Utah
B15: COMMODITY
A16: 1 | C16: Dominion Energy Production (DEU Exhibit 1.2, p 1) | E16: 2 | F16: ='Ut 1.2 p3'!E15+'Ut 1.2 p3'!E28 -> 272165275.4 | G16: =CHOOSE($E16,G$58,G$61)*$F16 -> 8474101.956 | H16: 263691173.5
A17: =A16+1 -> 2 | C17: Other Revenue's Credit (DEU Exhibit 1.2, p 2) | E17: 2 | F17: ='Ut 1.2 p3'!E16+'Ut 1.2 p3'!E29+'Ut 1.2 p3'!E47 -> -42153987.63 | G17: -1312500.974 | H17: -40841486.65
A18: =A17+1 -> 3 | C18: Gathering (DEU Exhibit 1.2, p 3, ln 4) | D18: - Demand | E18: 1 | F18: ='Ut 1.2 p3'!E19 -> 2887809.099 | G18: 90087.14506 | H18: 2797721.954
A19: =A18+1 -> 4 | C19: Gathering (DEU Exhibit 1.2, p 3, lns 5, 6, 12) | D19: - Commodity | E19: 2 | F19: ='Ut 1.2 p3'!E21+'Ut 1.2 p3'!E20+'Ut 1.2 p3'!E32 -> 4146627.951 | G19: 129108.8585 | H19: 4017519.092
A20: =A19+1 -> 5 | C20: Net Cost of Dominion Energy Production | F20: =SUM(F16:F19) -> 237045724.9 | G20: =SUM(G16:G19) -> 7380796.986 | H20: =SUM(H16:H19) -> 229664927.9
A22: =A20+1 -> 6 | C22: Dominion Energy Contract Gas (DEU Exhibit 1.2, p 4) | E22: 2 | F22: ='Ut 1.2 p4'!E25 -> 476756760 | G22: =CHOOSE($E22,G$58,G$61)*$F22 -> 14844235.31 | H22: =CHOOSE($E22,H$58,H$61)*$F22 -> 461912524.7
A23: =A22+1 -> 7 | C23: LNG Purchased Gas (DEU Exhibit 1.2, p 6, ln 1) | F23: ='Ut 1.2 p6'!E17 -> 5241242.88 | G23: 0 | H23: =F23 -> 5241242.88
A25: 8 | C25: Injection / Withdrawal Adjustment (DEU Exhibit 1.2, p 5, ln 3) | E25: 2 | F25: ='Ut 1.2 p5'!E21 -> -528118.3005 | G25: =CHOOSE($E25,G$58,G$61)*$F25 -> -16443.42143 | H25: =CHOOSE($E25,H$58,H$61)*$F25 -> -511674.8791
A26: =A25+1 -> 9 | C26: LNG Injection / Withdrawal Adjustment (DEU Exhibit 1.2, p 6, ln 4) | E26: UT | F26: ='Ut 1.2 p6'!E26 -> -4559859.752 | G26: 0 | H26: =F26 -> -4559859.752
A28: 10 | C28: Working Gas Costs (DEU Exhibit 1.2, p 5, ln 17) | E28: 2 | F28: ='Ut 1.2 p5'!I43 -> 2303045.248 | G28: =CHOOSE($E28,G$58,G$61)*$F28 -> 71707.3117 | H28: =CHOOSE($E28,H$58,H$61)*$F28 -> 2231337.936
A29: =A28+1 -> 11 | C29: LNG Working Gas Costs (DEU Exhibit 1.2, p 6, ln 18) | E29: UT | F29: ='Ut 1.2 p6'!I48 -> 264846.2633 | G29: 0 | H29: =F29 -> 264846.2633
A32: =A29+1 -> 12 | C32: TOTAL COMMODITY | F32: =SUM(F20:F30) -> 716523641.2 | G32: =SUM(G20:G30) -> 22280296.19 | H32: =SUM(H20:H30) -> 694243345
B34: SNG
A35: =A32+1 -> 13 | C35: Transportation (DEU Exhibit 1.4, p 1, ln 15) | D35: - Demand | E35: 1 | F35: ='Ut 1.4 p1'!M36 -> 67014704 | G35: =CHOOSE($E35,G$58,G$61)*$F35 -> 2090568.716 | H35: =CHOOSE($E35,H$58,H$61)*$F35 -> 64924135.28
A36: =A35+1 -> 14 | C36: Transportation (DEU Exhibit 1.4, p 1, ln 25) | D36: - Commodity | E36: 2 | F36: ='Ut 1.4 p1'!M55 -> 592932 | G36: =CHOOSE($E36,G$58,G$61)*$F36 -> 18461.45219 | H36: =CHOOSE($E36,H$58,H$61)*$F36 -> 574470.5478
A38: =A36+1 -> 15 | C38: Other Transportation (DEU Exhibit 1.4, p 1, ln 26) | E38: 2 | F38: ='Ut 1.4 p1'!M59 -> 2536573 | G38: =CHOOSE($E38,G$58,G$61)*$F38 -> 78978.40085 | H38: =CHOOSE($E38,H$58,H$61)*$F38 -> 2457594.599
A40: =A38+1 -> 16 | C40: Peak Hour Service (DEU Exhibit 1.4, p 1, ln 29) | E40: 1 | F40: ='Ut 1.4 p1'!L65+'Ut 1.4 p1'!L66 -> 3036798 | G40: =CHOOSE($E40,G$58,G$61)*$F40 -> 94734.95395 | H40: =CHOOSE($E40,H$58,H$61)*$F40 -> 2942063.046
A42: =A40+1 -> 17 | C42: Storage (DEU Exhibit 1.4, p 2, ln 5) | D42: - Demand | E42: 1 | F42: ='Ut 1.4 p2'!J20 -> 14025058 | G42: =CHOOSE($E42,G$58,G$61)*$F42 -> 437521.1073 | H42: =CHOOSE($E42,H$58,H$61)*$F42 -> 13587536.89
A43: =A42+1 -> 18 | C43: Storage (DEU Exhibit 1.4, p 2, ln 12) | D43: - Commodity | E43: 2 | F43: ='Ut 1.4 p2'!J29 -> 459666 | G43: =CHOOSE($E43,G$58,G$61)*$F43 -> 14312.09967 | H43: =CHOOSE($E43,H$58,H$61)*$F43 -> 445353.9003
A45: =A43+1 -> 19 | C45: LNG Electricity Costs (DEU Exhibit 1.4, p 2, ln 14) | E45: UT | F45: ='Ut 1.4 p2'!K34 -> 2295625.31 | G45: 0 | H45: =F45 -> 2295625.31
A48: =A45+1 -> 20 | C48: TOTAL SNG | F48: =SUM(F35:F45) -> 89961356.31 | G48: =SUM(G35:G45) -> 2734576.73 | H48: =SUM(H35:H45) -> 87226779.58
A51: =A48+1 -> 21 | C51: TOTAL GAS COST | F51: =F32+F48 -> 806484997.5 | G51: =G32+G48 -> 25014872.92 | H51: =H32+H48 -> 781470124.6
A55: 1/ | C55: Allocation Factors | F55: Total | G55: Wyoming | H55: Utah
C57: #1 Peak Day Demand | E57: Dth- | F57: =SUM(G57:H57) -> 1263733 | G57: ='Other Inputs'!$E$147 -> 39423 | H57: ='Other Inputs'!$E$146 -> 1224310
E58: Percent- | F58: =G58+H58 -> 1 | G58: =G57/F57 -> 0.03119567187 | H58: =H57/F57 -> 0.9688043281
C60: #2 Commodity Sales - All | E60: Dth- | F60: =G60+H60 -> 119580866 | G60: ='Ut 1.5 p1'!H22 -> 3723254 | H60: ='Ut 1.5 p1'!H21 -> 115857612
E61: Percent- | F61: =G61+H61 -> 1 | G61: =G60/F60 -> 0.03113586751 | H61: =H60/F60 -> 0.9688641325
C63: #UT Utah Only | F63: =G63+H63 -> 1 | G63: 0 | H63: 1

Sheet Ut 1.2 p1
H1: Dominion Energy Utah
H2: ='Control Panel'!$F$33 -> Docket No. 23-057-03
H3: DEU Exhibit 1.2
H4: Page 1 of 6
C8: TEST-YEAR ROYALTIES & COMPANY PRODUCTION
B10: COMMODITY
C11: (A) | E11: (B) | G11: (C)
E12: Base Year | G12: Test-Year
E13: Dth | G13: Royalty $
B15: WEXPRO I
A16: =A15+1 -> 1 | C16: Royalties Based on Historical Production | E16: =+'Royalty Detail'!F1412 -> 40435278 | G16: =+'Royalty Detail'!I1412 -> 31519431.37
A18: =A16+1 -> 2 | C18: Test-Year Adjustment for IRP Production Forecast | E18: =+'Royalty Detail'!F1414 -> -256630.1048 | G18: =G16/E16*E18 -> -200044.0056
A21: =A18+1 -> 3 | C21: Total Wexpro I Test-Year Royalties | G21: =G16+G18 -> 31319387.36
A23: =A21+1 -> 4 | C23: Wexpro I Operator Service Fee | G23: ='Monthly Inputs'!S117 -> 172323405.4
A26: =A23+1 -> 5 | C26: Total Wexpro I Company Production (IRP Forecast) | E26: =+'Monthly Inputs'!S7 -> 40178647.9 | G26: =G21+G23 -> 203642792.8
B30: WEXPRO II
A31: =A26+1 -> 6 | C31: Royalties Based on Historical Production | E31: =+'Royalty Detail'!F1687 -> 15065376.51 | G31: =+'Royalty Detail'!I1687 -> 11657572.76
A33: =A31+1 -> 7 | C33: Test-Year Adjustment for IRP Production Forecast | E33: =+'Royalty Detail'!F1689 -> 3209887.911 | G33: =G31/E31*E33 -> 2483807.944
A36: =A33+1 -> 8 | C36: Total Wexpro II Test-Year Royalties | G36: =G31+G33 -> 14141380.7
A38: =A36+1 -> 9 | C38: Wexpro II Operator Service Fee | G38: ='Monthly Inputs'!S119 -> 54381101.96
A41: =A38+1 -> 10 | C41: Total Wexpro II Company Production (IRP Forecast) | E41: ='Monthly Inputs'!S13 -> 18275264.42 | G41: =G36+G38 -> 68522482.66
B45: TOTAL WEXPRO
A46: =A41+1 -> 11 | C46: Total Wexpro Test-Year Royalties | G46: =G36+G21 -> 45460768.06
A48: =A46+1 -> 12 | C48: Total Wexpro Operator Service Fee | G48: =G38+G23 -> 226704507.4
A51: =A48+1 -> 13 | C51: Total Wexpro Company Production | E51: =E41+E26 -> 58453912.32 | G51: =G46+G48 -> 272165275.4

Sheet Ut 1.2 p2
K1: ='Control Panel'!$F$32 -> Dominion Energy Utah
K2: ='Control Panel'!$F$33 -> Docket No. 23-057-03
K3: DEU Exhibit 1.2
K4: Page 2 of 6
D8: TEST-YEAR OTHER REVENUES 1/
B10: COMMODITY
C11: (A) | E11: (B) | F11: (C) | G11: (D)
C12: Account | G12: =Expenses!P2 -> 12 Months Ending
C13: Number | E13: Account Name | G13: ='Control Panel'!F7 -> 2024-02-29
C14: WEXPRO I
B15: 1 | D15: 483 | E15: Sales for Resale | H15: ='Other Inputs'!F210 -> 2003196.132
B17: =B15+1 -> 2 | D17: 490 | E17: Plant By-Product | H17: ='Other Inputs'!F211 -> 7026001.917
B19: =B17+1 -> 3 | D19: 492 | E19: Gasoline and Oil Sales | F19: ='Other Inputs'!F212 -> 797419.2178
B20: =B19+1 -> 4 | D20: 758-1 | E20: Gasoline and Oil Cost | F20: ='Other Inputs'!F216 -> -112046.4146
B21: =B20+1 -> 5 | E21: Net Gasoline and Oil Sales | H21: =F19+F20 -> 685372.8033
B23: =B21+1 -> 6 | D23: 495-1 | E23: Overriding Royalty Revenue | H23: ='Other Inputs'!F213 -> 17399077.92
B25: =B23+1 -> 7 | D25: 495-2 | E25: Oil Revenue Received from Wexpro | H25: ='Other Inputs'!F214 -> 1757875.079
B27: =B25+1 -> 8 | E27: 3rd Party & Liquids Credits from MLPX Acquisition | H27: ='Other Inputs'!F215 -> 4410624.594
B29: 9 | E29: EDIT Amortization | H29: ='Other Inputs'!F217 -> 4770564
B32: 10 | E32: Total Wexpro I | H32: =SUM(H15:H30) -> 38052712.44
C34: WEXPRO II
B35: =B32+1 -> 11 | D35: 483 | E35: Sales for Resale | H35: ='Other Inputs'!E233 -> 0
B37: =B35+1 -> 12 | D37: 490 | E37: Plant By-Product | H37: ='Other Inputs'!E234 -> 1979343.42
B39: =B37+1 -> 13 | D39: 492 | E39: Gasoline and Oil Sales | F39: ='Other Inputs'!E235 -> 1555767.183
B40: =B39+1 -> 14 | D40: 758-1 | E40: Gasoline and Oil Cost | F40: ='Other Inputs'!E238 -> -211363.3172
B41: =B40+1 -> 15 | E41: Net Gasoline and Oil Sales | H41: =F39+F40 -> 1344403.866
B43: =B41+1 -> 16 | D43: 495-1 | E43: Overriding Royalty Revenue | H43: ='Other Inputs'!E236 -> 0
B45: =B43+1 -> 17 | D45: 495-2 | E45: Oil Revenue Received from Wexpro | H45: ='Other Inputs'!E237 -> 681299.8939
B47: 18 | E47: EDIT Amortization | H47: ='Other Inputs'!F239 -> 96228
B50: 19 | E50: Total Wexpro II | H50: =SUM(H35:H48) -> 4101275.18
B52: =1+B50 -> 20 | E52: Sales of Cost-of-Service Gas | H52: ='Other Inputs'!E245 -> 0
B55: =B52+1 -> 21 | E55: Grand Total (Line 10 + Line 19 + Line 20) | H55: =H32+H50+H52 -> 42153987.63
B59: 1/ | D59: Forecasted 12-month test year.

Sheet Ut 1.2 p3
G1: ='Control Panel'!$F$32 -> Dominion Energy Utah
G2: ='Control Panel'!$F$33 -> Docket No. 23-057-03
G3: DEU Exhibit 1.2
G4: Page 3 of 6
B8: SUMMARY OF WEXPRO TEST-YEAR GAS COSTS AND REVENUES CREDITS
B10: COMMODITY
B11: (A) | E11: (B) | F11: (C) | G11: (D)
B12: Component | E12: Costs | F12: Dth 1/ | G12: $ per Dth
B14: WEXPRO I
A15: 1 | C15: Dominion Energy Production 2/ | E15: ='Other Inputs'!D203 -> 203642792.8
A16: =A15+1 -> 2 | C16: Wexpro I Revenue Sharing Credits 3/ | E16: =-'Ut 1.2 p2'!H32 -> -38052712.44
A17: =A16+1 -> 3 | D17: Net Dominion Energy Production Costs | E17: =E15+E16 -> 165590080.3 | F17: =F25 -> 38571501.98 | G17: =E17/F25 -> 4.293067986
A19: =A17+1 -> 4 | C19: Gathering Demand | E19: ='Other Inputs'!E192 -> 2887809.099
A20: =A19+1 -> 5 | C20: Gathering Commodity | E20: ='Other Inputs'!D192 -> 1925206.066
A21: =A20+1 -> 6 | C21: Gathering Other Charges | E21: =ROUND('Other Inputs'!D184,0) -> 1414923
A22: =A21+1 -> 7 | D22: Gathering | E22: =SUM(E19:E21) -> 6227938.164
A25: =A22+1 -> 8 | B25: Total Wexpro I Cost of Production | E25: =E17+E22 -> 171818018.5 | F25: ='Monthly Inputs'!S7*(1-'Other Inputs'!E278) -> 38571501.98 | G25: =E25/F25 -> 4.454532743
B27: WEXPRO II
A28: =A25+1 -> 9 | C28: Wexpro II Production 4/ | E28: ='Other Inputs'!D226 -> 68522482.66
A29: =A28+1 -> 10 | C29: Wexpro II Revenue Sharing Credits 5/ | E29: =-'Ut 1.2 p2'!H50 -> -4101275.18
A30: =A29+1 -> 11 | D30: Net Cost of Wexpro II Production | E30: =E28+E29 -> 64421207.48 | F30: =F35 -> 17544253.84 | G30: =E30/F35 -> 3.671926321
A32: =A30+1 -> 12 | D32: Gathering | E32: ='Other Inputs'!D195 -> 806498.885
A35: =A32+1 -> 13 | B35: Total Wexpro II Cost of Production | E35: =SUM(E30:E32) -> 65227706.36 | F35: ='Monthly Inputs'!S13*(1-'Other Inputs'!E278) -> 17544253.84 | G35: =E35/F35 -> 3.717895725
B37: TOTAL WEXPRO
A38: =A35+1 -> 14 | C38: Total Wexpro Production | E38: =E15+E28 -> 272165275.4
A39: =A38+1 -> 15 | C39: Total Wexpro Revenue Sharing Credits | E39: =E16+E29 -> -42153987.63
A40: =A39+1 -> 16 | D40: Net Cost of Total Wexpro Production | E40: =E38+E39 -> 230011287.8 | F40: =F25+F35 -> 56115755.82 | G40: =E40/F45 -> 4.098871777
A42: =A40+1 -> 17 | D42: Total Wexpro Gathering | E42: =E22+E32 -> 7034437.049
A45: =A42+1 -> 18 | B45: Total Wexpro Cost of Production | E45: =SUM(E40:E42) -> 237045724.9 | F45: =F25+F35 -> 56115755.82 | G45: =E45/F45 -> 4.224227606
A47: =A45+1 -> 19 | B47: Sales of Cost-of-Service Gas 6/ | E47: =-'Other Inputs'!E245 -> 0 | F47: ='Other Inputs'!F245 -> 0 | G47: ='Other Inputs'!G245 -> 0
A50: =A47+1 -> 20 | B50: Total Cost-of-Service Production | E50: =E25+E35+E47 -> 237045724.9 | F50: =F25+F35 -> 56115755.82 | G50: =E50/F50 -> 4.224227606
A54: 1/ | B54: Estimated into-pipe volumes used for Wexpro dths.
A55: 2/ | B55: DEU Exhibit 1.2, Page 1, Line 5.
A56: 3/ | B56: DEU Exhibit 1.2, Page 2, Line 10.
A57: 4/ | B57: DEU Exhibit 1.2, Page 1, Line 10.
A58: 5/ | B58: DEU Exhibit 1.2, Page 2, Line 19.
A59: 6/ | B59: DEU Exhibit 1.2, Page 2, Line 20.

Sheet Ut 1.2 p4
H1: ='Control Panel'!$F$32 -> Dominion Energy Utah
H2: ='Control Panel'!$F$33 -> Docket No. 23-057-03
H3: DEU Exhibit 1.2
H4: Page 4 of 6
A8: TEST-YEAR PURCHASED GAS COSTS
B10: COMMODITY
D11: (A) | E11: (B) | F11: (C) | G11: (D)
G12: Cost
C13: Component | E13: Total Cost | F13: Dth | G13: per Dth
B15: 1 | C15: Current Contracts | E15: =ROUND(Calculations!$P$196+Calculations!$P$199-E17-E16,0) -> 255490826
B16: 2 | C16: Fixed Price Contracts | E16: ='Monthly Inputs'!S104 -> 48076050
B17: 3 | C17: Stabilization Costs | E17: ='Monthly Inputs'!S101 -> 0
B18: =B16+1 -> 3 | D18: Total Current Contracts | E18: =E15+E16+E17 -> 303566876 | F18: =Calculations!$P$195+Calculations!$P$198 -> 31994000 | G18: =E18/F18 -> 9.488243921
B20: =B18+1 -> 4 | C20: Forecast Spot | E20: =ROUND(Calculations!P193,0) -> 172287049 | F20: =Calculations!$P$192 -> 33783364 | G20: =E20/F20 -> 5.099760018
B22: =B20+1 -> 5 | C22: Future Contracts | E22: =ROUND(Calculations!P202,0) -> 902835 | F22: =Calculations!P201 -> 219668 | G22: =E22/F22 -> 4.109997815
B25: =B22+1 -> 6 | C25: Total Gas Purchased | E25: =E18+E20+E22 -> 476756760 | F25: =F18+F20+F22 -> 65997032 | G25: =E25/F25 -> 7.22391213

Sheet Ut 1.2 p5
K1: ='Control Panel'!$F$32 -> Dominion Energy Utah
K2: ='Control Panel'!$F$33 -> Docket No. 23-057-03
K3: DEU Exhibit 1.2
K4: Page 5 of 6
B8: TEST-YEAR STORAGE GAS & WORKING GAS CHARGES
B10: COMMODITY
C11: (A) | E11: (B) | G11: (C) | I11: (D)
I12: Average
E13: Total Costs | G13: Dth | I13: Rate
B15: STORAGE GAS 1/
B17: 1 | C17: Withdrawals | E17: =G17*I17 -> 60326218.94 | G17: ='Monthly Inputs'!S37 -> 13011110 | I17: ='Ut Storage'!L27 -> 4.636515942
B18: 2 | C18: Injections | E18: =G18*I18 -> -60854337.24 | G18: =-'Monthly Inputs'!S29 -> -13303294 | I18: ='Ut Storage'!K27 -> 4.574381145
B21: =B18+1 -> 3 | C21: Storage Adjustment | E21: =E17+E18 -> -528118.3005
B24: WORKING GAS CHARGES
D26: Month | E26: Amount | G26: Pre-Tax Return % | I26: Total
B28: =B21+1 -> 4 | D28: ='Rate Base'!D$4 -> 2021-12-31 | E28: =+'Rate Base'!D11 -> 44932895.7
B29: =B28+1 -> 5 | D29: ='Rate Base'!E$4 -> 2022-01-31 | E29: =+'Rate Base'!E11 -> 32520297.1
B30: 6 | D30: ='Rate Base'!F$4 -> 2022-02-28 | E30: =+'Rate Base'!F11 -> 24327140.39
B31: 7 | D31: ='Rate Base'!G$4 -> 2022-03-31 | E31: =+'Rate Base'!G11 -> 13377221.65
B32: 8 | D32: ='Rate Base'!H$4 -> 2022-04-30 | E32: =+'Rate Base'!H11 -> 4611532.51
B33: 9 | D33: ='Rate Base'!I$4 -> 2022-05-31 | E33: =+'Rate Base'!I11 -> 4273987.86
B34: 10 | D34: ='Rate Base'!J$4 -> 2022-06-30 | E34: =+'Rate Base'!J11 -> 9042867.91
B35: 11 | D35: ='Rate Base'!K$4 -> 2022-07-31 | E35: =+'Rate Base'!K11 -> 16864248.25
B36: 12 | D36: ='Rate Base'!L$4 -> 2022-08-31 | E36: =+'Rate Base'!L11 -> 25992902.78
B37: 13 | D37: ='Rate Base'!M$4 -> 2022-09-30 | E37: =+'Rate Base'!M11 -> 40957960.21
B38: 14 | D38: ='Rate Base'!N$4 -> 2022-10-31 | E38: =+'Rate Base'!N11 -> 53451265.52
B39: 15 | D39: ='Rate Base'!O$4 -> 2022-11-30 | E39: =+'Rate Base'!O11 -> 54725203.51
B40: =B39+1 -> 16 | D40: ='Rate Base'!P$4 -> 2022-12-31 | E40: =+'Rate Base'!P11 -> 48124018.51
B43: =B40+1 -> 17 | C43: 12-Month Average 2/ | E43: =(SUM(E29:E39)+E28/2+E40/2)/12 -> 27222757.07 | F43: x | G43: ='Other Inputs'!E273 -> 0.0846 | H43: = | I43: =E43*G43 -> 2303045.248
B48: 1/ | C48: Dominion Energy planned volumes.
B49: 2/ | C49: (1/2 of Line 4 + sum of Lines 5-15 + 1/2 of Line 16) / 12

Sheet Ut 1.2 p6
K1: ='Control Panel'!$F$32 -> Dominion Energy Utah
K2: ='Control Panel'!$F$33 -> Docket No. 23-057-03
K3: DEU Exhibit 1.2
K4: Page 6 of 6
B8: TEST-YEAR LNG PURCHASED GAS, STORAGE GAS & WORKING GAS CHARGES
B10: COMMODITY
C11: (A) | E11: (B) | G11: (C) | I11: (D)
I12: Average
E13: Total Costs | G13: Dth | I13: Rate
B15: LNG PURCHASED GAS 1/
B17: =B13+1 -> 1 | C17: Total Gas Purchased | E17: =Calculations!P205 -> 5241242.88 | G17: =Calculations!P204 -> 1215000 | I17: =E17/G17 -> 4.313780148
B20: LNG STORAGE 1/
B22: =B17+1 -> 2 | C22: Withdrawals | E22: =G22*I22 -> 548957.944 | G22: ='Monthly Inputs'!S41 -> 108000 | I22: ='LNG Storage'!L27 -> 5.082943926
B23: =B22+1 -> 3 | C23: Injections | E23: =G23*I23 -> -5108817.696 | G23: =-'Monthly Inputs'!S40 -> -1215000 | I23: ='LNG Storage'!K27 -> 4.204788227
B26: =B23+1 -> 4 | C26: Storage Adjustment | E26: =E22+E23 -> -4559859.752
B29: WORKING LNG CHARGES
D31: Month | E31: Amount 2/ | G31: Pre-Tax Return % | I31: Total
B33: =B26+1 -> 5 | D33: ='Rate Base'!D$4 -> 2021-12-31 | E33: ='Rate Base'!$D$12 -> 1512116.55
B34: =B33+1 -> 6 | D34: ='Rate Base'!E$4 -> 2022-01-31 | E34: ='Rate Base'!$E$12 -> 1512116.55
B35: 7 | D35: ='Rate Base'!F$4 -> 2022-02-28 | E35: ='Rate Base'!$F$12 -> 1512116.55
B36: 8 | D36: ='Rate Base'!G$4 -> 2022-03-31 | E36: ='Rate Base'!$G$12 -> 1512116.55
B37: 9 | D37: ='Rate Base'!H$4 -> 2022-04-30 | E37: ='Rate Base'!$H$12 -> 1512116.55
B38: 10 | D38: ='Rate Base'!I$4 -> 2022-05-31 | E38: ='Rate Base'!$I$12 -> 2664570.047
B39: 11 | D39: ='Rate Base'!J$4 -> 2022-06-30 | E39: ='Rate Base'!$J$12 -> 3806155.355
B40: =B39+1 -> 12 | D40: ='Rate Base'!K$4 -> 2022-07-31 | E40: ='Rate Base'!$K$12 -> 4990327.127
B41: 13 | D41: ='Rate Base'!L$4 -> 2022-08-31 | E41: ='Rate Base'!$L$12 -> 6172289.971
B42: 14 | D42: ='Rate Base'!M$4 -> 2022-09-30 | E42: ='Rate Base'!$M$12 -> 6172289.971
B43: 15 | D43: ='Rate Base'!N$4 -> 2022-10-31 | E43: ='Rate Base'!$N$12 -> 6071976.302
B44: 16 | D44: ='Rate Base'!O$4 -> 2022-11-30 | E44: ='Rate Base'!$O$12 -> 128654.34
B45: 17 | D45: ='Rate Base'!P$4 -> 2022-12-31 | E45: ='Rate Base'!$P$12 -> 1512116.55
B48: =B45+1 -> 18 | C48: 12-Month Average 3/ | E48: =(SUM(E34:E44)+E33/2+E45/2)/12 -> 3130570.488 | F48: x | G48: ='Other Inputs'!E273 -> 0.0846 | H48: = | I48: =E48*G48 -> 264846.2633
B53: 1/ | C53: Dominion Energy planned volumes.
B54: 2/ | C54: Estimated monthly balance. When history established, balance updated for actuals.
B55: 3/ | C55: (1/2 of Line 5 + sum of Lines 6-16 + 1/2 of Line 17) / 12

Sheet Ut 1.3 Redacted
I1: REDACTED
P29: DEU Exhibit 1.3 | Q29: =CONCATENATE("Docket No. ",'Control Panel'!F5) -> Docket No. 23-057-03 | R29: Dominion Energy Utah

Sheet Ut 1.4 p1
N1: ='Control Panel'!$F$32 -> Dominion Energy Utah
N2: ='Control Panel'!$F$33 -> Docket No. 23-057-03
N3: DEU Exhibit 1.4
N4: Page 1 of 4
B8: TEST-YEAR TRANSPORTATION CHARGES
B10: SNG
B11: (A) | D11: (B) | F11: (C) | H11: (D) | J11: (E) | L11: (F) | M11: (G)
D12: Fctr | F12: Dth | H12: Months/Days | J12: Rate | M12: Total Costs
B14: TRANSPORTATION DEMAND
B16: Williams Demand
A17: 1 | B17: T-1 Transportation - Yearly | F17: ='Other Inputs'!D28+'Other Inputs'!D29+'Other Inputs'!D30 -> 840902 | G17: x | H17: ='Other Inputs'!E28 -> 12 | I17: x | J17: ='Other Inputs'!F28 -> 5.28804 | K17: = | L17: =ROUND(F17*H17*J17,0) -> 53360681
A18: =A17+1 -> 2 | B18: T-1 Transportation - Yearly | F18: ='Other Inputs'!D32 -> 100000 | G18: x | H18: ='Other Inputs'!E32 -> 12 | I18: x | J18: ='Other Inputs'!F32 -> 5.28804 | K18: = | L18: =ROUND(F18*H18*J18,0) -> 6345648
A19: =A18+1 -> 3 | B19: T-1 Transportation Nov-Mar | F19: ='Other Inputs'!D31 -> 75000 | G19: x | H19: ='Other Inputs'!E31 -> 5 | I19: x | J19: ='Other Inputs'!F31 -> 6.80887 | K19: = | L19: =ROUND(F19*H19*J19,0) -> 2553326
A20: =A19+1 -> 4 | B20: No-Notice Transportation | F20: ='Other Inputs'!D35 -> 203542 | G20: x | H20: ='Other Inputs'!E35 -> 12 | I20: x | J20: ='Other Inputs'!F35 -> 0.86753 | K20: = | L20: =ROUND(F20*H20*J20,0) -> 2118945
A21: =A20+1 -> 5 | B21: Capacity Release Credits | L21: =-ROUND('Other Inputs'!E284,0) -> -2502678
A22: =A21+1 -> 6 | C22: Total | L22: =SUM(L17:L21) -> 61875922
B24: Williams Demand
A25: =A22+1 -> 7 | B25: January - December | F25: ='Other Inputs'!D38 -> 8542 | G25: x | H25: ='Other Inputs'!E38 -> 12 | I25: x | J25: ='Other Inputs'!F38 -> 1.62 | K25: = | L25: =ROUND(F25*H25*J25,0) -> 166056
B27: Kern River Demand
A28: =A25+1 -> 8 | B28: January - December | F28: ='Other Inputs'!D61 -> 1885 | G28: x | H28: ='Other Inputs'!E61 -> 12 | I28: x | J28: ='Other Inputs'!F61 -> 5.5022 | K28: = | L28: =ROUND(F28*H28*J28,0) -> 124460
A29: =A28+1 -> 9 | B29: January - December | F29: ='Other Inputs'!D59 -> 33000 | G29: x | H29: ='Other Inputs'!E59 -> 12 | I29: x | J29: ='Other Inputs'!F59 -> 3.172933333 | K29: = | L29: 1256482
A30: =A29+1 -> 10 | B30: November - March | F30: ='Other Inputs'!D60 -> 50000 | G30: x | H30: ='Other Inputs'!E60 -> 5 | I30: x | J30: =J29 -> 3.172933333 | K30: = | L30: 793233
A31: 11 | B31: December - February | F31: ='Other Inputs'!D65 -> 56925 | G31: x | H31: ='Other Inputs'!E65 -> 3 | I31: x | J31: ='Other Inputs'!F65 -> 8.796666667 | K31: = | L31: 1502251
A32: 12 | B32: November & March | F32: ='Other Inputs'!D67 -> 6000 | G32: x | H32: ='Other Inputs'!E67 -> 2 | I32: x | J32: ='Other Inputs'!F67 -> 8.845 | K32: = | L32: 106140
A33: 13 | B33: November - March | F33: ='Other Inputs'!D69 -> 27000 | G33: x | H33: ='Other Inputs'!E69 -> 5 | I33: x | J33: ='Other Inputs'!F69 -> 8.816 | K33: = | L33: 1190160
A34: 14 | C34: Total | L34: =SUM(L28:L33) -> 4972726
A36: =A34+1 -> 15 | B36: Total Transportation Demand (SNG) | M36: =L22+L25+L34 -> 67014704
B39: TRANSPORTATION COMMODITY
A41: =A36+1 -> 16 | B41: Total ACA | F41: =Calculations!$P$183 -> 133629223 | I41: x | J41: ='Other Inputs'!F45 -> 0.0015 | K41: = | L41: =ROUND(F41*J41,0) -> 200444
A43: =A41+1 -> 17 | B43: Williams Commodity | F43: ='Ut 1.4 p1'!F41-(D48*F48*H48)-(D49*F49*H49)-(D50*F50*H50)-(D51*F51*H51)-(D52*F52*H52)-F45 -> 108061331.2 | I43: x | J43: ='Other Inputs'!F44 -> 0.00267 | K43: = | L43: =ROUND(F43*J43,0) -> 288524
A45: =A43+1 -> 18 | B45: Williams Commodity | F45: ='Other Inputs'!D38*'Other Inputs'!E62 -> 3126372 | I45: x | J45: ='Other Inputs'!F39 -> 0.00167 | K45: = | L45: =ROUND(F45*J45,0) -> 5221
B47: Kern River Commodity
A48: =A45+1 -> 19 | B48: January - December | D48: ='Other Inputs'!C73 -> 0.7475999815 | E48: x | F48: ='Other Inputs'!D73 -> 34885 | G48: x | H48: ='Other Inputs'!E73 -> 366 | I48: x | J48: ='Other Inputs'!F73 -> 0.0044 | K48: = | L48: =ROUND(D48*F48*H48*J48,0) -> 41999
A49: =A48+1 -> 20 | B49: November - March | D49: ='Other Inputs'!C74 -> 0.7475999815 | E49: x | F49: ='Other Inputs'!D74 -> 50000 | G49: x | H49: ='Other Inputs'!E74 -> 152 | I49: x | J49: ='Other Inputs'!F74 -> 0.0044 | K49: = | L49: =ROUND(D49*F49*H49*J49,0) -> 25000
A50: =A49+1 -> 21 | B50: November & March | D50: ='Other Inputs'!C78 -> 0.7475999815 | E50: x | F50: ='Other Inputs'!D78 -> 6000 | G50: x | H50: ='Other Inputs'!E78 -> 61 | I50: x | J50: ='Other Inputs'!F78 -> 0.0044 | K50: = | L50: =ROUND(D50*F50*H50*J50,0) -> 1204
A51: =A50+1 -> 22 | B51: December - February | D51: ='Other Inputs'!C77 -> 0.7475999815 | E51: x | F51: ='Other Inputs'!D77 -> 56925 | G51: x | H51: ='Other Inputs'!E77 -> 91 | I51: x | J51: ='Other Inputs'!F77 -> 0.0044 | K51: = | L51: =ROUND(D51*F51*H51*J51,0) -> 17040
A52: =A51+1 -> 23 | B52: November - March | D52: ='Other Inputs'!C78 -> 0.7475999815 | E52: x | F52: ='Other Inputs'!D80 -> 27000 | G52: x | H52: ='Other Inputs'!E80 -> 152 | I52: x | J52: ='Other Inputs'!F80 -> 0.0044 | K52: = | L52: =ROUND(D52*F52*H52*J52,0) -> 13500
A53: =A52+1 -> 24 | C53: Total | L53: =SUM(L48:L52) -> 98743
A55: =A53+1 -> 25 | B55: Total Transportation Commodity | M55: =L53+L43+L41+L45 -> 592932
B58: OTHER CHARGES
A59: =A55+1 -> 26 | B59: Other Transportation Charges | M59: =ROUND('Other Inputs'!$D$186,0) -> 2536573
B64: PEAK HOUR SERVICE
A65: =A59+1 -> 27 | B65: Kern River: Mid Nov - Mid Feb | F65: ='Other Inputs'!D20 -> 28752 | G65: x | H65: ='Other Inputs'!E20 -> 3 | I65: x | J65: ='Other Inputs'!F20 -> 16.1 | K65: = | L65: =ROUND(F65*H65*J65,0) -> 1388722
A66: =A65+1 -> 28 | B66: Williams: Mid Nov - Mid Feb | F66: ='Other Inputs'!D23 -> 74666.66667 | G66: x | H66: ='Other Inputs'!E23 -> 3 | I66: x | J66: ='Other Inputs'!F23 -> 7.357482143 | K66: = | L66: =ROUND(F66*H66*J66,0) -> 1648076
A67: =A66+1 -> 29 | C67: Total Peak Hour Service | M67: =SUM(L65:L66) -> 3036798
A70: =A67+1 -> 30 | B70: TOTAL TRANSPORTATION AND OTHER CHARGES | M70: =SUM(M13:M68) -> 73181007

Sheet Ut 1.4 p2
L1: ='Control Panel'!$F$32 -> Dominion Energy Utah
L2: ='Control Panel'!$F$33 -> Docket No. 23-057-03
L3: DEU Exhibit 1.4
L4: Page 2 of 4
B7: TEST-YEAR STORAGE CHARGES
B9: SNG
B10: (A) | D10: (B) | F10: (C) | H10: (D) | J10: (E) | K10: (F)
B12: STORAGE CHARGES
B14: Component | D14: Dth | F14: Months | H14: Rate | K14: Total Costs
B15: Storage Demand
A16: 1 | B16: Aquifer Peaking Demand | D16: ='Other Inputs'!E171 -> 184625 | E16: x | F16: 12 | G16: x | H16: ='Other Inputs'!E14 -> 2.87375 | I16: = | J16: =ROUND(D16*F16*H16,0) -> 6366793
A17: =A16+1 -> 2 | B17: Spire Demand | D17: ='Other Inputs'!E172 -> 0 | E17: x | F17: 0 | G17: x | H17: ='Other Inputs'!E15 -> 0 | I17: = | J17: =ROUND(D17*F17*H17,0) -> 0
A18: =A17+1 -> 3 | B18: Clay Basin Demand | D18: ='Other Inputs'!E173 -> 111827 | E18: x | F18: 12 | G18: x | H18: ='Other Inputs'!E16 -> 2.85338 | I18: = | J18: =ROUND(D18*F18*H18,0) -> 3829019
A19: =A18+1 -> 4 | B19: Clay Basin Capacity | D19: ='Other Inputs'!E174 -> 13419000 | E19: x | F19: 12 | G19: x | H19: ='Other Inputs'!E17 -> 0.02378 | I19: = | J19: =ROUND(D19*F19*H19,0) -> 3829246
A20: =A19+1 -> 5 | C20: Total Demand Charges | J20: =SUM(J16:J19) -> 14025058
B22: Storage Commodity 1/
A23: =A20+1 -> 6 | B23: Aquifer Peaking Injections | D23: =(+'Monthly Inputs'!S24+'Monthly Inputs'!S26+'Monthly Inputs'!S27) -> 1803294 | F23: x | H23: ='Other Inputs'!E6 -> 0.03872 | I23: = | J23: =ROUND(D23*H23,0) -> 69824
A24: =A23+1 -> 7 | B24: Aquifer Peaking Withdrawals | D24: =(+'Monthly Inputs'!S32+'Monthly Inputs'!S34+'Monthly Inputs'!S35) -> 1792419 | F24: x | H24: ='Other Inputs'!E7 -> 0.03872 | I24: = | J24: 69402
A25: 8 | B25: Spire Injections | D25: ='Monthly Inputs'!S28 -> 0 | F25: x | H25: ='Other Inputs'!E8 -> 0 | I25: = | J25: 0
A26: 9 | B26: Spire Withdrawals | D26: ='Monthly Inputs'!S36 -> 0 | F26: x | H26: ='Other Inputs'!E9 -> 0 | I26: = | J26: 0
A27: 10 | B27: Clay Basin Injections | D27: ='Monthly Inputs'!S25 -> 11500000 | F27: x | H27: ='Other Inputs'!E10 -> 0.01049 | I27: = | J27: 120635
A28: 11 | B28: Clay Basin Withdrawals | D28: ='Monthly Inputs'!S33 -> 11218691 | F28: x | H28: ='Other Inputs'!E11 -> 0.01781 | I28: = | J28: 199805
A29: 12 | C29: Total Commodity Charges | J29: =SUM(J23:J28) -> 459666
A31: =A29+1 -> 13 | B31: Total Storage Charges | K31: =J20+J29 -> 14484724
B33: LNG Storage Related Charges
A34: 14 | B34: Electricity Costs | K34: =Expenses!P24 -> 2295625.31
A39: 1/ | B39: Dominion Energy planned volumes.

Sheet Ut 1.4 p3
N1: ='Control Panel'!$F$32 -> Dominion Energy Utah
N2: ='Control Panel'!$F$33 -> Docket No. 23-057-03
N3: DEU Exhibit 1.4
N4: Page 3 of 4
B9: SUPPLIER NON-GAS COST CLASS ALLOCATION
A12: SNG | C12: (A) | D12: (B) | E12: (C) | F12: (D) | G12: (E) | H12: (F) | I12: (G) | J12: (H) | K12: (I) | L12: (J) | M12: (K) | N12: (L)
C13: Description | D13: Total UT & WY SNG | E13: Allocation Factor 1/ | F13: UT SNG | G13: COS Factor 2/ | H13: GS | I13: FS | J13: IS | K13: TSS/TSM/TSL | L13: TBF | M13: NGV | N13: UT SNG Total | O13: Check
B14: Transportation | O14: =N14-F14 -> 0
A15: 1 | C15: DEQPC T-1 Transportation: Yearly | D15: =+'Ut 1.4 p1'!$L$17+'Ut 1.4 p1'!$L$18 -> 59706329 | E15: 1 | F15: ='Ut 1.1 p2'!$H$58*$D15 -> 57843749.95 | G15: Firm Sales | H15: =$D$62*$F15 -> 56394623 | I15: =$E$62*$F15 -> 1303270.171 | J15: =$F$62*$F15 -> 0 | K15: =$G$62*$F15 -> 0 | L15: =$H$62*$F15 -> 0 | M15: =$I$62*$F15 -> 145856.7785 | N15: =SUM(H15:M15) -> 57843749.95 | O15: =N15-F15 -> 0
A16: 2 | C16: DEQPC T-1 Transportation: November - March | D16: =+'Ut 1.4 p1'!$L$19 -> 2553326 | E16: 1 | F16: ='Ut 1.1 p2'!$H$58*$D16 -> 2473673.28 | G16: Firm Sales | H16: 2411701.734 | I16: 55734.01795 | J16: 0 | K16: 0 | L16: 0 | M16: 6237.528098 | N16: 2473673.28 | O16: 0
A17: 3 | C17: DEQPC No-Notice Transportation | D17: =+'Ut 1.4 p1'!$L$20 -> 2118945 | E17: 1 | F17: ='Ut 1.1 p2'!$H$58*$D17 -> 2052843.087 | G17: Firm Sales | H17: 2001414.363 | I17: 46252.34642 | J17: 0 | K17: 0 | L17: 0 | M17: 5176.37739 | N17: 2052843.087 | O17: 0
A18: 4 | C18: Capacity Release Credits | D18: =+'Ut 1.4 p1'!$L$21 -> -2502678 | E18: 1 | F18: ='Ut 1.1 p2'!$H$58*$D18 -> -2424605.278 | G18: Firm Sales | H18: -2363863.005 | I18: -54628.47305 | J18: 0 | K18: 0 | L18: 0 | M18: -6113.799939 | N18: -2424605.278 | O18: 0
A19: 5 | C19: DEOTP Transportation: Yearly | D19: =+'Ut 1.4 p1'!L25 -> 166056 | E19: 1 | F19: ='Ut 1.1 p2'!$H$58*$D19 -> 160875.7715 | G19: Firm Sales | H19: 156845.4412 | I19: 3624.67154 | J19: 0 | K19: 0 | L19: 0 | M19: 405.6587235 | N19: =SUM(H19:M19) -> 160875.7715 | O19: =N19-F19 -> 0
A20: 6 | C20: Kern River Transportation: Yearly | D20: =+'Ut 1.4 p1'!$L$28+'Ut 1.4 p1'!L29 -> 1380942 | E20: 1 | F20: ='Ut 1.1 p2'!$H$58*$D20 -> 1337862.586 | G20: Firm Sales | H20: 1304345.867 | I20: 30143.21172 | J20: 0 | K20: 0 | L20: 0 | M20: 3373.507545 | N20: 1337862.586 | O20: 0
A21: 7 | C21: Kern River Transportation: November - March | D21: =+'Ut 1.4 p1'!$L$30+'Ut 1.4 p1'!$L$33 -> 1983393 | E21: 1 | F21: ='Ut 1.1 p2'!$H$58*$D21 -> 1921519.723 | G21: Firm Sales | H21: 1873380.969 | I21: 43293.51641 | J21: 0 | K21: 0 | L21: 0 | M21: 4845.236983 | N21: 1921519.723 | O21: 0
A22: 8 | C22: Kern River Transportation: December - February | D22: =+'Ut 1.4 p1'!$L$31 -> 1502251 | E22: 1 | F22: ='Ut 1.1 p2'!$H$58*$D22 -> 1455387.271 | G22: Firm Sales | H22: 1418926.272 | I22: 32791.14543 | J22: 0 | K22: 0 | L22: 0 | M22: 3669.853682 | N22: 1455387.271 | O22: 0
A23: 9 | C23: Kern River Transportation: November & March | D23: =+'Ut 1.4 p1'!$L$32 -> 106140 | E23: 1 | F23: ='Ut 1.1 p2'!$H$58*$D23 -> 102828.8914 | G23: Firm Sales | H23: 100252.777 | I23: 2316.824669 | J23: 0 | K23: 0 | L23: 0 | M23: 259.2897391 | N23: 102828.8914 | O23: 0
A24: 10 | C24: ACA (FERC) | D24: =+'Ut 1.4 p1'!$L$41 -> 200444 | E24: 2 | F24: ='Ut 1.1 p2'!$H$61*$D24 -> 194203.0022 | G24: Firm Sales | H24: 189337.7435 | I24: 4375.563134 | J24: 0 | K24: 0 | L24: 0 | M24: 489.6955037 | N24: 194203.0022 | O24: 0
A25: 11 | C25: DEQPC Commodity | D25: =+'Ut 1.4 p1'!$L$43 -> 288524 | E25: 2 | F25: ='Ut 1.1 p2'!$H$61*$D25 -> 279540.555 | G25: Firm Sales | H25: 272537.3826 | I25: 6298.292679 | J25: 0 | K25: 0 | L25: 0 | M25: 704.8796946 | N25: 279540.555 | O25: 0
A26: 12 | C26: DEOTP Commodity | D26: =+'Ut 1.4 p1'!L45 -> 5221 | E26: 2 | F26: ='Ut 1.1 p2'!$H$61*$D26 -> 5058.439636 | G26: Firm Sales | H26: 4931.713391 | I26: 113.9710599 | J26: 0 | K26: 0 | L26: 0 | M26: 12.75518461 | N26: =SUM(H26:M26) -> 5058.439636 | O26: =N26-F26 -> 0
A27: 13 | C27: Kern River Commodity | D27: =+'Ut 1.4 p1'!$L$53 -> 98743 | E27: 2 | F27: ='Ut 1.1 p2'!$H$61*$D27 -> 95668.55103 | G27: Firm Sales | H27: 93271.82061 | I27: 2155.495952 | J27: 0 | K27: 0 | L27: 0 | M27: 241.2344751 | N27: 95668.55103 | O27: 0
A28: 14 | C28: Other Transportation Charges | D28: =+'Ut 1.4 p1'!$M$59 -> 2536573 | E28: 2 | F28: ='Ut 1.1 p2'!$H$61*$D28 -> 2457594.599 | G28: Firm Sales | H28: 2396025.863 | I28: 55371.75124 | J28: 0 | K28: 0 | L28: 0 | M28: 6196.984658 | N28: 2457594.599 | O28: 0
A29: 15 | C29: Total Transportation | D29: =SUM(D15:D28) -> 70144209 | F29: =SUM(F15:F28) -> 67956200.43 | H29: =SUM(H15:H28) -> 66253731.94 | I29: 1531112.506 | J29: 0 | K29: 0 | L29: 0 | M29: 171355.9802 | N29: =SUM(N15:N28) -> 67956200.43 | O29: 0
B31: Peak Hour
A32: 16 | C32: DEQPC Peak Hour Service | D32: =+'Ut 1.4 p1'!L66 -> 1648076 | E32: 1 | F32: ='Ut 1.1 p2'!$H$58*$D32 -> 1596663.162 | G32: Design Day | H32: =$D$61*$F32 -> 1301498.738 | I32: =$E$61*$F32 -> 16265.56792 | J32: =$F$61*$F32 -> 0 | K32: =$G$61*$F32 -> 207280.4221 | L32: =$H$61*$F32 -> 70553.0284 | M32: =$I$61*$F32 -> 1065.405421 | N32: =SUM(H32:M32) -> 1596663.162 | O32: =N32-F32 -> 0
A33: 17 | C33: Kern River Peak Hour Service | D33: =+'Ut 1.4 p1'!L65 -> 1388722 | E33: 1 | F33: ='Ut 1.1 p2'!$H$58*$D33 -> 1345399.884 | G33: Design Day | H33: =$D$61*$F33 -> 1096684.819 | I33: =$E$61*$F33 -> 13705.89221 | J33: =$F$61*$F33 -> 0 | K33: =$G$61*$F33 -> 174661.1699 | L33: =$H$61*$F33 -> 59450.25758 | M33: =$I$61*$F33 -> 897.7449749 | N33: =SUM(H33:M33) -> 1345399.884 | O33: =N33-F33 -> 0
A34: 18 | C34: Total Peak Hour | D34: =SUM(D32:D33) -> 3036798 | F34: =SUM(F32:F33) -> 2942063.046 | H34: =SUM(H32:H33) -> 2398183.558 | I34: 29971.46013 | J34: 0 | K34: 381941.592 | L34: 130003.286 | M34: 1963.150396 | N34: 2942063.046
B36: Storage
A37: 19 | C37: Aquifer Peaking Storage Demand | D37: =+'Ut 1.4 p2'!$J$16 -> 6366793 | E37: 1 | F37: ='Ut 1.1 p2'!$H$58*$D37 -> 6168176.615 | G37: Firm Sales | H37: =$D$62*$F37 -> 6013648.754 | I37: =$E$62*$F37 -> 138974.4025 | J37: =$F$62*$F37 -> 0 | K37: =$G$62*$F37 -> 0 | L37: =$H$62*$F37 -> 0 | M37: =$I$62*$F37 -> 15553.4586 | N37: =SUM(H37:M37) -> 6168176.615 | O37: =N37-F37 -> 0
A38: 20 | C38: Spire Storage Demand | D38: =+'Ut 1.4 p2'!$J$17 -> 0 | E38: 1 | F38: ='Ut 1.1 p2'!$H$58*$D38 -> 0 | G38: Firm Sales | H38: 0 | I38: 0 | J38: 0 | K38: 0 | L38: 0 | M38: 0 | N38: 0 | O38: 0
A39: 21 | C39: Clay Basin Storage Demand | D39: =+'Ut 1.4 p2'!$J$18 -> 3829019 | E39: 1 | F39: ='Ut 1.1 p2'!$H$58*$D39 -> 3709570.18 | G39: Firm Sales | H39: 3616636.403 | I39: 83579.85376 | J39: 0 | K39: 0 | L39: 0 | M39: 9353.92253 | N39: 3709570.18 | O39: 0
A40: 22 | C40: Clay Basin Storage Capacity | D40: =+'Ut 1.4 p2'!$J$19 -> 3829246 | E40: 1 | F40: ='Ut 1.1 p2'!$H$58*$D40 -> 3709790.098 | G40: Firm Sales | H40: 3616850.812 | I40: 83584.80872 | J40: 0 | K40: 0 | L40: 0 | M40: 9354.477069 | N40: 3709790.098 | O40: 0
A41: 23 | C41: Aquifer Peaking Injections Storage Commodity | D41: =+'Ut 1.4 p2'!$J$23 -> 69824 | E41: 2 | F41: ='Ut 1.1 p2'!$H$61*$D41 -> 67649.96919 | G41: Firm Sales | H41: 65955.17254 | I41: 1524.212849 | J41: 0 | K41: 0 | L41: 0 | M41: 170.5837982 | N41: 67649.96919 | O41: 0
A42: 24 | C42: Aquifer Peaking Withdrawals Storage Commodity | D42: =+'Ut 1.4 p2'!$J$24 -> 69402 | E42: 2 | F42: ='Ut 1.1 p2'!$H$61*$D42 -> 67241.10852 | G42: Firm Sales | H42: 65556.55483 | I42: 1515.000861 | J42: 0 | K42: 0 | L42: 0 | M42: 169.5528294 | N42: 67241.10852 | O42: 0
A43: 25 | C43: Spire Injections Storage Commodity | D43: =+'Ut 1.4 p2'!$J$25 -> 0 | E43: 2 | F43: ='Ut 1.1 p2'!$H$61*$D43 -> 0 | G43: Firm Sales | H43: 0 | I43: 0 | J43: 0 | K43: 0 | L43: 0 | M43: 0 | N43: 0 | O43: 0
A44: 26 | C44: Spire Withdrawals Storage Commodity | D44: =+'Ut 1.4 p2'!$J$26 -> 0 | E44: 2 | F44: ='Ut 1.1 p2'!$H$61*$D44 -> 0 | G44: Firm Sales | H44: 0 | I44: 0 | J44: 0 | K44: 0 | L44: 0 | M44: 0 | N44: 0 | O44: 0
A45: 27 | C45: Clay Basin Injections Storage Commodity | D45: =+'Ut 1.4 p2'!$J$27 -> 120635 | E45: 2 | F45: ='Ut 1.1 p2'!$H$61*$D45 -> 116878.9246 | G45: Firm Sales | H45: 113950.8226 | I45: 2633.384181 | J45: 0 | K45: 0 | L45: 0 | M45: 294.7178119 | N45: 116878.9246 | O45: 0
A46: 28 | C46: Clay Basin Withdrawals Storage Commodity | D46: =+'Ut 1.4 p2'!$J$28 -> 199805 | E46: 2 | F46: ='Ut 1.1 p2'!$H$61*$D46 -> 193583.898 | G46: Firm Sales | H46: 188734.1494 | I46: 4361.614177 | J46: 0 | K46: 0 | L46: 0 | M46: 488.1343922 | N46: 193583.898 | O46: 0
A47: 29 | C47: Total Storage | D47: =SUM(D37:D46) -> 14484724 | F47: =SUM(F37:F46) -> 14032890.79 | H47: =SUM(H37:H46) -> 13681332.67 | I47: 316173.2771 | J47: 0 | K47: 0 | L47: 0 | M47: 35384.84703 | N47: 14032890.79 | O47: 0
A49: =+A47+1 -> 30 | B49: LNG Electricity | D49: =+'Ut 1.4 p2'!K34 -> 2295625.31 | E49: UT | F49: =+'Ut 1.1 p2'!H45 -> 2295625.31 | G49: GS, FS | H49: =$D$65*$F49 -> 2243772.117 | I49: =$E$65*$F49 -> 51853.19299 | J49: 0 | K49: 0 | L49: 0 | M49: 0 | N49: =SUM(H49:M49) -> 2295625.31 | O49: =N49-F49 -> 0
A52: =+A49+1 -> 31 | C52: Supplier Non-Gas Costs | D52: =+D29+D34+D47+D49 -> 89961356.31 | F52: =+F29+F34+F47+F49 -> 87226779.58 | H52: =+H29+H34+H47+H49 -> 84577020.29 | I52: 1929110.436 | J52: 0 | K52: 381941.592 | L52: 130003.286 | M52: 208703.9776 | N52: 87226779.58 | O52: =N52-F52 -> 0
H54: =H52/$F$52 -> 0.9696221813 | I54: =I52/$F$52 -> 0.02211603415 | J54: 0 | K54: 0.0043787194 | L54: 0.00149040566 | M54: 0.002392659441 | N54: 1
B58: 1/ | C58: Allocations Factors, DEU Exhibit 1.1 page 2, footnote
B60: 2/ | C60: Cost-of-Service Allocation Factor Docket No. 19-057-02 | D60: GS | E60: FS | F60: IS | G60: TSS/TSM/TSL | H60: TBF | I60: NGV | J60: Total
C61: 210 Design Day | D61: =+'Other Inputs'!C313 -> 0.8151366983 | E61: =+'Other Inputs'!D313 -> 0.01018722565 | F61: =+'Other Inputs'!E313 -> 0 | G61: =+'Other Inputs'!F313 -> 0.1298210086 | H61: =+'Other Inputs'!G313 -> 0.04418779745 | I61: =+'Other Inputs'!H313 -> 0.0006672699957 | J61: =SUM(D61:I61) -> 1
C62: 240 Firm Sales | D62: =+'Other Inputs'!C314 -> 0.9749475622 | E62: =+'Other Inputs'!D314 -> 0.02253087277 | F62: =+'Other Inputs'!E314 -> 0 | G62: =+'Other Inputs'!F314 -> 0 | H62: =+'Other Inputs'!G314 -> 0 | I62: =+'Other Inputs'!H314 -> 0.002521565054 | J62: =SUM(D62:I62) -> 1
D64: GS | E64: FS | F64: Total
B65: 3/ | C65: GS & FS Only | D65: =D62/($D$62+$E$62) -> 0.9774121705 | E65: =E62/($D$62+$E$62) -> 0.02258782945 | F65: =SUM(D65:E65) -> 1

Sheet Ut 1.4 p4
I1: ='Control Panel'!$F$32 -> Dominion Energy Utah
I2: ='Control Panel'!$F$33 -> Docket No. 23-057-03
I3: DEU Exhibit 1.4
I4: Page 4 of 4
C6: SUPPLIER NON-GAS COST SUMMARY
A9: SNG | C9: (A) | D9: (B) | E9: (C) | F9: (D) | G9: (E) | H9: (F) | I9: (G)
B10: Description | C10: GS | D10: FS | E10: IS | F10: TSS/TSM/TSL | G10: TBF | H10: NGV | I10: Total
A13: 1 | B13: Transportation - Demand | C13: =SUM('Ut 1.4 p3'!H15:H23) -> 63297627.42 | D13: =SUM('Ut 1.4 p3'!I15:I23) -> 1462797.432 | E13: =SUM('Ut 1.4 p3'!J15:J23) -> 0 | F13: =SUM('Ut 1.4 p3'!K15:K23) -> 0 | G13: =SUM('Ut 1.4 p3'!L15:L23) -> 0 | H13: =SUM('Ut 1.4 p3'!M15:M23) -> 163710.4307 | I13: =SUM(C13:H13) -> 64924135.28
A14: =+A13+1 -> 2 | B14: Transportation - Commodity | C14: =SUM('Ut 1.4 p3'!H24:H27) -> 560078.6601 | D14: =SUM('Ut 1.4 p3'!I24:I27) -> 12943.32282 | E14: =SUM('Ut 1.4 p3'!J24:J27) -> 0 | F14: =SUM('Ut 1.4 p3'!K24:K27) -> 0 | G14: =SUM('Ut 1.4 p3'!L24:L27) -> 0 | H14: =SUM('Ut 1.4 p3'!M24:M27) -> 1448.564858 | I14: =SUM(C14:H14) -> 574470.5478
A16: =+A14+1 -> 3 | B16: Other Transportation | C16: =+'Ut 1.4 p3'!H28 -> 2396025.863 | D16: =+'Ut 1.4 p3'!I28 -> 55371.75124 | E16: =+'Ut 1.4 p3'!J28 -> 0 | F16: =+'Ut 1.4 p3'!K28 -> 0 | G16: =+'Ut 1.4 p3'!L28 -> 0 | H16: =+'Ut 1.4 p3'!M28 -> 6196.984658 | I16: =SUM(C16:H16) -> 2457594.599
A18: =+A16+1 -> 4 | B18: Peak Hour Service | C18: =SUM('Ut 1.4 p3'!H32:H33) -> 2398183.558 | D18: =SUM('Ut 1.4 p3'!I32:I33) -> 29971.46013 | E18: =SUM('Ut 1.4 p3'!J32:J33) -> 0 | F18: =SUM('Ut 1.4 p3'!K32:K33) -> 381941.592 | G18: =SUM('Ut 1.4 p3'!L32:L33) -> 130003.286 | H18: =SUM('Ut 1.4 p3'!M32:M33) -> 1963.150396 | I18: =SUM(C18:H19) -> 2942063.046
A19: 5 | B19: TBF Adjustment 1/ | C19: =+C18/($C$18+$D$18+$F$18+$H$18)*-$G$19 -> 44347.81185 | D19: =+D18/($C$18+$D$18+$F$18+$H$18)*-$G$19 -> 554.2397579 | E19: =+E18/($C$18+$D$18+$F$18+$H$18)*$G$18 -> 0 | F19: =+F18/($C$18+$D$18+$F$18+$H$18)*-$G$19 -> 7062.959716 | G19: =+-G18*0.4 -> -52001.31439 | H19: =+H18/($C$18+$D$18+$F$18+$H$18)*-$G$19 -> 36.30306951 | I19: =SUM(C19:H19) -> 1.248423587e-11
A20: 6 | B20: Total Peak Hour Service | C20: =SUM(C18:C19) -> 2442531.369 | D20: 30525.69988 | E20: 0 | F20: 389004.5517 | G20: 78001.97159 | H20: 1999.453465 | I20: 2942063.046
A22: 7 | B22: Storage - Demand | C22: =SUM('Ut 1.4 p3'!H37:H40) -> 13247135.97 | D22: =SUM('Ut 1.4 p3'!I37:I40) -> 306139.065 | E22: =SUM('Ut 1.4 p3'!J37:J40) -> 0 | F22: =SUM('Ut 1.4 p3'!K37:K40) -> 0 | G22: =SUM('Ut 1.4 p3'!L37:L40) -> 0 | H22: =SUM('Ut 1.4 p3'!M37:M40) -> 34261.8582 | I22: =SUM(C22:H22) -> 13587536.89
A23: 8 | B23: Storage - Commodity | C23: =SUM('Ut 1.4 p3'!H41:H46) -> 434196.6994 | D23: =SUM('Ut 1.4 p3'!I41:I46) -> 10034.21207 | E23: =SUM('Ut 1.4 p3'!J41:J46) -> 0 | F23: =SUM('Ut 1.4 p3'!K41:K46) -> 0 | G23: =SUM('Ut 1.4 p3'!L41:L46) -> 0 | H23: =SUM('Ut 1.4 p3'!M41:M46) -> 1122.988832 | I23: =SUM(C23:H23) -> 445353.9003
A24: 9 | B24: LNG Electricity | C24: =+'Ut 1.4 p3'!H49 -> 2243772.117 | D24: =+'Ut 1.4 p3'!I49 -> 51853.19299 | E24: =+'Ut 1.4 p3'!J49 -> 0 | F24: =+'Ut 1.4 p3'!K49 -> 0 | G24: =+'Ut 1.4 p3'!L49 -> 0 | H24: =+'Ut 1.4 p3'!M49 -> 0 | I24: =SUM(C24:H24) -> 2295625.31
A27: 10 | B27: Total SNG | C27: =SUM(C13:C14,C16,C20,C22:C24) -> 84621368.1 | D27: 1929664.676 | E27: 0 | F27: 389004.5517 | G27: 78001.97159 | H27: 208740.2807 | I27: =SUM(C27:H27) -> 87226779.58
A30: =+A27+1 -> 11 | B30: Percent Allocated to Rate Classes | C30: =C27/$I$27 -> 0.970130601 | D30: 0.02212238816 | E30: 0 | F30: 0.004459691778 | G30: 0.0008942433959 | H30: 0.002393075632 | I30: =SUM(C30:H30) -> 1
A35: 1/ | B35: Represents a 40% subsidy of costs to the TBF class, which is allocated to all other classes using the design day factor.

Sheet Ut 1.5 p1
J1: ='Control Panel'!$F$32 -> Dominion Energy Utah
J2: ='Control Panel'!$F$33 -> Docket No. 23-057-03
J3: DEU Exhibit 1.5
J4: Page 1 of 6
B8: TEST-YEAR GAS COST CHANGE
B10: COMMODITY
B11: (A) | C11: (B) | D11: (C) | F11: (D) | H11: (E) | J11: (F)
F12: Average Rate | H12: x Dth | I12: = | J12: Total
A13: 1 | B13: Commodity Portion of Test-Year Gas Cost 1/ | J13: ='Ut 1.1 p2'!H32-J14 -> 693297115.6
A14: =A13+1 -> 2 | B14: LNG Costs | J14: =+'Ut 1.1 p2'!H23+'Ut 1.1 p2'!H26+'Ut 1.1 p2'!H29 -> 946229.3915
A15: =A14+1 -> 3 | B15: 191 Account Balance for Commodity Costs 2/ | J15: =D60 -> 225045279.7
A16: =A15+1 -> 4 | B16: Total | J16: =J13+J15+J14 -> 919288624.7
H18: Total
B19: Test-Year Sales: | D19: Firm | F19: + Interruptible | H19: = Sales Dth
A21: =A16+1 -> 5 | B21: Utah | D21: =Calculations!P13 -> 115586608 | F21: =Calculations!P17 -> 271004 | H21: =D21+F21 -> 115857612
A22: =A21+1 -> 6 | B22: Wyoming | D22: =Calculations!P32 -> 3579004 | F22: =Calculations!P36 -> 144250 | H22: =D22+F22 -> 3723254
A23: =A22+1 -> 7 | B23: Total Dth | H23: =SUM(H21:H22) -> 119580866
F27: Current Case | H27: Prior Case
B28: COMMODITY RATES (GS, FS) | F28: ='Control Panel'!F5 -> 23-057-03 | H28: ='Control Panel'!F9 -> 22-057-16 | J28: Difference
A30: =A23+1 -> 8 | B30: Gas Cost (line 1/Total Sales Dth, line 4 + line 2/Total GS & FS Dths 3/) | F30: =ROUND((J13)/H21,5)+ROUND(J14/D65,5) -> 5.99225 | H30: ='Other Inputs'!F119 -> 6.58934 | J30: =F30-H30 -> -0.59709
A31: =A30+1 -> 9 | B31: 191 Account Amortization (Commodity Portion) | F31: =H60 -> 1.94243 | H31: ='Other Inputs'!F120 -> 0.53231 | J31: =F31-H31 -> 1.41012
A32: =A31+1 -> 10 | B32: Total Sales Unit Commodity Cost (Lines 8 + 9) | F32: =F30+F31 -> 7.93468 | H32: =H30+H31 -> 7.12165 | J32: =J30+J31 -> 0.81303
F34: Current Case | H34: Prior Case
B35: COMMODITY RATES (IS) | F35: ='Control Panel'!F5 -> 23-057-03 | H35: ='Control Panel'!F9 -> 22-057-16 | J35: Difference
A37: =A32+1 -> 11 | B37: Gas Cost (line 1/Total Sales Dth, line 4) | F37: =ROUND((J13)/H21,5) -> 5.98404 | H37: ='Other Inputs'!F129 -> 6.57313 | J37: =F37-H37 -> -0.58909
A38: =A37+1 -> 12 | B38: 191 Account Amortization (Commodity Portion) | F38: =H60 -> 1.94243 | H38: ='Other Inputs'!F120 -> 0.53231 | J38: =F38-H38 -> 1.41012
A39: =A38+1 -> 13 | B39: Total Sales Unit Commodity Cost (Lines 11 + 12) | F39: =F37+F38 -> 7.92647 | H39: =H37+H38 -> 7.10544 | J39: =J37+J38 -> 0.82103
F41: Current Case | H41: Prior Case
B42: COMMODITY RATES (NGV) | F42: ='Control Panel'!F5 -> 23-057-03 | H42: ='Control Panel'!F9 -> 22-057-16 | J42: Difference
A44: =A39+1 -> 14 | B44: Gas Cost (line 1/Total Sales Dth, line 4) | F44: =ROUND((J13)/H21,5) -> 5.98404 | H44: ='Other Inputs'!F129 -> 6.57313 | J44: =F44-H44 -> -0.58909
A45: =A44+1 -> 15 | B45: 191 Account Amortization (Commodity Portion) | F45: =H60 -> 1.94243 | H45: ='Other Inputs'!F120 -> 0.53231 | J45: =F45-H45 -> 1.41012
A46: =A45+1 -> 16 | B46: RIN Credit 4/ | F46: =H72 -> -0.58164 | H46: ='Other Inputs'!F130 -> -0.48096 | J46: =F46-H46 -> -0.10068
A47: =A46+1 -> 17 | B47: Total Sales Unit Commodity Cost (Lines 14 + 15 + 16) | F47: =F44+F45+F46 -> 7.34483 | G47: =G44+G45+G46 -> 0 | H47: =H44+H45+H46 -> 6.62448 | I47: =I44+I45+I46 -> 0 | J47: =J44+J45+J46 -> 0.72035
A52: 1/ | B52: DEU Exhibit 1.1, page 2, line 12, column E
A54: 2/ | B54: Amortization from Docket No. 22-057-16
B55: Commodity amortization will be adjusted in the 2023 fall pass-through.
A56: 2/ | B56: 191 Account (December 2022) actual | D56: ='Other Inputs'!E137 -> 226125885
B57: Less: Supplier Non-Gas balance actual | D57: ='Other Inputs'!E138 -> 1249147
B58: 191 Account Commodity Portion | D58: =D56-D57 -> 224876738
B59: RIN Proceed 4/ | D59: =D72 -> -168541.7179
B60: 191 Account Commodity Amortization | D60: =(D58-D59) -> 225045279.7 | F60: =H21 -> 115857612 | H60: =ROUND(D60/F60,5) -> 1.94243
B61: See Application, paragraph 17.
A63: 3/ | B63: GS Dths | C63: ='RevRun Fcst'!T21 -> 112707644
B64: FS Dths | C64: ='RevRun Fcst'!T48 -> 2589192
B65: Total GS & FS Dths | D65: =C63+C64 -> 115296836
A67: 4/ | B67: Prior RIN Proceeds, Docket No. 22-057-16 | D67: ='SDR#5'!F9 -> -139370.1849
B68: Expected amortized Balance | D68: =-'SDR#5'!F21+(-'SDR#5'!F29) -> 46582.21706
B69: Amount remaining to be amortized | D69: =SUM(D67:D68) -> -92787.96787
B71: New RIN Proceeds | D71: =-'SDR#5'!F47 -> -75753.75
B72: Total RIN Proceeds | D72: =SUM(D69:D71) -> -168541.7179 | F72: =Calculations!$P$12 -> 289772 | H72: =ROUND(D72/F72,5) -> -0.58164

Sheet Ut 1.5 p2
G1: ='Control Panel'!$F$32 -> Dominion Energy Utah
G2: ='Control Panel'!$F$33 -> Docket No. 23-057-03
G3: DEU Exhibit 1.5
G4: Page 2 of 6
C8: TEST-YEAR SUPPLIER NON-GAS COST CHANGE
B10: SNG
C11: (A) | D11: (B) | E11: (C) | F11: (D)
D12: Dth | E12: Average Rate | F12: Total
B15: 1 | C15: Supplier Non-Gas (SNG) Costs 1/ | F15: ='Ut 1.1 p2'!H48 -> 87226779.58
B16: =B15+1 -> 2 | C16: 191 Account Balance for SNG Costs 2/ | F16: =E44 -> 3222746
B17: =1+B16 -> 3 | C17: SNG Total Costs Recovered for Test-Year 3/ | F17: =SUM(F15:F16) -> 90449525.58
B20: 4 | C20: Supplier Non-Gas Base Cost at Current Rates | F20: =F22-F21 -> 89326397.64
B21: 5 | C21: Amortization | F21: =E45 -> 3222746
B22: 6 | C22: SNG Total Costs Recovered at Current Rates 3/ | F22: ='Other Inputs'!E251-(D30*('Other Inputs'!G96-'Other Inputs'!F252)) -> 92549143.64
B25: =1+B22 -> 7 | C25: SNG Costs Adjustment to Current Rates (Line 3 - Line 6) | F25: =F17-F22 -> -2099618.059
C29: Adjustment for SNG contributions from:
B30: 8 | C30: IS SNG current rate | D30: ='RevRun Fcst'!T102+'RevRun Fcst'!T93 -> 271004 | E30: ='Other Inputs'!E48 -> 0.17652 | F30: =D30*E30 -> 47837.62608
B31: 9 | C31: IS SNG new rate | D31: ='RevRun Fcst'!T102+'RevRun Fcst'!T93 -> 271004 | E31: ='Other Inputs'!F48 -> 0.17652 | F31: =D31*E31 -> 47837.62608
B35: 10 | C35: Percent Change to Amortization | F35: =((F16-F21)/F21)*100 -> 0 | G35: %
C36: (ln 2-ln 5)/ln 5
B40: 1/ | C40: DEU Exhibit 1.1, page 2, line 16, column E.
B42: 2/ | C42: Actual March 2022 SNG Balance | E42: ='Other Inputs'!D141 -> -10777254
C43: Expected March 2022 SNG Balance | E43: ='Other Inputs'!E141 -> -14000000
E44: ='Other Inputs'!F141 -> 3222746
B45: 2/ | C45: Spring Pass Through SNG Amortization From Docket No. 22-057-08 | E45: ='Other Inputs'!F141 -> 3222746
C46: Amortization will be adjusted in the next 2023 Pass Through
B48: 3/ | C48: ="Output of Revrun.Exe computer program dated "&'RevRun Fcst'!D4 -> Output of Revrun.Exe computer program dated 1/10/23

Sheet Ut 1.5 p3
I1: ='Control Panel'!$F$32 -> Dominion Energy Utah
I2: ='Control Panel'!$F$33 -> Docket No. 23-057-03
I3: DEU Exhibit 1.5
I4: Page 3 of 6
B7: SUPPLIER NON-GAS RATE CALCULATION
B9: SNG | C9: (A) | D9: (B) | E9: (C) | F9: (D) | G9: (G) | H9: (H) | I9: (I)
C10: GS | D10: FS | E10: IS 1/ | F10: TSS/TSM/TSL | G10: TBF | H10: NGV | I10: Total
A11: 1 | B11: Allocated SNG Costs | C11: =+'Ut 1.4 p4'!C27 -> 84621368.1 | D11: =+'Ut 1.4 p4'!D27 -> 1929664.676 | E11: =+'Ut 1.4 p4'!E27 -> 0 | F11: =+'Ut 1.4 p4'!F27 -> 389004.5517 | G11: =+'Ut 1.4 p4'!G27 -> 78001.97159 | H11: =+'Ut 1.4 p4'!H27 -> 208740.2807 | I11: =SUM(C11:H11) -> 87226779.58
A12: =+A11+1 -> 2 | B12: IS SNG Revenue | C12: =-$E$12*'Ut 1.4 p4'!C30 -> -47160.66546 | D12: =-$E$12*'Ut 1.4 p4'!D30 -> -1075.428964 | E12: =$E$17*E23 -> 48612.69752 | F12: =-$E$12*'Ut 1.4 p4'!F30 -> -216.7976474 | G12: =-$E$12*'Ut 1.4 p4'!G30 -> -43.47158371 | H12: =-$E$12*'Ut 1.4 p4'!H30 -> -116.3338619 | I12: =SUM(C12:H12) -> 3.453237696e-12
A13: 3 | B13: SNG Costs to Recover | C13: =+C11+C12 -> 84574207.43 | D13: 1928589.247 | E13: 48612.69752 | F13: 388787.754 | G13: 77958.5 | H13: 208623.9468 | I13: =SUM(C13:H13) -> 87226779.58
A14: 4 | B14: Summer/Winter Differential | C14: ='Ut 1.5 p4'!C41 -> 0.51539 | D14: ='Ut 1.5 p5'!C42 -> 0.12712 | F14: 0 | G14: 0 | H14: 0
A15: 5 | B15: Summer Forecast Throughput 2023 | C15: =SUM('RevRun Fcst'!$I$21:$O$21) -> 31228294 | D15: =SUM('RevRun Fcst'!$I$48:$O$48) -> 1308506 | E15: =SUM('RevRun Fcst'!$I$102:$O$102) -> 113370 | F15: =SUM('RevRun Fcst'!$I$165:$O$165)+SUM('RevRun Fcst'!$I$174:$O$174)+SUM('RevRun Fcst'!$I$183:$O$183) -> 24729460 | G15: =SUM('RevRun Fcst'!$I$129:$O$129) -> 2410776 | H15: =SUM('RevRun Fcst'!$I$66:$O$66) -> 165561
A16: 6 | B16: Winter Forecast Throughput 2023 | C16: =SUM('RevRun Fcst'!$H$21:$H$21,'RevRun Fcst'!$P$21:$S$21) -> 81479350 | D16: =SUM('RevRun Fcst'!$H$48:$H$48,'RevRun Fcst'!$P$48:$S$48) -> 1280686 | E16: =SUM('RevRun Fcst'!$H$102:$H$102,'RevRun Fcst'!$P$102:$S$102) -> 157634 | F16: =SUM('RevRun Fcst'!$H$165:$H$165,'RevRun Fcst'!$P$165:$S$165)+SUM('RevRun Fcst'!$H$174:$H$174,'RevRun Fcst'!$P$174:$S$174)+SUM('RevRun Fcst'!$H$183:$H$183,'RevRun Fcst'!$P$183:$S$183) -> 23212501 | G16: =SUM('RevRun Fcst'!$H$129:$H$129,'RevRun Fcst'!$P$129:$S$129) -> 695829 | H16: =SUM('RevRun Fcst'!$H$66:$H$66,'RevRun Fcst'!$P$66:$S$66) -> 124211
A17: 7 | B17: Total Forecast Throughput 2023 | C17: =SUM(C15:C16) -> 112707644 | D17: 2589192 | E17: 271004 | F17: 47941961 | G17: 3106605 | H17: 289772
A18: 8 | B18: Forecast Demand Dth | C18: 0 | D18: 0 | F18: =+'Other Inputs'!D316 -> 202522 | G18: =+'Other Inputs'!D317 -> 45000 | H18: 0
A20: =A18+1 -> 9 | B20: Summer Base Rate | C20: =ROUND(C21-C14,5) -> 0.3778 | D20: =ROUND(D21-D14,5) -> 0.68198 | F20: 0 | G20: 0 | H20: 0
A21: =A20+1 -> 10 | B21: Winter Base Rate | C21: =ROUND((C13+C14*C15)/C17,5) -> 0.89319 | D21: =ROUND((D13+D14*D15)/D17,5) -> 0.8091 | F21: 0 | G21: 0 | H21: 0
A23: =A21+1 -> 11 | B23: Year Round Base Rates | C23: 0 | D23: 0 | E23: =ROUND(C54,5) -> 0.17938 | F23: 0 | G23: 0 | H23: =ROUND(H13/H17,5) -> 0.71996
A25: =A23+1 -> 12 | B25: Annual Demand Rate | C25: 0 | D25: 0 | F25: =ROUND(F13/F18,5) -> 1.91973 | G25: =ROUND(G13/G18,5) -> 1.73241 | H25: 0
A26: =A25+1 -> 13 | B26: Monthly Demand Rate | C26: 0 | D26: 0 | F26: =ROUND(F25/12,5) -> 0.15998 | G26: =ROUND(G25/12,5) -> 0.14437 | H26: 0
A28: =A26+1 -> 14 | B28: Revenue Collected With Rate | C28: =C20*C15+C16*C21 -> 84574590.1 | D28: =D20*D15+D16*D21 -> 1928577.964 | E28: =+E17*E23 -> 48612.69752 | F28: =F25*F18 -> 388787.5591 | G28: =G25*G18 -> 77958.45 | H28: =H23*H17 -> 208624.2491 | I28: =SUM(C28:H28) -> 87227151.02
A30: =+A28+1 -> 15 | B30: Amortization of Balance | C30: =+'Ut 1.5 p2'!$F$16*'Ut 1.4 p4'!C30 -> 3126484.514 | D30: =+'Ut 1.5 p2'!$F$16*'Ut 1.4 p4'!D30 -> 71294.83796 | E30: =+'Ut 1.5 p2'!$F$16*'Ut 1.4 p4'!E30 -> 0 | F30: =+'Ut 1.5 p2'!$F$16*'Ut 1.4 p4'!F30 -> 14372.45384 | G30: =+'Ut 1.5 p2'!$F$16*'Ut 1.4 p4'!G30 -> 2881.919327 | H30: =+'Ut 1.5 p2'!$F$16*'Ut 1.4 p4'!H30 -> 7712.274922
A31: =+A30+1 -> 16 | B31: Summer/Winter Differential | C31: =+'Ut 1.5 p4'!C47 -> 0.01905 | D31: =+'Ut 1.5 p5'!C48 -> 0.0047
A33: =+A31+1 -> 17 | B33: Summer Amortization Rate | C33: ='Ut 1.5 p6'!D31 -> 0.01392 | D33: ='Ut 1.5 p6'!D39 -> 0.02741
A34: =+A33+1 -> 18 | B34: Winter Amortization Rate | C34: ='Ut 1.5 p6'!D35 -> 0.03321 | D34: ='Ut 1.5 p6'!D43 -> 0.03283
A35: =+A34+1 -> 19 | B35: Annual Amortization Rate | F35: ='Ut 1.5 p6'!D49 -> 0.07578 | G35: ='Ut 1.5 p6'!D54 -> 0.05049 | H35: ='Ut 1.5 p6'!D59 -> 0.02481
A37: =+A35+1 -> 20 | B37: Amortization Collected With Rate | C37: =+C15*C33+C16*C34 -> 3140627.066 | D37: =+D15*D33+D16*D34 -> 77911.07084 | E37: 0 | F37: =+F35*F18 -> 15347.11716 | G37: =+G35*G18 -> 2272.05 | H37: =+H35*H17 -> 7189.24332 | I37: =SUM(C37:H37) -> 3243346.547
A39: =+A37+1 -> 21 | B39: Summer Total Rate | C39: =+C20+C33 -> 0.39172 | D39: =+D20+D33 -> 0.70939
A40: =+A39+1 -> 22 | B40: Winter Total Rate | C40: =+C21+C34 -> 0.9264 | D40: =+D21+D34 -> 0.84193
A41: =+A40+1 -> 23 | B41: Annual Total Rate | E41: =+E23 -> 0.17938 | F41: =+F25+F35 -> 1.99551 | G41: =+G25+G35 -> 1.7829 | H41: =+H23+H35 -> 0.74477
A42: =+A41+1 -> 24 | B42: Monthly Total Rate | F42: =ROUND(F41/12,5) -> 0.16629 | G42: =ROUND(G41/12,5) -> 0.14858
A44: =+A42+1 -> 25 | B44: Summer Total Collected | C44: =+C15*C39 -> 12232747.33 | D44: =+D15*D39 -> 928241.0713
A45: =+A44+1 -> 26 | B45: Winter Total Collected | C45: =+C16*C40 -> 75482469.84 | D45: =+D16*D40 -> 1078247.964
A46: =+A45+1 -> 27 | B46: Annual Total Collected | E46: =+E41*E17 -> 48612.69752 | F46: =+F41*F18 -> 404134.6762 | G46: =+G41*G18 -> 80230.5 | H46: =+H41*H17 -> 215813.4924
C47: =SUM(C44:C46) -> 87715217.17 | D47: 2006489.035 | E47: 48612.69752 | F47: 404134.6762 | G47: 80230.5 | H47: 215813.4924 | I47: =SUM(C47:H47) -> 90470497.57
A51: 1/ | B51: ="Calculated by adding QPC T-2 and ACA rates, then adjusting for distr. loss of "&TEXT('Other Inputs'!E276,"0.000%") -> Calculated by adding QPC T-2 and ACA rates, then adjusting for distr. loss of 0.559%
B52: ="= ("&TEXT('Other Inputs'!$F$48,"$0.00000")&" + "&TEXT('Other Inputs'!$F$49,"$0.00000")&") / ( 1 - "&TEXT('Other Inputs'!$E$276,"0.00000")&" ) = "&TEXT(('Other Inputs'!F48+'Other Inputs'!F49)/(1-('Other Inputs'!$E$276)),("$0.00000")) -> = ($0.17652 + $0.00150) / ( 1 - 0.00559 ) = $0.17902
B53: ="IS Tariff rate has an adjustment for bad debt of "&TEXT('Other Inputs'!$E$287,"0.00%") -> IS Tariff rate has an adjustment for bad debt of 0.20%
B54: =" = "&TEXT((('Other Inputs'!$F$48+'Other Inputs'!$F$49)/(1-'Other Inputs'!$E$276)),"$0.00000")&" / ( 1 - "&TEXT('Other Inputs'!$E$287,"0.00000")&" ) = " -> = $0.17902 / ( 1 - 0.00200 ) = | C54: =+(('Other Inputs'!$F$48+'Other Inputs'!$F$49)/(1-'Other Inputs'!$E$276))/(1-('Other Inputs'!$E$287)) -> 0.1793794848
A56: 2/ | B56: Spring Pass Through SNG Amortization From Docket No. 20-057-07 (Lines 15-19)
B57: Amortization will be adjusted in the 2021 Spring Pass Through

Sheet Ut 1.5 p4
E1: ='Control Panel'!$F$32 -> Dominion Energy Utah
E2: ='Control Panel'!$F$33 -> Docket No. 23-057-03
E3: DEU Exhibit 1.5
E4: Page 4 of 6
A6: GENERAL SERVICE SUMMER / WINTER DIFFERENTIAL
A8: SNG | B8: (A) | C8: (B) | D8: (C) | E8: (D)
B9: Contract | C9: Allocated GS Costs | D9: Winter Allocation | E9: Summer Allocation
A10: 1 | B10: DEQPC T-1 Transportation: Yearly | C10: =+'Ut 1.4 p3'!H15 -> 56394623 | D10: =C10*D50 -> 40769171.13 | E10: =C10*$D$49 -> 15625451.87
A11: =A10+1 -> 2 | B11: DEQPC T-1 Transportation: November - March | C11: =+'Ut 1.4 p3'!H16 -> 2411701.734 | D11: =C11 -> 2411701.734
A12: =A11+1 -> 3 | B12: DEQPC No-Notice Transportation | C12: =+'Ut 1.4 p3'!H17 -> 2001414.363 | D12: =C12*D50 -> 1446875.612 | E12: =C12*$D$49 -> 554538.7512
A13: 4 | B13: Capacity Release Credits | C13: =+'Ut 1.4 p3'!H18 -> -2363863.005 | D13: =C13*$D$50 -> -1708899.364 | E13: =C13*$D$49 -> -654963.6412
A14: 5 | B14: DEOTP Transportation: Yearly | C14: =+'Ut 1.4 p3'!H19 -> 156845.4412 | D14: =C14*$D$50 -> 113387.7362 | E14: =C14*$D$49 -> 43457.70507
A15: 6 | B15: Kern River Transportation: Yearly | C15: =+'Ut 1.4 p3'!H20 -> 1304345.867 | D15: =C15*$D$50 -> 942946.2782 | E15: =C15*$D$49 -> 361399.589
A16: 7 | B16: Kern River Transportation: November - March | C16: =+'Ut 1.4 p3'!H21 -> 1873380.969 | D16: =C16 -> 1873380.969
A17: 8 | B17: Kern River Transportation: December - February | C17: =+'Ut 1.4 p3'!H22 -> 1418926.272 | D17: =C17 -> 1418926.272
A18: 9 | B18: Kern River Transportation: November & March | C18: =+'Ut 1.4 p3'!H23 -> 100252.777 | D18: =C18 -> 100252.777
A19: 10 | B19: ACA (FERC) | C19: =+'Ut 1.4 p3'!H24 -> 189337.7435 | D19: =C19*$D$50 -> 136877.2847 | E19: =C19*$D$49 -> 52460.45885
A20: 11 | B20: MWP Commodity | C20: =+'Ut 1.4 p3'!H25 -> 272537.3826 | D20: =C20*$D$50 -> 197024.514 | E20: =C20*$D$49 -> 75512.86858
A21: 12 | B21: DEOTP Commodity | C21: =+'Ut 1.4 p3'!H26 -> 4931.713391 | D21: =C21*$D$50 -> 3565.266625 | E21: =C21*$D$49 -> 1366.446767
A22: 13 | B22: Kern River Commodity | C22: =+'Ut 1.4 p3'!H27 -> 93271.82061 | D22: =C22*$D$50 -> 67428.67694 | E22: =C22*$D$49 -> 25843.14366
A23: 14 | B23: Other Transportation Charges | C23: =+'Ut 1.4 p3'!H28 -> 2396025.863 | D23: =C23*$D$50 -> 1732150.749 | E23: =C23*$D$49 -> 663875.1147
A24: 15 | B24: DEQPC Peak Hour Service | C24: =+'Ut 1.4 p3'!H32 -> 1301498.738 | D24: =C24 -> 1301498.738
A25: 16 | B25: Kern River Peak Hour Service | C25: =+'Ut 1.4 p3'!H33 -> 1096684.819 | D25: =C25 -> 1096684.819
A26: 17 | B26: Aquifer Peaking Storage Demand | C26: =+'Ut 1.4 p3'!H37 -> 6013648.754 | D26: =C26*$D$50 -> 4347426.44 | E26: =C26*$D$49 -> 1666222.313
A27: 18 | B27: Spire Storage Demand | C27: =+'Ut 1.4 p3'!H38 -> 0 | D27: 0 | E27: 0
A28: 19 | B28: Clay Basin Storage Demand | C28: =+'Ut 1.4 p3'!H39 -> 3616636.403 | D28: 2614562.534 | E28: 1002073.869
A29: 20 | B29: Clay Basin Storage Capacity | C29: =+'Ut 1.4 p3'!H40 -> 3616850.812 | D29: 2614717.536 | E29: 1002133.276
A30: 21 | B30: Aquifer Peaking Injections Storage Commodity | C30: =+'Ut 1.4 p3'!H41 -> 65955.17254 | D30: 47680.74637 | E30: 18274.42617
A31: 22 | B31: Aquifer Peaking Withdrawals Storage Commodity | C31: =+'Ut 1.4 p3'!H42 -> 65556.55483 | D31: 47392.57504 | E31: 18163.97979
A32: 23 | B32: Spire Injections Storage Commodity | C32: =+'Ut 1.4 p3'!H43 -> 0 | D32: 0 | E32: 0
A33: 24 | B33: Spire Withdrawals Storage Commodity | C33: =+'Ut 1.4 p3'!H44 -> 0 | D33: 0 | E33: 0
A34: 25 | B34: Clay Basin Injections Storage Commodity | C34: =+'Ut 1.4 p3'!H45 -> 113950.8226 | D34: 82378.07686 | E34: 31572.74577
A35: =A34+1 -> 26 | B35: Clay Basin Withdrawals Storage Commodity | C35: =+'Ut 1.4 p3'!H46 -> 188734.1494 | D35: 136440.9305 | E35: 52293.21896
A36: 27 | B36: LNG Electricity | C36: =+'Ut 1.4 p3'!H49 -> 2243772.117 | D36: =+(SUM(Expenses!F24:H24)*'Ut 1.4 p3'!D65) -> 802372.4 | E36: =+SUM(Expenses!D24,Expenses!E24,Expenses!K24)*'Ut 1.4 p3'!D65 -> 62229.16456
A37: =+A36+1 -> 28 | B37: Utah SNG Costs | C37: =SUM(C10:C36) -> 84577020.29 | D37: =SUM(D10:D36) -> 62595944.43 | E37: 20601905.3
A39: =A37+1 -> 29 | B39: Winter SNG - Summer SNG | C39: =D37-E37 -> 41994039.13
A40: =A39+1 -> 30 | B40: Winter Dth | C40: =C50 -> 81479350
A41: =A40+1 -> 31 | B41: Seasonal Cost Differential | C41: =ROUND(C39/C40,5) -> 0.51539
A43: =+A41+1 -> 32 | B43: SNG Amortization | C43: =+'Ut 1.5 p3'!C30 -> 3126484.514 | D43: =+C43*D37/C37 -> 2313929.366 | E43: =+C43*E37/C37 -> 761572.5604
A45: =+A43+1 -> 33 | B45: Winter SNG - Summer SNG Amortization | C45: =+D43-E43 -> 1552356.805
A46: =+A45+1 -> 34 | B46: Winter Dth | C46: =+C50 -> 81479350
A47: =+A46+1 -> 35 | B47: Seasonal Cost Differential | C47: =ROUND(C45/C46,5) -> 0.01905
A49: =+A47+1 -> 36 | B49: 2023 Forecast GS Summer Usage | C49: =+'Ut 1.5 p3'!C15 -> 31228294 | D49: =C49/(C49+C50) -> 0.2770734343
A50: =A49+1 -> 37 | B50: 2023 Forecast GS Winter Usage | C50: =+'Ut 1.5 p3'!C16 -> 81479350 | D50: =C50/(C50+C49) -> 0.7229265657

Sheet Ut 1.5 p5
E1: ='Control Panel'!$F$32 -> Dominion Energy Utah
E2: ='Control Panel'!$F$33 -> Docket No. 23-057-03
E3: DEU Exhibit 1.5
E4: Page 5 of 6
A7: FIRM SALES SUMMER / WINTER DIFFERENTIAL
A9: SNG | B9: (A) | C9: (B) | D9: (C) | E9: (D)
B10: Contract | C10: Allocated FS Costs | D10: Winter Allocation | E10: Summer Allocation
A11: 1 | B11: DEQPC T-1 Transportation: Yearly | C11: =+'Ut 1.4 p3'!I15 -> 1303270.171 | D11: =C11*D52 -> 644633.4849 | E11: =C11*$D$51 -> 658636.686
A12: =A11+1 -> 2 | B12: DEQPC T-1 Transportation: November - March | C12: =+'Ut 1.4 p3'!I16 -> 55734.01795 | D12: =C12 -> 55734.01795
A13: =A12+1 -> 3 | B13: DEQPC No-Notice Transportation | C13: =+'Ut 1.4 p3'!I17 -> 46252.34642 | D13: =C13*D52 -> 22877.69023 | E13: =C13*$D$51 -> 23374.65619
A14: 4 | B14: Capacity Release Credits | C14: =+'Ut 1.4 p3'!I18 -> -54628.47305 | D14: =C14*$D$52 -> -27020.75421 | E14: =C14*$D$51 -> -27607.71884
A15: 5 | B15: DEOTP Transportation: Yearly | C15: =+'Ut 1.4 p3'!I19 -> 3624.67154 | D15: =C15*$D$52 -> 1792.86283 | E15: =C15*$D$51 -> 1831.80871
A16: 6 | B16: Kern River Transportation: Yearly | C16: =+'Ut 1.4 p3'!I20 -> 30143.21172 | D16: =C16*$D$52 -> 14909.66651 | E16: =C16*$D$51 -> 15233.54521
A17: 7 | B17: Kern River Transportation: November - March | C17: =+'Ut 1.4 p3'!I21 -> 43293.51641 | D17: =C17 -> 43293.51641
A18: 8 | B18: Kern River Transportation: December - February | C18: =+'Ut 1.4 p3'!I22 -> 32791.14543 | D18: =C18 -> 32791.14543
A19: 9 | B19: Kern River Transportation: November & March | C19: =+'Ut 1.4 p3'!I23 -> 2316.824669 | D19: =C19 -> 2316.824669
A20: 10 | B20: ACA (FERC) | C20: =+'Ut 1.4 p3'!I24 -> 4375.563134 | D20: =C20*$D$52 -> 2164.274588 | E20: =C20*$D$51 -> 2211.288547
A21: 11 | B21: MWP Commodity | C21: =+'Ut 1.4 p3'!I25 -> 6298.292679 | D21: 3115.309818 | E21: 3182.982861
A22: 12 | B22: DEOTP Commodity | C22: =+'Ut 1.4 p3'!I26 -> 113.9710599 | D22: =C22*$D$52 -> 56.37323952 | E22: =C22*$D$51 -> 57.59782035
A23: 13 | B23: Kern River Commodity | C23: =+'Ut 1.4 p3'!I27 -> 2155.495952 | D23: 1066.167935 | E23: 1089.328017
A24: 14 | B24: Other Transportation Charges | C24: =+'Ut 1.4 p3'!I28 -> 55371.75124 | D24: 27388.40017 | E24: 27983.35107
A25: 15 | B25: DEQPC Peak Hour Service | C25: =+'Ut 1.4 p3'!I32 -> 16265.56792 | D25: =C25 -> 16265.56792
A26: 16 | B26: Kern River Peak Hour Service | C26: =+'Ut 1.4 p3'!I33 -> 13705.89221 | D26: =C26 -> 13705.89221
A27: 17 | B27: Aquifer Peaking Storage Demand | C27: =+'Ut 1.4 p3'!I37 -> 138974.4025 | D27: 68740.58459 | E27: 70233.81796
A28: 18 | B28: Spire Storage Demand | C28: =+'Ut 1.4 p3'!I38 -> 0 | D28: 0 | E28: 0
A29: 19 | B29: Clay Basin Storage Demand | C29: =+'Ut 1.4 p3'!I39 -> 83579.85376 | D29: 41340.90813 | E29: 42238.94563
A30: 20 | B30: Clay Basin Storage Capacity | C30: =+'Ut 1.4 p3'!I40 -> 83584.80872 | D30: 41343.35899 | E30: 42241.44973
A31: 21 | B31: Aquifer Peaking Injections Storage Commodity | C31: =+'Ut 1.4 p3'!I41 -> 1524.212849 | D31: 753.9178464 | E31: 770.2950025
A32: 22 | B32: Aquifer Peaking Withdrawals Storage Commodity | C32: =+'Ut 1.4 p3'!I42 -> 1515.000861 | D32: 749.3613425 | E32: 765.6395188
A33: 23 | B33: Spire Injections Storage Commodity | C33: =+'Ut 1.4 p3'!I43 -> 0 | D33: 0 | E33: 0
A34: 24 | B34: Spire Withdrawals Storage Commodity | C34: =+'Ut 1.4 p3'!I44 -> 0 | D34: 0 | E34: 0
A35: 25 | B35: Clay Basin Injections Storage Commodity | C35: =+'Ut 1.4 p3'!I45 -> 2633.384181 | D35: 1302.544675 | E35: 1330.839505
A36: 26 | B36: Clay Basin Withdrawals Storage Commodity | C36: =+'Ut 1.4 p3'!I46 -> 4361.614177 | D36: 2157.375047 | E36: 2204.239129
A37: =+A36+1 -> 27 | B37: LNG Electricity | C37: =+'Ut 1.4 p3'!I49 -> 51853.19299 | D37: =+(SUM(Expenses!F24:H24)*'Ut 1.4 p3'!E65) -> 18542.69005 | E37: =+SUM(Expenses!D24,Expenses!E24,Expenses!K24)*'Ut 1.4 p3'!E65 -> 1438.105437
A38: =+A37+1 -> 28 | B38: Utah SNG Costs | C38: =SUM(C11:C37) -> 1929110.436 | D38: =SUM(D11:D37) -> 1030021.181 | E38: 867216.8575
A40: =A38+1 -> 29 | B40: Winter SNG - Summer SNG | C40: =D38-E38 -> 162804.3238
A41: =A40+1 -> 30 | B41: Winter Dth | C41: =C52 -> 1280686
A42: =A41+1 -> 31 | B42: Seasonal Cost Differential | C42: =ROUND(C40/C41,5) -> 0.12712
A44: =+A42+1 -> 32 | B44: SNG Amortization | C44: =+'Ut 1.5 p3'!D30 -> 71294.83796 | D44: =+C44*D38/C38 -> 38066.86846 | E44: =+C44*E38/C38 -> 32050.04969
A46: =+A44+1 -> 33 | B46: Winter SNG - Summer SNG Amortization | C46: =+D44-E44 -> 6016.818771
A47: =+A46+1 -> 34 | B47: Winter Dth | C47: =+C52 -> 1280686
A48: =+A47+1 -> 35 | B48: Seasonal Cost Differential | C48: =ROUND(C46/C47,5) -> 0.0047
A51: =+A48+1 -> 36 | B51: 2023 Forecast FS Summer Usage | C51: =+'Ut 1.5 p3'!D15 -> 1308506 | D51: =C51/(C51+C52) -> 0.5053723324
A52: =+A51+1 -> 37 | B52: 2023 Forecast FS Winter Usage | C52: =+'Ut 1.5 p3'!D16 -> 1280686 | D52: =C52/(C52+C51) -> 0.4946276676

Sheet Ut 1.5 p6
G1: ='Control Panel'!$F$32 -> Dominion Energy Utah
G2: ='Control Panel'!$F$33 -> Docket No. 23-057-03
G3: DEU Exhibit 1.5
G4: Page 6 of 6
C7: SUMMARY OF RATES
B9: COMMODITY | D9: (A) | E9: (B)
B10: Class | C10: Description | D10: Current | E10: Proposed
B11: GS, FS
A12: 1 | C12: Base Gas Cost | D12: =+'Other Inputs'!F119 -> 6.58934 | E12: =+'Ut 1.5 p1'!F30 -> 5.99225
A13: 2 | C13: 191 Amortization | D13: =+'Other Inputs'!F120 -> 0.53231 | E13: =+'Ut 1.5 p1'!F31 -> 1.94243
A14: 3 | C14: Commodity Rate | D14: =+D12+D13 -> 7.12165 | E14: =+E12+E13 -> 7.93468
B16: IS
A17: =+A14+1 -> 4 | C17: Base Gas Cost | D17: ='Other Inputs'!F129 -> 6.57313 | E17: =+'Ut 1.5 p1'!F37 -> 5.98404
A18: =+A17+1 -> 5 | C18: 191 Amortization | D18: =+'Other Inputs'!F120 -> 0.53231 | E18: =+'Ut 1.5 p1'!F38 -> 1.94243
A19: =+A18+1 -> 6 | C19: Commodity Rate | D19: =+D17+D18 -> 7.10544 | E19: =+E17+E18 -> 7.92647
B21: NGV
A22: =+A19+1 -> 7 | C22: Base Gas Cost | D22: ='Other Inputs'!F129 -> 6.57313 | E22: =+'Ut 1.5 p1'!F37 -> 5.98404
A23: =+A22+1 -> 8 | C23: 191 Amortization | D23: =+'Other Inputs'!F120 -> 0.53231 | E23: =+'Ut 1.5 p1'!F31 -> 1.94243
A24: =+A23+1 -> 9 | C24: RIN Credit | D24: =+'Other Inputs'!F130 -> -0.48096 | E24: ='Ut 1.5 p1'!H72 -> -0.58164
A25: 10 | C25: Commodity Rate | D25: =+D22+D23+D24 -> 6.62448 | E25: =+E22+E23+E24 -> 7.34483
B28: SNG
B29: Class | C29: Description | D29: Current | E29: Proposed
A30: =+A25+1 -> 11 | B30: GS | C30: Base SNG Summer | D30: =+'Other Inputs'!E89 -> 0.38433 | E30: =ROUND('Ut 1.5 p3'!C20,5) -> 0.3778
A31: =+A30+1 -> 12 | C31: SNG Amortization | D31: =+'Other Inputs'!F89 -> 0.01392 | E31: =ROUND('Ut 1.5 p3'!C33,5) -> 0.01392
A32: =+A31+1 -> 13 | C32: SNG Summer Rate | D32: =+D30+D31 -> 0.39825 | E32: =+E30+E31 -> 0.39172
A34: =+A32+1 -> 14 | C34: Base SNG Winter | D34: =+'Other Inputs'!E88 -> 0.91359 | E34: =ROUND('Ut 1.5 p3'!C21,5) -> 0.89319
A35: =+A34+1 -> 15 | C35: SNG Amortization | D35: =+'Other Inputs'!F88 -> 0.03321 | E35: =ROUND('Ut 1.5 p3'!C34,5) -> 0.03321
A36: =+A35+1 -> 16 | C36: SNG Winter Rate | D36: =+D34+D35 -> 0.9468 | E36: =+E34+E35 -> 0.9264
A38: =+A36+1 -> 17 | B38: FS | C38: Base SNG Summer | D38: =+'Other Inputs'!E92 -> 0.75121 | E38: =ROUND('Ut 1.5 p3'!D20,5) -> 0.68198
A39: =+A38+1 -> 18 | C39: SNG Amortization | D39: =+'Other Inputs'!F92 -> 0.02741 | E39: =ROUND('Ut 1.5 p3'!D33,5) -> 0.02741
A40: =+A39+1 -> 19 | C40: SNG Summer Rate | D40: =+D38+D39 -> 0.77862 | E40: =+E38+E39 -> 0.70939
A42: =+A40+1 -> 20 | C42: Base SNG Winter | D42: =+'Other Inputs'!E91 -> 0.90016 | E42: =ROUND('Ut 1.5 p3'!D21,5) -> 0.8091
A43: =+A42+1 -> 21 | C43: SNG Amortization | D43: =+'Other Inputs'!F91 -> 0.03283 | E43: =ROUND('Ut 1.5 p3'!D34,5) -> 0.03283
A44: =+A43+1 -> 22 | C44: SNG Winter Rate | D44: =+D42+D43 -> 0.93299 | E44: =+E42+E43 -> 0.84193
A46: =+A44+1 -> 23 | B46: IS | C46: SNG Rate | D46: =+'Other Inputs'!E96 -> 0.17938 | E46: =ROUND('Ut 1.5 p3'!E23,5) -> 0.17938
A48: =+A46+1 -> 24 | B48: TSS/TSM/TSL | C48: Base SNG Annual Demand | D48: =+'Other Inputs'!G320 -> 2.08116 | E48: =ROUND('Ut 1.5 p3'!F25,5) -> 1.91973
A49: =+A48+1 -> 25 | C49: SNG Amortization | D49: =+'Other Inputs'!G321 -> 0.07578 | E49: =ROUND('Ut 1.5 p3'!F35,5) -> 0.07578
A50: =+A49+1 -> 26 | C50: SNG Adder Annual | D50: =+D48+D49 -> 2.15694 | E50: =+E48+E49 -> 1.99551
A51: =+A50+1 -> 27 | C51: SNG Adder Monthly | D51: =+ROUND(D50/12,5) -> 0.17975 | E51: =+ROUND(E50/12,5) -> 0.16629
A53: =+A51+1 -> 28 | B53: TBF | C53: Base SNG Annual Demand | D53: ='Other Inputs'!G325 -> 1.3865 | E53: =ROUND('Ut 1.5 p3'!G25,5) -> 1.73241
A54: =+A53+1 -> 29 | C54: SNG Amortization | D54: ='Other Inputs'!G326 -> 0.05049 | E54: =ROUND('Ut 1.5 p3'!G35,5) -> 0.05049
A55: =+A54+1 -> 30 | C55: SNG Adder Annual | D55: =+D53+D54 -> 1.43699 | E55: =+E53+E54 -> 1.7829
A56: =+A55+1 -> 31 | C56: SNG Adder Monthly | D56: =+ROUND(D55/12,5) -> 0.11975 | E56: =+ROUND(E55/12,5) -> 0.14858
A58: =+A56+1 -> 32 | B58: NGV | C58: Base SNG | D58: =+'Other Inputs'!E94 -> 0.67962 | E58: =ROUND('Ut 1.5 p3'!H23,5) -> 0.71996
A59: =+A58+1 -> 33 | C59: SNG Amortization | D59: =+'Other Inputs'!F94 -> 0.02481 | E59: =ROUND('Ut 1.5 p3'!H35,5) -> 0.02481
A60: =+A59+1 -> 34 | C60: SNG Rate | D60: =+D58+D59 -> 0.70443 | E60: =+E58+E59 -> 0.74477

Sheet Ut 1.6
L1: ='Control Panel'!$F$32 -> Dominion Energy Utah
L2: ='Control Panel'!$F$33 -> Docket No. 23-057-03
L3: DEU Exhibit 1.6
C7: EFFECT ON GS TYPICAL CUSTOMER
C8: 70 DTHS - ANNUAL CONSUMPTION
C11: (A) | D11: (B) | E11: (C) | F11: (D) | H11: (E) | J11: (F)
F12: Billed at Current | H12: Billed at
C13: Rate | E13: Usage | F13: Rates Effective | H13: Proposed Rates
C14: Schedule | D14: Month | E14: In Dth | F14: ='Other Inputs'!J100 -> 2023-01-01 | H14: ='Control Panel'!F5 -> 23-057-03 | J14: Change
B16: 1 | C16: GS | D16: Jan | E16: ='Monthly Inputs'!K126 -> 13 | F16: =ROUND((+E16*'Other Inputs'!$G$102)+'Other Inputs'!$G$104,2) -> 157.39 | H16: =ROUND((+E16*'Ut 1.6 Source'!$F$16)+'Ut 1.6 Source'!$C$18,2) -> 167.69 | J16: =H16-F16 -> 10.3
B17: =B16+1 -> 2 | D17: Feb | E17: ='Monthly Inputs'!K127 -> 10.9 | F17: =ROUND((+E17*'Other Inputs'!$G$102)+'Other Inputs'!$G$104,2) -> 133.06 | H17: =ROUND((+E17*'Ut 1.6 Source'!$F$16)+'Ut 1.6 Source'!$C$18,2) -> 141.7 | J17: 8.64
B18: =B17+1 -> 3 | D18: Mar | E18: ='Monthly Inputs'!K128 -> 8.8 | F18: =ROUND((+E18*'Other Inputs'!$G$102)+'Other Inputs'!$G$104,2) -> 108.72 | H18: =ROUND((+E18*'Ut 1.6 Source'!$F$16)+'Ut 1.6 Source'!$C$18,2) -> 115.7 | J18: 6.98
B19: 4 | D19: Apr | E19: ='Monthly Inputs'!K129 -> 7.3 | F19: =ROUND((+E19*'Other Inputs'!$G$100)+'Other Inputs'!$G$104,2) -> 82.87 | H19: =ROUND((+E19*'Ut 1.6 Source'!$C$16)+'Ut 1.6 Source'!$C$18,2) -> 88.76 | J19: 5.89
B20: 5 | D20: May | E20: ='Monthly Inputs'!K130 -> 3.8 | F20: =ROUND((+E20*'Other Inputs'!$G$100)+'Other Inputs'!$G$104,2) -> 46.38 | H20: =ROUND((+E20*'Ut 1.6 Source'!$C$16)+'Ut 1.6 Source'!$C$18,2) -> 49.44 | J20: 3.06
B21: 6 | D21: Jun | E21: ='Monthly Inputs'!K131 -> 2.7 | F21: =ROUND((+E21*'Other Inputs'!$G$100)+'Other Inputs'!$G$104,2) -> 34.9 | H21: =ROUND((+E21*'Ut 1.6 Source'!$C$16)+'Ut 1.6 Source'!$C$18,2) -> 37.08 | J21: 2.18
B22: 7 | D22: Jul | E22: ='Monthly Inputs'!K132 -> 1.8 | F22: =ROUND((+E22*'Other Inputs'!$G$100)+'Other Inputs'!$G$104,2) -> 25.52 | H22: =ROUND((+E22*'Ut 1.6 Source'!$C$16)+'Ut 1.6 Source'!$C$18,2) -> 26.97 | J22: 1.45
B23: 8 | D23: Aug | E23: ='Monthly Inputs'!K133 -> 1.6 | F23: =ROUND((+E23*'Other Inputs'!$G$100)+'Other Inputs'!$G$104,2) -> 23.43 | H23: =ROUND((+E23*'Ut 1.6 Source'!$C$16)+'Ut 1.6 Source'!$C$18,2) -> 24.72 | J23: 1.29
B24: 9 | D24: Sep | E24: ='Monthly Inputs'!K134 -> 1.8 | F24: =ROUND((+E24*'Other Inputs'!$G$100)+'Other Inputs'!$G$104,2) -> 25.52 | H24: =ROUND((+E24*'Ut 1.6 Source'!$C$16)+'Ut 1.6 Source'!$C$18,2) -> 26.97 | J24: 1.45
B25: 10 | D25: Oct | E25: ='Monthly Inputs'!K135 -> 2.7 | F25: =ROUND((+E25*'Other Inputs'!$G$100)+'Other Inputs'!$G$104,2) -> 34.9 | H25: =ROUND((+E25*'Ut 1.6 Source'!$C$16)+'Ut 1.6 Source'!$C$18,2) -> 37.08 | J25: 2.18
B26: 11 | D26: Nov | E26: ='Monthly Inputs'!K136 -> 5.5 | F26: =ROUND((+E26*'Other Inputs'!$G$102)+'Other Inputs'!$G$104,2) -> 70.48 | H26: =ROUND((+E26*'Ut 1.6 Source'!$F$16)+'Ut 1.6 Source'!$C$18,2) -> 74.84 | J26: 4.36
B27: 12 | D27: Dec | E27: ='Monthly Inputs'!K137 -> 10.1 | F27: =ROUND((+E27*'Other Inputs'!$G$102)+'Other Inputs'!$G$104,2) -> 123.79 | H27: =ROUND((+E27*'Ut 1.6 Source'!$F$16)+'Ut 1.6 Source'!$C$18,2) -> 131.79 | J27: 8
B30: =B27+1 -> 13 | D30: Total | E30: =SUM(E16:E27) -> 70 | F30: =SUM(F16:F27) -> 866.96 | H30: =SUM(H16:H27) -> 922.74 | J30: =H30-F30 -> 55.78
B32: =B30+1 -> 14 | H32: Percent Change: | J32: =ROUND(J30/F30,4)*100 -> 6.43 | K32: %

Sheet Ut 1.7 Tot (hidden)
L1: ='Control Panel'!$F$32 -> Dominion Energy Utah
L2: Docket Nos. 08-057-15, 08-057-16 & 08-057-17
L3: Hearing Exhibit 2
A5: NOT USED
C7: EFFECT ON GS-1 TYPICAL CUSTOMER
B8: OF PROPOSED COMMODITY AND SNG RATES AND CET AND DSM AMORTIZATIONS
C9: 80 DTHS - ANNUAL CONSUMPTION
C12: (A) | D12: (B) | E12: (C) | F12: (D) | H12: (E) | J12: (F)
F13: Billed at Current | H13: Billed at
C14: Rate | E14: Usage | F14: Rates Effective | H14: Proposed
C15: Schedule | D15: Month | E15: In Dth | F15: ='Other Inputs'!#REF! ->  | H15: Rates | J15: Change
B17: 1 | C17: GS | D17: Jan | E17: ='Monthly Inputs'!G126 -> 0 | F17: =ROUND((+E17*'Other Inputs'!$G$102)+'Other Inputs'!$G$104,2) -> 6.75 | H17: ='CET & DSM'!D107 ->  | J17: =H17-F17 -> 
B18: =B17+1 -> 2 | D18: Feb | E18: ='Monthly Inputs'!G127 -> 0 | F18: =ROUND((+E18*'Other Inputs'!$G$102)+'Other Inputs'!$G$104,2) -> 6.75 | H18: ='CET & DSM'!D108 -> 
B19: 3 | D19: Mar | E19: ='Monthly Inputs'!G128 -> 0 | F19: =ROUND((+E19*'Other Inputs'!$G$102)+'Other Inputs'!$G$104,2) -> 6.75 | H19: ='CET & DSM'!D109 -> 
B20: 4 | D20: Apr | E20: ='Monthly Inputs'!G129 -> 0 | F20: =ROUND((+E20*'Other Inputs'!$G$100)+'Other Inputs'!$G$104,2) -> 6.75 | H20: ='CET & DSM'!D110 -> 
B21: 5 | D21: May | E21: ='Monthly Inputs'!G130 -> 0 | F21: =ROUND((+E21*'Other Inputs'!$G$100)+'Other Inputs'!$G$104,2) -> 6.75 | H21: ='CET & DSM'!D111 -> 
B22: 6 | D22: Jun | E22: ='Monthly Inputs'!G131 -> 0 | F22: =ROUND((+E22*'Other Inputs'!$G$100)+'Other Inputs'!$G$104,2) -> 6.75 | H22: ='CET & DSM'!D112 -> 
B23: 7 | D23: Jul | E23: ='Monthly Inputs'!G132 -> 0 | F23: =ROUND((+E23*'Other Inputs'!$G$100)+'Other Inputs'!$G$104,2) -> 6.75 | H23: ='CET & DSM'!D113 -> 
B24: 8 | D24: Aug | E24: ='Monthly Inputs'!G133 -> 0 | F24: =ROUND((+E24*'Other Inputs'!$G$100)+'Other Inputs'!$G$104,2) -> 6.75 | H24: ='CET & DSM'!D114 -> 
B25: 9 | D25: Sep | E25: ='Monthly Inputs'!G134 -> 0 | F25: =ROUND((+E25*'Other Inputs'!$G$100)+'Other Inputs'!$G$104,2) -> 6.75 | H25: ='CET & DSM'!D115 -> 
B26: 10 | D26: Oct | E26: ='Monthly Inputs'!G135 -> 0 | F26: =ROUND((+E26*'Other Inputs'!$G$100)+'Other Inputs'!$G$104,2) -> 6.75 | H26: ='CET & DSM'!D116 -> 
B27: 11 | D27: Nov | E27: ='Monthly Inputs'!G136 -> 0 | F27: =ROUND((+E27*'Other Inputs'!$G$102)+'Other Inputs'!$G$104,2) -> 6.75 | H27: ='CET & DSM'!D117 -> 
B28: 12 | D28: Dec | E28: ='Monthly Inputs'!G137 -> 0 | F28: =ROUND((+E28*'Other Inputs'!$G$102)+'Other Inputs'!$G$104,2) -> 6.75 | H28: ='CET & DSM'!D118 -> 
B31: =B28+1 -> 13 | D31: Total | E31: =SUM(E17:E28) -> 0 | F31: =SUM(F17:F28) -> 81 | H31: =SUM(H17:H28) ->  | J31: =H31-F31 -> 
H33: Percent Change: | J33: =ROUND(J31/F31,4)*100 ->  | K33: %

Sheet Ut 1.7 p1
F1: ='Control Panel'!F32 -> Dominion Energy Utah
F2: ='Control Panel'!F33 -> Docket No. 23-057-03
F3: DEU Exhibit 1.7
F4: Page 1 of 17
A15: DOMINION ENERGY UTAH
A16: 333 South State Street
A17: P.O. Box 45433
A18: Salt Lake City, Utah 84145-0433
A29: LEGISLATIVE/PROPOSED RATE SCHEDULES
A31: P.S.C. Utah No. 600
A32: Affecting GS, FS, NGV, IS, TBF, TSS, TSM, and TSL Rate Schedules
A33: and Classes of Service In
A34: Dominion Energy
A35: Utah Service Area
A37: Tariff Section 2.02, 2.03, 2.04, 4.02, 5,02, 5.04, 5.05, 5.06
A39: Date Issued: January 31, 2023
A40: To Become Effective: March 1, 2023

Sheet LEG - PR
A2: LEGISLATIVE TARIFF
A3: SHEETS
A6: PROPOSED TARIFF
A7: SHEETS

Sheet Ut 1.6 Source
A1: SUMMARY OF PROPOSED RATES
G2: Current Rates Effective | H2: 2022-01-01
A3: UTAH RATE CLASSES | C3: Rates per Dth Used Each Month
C4: All Season Rates or Summer Rates: Apr. 1 - Oct. 31 | F4: Winter Rates: Nov. 1 - Mar. 31
A5: UT GS | C5: First 45 Dth | D5: All Over 45 Dth | F5: First 45 Dth | G5: All Over 45 Dth
B6: Distribution Non-Gas Cost | C6: 2.65544 | D6: 1.38725 | F6: 3.25401 | G6: 1.98582
B7: CET Amortization | C7: 0.03221 | D7: 0.01231 | F7: 0.04382 | G7: 0.02392
B8: DSM Amortization | C8: 0.20321 | D8: 0.20321 | F8: 0.20321 | G8: 0.20321
B9: Energy Assistance | C9: 0.01348 | D9: 0.01348 | F9: 0.01348 | G9: 0.01348
B10: Infrastructure Rate Adjustment | C10: 0 | D10: 0 | F10: 0 | G10: 0
B11: Rural Expansion Rate Adjustment | C11: 0 | D11: 0 | F11: 0 | G11: 0
B12: STEP Surcharge | C12: 0.00346 | D12: 0.00132 | F12: 0.00471 | G12: 0.00257
B13: Supplier Non-Gas Cost | C13: =+'Ut 1.5 p6'!E32 -> 0.39172 | D13: =C13 -> 0.39172 | F13: =+'Ut 1.5 p6'!E36 -> 0.9264 | G13: =F13 -> 0.9264
B14: Commodity Cost | C14: =('Ut 1.5 p1'!$F$32) -> 7.93468 | D14: =C14 -> 7.93468 | F14: =D14 -> 7.93468 | G14: =F14 -> 7.93468
B16: Total Rate | C16: =SUM(C6:C15) -> 11.2342 | D16: =SUM(D6:D15) -> 9.94397 | F16: =SUM(F6:F15) -> 12.38031 | G16: =SUM(G6:G15) -> 11.09008
B18: BSF Category 1 | C18: 6.75
B19: BSF Category 2 | C19: 18.25
B20: BSF Category 3 | C20: 63.5
B21: BSF Category 4 | C21: 420.25
C22: =2.3704-0.00728 -> 2.36312
A24: UT FS | C24: First 200 Dth | D24: Next 1,800 Dth | E24: All Over 2,000 Dth | F24: First 200 Dth | G24: Next 1,800 Dth | H24: All Over 2,000 Dth
B25: Distribution Non-Gas Cost | C25: 1.57367 | D25: 1.05207 | E25: 0.503 | F25: 2.05177 | G25: 1.53017 | H25: 0.9811
B26: Energy Assistance | C26: 0.01091 | D26: 0.01091 | E26: 0.01091 | F26: 0.01091 | G26: 0.01091 | H26: 0.01091
B27: Infrastructure Rate Adjustment | C27: 0 | D27: 0 | E27: 0 | F27: 0 | G27: 0 | H27: 0
B28: Rural Expansion Rate Adjustment | C28: 0 | D28: 0 | E28: 0 | F28: 0 | G28: 0 | H28: 0
B29: STEP Surcharge | C29: 0.00162 | D29: 0.00085 | E29: 3e-05 | F29: 0.00246 | G29: 0.00168 | H29: 0.00086
B30: Supplier Non-Gas Cost | C30: =+'Ut 1.5 p6'!E40 -> 0.70939 | D30: =C30 -> 0.70939 | E30: =D30 -> 0.70939 | F30: =+'Ut 1.5 p6'!E44 -> 0.84193 | G30: =F30 -> 0.84193 | H30: =G30 -> 0.84193
B31: Commodity Cost | C31: =('Ut 1.5 p1'!$F$32) -> 7.93468 | D31: =C31 -> 7.93468 | E31: =D31 -> 7.93468 | F31: =E31 -> 7.93468 | G31: =F31 -> 7.93468 | H31: =G31 -> 7.93468
B33: Total Rate | C33: =SUM(C25:C32) -> 10.23027 | D33: =SUM(D25:D32) -> 9.7079 | E33: =SUM(E25:E32) -> 9.15801 | F33: 10.84175 | G33: 10.31937 | H33: 9.76948
B35: Minimum Monthly DNG Charge: | C35: 275 | F35: 359
B37: BSF Category 1 | C37: =C18 -> 6.75
B38: BSF Category 2 | C38: =C19 -> 18.25
B39: BSF Category 3 | C39: =C20 -> 63.5
B40: BSF Category 4 | C40: =C21 -> 420.25
A43: UT Future Rate Class
C44: First 10,000 Dth | D44: All Over 10,000 Dth
B45: Distribution Non-Gas Cost
B46: Supplier Non-Gas Cost
B47: Commodity Cost
B49: Total Rate | C49: =SUM(C45:C48) -> 0 | D49: =SUM(D45:D48) -> 0
B51: Minimum Yearly Distribution Non-Gas Charge | D51: =ROUND(((10000*C45))*12,-2) -> 0
B54: BSF Category 1 | C54: =C18 -> 6.75
B55: BSF Category 2 | C55: =C19 -> 18.25
B56: BSF Category 3 | C56: =C20 -> 63.5
B57: BSF Category 4 | C57: =C21 -> 420.25
A61: UT NGV
B62: Distribution Non-Gas Cost | C62: 10.35287
B63: Energy Assistance | C63: 0.01981
B64: Infrastructure Rate Adjustment | C64: 0
B65: Rural Expansion Rate Adjustment | C65: 0
B66: STEP Surcharge | C66: 0.01374
B67: Supplier Non-Gas Cost | C67: =+'Ut 1.5 p6'!E60 -> 0.74477
B68: Commodity Cost | C68: ='Ut 1.5 p6'!E25 -> 7.34483
B70: Total Rate | C70: =SUM(C62:C69) -> 18.47602 | D70: =C70/8+0.35 -> 2.6595025
A73: UT IS | C73: First 2,000 Dth | D73: Next 18,000 Dth | E73: All Over 20,000
B74: Distribution Non-Gas Cost | C74: 0.84853 | D74: 0.10056 | E74: 0.04583
B75: Energy Assistance | C75: 0.00962 | D75: 0.00962 | E75: 0.00962
B76: Infrastructure Rate Adjustment | C76: 0 | D76: 0 | E76: 0
B77: Rural Expansion Rate Adjustment | C77: 0 | D77: 0 | E77: 0
B78: STEP Surcharge | C78: 0.0012 | D78: 0.00018 | E78: 0.00011
B79: Supplier Non-Gas Cost | C79: =+'Ut 1.5 p6'!E46 -> 0.17938 | D79: =C79 -> 0.17938 | E79: =D79 -> 0.17938
B80: Commodity Cost | C80: =+'Ut 1.5 p6'!E19 -> 7.92647 | D80: =+'Ut 1.5 p6'!E19 -> 7.92647 | E80: =+'Ut 1.5 p6'!E19 -> 7.92647
B82: Total Rate | C82: =SUM(C74:C80) -> 8.9652 | D82: =SUM(D74:D80) -> 8.21621 | E82: =SUM(E74:E80) -> 8.16141
B84: BSF Category 1 | C84: =C18 -> 6.75
B85: BSF Category 2 | C85: =C19 -> 18.25
B86: BSF Category 3 | C86: =C20 -> 63.5
B87: BSF Category 4 | C87: =C21 -> 420.25

Sheet Ut 1.11 (hidden)
F1: ='Control Panel'!F36 -> 0
F2: ='Control Panel'!F33 -> Docket No. 23-057-03
F3: Exhibit 1.11
F4: Page 1 of 7
A17: DOMINION ENERGY UTAH
A18: 333 South State Street
A19: P.O. Box 45433
A20: Salt Lake City, Utah 84145-0433
A31: LEGISLATIVE/PROPOSED RATE SCHEDULES
A32: P.S.C. Utah Tariff

Sheet Ut 1.8 p1
F1: ='Control Panel'!F32 -> Dominion Energy Utah
F2: ='Control Panel'!F33 -> Docket No. 23-057-03
F3: DEU Exhibit 1.8
F4: Page 1 of 17
A15: DOMINION ENERGY UTAH
A16: 333 South State Street
A17: P.O. Box 45433
A18: Salt Lake City, Utah 84145-0433
A29: LEGISLATIVE/PROPOSED COMBINED RATE SCHEDULES
A31: P.S.C. Utah No. 600
A32: Affecting GS, FS, NGV, IS, TBF, TSS, TSM, and TSL Rate Schedules
A33: and Classes of Service In
A34: Dominion Energy
A35: Utah Service Area
A37: Tariff Section 2.02, 2.03, 2.04, 4.02, 5,02, 5.04, 5.05, 5.06
A39: Date Issued: January 31, 2023
A40: To Become Effective: March 1, 2023

Sheet Ut Storage
A1: Storage Injection / Withdrawal adjustment
C3: (A) | D3: (B) | E3: (C) | F3: (D) | G3: (E) | H3: (F) | I3: (G) | K3: (H) | L3: (I) | M3: (J)
G4: Injections | I4: (J) / (C)
E5: Storage | G5: ------------------------------------------------------------- | I5: Storage | M5: Storage
C6: Injection Dth | D6: Withdrawal Dth | E6: Inventory Dth | F6: % that is | G6: Co. Prod. | H6: Purchased | I6: Inventory | M6: Inventory
A7: Line | B7: Month | C7: Per IRPs | D7: Per IRPs | E7: Balance | F7: Co. Prod. (1) | G7: $/Dth (2) | H7: $/Dth (3) | I7: Average $/Dth | K7: Injection (4) | L7: Withdrawal (5) | M7: Balance
B8: =+Expenses!P3 -> 2022-12-31 | E8: =-1*'Other Inputs'!D256 -> 8822146 | I8: =M8/E8 -> 5.454910688 | M8: ='Other Inputs'!E256 -> 48124018.51
B9: ='Monthly Inputs'!E3 -> Jan23 | C9: ='Monthly Inputs'!E29 -> 0 | D9: =-'Monthly Inputs'!E37 -> -4415094 | E9: =E8+C9+D9 -> 4407052 | F9: =F21 -> 0.2971845602 | G9: ='Other Inputs'!F116 -> 5.0105 | H9: ='Monthly Inputs'!E86 -> 12.52 | I9: =M9/E9 -> 5.454910688 | K9: =(+F9*C9*G9)+((1-F9)*C9*H9) -> 0 | L9: =D9*I8 -> -24083943.45 | M9: =M8+L9+K9 -> 24040075.06
B10: ='Monthly Inputs'!F3 -> Feb23 | C10: ='Monthly Inputs'!F29 -> 361110 | D10: =-'Monthly Inputs'!F37 -> -3766170 | E10: =E9+C10+D10 -> 1001992 | F10: =F22 -> 0.3254765581 | G10: =G9 -> 5.0105 | H10: ='Monthly Inputs'!F86 -> 9.34 | I10: 6.34721938 | K10: =(+F10*C10*G10)+((1-F10)*C10*H10) -> 2863908.97 | L10: =D10*I9 -> -20544120.99 | M10: =M9+L10+K10 -> 6359863.041
A11: 1. | B11: ='Monthly Inputs'!G3 -> Mar23 | C11: ='Monthly Inputs'!G29 -> 1122640 | D11: =-'Monthly Inputs'!G37 -> -112125 | E11: =E10+C11+D11 -> 2012507 | F11: =Calculations!D187 -> 0.3218098351 | G11: ='Ut 1.2 p3'!$G$50 -> 4.224227606 | H11: =Calculations!D210 -> 8.02345 | I11: 6.60025374 | K11: 7634875.784 | L11: =D11*I10 -> -711681.973 | M11: =M10+L11+K11 -> 13283056.85
A12: 2. | B12: ='Monthly Inputs'!H3 -> Apr23 | C12: ='Monthly Inputs'!H29 -> 136477 | D12: =-'Monthly Inputs'!H37 -> 0 | E12: =E11+C12+D12 -> 2148984 | F12: =Calculations!E187 -> 0.4770327784 | G12: ='Ut 1.2 p3'!$G$50 -> 4.224227606 | H12: =Calculations!E210 -> 6.97339 | I12: 6.540664204 | K12: 772725.8716 | L12: =D12*I11 -> 0 | M12: =M11+L12+K12 -> 14055782.72
A13: 3. | B13: ='Monthly Inputs'!I3 -> May23 | C13: ='Monthly Inputs'!I29 -> 1418001 | D13: =-'Monthly Inputs'!I37 -> 0 | E13: =E12+C13+D13 -> 3566985 | F13: =Calculations!F187 -> 0.6458738332 | G13: ='Ut 1.2 p3'!$G$50 -> 4.224227606 | H13: =Calculations!F210 -> 3.96 | I13: 5.582602525 | K13: 5857276.744 | L13: =D13*I12 -> 0 | M13: 19913059.47
A14: 4. | B14: ='Monthly Inputs'!J3 -> Jun23 | C14: ='Monthly Inputs'!J29 -> 1480000 | D14: =-'Monthly Inputs'!J37 -> 0 | E14: 5046985 | F14: =Calculations!G187 -> 0.9155358699 | G14: ='Ut 1.2 p3'!$G$50 -> 4.224227606 | H14: =Calculations!G210 -> 4.27 | I14: =M14/E14 -> 5.18540043 | K14: 6257578.722 | L14: =D14*I13 -> 0 | M14: 26170638.19
A15: 5. | B15: ='Monthly Inputs'!K3 -> Jul23 | C15: ='Monthly Inputs'!K29 -> 2045999 | D15: =-'Monthly Inputs'!K37 -> 0 | E15: 7092984 | F15: =Calculations!H187 -> 0.9362969534 | G15: ='Ut 1.2 p3'!$G$50 -> 4.224227606 | H15: =Calculations!H210 -> 4.54 | I15: 4.913948808 | K15: 8683922.085 | L15: 0 | M15: 34854560.28
A16: 6. | B16: ='Monthly Inputs'!L3 -> Aug23 | C16: ='Monthly Inputs'!L29 -> 2051859 | D16: =-'Monthly Inputs'!L37 -> 0 | E16: =E15+C16+D16 -> 9144843 | F16: =Calculations!I187 -> 0.9647214244 | G16: ='Ut 1.2 p3'!$G$50 -> 4.224227606 | H16: =Calculations!I210 -> 4.57 | I16: =M16/E16 -> 4.761930742 | K16: 8692548.741 | L16: 0 | M16: 43547109.02
A17: 7. | B17: ='Monthly Inputs'!M3 -> Sep23 | C17: ='Monthly Inputs'!M29 -> 2115170 | D17: =-'Monthly Inputs'!M37 -> 0 | E17: 11260013 | F17: =Calculations!J187 -> 0.8312279913 | G17: ='Ut 1.2 p3'!$G$50 -> 4.224227606 | H17: =Calculations!J210 -> 4.22 | I17: =M17/E17 -> 4.660790298 | K17: 8933450.328 | L17: 0 | M17: 52480559.34
A18: 8. | B18: ='Monthly Inputs'!N3 -> Oct23 | C18: ='Monthly Inputs'!N29 -> 2034654 | D18: =-'Monthly Inputs'!N37 -> 0 | E18: 13294667 | F18: =Calculations!K187 -> 0.4742805327 | G18: ='Ut 1.2 p3'!$G$50 -> 4.224227606 | H18: =Calculations!K210 -> 4.09086 | I18: 4.583247051 | K18: 8452183.973 | L18: =D18*I17 -> 0 | M18: 60932743.32
A19: 9. | B19: ='Monthly Inputs'!O3 -> Nov23 | C19: ='Monthly Inputs'!O29 -> 427386 | D19: =-'Monthly Inputs'!O37 -> -484600 | E19: 13237453 | F19: =Calculations!L187 -> 0.4129169779 | G19: ='Ut 1.2 p3'!$G$50 -> 4.224227606 | H19: =Calculations!L210 -> 5.70285 | I19: 4.599682451 | K19: 2176378.458 | L19: -2221041.521 | M19: =M18+L19+K19 -> 60888080.25
A20: 10. | B20: ='Monthly Inputs'!P3 -> Dec23 | C20: ='Monthly Inputs'!P29 -> 109998 | D20: =-'Monthly Inputs'!P37 -> -4086000 | E20: 9261451 | F20: =Calculations!M187 -> 0.3357092579 | G20: ='Ut 1.2 p3'!$G$50 -> 4.224227606 | H20: =Calculations!M210 -> 9.2221 | I20: 4.634655212 | K20: 829854.3879 | L20: -18794302.49 | M20: =M19+L20+K20 -> 42923632.15
A21: 11. | B21: ='Monthly Inputs'!Q3 -> Jan24 | C21: ='Monthly Inputs'!Q29 -> 0 | D21: =-'Monthly Inputs'!Q37 -> -4463089 | E21: 4798362 | F21: =Calculations!N187 -> 0.2971845602 | G21: ='Ut 1.2 p3'!$G$50 -> 4.224227606 | H21: =Calculations!N210 -> 7.26617 | I21: 4.634655212 | K21: 0 | L21: -20684878.7 | M21: =M20+L21+K21 -> 22238753.45
A22: 12. | B22: ='Monthly Inputs'!R3 -> Feb24 | C22: ='Monthly Inputs'!R29 -> 361110 | D22: =-'Monthly Inputs'!R37 -> -3865296 | E22: 1294176 | F22: =Calculations!O187 -> 0.3254765581 | G22: ='Ut 1.2 p3'!$G$50 -> 4.224227606 | H22: =Calculations!O210 -> 8.48625 | I22: 5.32229105 | K22: 2563542.142 | L22: -17914314.25 | M22: =M21+L22+K22 -> 6887981.342
M25: Inj./With. Adj.
A26: 14. | B26: Total | C26: =SUM(C11:C22) -> 13303294 | D26: =SUM(D11:D22) -> -13011110 | K26: =SUM(K11:K22) -> 60854337.24 | L26: =SUM(L11:L22) -> -60326218.94 | M26: =L26+K26 -> 528118.3005
A27: 15. | B27: Average $ /Dth | K27: =K26/C26 -> 4.574381145 | L27: =L26/D26 -> 4.636515942
A31: ___________________________________________________________________

Sheet LNG Storage
A1: Storage Injection / Withdrawal LNG adjustment
C3: (A) | D3: (B) | E3: (C) | F3: (D) | G3: (E) | H3: (F) | I3: (G) | K3: (H) | L3: (I) | M3: (J)
G4: Injections | I4: (J) / (C)
E5: Storage | G5: ------------------------------------------------------------- | I5: Storage | M5: Storage
C6: Injection Dth | D6: Withdrawal Dth | E6: Inventory Dth | F6: % that is | G6: Co. Prod. | H6: Purchased | I6: Inventory | M6: Inventory
A7: Line | B7: Month | C7: Per IRPs | D7: Per IRPs | E7: Balance | F7: Co. Prod. (1) | G7: $/Dth (2) | H7: $/Dth (3) | I7: Average $/Dth | K7: Injection (4) | L7: Withdrawal (5) | M7: Balance
B8: =+Expenses!P3 -> 2022-12-31 | E8: =-'Other Inputs'!D257 -> 107314 | I8: =IFERROR(M8/E8,0) -> 14.09058045 | M8: ='Other Inputs'!E257 -> 1512116.55
B9: ='Monthly Inputs'!E3 -> Jan23 | C9: ='Monthly Inputs'!E$40 -> 0 | D9: =-'Monthly Inputs'!$E$41 -> 0 | E9: =E8+C9+D9 -> 107314 | F9: =F21 -> 0.2971845602 | G9: ='Other Inputs'!F116 -> 5.0105 | H9: ='Monthly Inputs'!E86 -> 12.52 | I9: =IFERROR(M9/E9,0) -> 14.09058045 | K9: =(+F9*C9*G9)+((1-F9)*C9*H9) -> 0 | L9: =D9*I8 -> 0 | M9: =M8+L9+K9 -> 1512116.55
B10: ='Monthly Inputs'!F3 -> Feb23 | C10: ='Monthly Inputs'!F$40 -> 0 | D10: =-'Monthly Inputs'!$F$41 -> 0 | E10: =E9+C10+D10 -> 107314 | F10: =F22 -> 0.3254765581 | G10: =G9 -> 5.0105 | H10: ='Monthly Inputs'!F86 -> 9.34 | I10: =IFERROR(M10/E10,0) -> 14.09058045 | K10: =(+F10*C10*G10)+((1-F10)*C10*H10) -> 0 | L10: =D10*I9 -> 0 | M10: =M9+L10+K10 -> 1512116.55
A11: 1. | B11: ='Monthly Inputs'!G3 -> Mar23 | C11: ='Monthly Inputs'!G$40 -> 0 | D11: =-'Monthly Inputs'!$G$41 -> 0 | E11: =E10+C11+D11 -> 107314 | F11: =Calculations!D187 -> 0.3218098351 | G11: ='Ut 1.2 p3'!$G$50 -> 4.224227606 | H11: =Calculations!D210 -> 8.02345 | I11: 14.09058045 | K11: 0 | L11: =D11*I10 -> 0 | M11: =M10+L11+K11 -> 1512116.55
A12: 2. | B12: ='Monthly Inputs'!H3 -> Apr23 | C12: ='Monthly Inputs'!H$40 -> 0 | D12: =-'Monthly Inputs'!$H$41 -> 0 | E12: =E11+C12+D12 -> 107314 | F12: =Calculations!E187 -> 0.4770327784 | G12: ='Ut 1.2 p3'!$G$50 -> 4.224227606 | H12: =Calculations!E210 -> 6.97339 | I12: 14.09058045 | K12: 0 | L12: =D12*I11 -> 0 | M12: =M11+L12+K12 -> 1512116.55
A13: 3. | B13: ='Monthly Inputs'!I3 -> May23 | C13: ='Monthly Inputs'!I$40 -> 279000 | D13: =-'Monthly Inputs'!$I$41 -> 0 | E13: =E12+C13+D13 -> 386314 | F13: =Calculations!F187 -> 0.6458738332 | G13: ='Ut 1.2 p3'!$G$50 -> 4.224227606 | H13: =Calculations!F210 -> 3.96 | I13: 6.897420356 | K13: =(+F13*C13*G13)+((1-F13)*C13*H13) -> 1152453.497 | L13: =D13*I12 -> 0 | M13: =M12+L13+K13 -> 2664570.047
A14: 4. | B14: ='Monthly Inputs'!J3 -> Jun23 | C14: ='Monthly Inputs'!J$40 -> 270000 | D14: =-'Monthly Inputs'!$J$41 -> 0 | E14: 656314 | F14: =Calculations!G187 -> 0.9155358699 | G14: ='Ut 1.2 p3'!$G$50 -> 4.224227606 | H14: =Calculations!G210 -> 4.27 | I14: 5.79929021 | K14: 1141585.307 | L14: =D14*I13 -> 0 | M14: 3806155.355
A15: 5. | B15: ='Monthly Inputs'!K3 -> Jul23 | C15: ='Monthly Inputs'!K$40 -> 279000 | D15: =-'Monthly Inputs'!$K$41 -> 0 | E15: 935314 | F15: =Calculations!H187 -> 0.9362969534 | G15: ='Ut 1.2 p3'!$G$50 -> 4.224227606 | H15: =Calculations!H210 -> 4.54 | I15: 5.335456464 | K15: 1184171.772 | L15: 0 | M15: 4990327.127
A16: 6. | B16: ='Monthly Inputs'!L3 -> Aug23 | C16: ='Monthly Inputs'!L$40 -> 279000 | D16: =-'Monthly Inputs'!$L$41 -> 0 | E16: =E15+C16+D16 -> 1214314 | F16: =Calculations!I187 -> 0.9647214244 | G16: ='Ut 1.2 p3'!$G$50 -> 4.224227606 | H16: =Calculations!I210 -> 4.57 | I16: 5.082943926 | K16: 1181962.844 | L16: 0 | M16: 6172289.971
A17: 7. | B17: ='Monthly Inputs'!M3 -> Sep23 | C17: ='Monthly Inputs'!M$40 -> 0 | D17: =-'Monthly Inputs'!$M$41 -> 0 | E17: 1214314 | F17: =Calculations!J187 -> 0.8312279913 | G17: ='Ut 1.2 p3'!$G$50 -> 4.224227606 | H17: =Calculations!J210 -> 4.22 | I17: 5.082943926 | K17: 0 | L17: =D17*I16 -> 0 | M17: 6172289.971
A18: 8. | B18: ='Monthly Inputs'!N3 -> Oct23 | C18: ='Monthly Inputs'!N$40 -> 108000 | D18: =-'Monthly Inputs'!$N$41 -> -108000 | E18: 1214314 | F18: =Calculations!K187 -> 0.4742805327 | G18: ='Ut 1.2 p3'!$G$50 -> 4.224227606 | H18: =Calculations!K210 -> 4.09086 | I18: 5.000334594 | K18: 448644.2752 | L18: =D18*I17 -> -548957.944 | M18: 6071976.302
A19: 9. | B19: ='Monthly Inputs'!O3 -> Nov23 | C19: ='Monthly Inputs'!O$40 -> 0 | D19: =-'Monthly Inputs'!$O$41 -> 0 | E19: 1214314 | F19: =Calculations!L187 -> 0.4129169779 | G19: ='Ut 1.2 p3'!$G$50 -> 4.224227606 | H19: =Calculations!L210 -> 5.70285 | I19: 5.000334594 | K19: 0 | L19: 0 | M19: =M18+L19+K19 -> 6071976.302
A20: 10. | B20: ='Monthly Inputs'!P3 -> Dec23 | C20: ='Monthly Inputs'!P$40 -> 0 | D20: =-'Monthly Inputs'!$P$41 -> 0 | E20: 1214314 | F20: =Calculations!M187 -> 0.3357092579 | G20: ='Ut 1.2 p3'!$G$50 -> 4.224227606 | H20: =Calculations!M210 -> 9.2221 | I20: 5.000334594 | K20: 0 | L20: 0 | M20: =M19+L20+K20 -> 6071976.302
A21: 11. | B21: ='Monthly Inputs'!Q3 -> Jan24 | C21: ='Monthly Inputs'!Q$40 -> 0 | D21: =-'Monthly Inputs'!$Q$41 -> 0 | E21: 1214314 | F21: =Calculations!N187 -> 0.2971845602 | G21: ='Ut 1.2 p3'!$G$50 -> 4.224227606 | H21: =Calculations!N210 -> 7.26617 | I21: 5.000334594 | K21: 0 | L21: 0 | M21: =M20+L21+K21 -> 6071976.302
A22: 12. | B22: ='Monthly Inputs'!R3 -> Feb24 | C22: ='Monthly Inputs'!R$40 -> 0 | D22: =-'Monthly Inputs'!$R$41 -> 0 | E22: 1214314 | F22: =Calculations!O187 -> 0.3254765581 | G22: ='Ut 1.2 p3'!$G$50 -> 4.224227606 | H22: =Calculations!O210 -> 8.48625 | I22: 5.000334594 | K22: 0 | L22: 0 | M22: =M21+L22+K22 -> 6071976.302
M25: Inj./With. Adj.
A26: 14. | B26: Total | C26: =SUM(C11:C22) -> 1215000 | D26: =SUM(D11:D22) -> -108000 | K26: =SUM(K11:K22) -> 5108817.696 | L26: =SUM(L11:L22) -> -548957.944 | M26: =L26+K26 -> 4559859.752
A27: 15. | B27: Average $ /Dth | K27: =K26/C26 -> 4.204788227 | L27: =IFERROR(L26/D26,0) -> 5.082943926
A31: ___________________________________________________________________

Sheet WEXPRO Royalty Detail
A1: MLPX Gathered | B1: 8741271 | C1: Adjusted test year-> | D1: -0.006346688277 | E1: 8685792.878 | H1: MLPX Gathered | I1: 7378906 | J1: Adjusted test year-> | K1: 0.2130639024 | L1: 8951084.508
A2: Birch Creek | B2: 1429642 | C2: Adjusted test year-> | D2: -0.006346688277 | E2: 1420568.508 | H2: Birch Creek | I2: 0
A3: Other | B3: 0 | H3: Other | I3: 462566
A4: Wexpro | B4: 13151511 | H4: Wexpro | I4: 5356312
A5: MLPX-Acquired | B5: 17112854 | H5: MLPX-Acquired | I5: 0
C7: WEXPRO I | J7: WEXPRO II
A8: Input Operator Service Fee > | C8: =+'Monthly Inputs'!S117 -> 172323405.4 | H8: Input Operator Service Fee > | J8: =+'Monthly Inputs'!S119 -> 54381101.96
A10: do not change the order of the months below!!!!! | H10: do not change the order of the months below!!!!!
A11: \/ | C11: 2022-12-31 | J11: 2022-12-31
A12: \/ | B12: Company | C12: Average Index | D12: Church Buttes | H12: \/ | I12: Company | J12: Average Index | K12: Church Buttes
A13: \/ | B13: Production | C13: Spot Prices | D13: & Canyon Cr | H13: \/ | I13: Production | J13: Spot Prices | K13: & Canyon Cr
A14: January | B14: 3335506.086 | C14: 6.33 | D14: =C14+0.1 -> 6.43 | E14: =B14*D14 -> 21447304.14 | H14: January | I14: 1886941.987 | J14: 6.33 | K14: =J14+0.1 -> 6.43 | L14: =I14*K14 -> 12133036.97
A15: February | B15: 3173001.655 | C15: 5.52 | D15: 5.62 | E15: 17832269.3 | H15: February | I15: 1696160.616 | J15: 5.52 | K15: 5.62 | L15: 9532422.66
A16: March | B16: 3483614.068 | C16: 5.23 | D16: 5.33 | E16: 18567662.98 | H16: March | I16: 1454997.212 | J16: 5.23 | K16: 5.33 | L16: 7755135.141
A17: April | B17: 3312333.997 | C17: 4.23 | D17: 4.33 | E17: 14342406.21 | H17: April | I17: 1376536.279 | J17: 4.23 | K17: 4.33 | L17: 5960402.088
A18: May | B18: 3364720.318 | C18: 3.96 | D18: 4.06 | E18: 13660764.49 | H18: May | I18: 1380126.35 | J18: 3.96 | K18: 4.06 | L18: 5603312.981
A19: June | B19: 3203188.194 | C19: 4.27 | D19: 4.37 | E19: 13997932.41 | H19: June | I19: 1307421.074 | J19: 4.27 | K19: 4.37 | L19: 5713430.093
A20: July | B20: 3348338.543 | C20: 4.54 | D20: 4.64 | E20: 15536290.84 | H20: July | I20: 1314608.828 | J20: 4.54 | K20: 4.64 | L20: 6099784.963
A21: August | B21: 3489884.148 | C21: 4.57 | D21: 4.67 | E21: 16297758.97 | H21: August | I21: 1286992.306 | J21: 4.57 | K21: 4.67 | L21: =I21*K21 -> 6010254.067
A22: September | B22: 3315189.947 | C22: 4.22 | D22: 4.32 | E22: 14321620.57 | H22: September | I22: 1244940.406 | J22: 4.22 | K22: 4.32 | L22: =I22*K22 -> 5378142.556
A23: October | B23: 3357249.339 | C23: 4.09 | D23: 4.19 | E23: 14066874.73 | H23: October | I23: 1256832.272 | J23: 4.09 | K23: 4.19 | L23: =I23*K23 -> 5266127.221
A24: November | B24: 3387621.09 | C24: 4.99 | D24: 5.09 | E24: 17242991.35 | H24: November | I24: 2075200.629 | J24: 4.99 | K24: =J24+0.1 -> 5.09 | L24: =I24*K24 -> 10562771.2
A25: December | B25: 3408000.509 | C25: 6.24 | D25: 6.34 | E25: 21606723.23 | H25: December | I25: 1994506.462 | J25: 6.24 | K25: =J25+0.1 -> 6.34 | L25: =I25*K25 -> 12645170.97
B27: =SUM(B14:B25) -> 40178647.9 | C27: CANYON CREEK | D27: =E27/B27 -> 4.950903269 | E27: =SUM(E14:E25) -> 198920599.2 | I27: =SUM(I14:I25) -> 18275264.42 | J27: CANYON CREEK | K27: =L27/I27 -> 5.070240779 | L27: =SUM(L14:L25) -> 92659990.91
C28: CHURCH BUTTES | J28: CHURCH BUTTES
C29: All Others -> | D29: =D27-0.2 -> 4.750903269 | J29: All Others -> | K29: =K27-0.2 -> 4.870240779
A32: Make sure all spot pricing is only 2 decimals | H32: Make sure all spot pricing is only 2 decimals

Sheet Expenses
P1: Historical
P2: 12 Months Ending
A3: FERC Acct | B3: Description | D3: 2022-01-31 | E3: 2022-02-28 | F3: 2022-03-31 | G3: 2022-04-30 | H3: 2022-05-31 | I3: 2022-06-30 | J3: 2022-07-31 | K3: 2022-08-31 | L3: 2022-09-30 | M3: 2022-10-31 | N3: 2022-11-30 | O3: 2022-12-31 | P3: =+O3 -> 2022-12-31
A5: OTHER UTILITY OPERATING EXPENSES
A7: Depreciation, Amortization, & Other Taxes
A8: 403 | B8: Depreciation Expense | C8: Production | O8: 735497 | P8: =O8 -> 735497
A10: 404 | B10: Amortization and Depletion | C10: Production | D10: 0 | E10: 0 | F10: 0 | G10: 0 | H10: 0 | I10: 0 | J10: 0 | K10: 0 | L10: 0 | M10: 0 | N10: 0 | O10: 0 | P10: 0
A13: 483 | B13: Sales for Resale | D13: 116873.49 | E13: 98906.89 | F13: 106860.96 | G13: 52524.95 | H13: 141242.98 | I13: 721039.87 | J13: 151205 | K13: 285419.14 | L13: 236431.42 | M13: 149417.43 | N13: 308513.49 | O13: 111701.27 | P13: =SUM(D13:O13) -> 2480136.89
A14: 490 | B14: Incidental Plant Prod Sales | D14: 814587.34 | E14: 1062620.16 | F14: 1019900.86 | G14: 972357.06 | H14: 2794975.53 | I14: 1033024.4 | J14: 1190418.8 | K14: 1063673.75 | L14: 847278.01 | M14: 973664.86 | N14: 855479.63 | O14: 658047.02 | P14: 13286027.42
A15: 492 | B15: Incidental Gasoline_Oil Sales | D15: 187201.33 | E15: 224977.55 | F15: 253213.06 | G15: 235424.09 | H15: 290819.35 | I15: 310169.89 | J15: 268774.89 | K15: 359147.18 | L15: 300873.24 | M15: 270140.06 | N15: 206434.53 | O15: 270050.02 | P15: 3177225.19
A16: 4951 | B16: Overriding Royalty Revenue from Celsius | D16: 853244.84 | E16: 1377641.49 | F16: 961928.39 | G16: 1061501.46 | H16: 2213730.6 | I16: 226621.98 | J16: 1472583.64 | K16: 1042921.87 | L16: 1640878.98 | M16: 1005888.54 | N16: 1294515.96 | O16: 1322085.7 | P16: 14473543.45
A17: 4952 | B17: Oil Revenue Received from Wexpro | D17: 158907 | E17: 210181 | F17: 461376 | G17: 319049 | H17: 364115 | I17: 485473 | J17: 438166 | K17: 216827 | L17: 157855 | M17: 145169 | N17: 141320 | O17: 134071 | P17: 3232509
A18: 758001 | B18: Gas Well Royalities - Other | D18: 0 | E18: 0 | F18: 0 | G18: 0 | H18: 0 | I18: 0 | J18: 0 | K18: 0 | L18: 0 | M18: 0 | N18: 0 | O18: 0 | P18: 0
A21: Other Operating Revenues
A22: 491 | B22: Revenue fr Natural Gas Processed by Others | D22: 0 | E22: 0 | F22: 0 | G22: 0 | H22: 0 | I22: 0 | J22: 0 | K22: 0 | L22: 0 | M22: 0 | N22: 0 | O22: 0 | P22: 0
B24: * LNG Electric Costs | C24: =1937485*1.1 -> 2131233.5 | D24: 26534.37 | E24: 26534.37 | F24: 26534.37 | G24: 397190.36 | H24: 397190.36 | I24: 397190.36 | J24: 397190.36 | K24: 10598.53 | L24: 106795.87 | M24: 102850.01 | N24: 299562.16 | O24: 107454.19 | P24: =SUM(D24:O24) -> 2295625.31

Sheet Rate Base
Q1: Historical
Q2: 13-Month Avg
Q3: Period Ended
A4: FERC Acct | B4: Description | D4: 2021-12-31 | E4: 2022-01-31 | F4: 2022-02-28 | G4: 2022-03-31 | H4: 2022-04-30 | I4: 2022-05-31 | J4: 2022-06-30 | K4: 2022-07-31 | L4: 2022-08-31 | M4: 2022-09-30 | N4: 2022-10-31 | O4: 2022-11-30 | P4: 2022-12-31 | Q4: =+P4 -> 2022-12-31
A5: 101 | B5: Gas Plant in Service | C5: Production | D5: 79968136 | E5: 79968136 | F5: 79968136 | G5: 79968136 | H5: 79968136 | I5: 79968136 | J5: 79968136 | K5: 79968136 | L5: 79968136 | M5: 79968136 | N5: 79968136 | O5: 79968136 | P5: 79968136 | Q5: =((D5/2)+SUM(E5:O5)+(P5/2))/12 -> 79968136
A7: 108 | B7: Accum Prov for Depreciation of Gas Plant in Service | C7: Production | D7: -71988400 | E7: -72058264 | F7: -72112568 | G7: -72165240 | H7: -72219000 | I7: -72277347 | J7: -72335916 | K7: -72397634 | L7: -72460659 | M7: -72525283 | N7: -72525283 | O7: -72525283 | P7: -72654580 | Q7: =((D7/2)+SUM(E7:O7)+(P7/2))/12 -> -72326997.25
A9: 111 | B9: Accum Prov for Amortization of Gas Plant in Service | C9: Production | D9: -6150277 | E9: -6150277 | F9: -6150277 | G9: -6150277 | H9: -6150277 | I9: -6150277 | J9: -6150277 | K9: -6150277 | L9: -6150277 | M9: -6150277 | N9: -6150277 | O9: -6150277 | P9: -6150277 | Q9: =((D9/2)+SUM(E9:O9)+(P9/2))/12 -> -6150277
A11: 1641 | B11: Gas Stored Underground | C11: Production | D11: 44932895.7 | E11: 32520297.1 | F11: 24327140.39 | G11: 13377221.65 | H11: 4611532.51 | I11: 4273987.86 | J11: 9042867.91 | K11: 16864248.25 | L11: 25992902.78 | M11: 40957960.21 | N11: 53451265.52 | O11: 54725203.51 | P11: 48124018.51 | Q11: =((D11/2)+SUM(E11:O11)+(P11/2))/12 -> 27222757.07
A12: 1641 | B12: LNG Stored* | C12: Production | D12: =+'LNG Storage'!$M$8 -> 1512116.55 | E12: =+'LNG Storage'!$M$9 -> 1512116.55 | F12: =+'LNG Storage'!$M$10 -> 1512116.55 | G12: =+'LNG Storage'!$M$11 -> 1512116.55 | H12: =+'LNG Storage'!$M$12 -> 1512116.55 | I12: =+'LNG Storage'!$M$13 -> 2664570.047 | J12: =+'LNG Storage'!$M$14 -> 3806155.355 | K12: =+'LNG Storage'!$M$15 -> 4990327.127 | L12: =+'LNG Storage'!$M$16 -> 6172289.971 | M12: =+'LNG Storage'!$M$17 -> 6172289.971 | N12: =+'LNG Storage'!$M$18 -> 6071976.302 | O12: 128654.34 | P12: 1512116.55 | Q12: =((D12/2)+SUM(E12:O12)+(P12/2))/12 -> 3130570.488
A14: 255 | B14: Deferred Investment Tax Credits | C14: Production | D14: 0 | E14: 0 | F14: 0 | G14: 0 | H14: 0 | I14: 0 | J14: 0 | K14: 0 | L14: 0 | M14: 0 | N14: 0 | O14: 0 | P14: 0 | Q14: =((D14/2)+SUM(E14:O14)+(P14/2))/12 -> 0
A16: 282000 | B16: Accum Deferred Income Taxes - Federal | C16: Production | D16: -33930378 | E16: -34579017 | F16: -35244000 | G16: -34557247 | H16: -35092242 | I16: -35715252 | J16: -36065261 | K16: -37355770 | L16: -37978270 | M16: -38356978 | N16: -38356978 | O16: -38356978 | P16: -43428098 | Q16: =((D16/2)+SUM(E16:O16)+(P16/2))/12 -> -36694769.25
A18: 282100 | B18: Accum Deferred Income Taxes - State | C18: Production | D18: -700755 | E18: -700755 | F18: -700755 | G18: -700755 | H18: -700755 | I18: -700755 | J18: -700755 | K18: -700755 | L18: -700755 | M18: -700755 | N18: -700755 | O18: -700755 | P18: -700755 | Q18: =((D18/2)+SUM(E18:O18)+(P18/2))/12 -> -700755
A20: RATE BASE (W/O Working Cap. Cash) | C20: Production | D20: =+D5+D7+D9+D11+D14+D16+D18+D12 -> 13643338.25 | E20: 512236.65 | F20: -8400207.06 | G20: -18716044.8 | H20: -28070488.94 | I20: -27936937.09 | J20: -22435049.74 | K20: -14781724.62 | L20: -5156632.249 | M20: 9365093.181 | N20: 21758084.82 | O20: 17088700.85 | P20: 6670561.06 | Q20: =((D20/2)+SUM(E20:O20)+(P20/2))/12 -> -5551334.945
A22: 1641 | B22: Gas Stored Underground (DTH) | C22: Total (DTH) | D22: -11422790 | E22: -8131966 | F22: -6056782 | G22: -3332283 | H22: -1184924 | I22: -1067151 | J22: -2484771 | K22: -4802709 | L22: -6538004 | M22: -9090765 | N22: -11813024 | O22: -11445057 | P22: -8822146 | Q22: =((D22/2)+SUM(E22:O22)+(P22/2))/12 -> -6339158.667
A23: 1641 | B23: LNG Stored (DTH)* | C23: Total (DTH) | D23: =-'LNG Storage'!$E$8 -> -107314 | E23: =-'LNG Storage'!$E$9 -> -107314 | F23: =-'LNG Storage'!$E$10 -> -107314 | G23: =-'LNG Storage'!$E$11 -> -107314 | H23: =-'LNG Storage'!$E$12 -> -107314 | I23: =-'LNG Storage'!$E$13 -> -386314 | J23: =-'LNG Storage'!$E$14 -> -656314 | K23: =-'LNG Storage'!$E$15 -> -935314 | L23: =-'LNG Storage'!$E$16 -> -1214314 | M23: =-'LNG Storage'!$E$17 -> -1214314 | N23: =-'LNG Storage'!$E$18 -> -1214314 | O23: -18765 | P23: -107314 | Q23: =((D23/2)+SUM(E23:O23)+(P23/2))/12 -> -514684.9167

Sheet RevRun Fcst
D3: TEMPERATURE ADJUSTED INPUT DATA FROM REVRUN SYSTEM
D4: 1/10/23
T7: 12-Month
B8: Rate Class | D8: Description | H8: Mar23 | I8: Apr23 | J8: May23 | K8: Jun23 | L8: Jul23 | M8: Aug23 | N8: Sep23 | O8: Oct23 | P8: Nov23 | Q8: Dec23 | R8: Jan24 | S8: Feb24 | T8: 2024-02-29
B10: UTILITY OPERATING REVENUE
B11: TARIFF DTH SALES AND REVENUE
A13: 13 | B13: Utah | G13: 1 | H13: 3 | I13: 4 | J13: 5 | K13: 6 | L13: 7 | M13: 8 | N13: 9 | O13: 10 | P13: 11 | Q13: 12 | R13: 1 | S13: 2
A14: 14 | C14: GS | D14: Distribution Non-Gas Rev | G14: 2 | H14: 48027139.47 | I14: 29894101.93 | J14: 21231160.21 | K14: 15568636.01 | L14: 14438001.23 | M14: 14339512.68 | N14: 15393702.3 | O14: 25513607.86 | P14: 45368804 | Q14: 64029173.01 | R14: 69447864.66 | S14: 59735814.95 | T14: 422987518.3
A15: 15 | G15: 3
A16: 16 | D16: Supplier Non-Gas Revenue | G16: 4 | H16: 12428009.24 | I16: 3489814.969 | J16: 2059547.087 | K16: 1137781.931 | L16: 954761.7623 | M16: 937758.0802 | N16: 1103866.961 | O16: 2753137.296 | P16: 11531509.89 | Q16: 17609315.44 | R16: 19399005.08 | S16: 16176808.93 | T16: 89581316.67
A17: 17 | G17: 5
A18: 18 | D18: Commodity Revenue | G18: 6 | H18: 93481128.04 | I18: 62406128.74 | J18: 36829563.12 | K18: 20346226.45 | L18: 17073393.86 | M18: 16769327.89 | N18: 19739746.74 | O18: 49232593.16 | P18: 86737829.94 | Q18: 132453930.4 | R18: 145915636.4 | S18: 121678888.2 | T18: 802664392.9
A19: 19 | D19: Total Revenue | G19: 7 | H19: 153936276.8 | I19: 95790045.64 | J19: 60120270.42 | K19: 37052644.4 | L19: 32466156.85 | M19: 32046598.65 | N19: 36237316 | O19: 77499338.31 | P19: 143638143.8 | Q19: 214092418.8 | R19: 234762506.2 | S19: 197591512 | T19: 1315233228
A20: 20 | D20: # of Customers | G20: 8 | H20: 1148087 | I20: 1150883 | J20: 1151948 | K20: 1154475 | L20: 1155244 | M20: 1156241 | N20: 1159268 | O20: 1159259 | P20: 1162895 | Q20: 1167146 | R20: 1171208 | S20: 1172335 | T20: 1159082.417
A21: 21 | D21: Total Dth | G21: 9 | H21: 13126330 | I21: 8762875 | J21: 5171493 | K21: 2856954 | L21: 2397393 | M21: 2354697 | N21: 2771794 | O21: 6913088 | P21: 12179457 | Q21: 18598770 | R21: 20489021 | S21: 17085772 | T21: 112707644
A22: 22 | G22: 10
A23: 23 | C23: GS-C | D23: Distribution Non-Gas Rev | G23: 11 | T23: 0
A24: 24 | G24: 12
A25: 25 | D25: Supplier Non-Gas Revenue | G25: 13 | T25: 0
A26: 26 | G26: 14
A27: 27 | D27: Commodity Revenue | G27: 15 | T27: 0
A28: 28 | D28: Total Revenue | G28: 16 | T28: 0
A29: 29 | D29: # of Customers | G29: 17
A30: 30 | D30: Total Dth | G30: 18 | T30: 0
A31: 31 | G31: 19
A32: 32 | C32: GSS | D32: Distribution Non-Gas Rev | G32: 20 | H32: 0 | I32: 0 | J32: 0 | K32: 0 | L32: 0 | M32: 0 | N32: 0 | O32: 0 | P32: 0 | Q32: 0 | R32: 0 | S32: 0 | T32: 0
A33: 33 | G33: 21 | H33: 0 | I33: 0 | J33: 0 | K33: 0 | L33: 0 | M33: 0 | N33: 0 | O33: 0 | P33: 0 | Q33: 0 | R33: 0 | S33: 0
A34: 34 | D34: Supplier Non-Gas Revenue | G34: 22 | H34: 0 | I34: 0 | J34: 0 | K34: 0 | L34: 0 | M34: 0 | N34: 0 | O34: 0 | P34: 0 | Q34: 0 | R34: 0 | S34: 0 | T34: 0
A35: 35 | G35: 23 | H35: 0 | I35: 0 | J35: 0 | K35: 0 | L35: 0 | M35: 0 | N35: 0 | O35: 0 | P35: 0 | Q35: 0 | R35: 0 | S35: 0
A36: 36 | D36: Commodity Revenue | G36: 24 | H36: 0 | I36: 0 | J36: 0 | K36: 0 | L36: 0 | M36: 0 | N36: 0 | O36: 0 | P36: 0 | Q36: 0 | R36: 0 | S36: 0 | T36: 0
